{"text_format":"1","workbook":"xlsx","n_sheets":5,"sheets":["Transition Matrices","Parameters","Sheet3","Sheet1","Sheet2"],"not_rendered":{"charts":0,"images":2,"macros":1,"external_links":0,"defined_names":35,"comments":0,"pivot_tables":0},"unopened":[],"bounds":{"document_bytes":16777216,"sheet_cells":100000,"rows_first":2000,"rows_last":500,"rows_between":2000,"halvings":0,"cell_chars":16384,"cell_head_chars":4096},"cells_cut":0,"cells_raw":0,"read":"whole","date_system":"1900"}

{"sheet":"Transition Matrices","index":0,"n_rows":10008,"n_cols":57,"rows_kept":1125,"cut":true,"hidden":false,"merged":[[84,5,85,6],[18,26,18,40],[18,7,18,21],[19,14,19,17],[19,9,19,12],[19,28,19,31],[19,18,19,21],[19,33,19,36],[19,37,19,40]],"bounds":{"rows_first":500,"rows_last":125,"rows_between":500,"halvings":2}}
["Model Inputs",null,null,null,null,null,null,"Transition Matrix: Treatment A",null,null,null,null,null,null,null,null,null,null,null,null,null,null,null,null,null,null,null,null,null,null,null,null,null,null,null,null,null,null,null,null,null,null,null,null,null,null,null,null,null,null,null,null,null,"txA_cost","txA_QALY","txB_cost","txB_QALY"]
[null,null,null,null,null,null,null,null,null,null,null,null,null,null,null,null,null,null,null,null,null,null,null,null,null,null,"Transition Matrix: Treatment B",null,null,null,null,null,null,null,null,null,null,null,null,null,null,null,null,null,null,null,null,null,null,null,null,null,null,{"$f":"$R$87","v":14179.827380299264},{"$f":"$V$87","v":1.0278976468606502},{"$f":"$AK$87","v":{"$error":"#VALUE!"}},{"$f":"$AO$87","v":{"$error":"#VALUE!"}}]
[null,null,null,null,null,null,null,null,null,"SILENT","ACTIVE","COMPL","DEAD",null,null,null,null,null,null,null,null,null,null,null,null,null,null,null,"SILENT","ACTIVE","COMPL","DEAD"]
[null,null,null,null,null,null,null,null,"SILENT",{"$f":"1-K4-L4-M4","v":0.90400000000000003},{"$f":"p_active_A","v":8.7999999999999995E-2},{"$f":"p_compl_sil_A","v":8.0000000000000002E-3},{"$f":"p_dead_sil_A","v":0},null,null,null,null,null,null,null,null,null,null,null,null,null,null,"SILENT",{"$f":"1-AD4-AE4-AF4","v":{"$error":"#VALUE!"}},{"$f":"p_active_B","v":"NA"},{"$f":"p_compl_sil_B","v":0.12307692307692308},{"$f":"p_dead_sil_B","v":1.5384615384615385E-2},null,null,null,null,null,null,null,null,null,null,null,null,null,null,null,null,null,null,null,null,"numruns",100]
[null,null,null,null,null,null,null,null,"ACTIVE",{"$f":"p_success_A","v":0.2119047619047619},{"$f":"1-J5-L5-M5","v":0.68928571428571428},{"$f":"p_compl_act_A","v":9.7619047619047619E-2},{"$f":"p_dead_act_A","v":1.1904761904761906E-3},null,null,null,null,null,null,null,null,null,null,null,null,null,null,"ACTIVE",{"$f":"p_success_B","v":0.2119047619047619},{"$f":"1-AC5-AE5-AF5","v":0.68928571428571428},{"$f":"p_compl_act_B","v":9.7619047619047619E-2},{"$f":"p_dead_act_B","v":1.1904761904761906E-3}]
[null,null,null,null,null,null,null,null,"COMPL",0,0,{"$f":"1-M6","v":0.99650593990216629},{"$f":"p_dead_cmp_A","v":3.4940600978336828E-3},null,null,null,null,null,null,null,null,null,null,null,null,null,null,"COMPL",0,0,{"$f":"1-AF6","v":0.99650593990216629},{"$f":"p_dead_cmp_B","v":3.4940600978336828E-3},null,null,null,null,null,null,null,null,null,null,"Incremental analysis"]
[null,null,null,null,null,null,null,null,"DEAD",0,0,0,1,null,null,null,null,null,null,null,null,null,null,null,null,null,null,"DEAD",0,0,0,1]
[null,null,null,null,null,null,null,null,null,null,null,null,null,null,null,null,null,null,null,null,null,null,null,null,null,null,null,null,null,null,null,null,null,null,null,null,null,null,null,null,null,null,null,null,null,null,null,null,null,null,null,null,null,"txA_cost","txA_QALY","txB_cost","txB_QALY"]
[null,null,null,null,null,null,null,null,null,null,null,null,null,null,null,null,null,null,null,null,null,null,null,null,null,null,null,null,null,null,null,null,null,null,null,null,null,null,null,null,null,null,null,null,null,"COSTS","OUTCOMES","NET BENEFIT",null,null,null,null,1,12863.41137564207,1.4654215380856241,20545.911680453431,0.69039236446187879]
[null,null,null,null,null,null,null,null,null,null,null,null,null,null,null,null,null,null,null,null,null,null,null,null,null,null,null,null,null,null,null,null,null,null,null,null,null,null,null,null,null,null,null,"Treatment A",null,{"$f":"$R$87","v":14179.827380299264},{"$f":"$V$87","v":1.0278976468606502},{"$f":"AU10*lambda-AT10","v":16657.102025520246},null,null,null,null,{"$f":"1+BA9","v":2},17129.959267662758,-9.3774423053319733E-2,21328.080539150484,-6.525133813397832E-2]
[null,null,null,null,null,null,null,null,null,null,null,null,null,null,null,null,null,null,null,null,null,null,null,null,null,null,null,null,null,null,null,null,null,null,null,null,null,null,null,null,null,null,null,"Treatment B",null,{"$f":"$AK$87","v":{"$error":"#VALUE!"}},{"$f":"$AO$87","v":{"$error":"#VALUE!"}},{"$f":"AU11*lambda-AT11","v":{"$error":"#VALUE!"}},null,null,null,null,{"$f":"1+BA10","v":3},17480.421821909971,-7.9723885854539045E-2,20873.292473487025,0.11204903394104571]
[null,null,null,null,null,null,null,null,null,null,null,null,null,null,null,null,null,null,null,null,null,null,null,null,null,null,null,null,null,null,null,null,null,null,null,null,null,null,null,null,null,null,null,null,null,null,null,null,null,null,null,null,4,14462.220938340859,0.74682327105036717,20580.736999292483,0.43795930243088987]
[null,null,null,null,null,null,null,null,null,null,null,null,null,null,null,null,null,null,null,null,null,null,null,null,null,null,null,null,null,null,null,null,null,null,null,null,null,null,null,null,null,null,null,null,null,null,null,null,null,null,null,null,5,15544.342188897868,1.3130243091394163,21631.880627435959,1.3061143379936895]
[null,null,null,null,null,null,null,null,null,null,null,null,null,null,null,null,null,null,null,null,null,null,null,null,null,null,null,null,null,null,null,null,null,null,null,null,null,null,null,null,null,null,null,"Incremental",null,{"$f":"AT11-AT10","v":{"$error":"#VALUE!"}},null,null,null,null,null,null,6,17268.553095381154,-9.228942697559428E-2,21317.673712506155,0.32817139923503813]
[null,null,null,null,null,null,null,null,null,null,null,null,null,null,null,null,null,null,null,null,null,null,null,null,null,null,null,null,null,null,null,null,null,null,null,null,null,null,null,null,null,null,null,null,null,"for",{"$f":"AU11-AU10","v":{"$error":"#VALUE!"}},"QALYs",null,null,null,null,7,18286.012896599605,0.40333186423532069,21673.660466859539,0.82762566738657539]
[null,null,null,null,null,null,null,null,null,null,null,null,null,null,null,null,null,null,null,null,null,null,null,null,null,null,null,null,null,null,null,null,null,null,null,null,null,null,null,null,null,null,null,null,null,null,null,null,null,null,null,null,8,16134.478512945409,1.3588576575056568,21790.26685961699,1.475822143691957]
[null,null,null,null,null,null,null,null,null,null,null,null,null,null,null,null,null,null,null,null,null,null,null,null,null,null,null,null,null,null,null,null,null,null,null,null,null,null,null,null,null,null,null,"ICER",null,{"$f":"AT14/AU15","v":{"$error":"#VALUE!"}},"per QALY",null,null,null,null,null,9,12362.025021818838,1.8705501473715611,21553.123383450504,1.1439936899687788]
[null,null,null,null,null,null,null,null,null,null,null,null,null,null,null,null,null,null,null,null,null,null,null,null,null,null,null,null,null,null,null,null,null,null,null,null,null,null,null,null,null,null,null,null,null,null,null,null,null,null,null,null,10,17563.586912268824,0.70124508768836402,21502.369134764602,0.92121975421252622]
[null,null,null,null,null,null,null,"TREATMENT A",null,null,null,null,null,null,null,null,null,null,null,null,null,null,null,null,null,null,"TREATMENT B",null,null,null,null,null,null,null,null,null,null,null,null,null,null,null,null,null,null,null,null,null,null,null,null,null,11,13913.869551143494,2.1657469441663593,21251.548038136585,1.9716323997566474]
[null,null,null,null,null,null,null,null,null,"PROBABILITIES",null,null,null,null,"COSTS",null,null,null,"OUTCOMES",null,null,null,null,null,null,null,null,null,"PROBABILITIES",null,null,null,null,"COSTS",null,null,null,"OUTCOMES",null,null,null,null,null,null,null,null,null,null,null,null,null,null,12,15982.784775152768,0.86869439741827492,20253.921389312509,0.80229312771536643]
["PROBABILITIES","Treatment A","Treatment B",null,null,null,null,"YEARS","PERIOD","SILENT","ACTIVE","COMPL","DEAD","discount","SILENT","ACTIVE","COMPL","DEAD","SILENT","ACTIVE","COMPL","DEAD",null,null,null,null,"YEARS","PERIOD","SILENT","ACTIVE","COMPL","DEAD","discount","SILENT","ACTIVE","COMPL","DEAD","SILENT","ACTIVE","COMPL","DEAD",null,null,null,null,null,null,null,null,null,null,null,13,16507.714092210721,1.4374044085974536,21351.571079917077,1.5826960771246885]
["p_active",{"$f":"Parameters!D22","v":8.7999999999999995E-2},{"$f":"Parameters!D32","v":"NA"},null,null,null,null,{"$f":"TEXT((I22-MOD(I22-1,12))/12,\"0\")&\".\"&TEXT(MOD(I22-1,12), \"00\")","v":"0.00"},1,0,1,0,0,1,{"$f":"c_sil_A*J22*N22","v":0},{"$f":"c_act_A*K22*N22","v":122.42955170295855},{"$f":"c_compl_A*L22*N22","v":0},{"$f":"c_dead_A*M22*N22","v":0},{"$f":"u_sil*J22*N22","v":0},{"$f":"u_act*K22*N22","v":5.4416666666666669E-2},{"$f":"u_compl*L22*N22","v":0},{"$f":"u_dead*M22*N22","v":0},null,null,null,null,{"$f":"TEXT((AB22-MOD(AB22-1,12))/12,\"0\")&\".\"&TEXT(MOD(AB22-1,12), \"00\")","v":"0.00"},1,0,1,0,0,1,{"$f":"c_sil_B*AC22*AG22","v":0},{"$f":"c_act_B*AD22*AG22","v":484.42955170295852},{"$f":"c_compl_B*AE22*AG22","v":0},{"$f":"c_dead_B*AF22*AG22","v":0},{"$f":"u_sil*AC22*AG22","v":0},{"$f":"u_act*AD22*AG22","v":5.4416666666666669E-2},{"$f":"u_compl*AE22*AG22","v":0},{"$f":"u_dead*AF22*AG22","v":0},null,null,null,null,null,null,null,null,null,null,null,14,18600.858145958497,0.44507849133546762,21728.106780157254,1.0733648055997895]
["p_success",{"$f":"Parameters!D36","v":0.2119047619047619},{"$f":"Parameters!D36","v":0.2119047619047619},null,null,null,null,{"$f":"TEXT((I23-MOD(I23-1,12))/12,\"0\")&\".\"&TEXT(MOD(I23-1,12), \"00\")","v":"0.01"},{"$f":"1+I22","v":2},{"$f":"MMULT(J22:M22,J$4:M$7)","v":0.2119047619047619},0.68928571428571428,9.7619047619047619E-2,1.1904761904761906E-3,{"$f":"N22","v":1},{"$f":"c_sil_A*J23*N23","v":13.036296607124466},84.388940995253563,38.754433536955929,0,1.4462499999999998E-2,3.7508630952380953E-2,-1.114484126984127E-3,0,null,null,null,null,{"$f":"TEXT((AB23-MOD(AB23-1,12))/12,\"0\")&\".\"&TEXT(MOD(AB23-1,12), \"00\")","v":"0.01"},{"$f":"1+AB22","v":2},{"$f":"MMULT(AC22:AF22,AC$4:AF$7)","v":{"$error":"#VALUE!"}},{"$error":"#VALUE!"},{"$error":"#VALUE!"},{"$error":"#VALUE!"},{"$f":"AG22","v":1},{"$error":"#VALUE!"},{"$error":"#VALUE!"},{"$error":"#VALUE!"},{"$error":"#VALUE!"},{"$error":"#VALUE!"},{"$error":"#VALUE!"},{"$error":"#VALUE!"},{"$error":"#VALUE!"},null,null,null,null,null,null,null,null,null,null,null,15,13165.624801415071,1.4065174711074757,20946.053138487303,0.75349833377557252]
["p_compl_sil",{"$f":"Parameters!D23","v":8.0000000000000002E-3},{"$f":"Parameters!D33","v":0.12307692307692308},null,null,null,null,"0.02",{"$f":"1+I23","v":3},{"$f":"MMULT(J23:M23,J$4:M$7)","v":0.33762482993197279},0.49376241496598638,0.16626061386119786,2.3521412408429483E-3,{"$f":"N23","v":1},20.770545151322739,60.451111112055905,66.004904440801468,0,2.304289464285714E-2,2.6868904747732427E-2,-1.8981420082486756E-3,0,null,null,null,null,"0.02",{"$f":"1+AB23","v":3},{"$f":"MMULT(AC23:AF23,AC$4:AF$7)","v":{"$error":"#VALUE!"}},{"$error":"#VALUE!"},{"$error":"#VALUE!"},{"$error":"#VALUE!"},{"$f":"AG23","v":1},{"$error":"#VALUE!"},{"$error":"#VALUE!"},{"$error":"#VALUE!"},{"$error":"#VALUE!"},{"$error":"#VALUE!"},{"$error":"#VALUE!"},{"$error":"#VALUE!"},{"$error":"#VALUE!"},null,null,null,null,null,null,null,null,null,null,null,16,13114.136699642891,0.76416326169575932,21427.316965886144,0.28829494921054744]
["p_compl_act",{"$f":"Parameters!D38","v":9.7619047619047619E-2},{"$f":"Parameters!D38","v":9.7619047619047619E-2},null,null,null,null,"0.03",4,{"$f":"MMULT(J24:M24,J$4:M$7)","v":0.40984345323939103},0.37005436392128277,0.21658130462298048,3.520878216345725E-3,1,25.21340611174243,45.305589880606128,85.9820494061115,0,2.7971815683588433E-2,2.0137124970049804E-2,-2.4726365611123604E-3,0,null,null,null,null,"0.03",4,{"$f":"MMULT(AC24:AF24,AC$4:AF$7)","v":{"$error":"#VALUE!"}},{"$error":"#VALUE!"},{"$error":"#VALUE!"},{"$error":"#VALUE!"},1,{"$error":"#VALUE!"},{"$error":"#VALUE!"},{"$error":"#VALUE!"},{"$error":"#VALUE!"},{"$error":"#VALUE!"},{"$error":"#VALUE!"},{"$error":"#VALUE!"},{"$error":"#VALUE!"},null,null,null,null,null,null,null,null,null,null,null,17,17381.059695601347,1.2450689138074162,21818.514676321338,1.4410595448665744]
["p_dead_sil",{"$f":"Parameters!D24","v":0},{"$f":"Parameters!D34","v":1.5384615384615385E-2},null,null,null,null,"0.04",5,{"$f":"MMULT(J25:M25,J$4:M$7)","v":0.44891476360696703},0.29113941044509345,0.25522765872774378,4.7181672201957415E-3,1,27.617057573853778,35.644067503856441,101.32452198834221,0,3.0638432616175496E-2,1.5842836251720501E-2,-2.9138491038084081E-3,0,null,null,null,null,"0.04",5,{"$f":"MMULT(AC25:AF25,AC$4:AF$7)","v":{"$error":"#VALUE!"}},{"$error":"#VALUE!"},{"$error":"#VALUE!"},{"$error":"#VALUE!"},1,{"$error":"#VALUE!"},{"$error":"#VALUE!"},{"$error":"#VALUE!"},{"$error":"#VALUE!"},{"$error":"#VALUE!"},{"$error":"#VALUE!"},{"$error":"#VALUE!"},{"$error":"#VALUE!"},null,null,null,null,null,null,null,null,null,null,null,18,15070.678783830124,1.255056174978638,20993.257523766362,1.8318706774909157]
["p_dead_act",{"$f":"Parameters!D39","v":1.1904761904761906E-3},{"$f":"Parameters!D39","v":1.1904761904761906E-3},null,null,null,null,"0.05",6,{"$f":"MMULT(J26:M26,J$4:M$7)","v":0.46751277375215849},0.24018273568278109,0.28634794803039643,5.9565425346640227E-3,1,28.761199755349406,29.405464656433075,113.67917216006921,0,3.1907746808584811E-2,1.3069943866738005E-2,-3.2691390733470258E-3,0,null,null,null,null,"0.05",6,{"$f":"MMULT(AC26:AF26,AC$4:AF$7)","v":{"$error":"#VALUE!"}},{"$error":"#VALUE!"},{"$error":"#VALUE!"},{"$error":"#VALUE!"},1,{"$error":"#VALUE!"},{"$error":"#VALUE!"},{"$error":"#VALUE!"},{"$error":"#VALUE!"},{"$error":"#VALUE!"},{"$error":"#VALUE!"},{"$error":"#VALUE!"},{"$error":"#VALUE!"},null,null,null,null,null,null,null,null,null,null,null,19,14050.807923803677,1.7104988176853138,21729.702824019379,1.3368307583065113]
["p_dead_cmp",{"$f":"Parameters!D42","v":3.4940600978336828E-3},{"$f":"Parameters!D42","v":3.4940600978336828E-3},null,null,null,null,"0.06",7,{"$f":"MMULT(J27:M27,J$4:M$7)","v":0.47352741289044542},0.20669565261439263,0.31253394319299466,7.2429913021673708E-3,1,29.131217961107179,25.30565608853054,124.07492415601419,0,3.2318245929772893E-2,1.1247688429766532E-2,-3.5680958514533556E-3,0,null,null,null,null,"0.06",7,{"$f":"MMULT(AC27:AF27,AC$4:AF$7)","v":{"$error":"#VALUE!"}},{"$error":"#VALUE!"},{"$error":"#VALUE!"},{"$error":"#VALUE!"},1,{"$error":"#VALUE!"},{"$error":"#VALUE!"},{"$error":"#VALUE!"},{"$error":"#VALUE!"},{"$error":"#VALUE!"},{"$error":"#VALUE!"},{"$error":"#VALUE!"},{"$error":"#VALUE!"},null,null,null,null,null,null,null,null,null,null,null,20,16788.82645661779,0.68656080563726318,21083.331179596378,0.64205750770649073]
[null,null,null,null,null,null,null,"0.07",8,{"$f":"MMULT(J28:M28,J$4:M$7)","v":0.47186857430696488},0.1841427728864227,0.33540758287120342,8.5810699354090039E-3,1,29.029166871725273,22.544517133824442,133.15568216665119,0,3.2205030196450352E-2,1.0020435891236169E-2,-3.8292365711129059E-3,0,null,null,null,null,"0.07",8,{"$f":"MMULT(AC28:AF28,AC$4:AF$7)","v":{"$error":"#VALUE!"}},{"$error":"#VALUE!"},{"$error":"#VALUE!"},{"$error":"#VALUE!"},1,{"$error":"#VALUE!"},{"$error":"#VALUE!"},{"$error":"#VALUE!"},{"$error":"#VALUE!"},{"$error":"#VALUE!"},{"$error":"#VALUE!"},{"$error":"#VALUE!"},{"$error":"#VALUE!"},null,null,null,null,null,null,null,null,null,null,null,21,16688.323275884544,1.0200895035351907,21096.414778932725,1.0929761481256424]
["COSTS","Treatment A","Treatment B",null,null,null,null,"0.08",9,{"$f":"MMULT(J29:M29,J$4:M$7)","v":0.46558992161847634},0.16845141727858284,0.3559864393289412,9.9722217739996715E-3,1,28.642906657445412,20.623431501144903,141.32541895787901,0,3.1776512150461005E-2,9.166564623576217E-3,-4.0641785156720787E-3,0,null,null,null,null,"0.08",9,{"$f":"MMULT(AC29:AF29,AC$4:AF$7)","v":{"$error":"#VALUE!"}},{"$error":"#VALUE!"},{"$error":"#VALUE!"},{"$error":"#VALUE!"},1,{"$error":"#VALUE!"},{"$error":"#VALUE!"},{"$error":"#VALUE!"},{"$error":"#VALUE!"},{"$error":"#VALUE!"},{"$error":"#VALUE!"},{"$error":"#VALUE!"},{"$error":"#VALUE!"},null,null,null,null,null,null,null,null,null,null,null,22,14390.688213338539,1.3012402610852727,20710.819996043872,1.0136997614761567]
["SILENT",{"$f":"Parameters!D7+Parameters!D10","v":61.51960196620535},{"$f":"Parameters!D7+Parameters!D11","v":423.51960196620536},null,null,null,null,"0.09",10,{"$f":"MMULT(J30:M30,J$4:M$7)","v":0.45658894661404043},0.1570830685837348,0.37491138761367393,1.1416597188550939E-2,1,28.089170257864751,19.231609666831744,148.83855976778685,0,3.1162195606408254E-2,8.5479369820982351E-3,-4.2802383419227779E-3,0,null,null,null,null,"0.09",10,{"$f":"MMULT(AC30:AF30,AC$4:AF$7)","v":{"$error":"#VALUE!"}},{"$error":"#VALUE!"},{"$error":"#VALUE!"},{"$error":"#VALUE!"},1,{"$error":"#VALUE!"},{"$error":"#VALUE!"},{"$error":"#VALUE!"},{"$error":"#VALUE!"},{"$error":"#VALUE!"},{"$error":"#VALUE!"},{"$error":"#VALUE!"},{"$error":"#VALUE!"},null,null,null,null,null,null,null,null,null,null,null,23,17057.057650695006,0.70326351681891974,21830.372944271785,0.80776635772354344]
["ACTIVE",{"$f":"Parameters!D8+Parameters!D10","v":122.42955170295855},{"$f":"Parameters!D8+Parameters!D11","v":484.42955170295852},null,null,null,null,"0.10",11,{"$f":"MMULT(J31:M31,J$4:M$7)","v":0.44604305798659827},0.14845494243296706,0.39258843581912362,1.291356376131121E-2,1,27.440391387124578,18.175272050156675,155.85628844386537,0,3.0442438707585329E-2,8.0784231173939569E-3,-4.4820513089349947E-3,0,null,null,null,null,"0.10",11,{"$f":"MMULT(AC31:AF31,AC$4:AF$7)","v":{"$error":"#VALUE!"}},{"$error":"#VALUE!"},{"$error":"#VALUE!"},{"$error":"#VALUE!"},1,{"$error":"#VALUE!"},{"$error":"#VALUE!"},{"$error":"#VALUE!"},{"$error":"#VALUE!"},{"$error":"#VALUE!"},{"$error":"#VALUE!"},{"$error":"#VALUE!"},{"$error":"#VALUE!"},null,null,null,null,null,null,null,null,null,null,null,24,16365.918194312018,0.30327992418604999,21129.581141481249,0.30883125094490604]
["COMPL",{"$f":"Parameters!D9","v":396.99663623223148},{"$f":"Parameters!E9","v":396.99663623223148},null,null,null,null,"0.11",12,{"$f":"MMULT(J32:M32,J$4:M$7)","v":0.43468123364972783},0.14157966013697293,0.40927708278919667,1.446202342410271E-2,1,26.741416476310363,17.333534320826825,162.48162515425159,0,2.966699419659392E-2,7.7042931724536105E-3,-4.6725800285099955E-3,0,null,null,null,null,"0.11",12,{"$f":"MMULT(AC32:AF32,AC$4:AF$7)","v":{"$error":"#VALUE!"}},{"$error":"#VALUE!"},{"$error":"#VALUE!"},{"$error":"#VALUE!"},1,{"$error":"#VALUE!"},{"$error":"#VALUE!"},{"$error":"#VALUE!"},{"$error":"#VALUE!"},{"$error":"#VALUE!"},{"$error":"#VALUE!"},{"$error":"#VALUE!"},{"$error":"#VALUE!"},null,null,null,null,null,null,null,null,null,null,null,25,12499.562728813562,2.0600686862391275,20474.34620711259,1.6713804766565707]
["DEAD",0,0,null,null,null,null,"1.00",13,{"$f":"MMULT(J33:M33,J$4:M$7)","v":0.4229532393912363},0.1358407857270181,0.42514536551926274,1.6060609362482992E-2,{"$f":"N22/(1+disc)","v":0.96618357487922713},25.140014432527561,16.068528018875824,163.07370050325591,0,2.7890394771451089E-2,7.1420316489325952E-3,-4.6896066889000809E-3,0,null,null,null,null,"1.00",13,{"$f":"MMULT(AC33:AF33,AC$4:AF$7)","v":{"$error":"#VALUE!"}},{"$error":"#VALUE!"},{"$error":"#VALUE!"},{"$error":"#VALUE!"},{"$f":"AG22/(1+disc)","v":0.96618357487922713},{"$error":"#VALUE!"},{"$error":"#VALUE!"},{"$error":"#VALUE!"},{"$error":"#VALUE!"},{"$error":"#VALUE!"},{"$error":"#VALUE!"},{"$error":"#VALUE!"},{"$error":"#VALUE!"},null,null,null,null,null,null,null,null,null,null,null,26,16327.699965949769,0.57987784661160213,21807.066299131653,0.79519652323078494]
[null,null,null,null,null,null,null,"1.01",14,{"$f":"MMULT(J34:M34,J$4:M$7)","v":0.41113503776611715},0.13085299808540912,0.4403041561074475,1.7707808041026358E-2,0.96618357487922713,24.437549640321095,15.478525502014236,168.88818250601742,0,2.7111078577330913E-2,6.8797912842006575E-3,-4.8568171808953554E-3,0,null,null,null,null,"1.01",14,{"$f":"MMULT(AC34:AF34,AC$4:AF$7)","v":{"$error":"#VALUE!"}},{"$error":"#VALUE!"},{"$error":"#VALUE!"},{"$error":"#VALUE!"},0.96618357487922713,{"$error":"#VALUE!"},{"$error":"#VALUE!"},{"$error":"#VALUE!"},{"$error":"#VALUE!"},{"$error":"#VALUE!"},{"$error":"#VALUE!"},{"$error":"#VALUE!"},{"$error":"#VALUE!"},null,null,null,null,null,null,null,null,null,null,null,27,13329.078777515169,1.3024042138548344,21431.903668005772,0.87000329341299876]
["UTILITIES","Value per month (converted)","Value per year (reference)",null,null,null,null,"1.02",15,{"$f":"MMULT(J35:M35,J$4:M$7)","v":0.3993944475443828},0.12637498557514673,0.45482853227800579,1.940203460246483E-2,0.96618357487922713,23.739698010089771,14.948823990756587,174.45932113701571,0,2.6336880236622343E-2,6.6443531063261532E-3,-5.0170297038717223E-3,0,null,null,null,null,"1.02",15,{"$f":"MMULT(AC35:AF35,AC$4:AF$7)","v":{"$error":"#VALUE!"}},{"$error":"#VALUE!"},{"$error":"#VALUE!"},{"$error":"#VALUE!"},0.96618357487922713,{"$error":"#VALUE!"},{"$error":"#VALUE!"},{"$error":"#VALUE!"},{"$error":"#VALUE!"},{"$error":"#VALUE!"},{"$error":"#VALUE!"},{"$error":"#VALUE!"},{"$error":"#VALUE!"},null,null,null,null,null,null,null,null,null,null,null,28,18430.298376783143,0.46032301884790161,21552.065834199489,0.97540539160012729]
["SILENT",{"$f":"C37/12","v":6.8249999999999991E-2},{"$f":"Parameters!D15","v":0.81899999999999995},null,null,null,null,"1.03",16,{"$f":"MMULT(J36:M36,J$4:M$7)","v":0.38783204180914127},0.12225518358391753,0.46877109536708872,2.1141679239852655E-2,0.96618357487922713,23.052437528346942,14.461494994726493,179.80729277645685,0,2.5574431742486848E-2,6.4277483800562118E-3,-5.170824481907501E-3,0,null,null,null,null,"1.03",16,{"$f":"MMULT(AC36:AF36,AC$4:AF$7)","v":{"$error":"#VALUE!"}},{"$error":"#VALUE!"},{"$error":"#VALUE!"},{"$error":"#VALUE!"},0.96618357487922713,{"$error":"#VALUE!"},{"$error":"#VALUE!"},{"$error":"#VALUE!"},{"$error":"#VALUE!"},{"$error":"#VALUE!"},{"$error":"#VALUE!"},{"$error":"#VALUE!"},{"$error":"#VALUE!"},null,null,null,null,null,null,null,null,null,null,null,29,16098.156961189243,1.4439806292959743,21040.135739316134,1.518473113747792]
["ACTIVE",{"$f":"C38/12","v":5.4416666666666669E-2},{"$f":"Parameters!D16","v":0.65300000000000002},null,null,null,null,"1.04",17,{"$f":"MMULT(J37:M37,J$4:M$7)","v":0.37650662136443669},0.11839797122097616,0.48217027191017575,2.2925135504411536E-2,0.96618357487922713,22.379263269546797,14.005227574032753,184.9468367531596,0,2.4827610539249086E-2,6.224949694629423E-3,-5.3186253825840647E-3,0,null,null,null,null,"1.04",17,{"$f":"MMULT(AC37:AF37,AC$4:AF$7)","v":{"$error":"#VALUE!"}},{"$error":"#VALUE!"},{"$error":"#VALUE!"},{"$error":"#VALUE!"},0.96618357487922713,{"$error":"#VALUE!"},{"$error":"#VALUE!"},{"$error":"#VALUE!"},{"$error":"#VALUE!"},{"$error":"#VALUE!"},{"$error":"#VALUE!"},{"$error":"#VALUE!"},{"$error":"#VALUE!"},null,null,null,null,null,null,null,null,null,null,null,30,17588.890101228113,0.39377141088316181,21138.099212447636,0.58871082164556865]
["COMPL",-1.1416666666666667E-2,{"$f":"Parameters!D17","v":-0.13700000000000001},null,null,null,null,"1.05",18,{"$f":"MMULT(J38:M38,J$4:M$7)","v":0.36545107961503859},0.11474261284310042,0.49505549016426742,2.4750817377593756E-2,0.96618357487922713,21.722130392306472,13.572837344547748,189.88924091160652,0,2.4098585684759793E-2,6.0327637831356345E-3,-5.4607570171098744E-3,0,null,null,null,null,"1.05",18,{"$f":"MMULT(AC38:AF38,AC$4:AF$7)","v":{"$error":"#VALUE!"}},{"$error":"#VALUE!"},{"$error":"#VALUE!"},{"$error":"#VALUE!"},0.96618357487922713,{"$error":"#VALUE!"},{"$error":"#VALUE!"},{"$error":"#VALUE!"},{"$error":"#VALUE!"},{"$error":"#VALUE!"},{"$error":"#VALUE!"},{"$error":"#VALUE!"},{"$error":"#VALUE!"},null,null,null,null,null,null,null,null,null,null,null,31,15053.004796194788,0.39743573056360881,21194.009280669408,0.10566301292112557]
["DEAD",0,0,null,null,null,null,"1.06",19,{"$f":"MMULT(J39:M39,J$4:M$7)","v":0.35468228202684238},0.11125013885868903,0.5074504097538558,2.6617169360612956E-2,0.96618357487922713,21.082041366914719,13.159714615807912,194.64358041251043,0,2.3388469322059895E-2,5.8491417612499159E-3,-5.5974803652397943E-3,0,null,null,null,null,"1.06",19,{"$f":"MMULT(AC39:AF39,AC$4:AF$7)","v":{"$error":"#VALUE!"}},{"$error":"#VALUE!"},{"$error":"#VALUE!"},{"$error":"#VALUE!"},0.96618357487922713,{"$error":"#VALUE!"},{"$error":"#VALUE!"},{"$error":"#VALUE!"},{"$error":"#VALUE!"},{"$error":"#VALUE!"},{"$error":"#VALUE!"},{"$error":"#VALUE!"},{"$error":"#VALUE!"},null,null,null,null,null,null,null,null,null,null,null,32,17201.491655891943,0.67249371189178098,21230.827577178708,1.0284761618007441]
[null,null,null,null,null,null,null,"1.07",20,{"$f":"MMULT(J40:M40,J$4:M$7)","v":0.34420721713898772},0.1078951722459585,0.51937493838459226,2.8522672230461694E-2,0.96618357487922713,20.459411586749511,12.762857554576035,199.21749128696194,0,2.2697722289599914E-2,5.6727493942520862E-3,-5.7290150208284332E-3,0,null,null,null,null,"1.07",20,{"$f":"MMULT(AC40:AF40,AC$4:AF$7)","v":{"$error":"#VALUE!"}},{"$error":"#VALUE!"},{"$error":"#VALUE!"},{"$error":"#VALUE!"},0.96618357487922713,{"$error":"#VALUE!"},{"$error":"#VALUE!"},{"$error":"#VALUE!"},{"$error":"#VALUE!"},{"$error":"#VALUE!"},{"$error":"#VALUE!"},{"$error":"#VALUE!"},{"$error":"#VALUE!"},null,null,null,null,null,null,null,null,null,null,null,33,17341.26755470573,-0.87491771965356402,21460.016114656581,-0.26002271284485445]
["Other parameters","Values",null,null,null,null,null,"1.08",21,{"$f":"MMULT(J41:M41,J$4:M$7)","v":0.33402682507909803},0.1046608359777666,0.53084649283102325,3.0465846112112265E-2,0.96618357487922713,19.854296932271897,12.38026978706748,203.61765411554939,0,2.2026406581302841E-2,5.5026993473012561E-3,-5.8555531012761831E-3,0,null,null,null,null,"1.08",21,{"$f":"MMULT(AC41:AF41,AC$4:AF$7)","v":{"$error":"#VALUE!"}},{"$error":"#VALUE!"},{"$error":"#VALUE!"},{"$error":"#VALUE!"},0.96618357487922713,{"$error":"#VALUE!"},{"$error":"#VALUE!"},{"$error":"#VALUE!"},{"$error":"#VALUE!"},{"$error":"#VALUE!"},{"$error":"#VALUE!"},{"$error":"#VALUE!"},{"$error":"#VALUE!"},null,null,null,null,null,null,null,null,null,null,null,34,14188.926855220774,0.37984485922358879,21840.292997034241,-0.56781989389317533]
["discount rate",3.5000000000000003E-2,null,null,null,null,null,"1.09",22,{"$f":"MMULT(J42:M42,J$4:M$7)","v":0.32413837940012658},0.10153557969163546,0.54188078901414305,3.2445251894094959E-2,0.96618357487922713,19.266535345571636,12.010585027581596,207.85009707969306,0,2.1374342409718489E-2,5.3383843428855045E-3,-5.9772679625553623E-3,0,null,null,null,null,"1.09",22,{"$f":"MMULT(AC42:AF42,AC$4:AF$7)","v":{"$error":"#VALUE!"}},{"$error":"#VALUE!"},{"$error":"#VALUE!"},{"$error":"#VALUE!"},0.96618357487922713,{"$error":"#VALUE!"},{"$error":"#VALUE!"},{"$error":"#VALUE!"},{"$error":"#VALUE!"},{"$error":"#VALUE!"},{"$error":"#VALUE!"},{"$error":"#VALUE!"},{"$error":"#VALUE!"},null,null,null,null,null,null,null,null,null,null,null,35,15237.772776625863,1.132444674253515,21441.2664172925,1.0783370955241884]
["value per QALY",30000,null,null,null,null,null,"1.10",23,{"$f":"MMULT(J43:M43,J$4:M$7)","v":0.31453696781713242},9.8511201960374148E-2,0.55249233859561253,3.4459491626881E-2,0.96618357487922713,18.695834844219448,11.652833134036927,211.9203864410988,0,2.0741205848810906E-2,5.179373178753971E-3,-6.0943196769403319E-3,0,null,null,null,null,"1.10",23,{"$f":"MMULT(AC43:AF43,AC$4:AF$7)","v":{"$error":"#VALUE!"}},{"$error":"#VALUE!"},{"$error":"#VALUE!"},{"$error":"#VALUE!"},0.96618357487922713,{"$error":"#VALUE!"},{"$error":"#VALUE!"},{"$error":"#VALUE!"},{"$error":"#VALUE!"},{"$error":"#VALUE!"},{"$error":"#VALUE!"},{"$error":"#VALUE!"},{"$error":"#VALUE!"},null,null,null,null,null,null,null,null,null,null,null,36,12238.756432404589,0.9565551472861894,21133.041278261921,0.11666222666807124]
["default value per QALY",30000,null,null,null,null,null,"1.11",24,{"$f":"MMULT(J44:M44,J$4:M$7)","v":0.30521641170305275},9.5581617376308395E-2,0.56269476261868323,3.6507208301955765E-2,0.96618357487922713,18.141828175386731,11.30629426707744,215.83374684551811,0,2.0126589467375215E-2,5.0253459055337674E-3,-6.2068584926537529E-3,0,null,null,null,null,"1.11",24,{"$f":"MMULT(AC44:AF44,AC$4:AF$7)","v":{"$error":"#VALUE!"}},{"$error":"#VALUE!"},{"$error":"#VALUE!"},{"$error":"#VALUE!"},0.96618357487922713,{"$error":"#VALUE!"},{"$error":"#VALUE!"},{"$error":"#VALUE!"},{"$error":"#VALUE!"},{"$error":"#VALUE!"},{"$error":"#VALUE!"},{"$error":"#VALUE!"},{"$error":"#VALUE!"},null,null,null,null,null,null,null,null,null,null,null,37,12654.018514878695,1.3044403676404097,21133.110262704133,0.51148682727861305]
[null,null,null,null,null,null,null,"2.00",25,{"$f":"MMULT(J45:M45,J$4:M$7)","v":0.29616983605215835},9.2742087635681203E-2,0.57250099105314511,3.85870852590154E-2,0.93351070036640305,17.008798738196997,10.59942795699591,212.16921532611494,0,1.8869603781240925E-2,4.7111627051661907E-3,-6.1014753961026623E-3,0,null,null,null,null,"2.00",25,{"$f":"MMULT(AC45:AF45,AC$4:AF$7)","v":{"$error":"#VALUE!"}},{"$error":"#VALUE!"},{"$error":"#VALUE!"},{"$error":"#VALUE!"},0.93351070036640305,{"$error":"#VALUE!"},{"$error":"#VALUE!"},{"$error":"#VALUE!"},{"$error":"#VALUE!"},{"$error":"#VALUE!"},{"$error":"#VALUE!"},{"$error":"#VALUE!"},{"$error":"#VALUE!"},null,null,null,null,null,null,null,null,null,null,null,38,15693.890369199573,1.0204476066961279,21810.527555566296,0.65759259642976753]
[null,null,null,null,null,null,null,"2.01",26,{"$f":"MMULT(J46:M46,J$4:M$7)","v":0.28739002179014078},8.9988741692898763E-2,0.5819233911419508,4.069784537500977E-2,0.93351070036640305,16.504580970000273,10.284749986020614,215.66116252720727,0,1.8310223330464757E-2,4.5712967494739593E-3,-6.2018953835132114E-3,0,null,null,null,null,"2.01",26,{"$f":"MMULT(AC46:AF46,AC$4:AF$7)","v":{"$error":"#VALUE!"}},{"$error":"#VALUE!"},{"$error":"#VALUE!"},{"$error":"#VALUE!"},0.93351070036640305,{"$error":"#VALUE!"},{"$error":"#VALUE!"},{"$error":"#VALUE!"},{"$error":"#VALUE!"},{"$error":"#VALUE!"},{"$error":"#VALUE!"},{"$error":"#VALUE!"},{"$error":"#VALUE!"},null,null,null,null,null,null,null,null,null,null,null,39,15536.423741995621,1.0468724060081966,21441.28947359934,0.73175036657303383]
[null,null,null,null,null,null,null,"2.02",27,{"$f":"MMULT(J47:M47,J$4:M$7)","v":0.27886962258083015},8.7318276012994744E-2,0.59097385127578406,4.2838250130391234E-2,0.93351070036640305,16.01526120249115,9.9795443419880474,219.01526855487253,0,1.7767370758843059E-2,4.435640990181457E-3,-6.2983513909140179E-3,0,null,null,null,null,"2.02",27,{"$f":"MMULT(AC47:AF47,AC$4:AF$7)","v":{"$error":"#VALUE!"}},{"$error":"#VALUE!"},{"$error":"#VALUE!"},{"$error":"#VALUE!"},0.93351070036640305,{"$error":"#VALUE!"},{"$error":"#VALUE!"},{"$error":"#VALUE!"},{"$error":"#VALUE!"},{"$error":"#VALUE!"},{"$error":"#VALUE!"},{"$error":"#VALUE!"},{"$error":"#VALUE!"},null,null,null,null,null,null,null,null,null,null,null,40,13743.524399502139,1.1523773104790331,20470.972122026164,0.78414813138260842]
[null,null,null,null,null,null,null,"2.03",28,{"$f":"MMULT(J48:M48,J$4:M$7)","v":0.27060129730153842},8.4727767038927287E-2,0.59966383704795057,4.5007098611583946E-2,0.93351070036640305,15.540417840817238,9.68347689362046,222.23578256496012,0,1.7240578347994116E-2,4.3040469148575636E-3,-6.390965613788672E-3,0,null,null,null,null,"2.03",28,{"$f":"MMULT(AC48:AF48,AC$4:AF$7)","v":{"$error":"#VALUE!"}},{"$error":"#VALUE!"},{"$error":"#VALUE!"},{"$error":"#VALUE!"},0.93351070036640305,{"$error":"#VALUE!"},{"$error":"#VALUE!"},{"$error":"#VALUE!"},{"$error":"#VALUE!"},{"$error":"#VALUE!"},{"$error":"#VALUE!"},{"$error":"#VALUE!"},{"$error":"#VALUE!"},null,null,null,null,null,null,null,null,null,null,null,41,15048.115542590642,0.86573052983934606,21028.545506531736,0.6361891428647708]
[null,null,null,null,null,null,null,"2.04",29,{"$f":"MMULT(J49:M49,J$4:M$7)","v":0.26257779006169674},8.2214553585795963E-2,0.60800442986644843,4.7203226486059083E-2,0.93351070036640305,15.079634184939126,9.3962434959675729,225.32681133401084,0,1.6729383809853955E-2,4.17637933919304E-3,-6.4798561531349188E-3,0,null,null,null,null,"2.04",29,{"$f":"MMULT(AC49:AF49,AC$4:AF$7)","v":{"$error":"#VALUE!"}},{"$error":"#VALUE!"},{"$error":"#VALUE!"},{"$error":"#VALUE!"},0.93351070036640305,{"$error":"#VALUE!"},{"$error":"#VALUE!"},{"$error":"#VALUE!"},{"$error":"#VALUE!"},{"$error":"#VALUE!"},{"$error":"#VALUE!"},{"$error":"#VALUE!"},{"$error":"#VALUE!"},null,null,null,null,null,null,null,null,null,null,null,42,15967.878866277189,1.4963221712075501,20789.861682828938,1.3249721507264236]
[null,null,null,null,null,null,null,"2.05",30,{"$f":"MMULT(J50:M50,J$4:M$7)","v":0.25479197761847827},7.977616281849581E-2,0.61600635459071007,4.9425504972316077E-2,0.93351070036640305,14.632501152672022,9.1175615304447462,228.29232950145035,0,1.6233333307625514E-2,4.0525126467733799E-3,-6.5651373100054687E-3,0,null,null,null,null,"2.05",30,{"$f":"MMULT(AC50:AF50,AC$4:AF$7)","v":{"$error":"#VALUE!"}},{"$error":"#VALUE!"},{"$error":"#VALUE!"},{"$error":"#VALUE!"},0.93351070036640305,{"$error":"#VALUE!"},{"$error":"#VALUE!"},{"$error":"#VALUE!"},{"$error":"#VALUE!"},{"$error":"#VALUE!"},{"$error":"#VALUE!"},{"$error":"#VALUE!"},{"$error":"#VALUE!"},null,null,null,null,null,null,null,null,null,null,null,43,12935.776755012967,2.0941726054275227,21703.022503765744,1.3199936327648383]
[null,null,null,null,null,null,null,"2.06",31,{"$f":"MMULT(J51:M51,J$4:M$7)","v":0.24723689655483325},7.7410263401746407E-2,0.62368000022511416,5.1672839818306435E-2,0.93351070036640305,14.19861884049871,8.8471645503827414,231.1361872386172,0,1.5751983187348474E-2,3.9323284091686631E-3,-6.6469198060507559E-3,0,null,null,null,null,"2.06",31,{"$f":"MMULT(AC51:AF51,AC$4:AF$7)","v":{"$error":"#VALUE!"}},{"$error":"#VALUE!"},{"$error":"#VALUE!"},{"$error":"#VALUE!"},0.93351070036640305,{"$error":"#VALUE!"},{"$error":"#VALUE!"},{"$error":"#VALUE!"},{"$error":"#VALUE!"},{"$error":"#VALUE!"},{"$error":"#VALUE!"},{"$error":"#VALUE!"},{"$error":"#VALUE!"},null,null,null,null,null,null,null,null,null,null,null,44,15080.089936220675,1.182472951945718,20271.067355884916,1.318007341527395]
[null,null,null,null,null,null,null,"2.07",32,{"$f":"MMULT(J52:M52,J$4:M$7)","v":0.23990575792070123},7.5114635598743387E-2,0.63103543618416746,5.3944170296388178E-2,0.93351070036640305,13.777597364402769,8.5847988636236519,233.86211627664915,0,1.5284900910721703E-2,3.8157138669886841E-3,-6.725310956866435E-3,0,null,null,null,null,"2.07",32,{"$f":"MMULT(AC52:AF52,AC$4:AF$7)","v":{"$error":"#VALUE!"}},{"$error":"#VALUE!"},{"$error":"#VALUE!"},{"$error":"#VALUE!"},0.93351070036640305,{"$error":"#VALUE!"},{"$error":"#VALUE!"},{"$error":"#VALUE!"},{"$error":"#VALUE!"},{"$error":"#VALUE!"},{"$error":"#VALUE!"},{"$error":"#VALUE!"},{"$error":"#VALUE!"},null,null,null,null,null,null,null,null,null,null,null,45,17973.867563024673,-4.980831968481525E-2,21993.78134443282,0.53585922552014797]
[null,null,null,null,null,null,null,"2.08",33,{"$f":"MMULT(J53:M53,J$4:M$7)","v":0.23279195413242859},7.2887151949012685E-2,0.63808242569904405,5.6238468219514948E-2,0.93351070036640305,{"$f":"c_sil_A*J54*N54","v":13.369057256096657},{"$f":"c_act_A*K54*N54","v":8.3302213242064411},{"$f":"c_compl_A*L54*N54","v":236.47373487495466},{"$f":"c_dead_A*M54*N54","v":0},{"$f":"u_sil*J54*N54","v":1.4831665494679689E-2},{"$f":"u_act*K54*N54","v":3.702560948346153E-3},{"$f":"u_compl*L54*N54","v":-6.8004148148746403E-3},{"$f":"u_dead*M54*N54","v":0},null,null,null,null,"2.08",33,{"$f":"MMULT(AC53:AF53,AC$4:AF$7)","v":{"$error":"#VALUE!"}},{"$error":"#VALUE!"},{"$error":"#VALUE!"},{"$error":"#VALUE!"},0.93351070036640305,{"$f":"c_sil_B*AC54*AG54","v":{"$error":"#VALUE!"}},{"$f":"c_act_B*AD54*AG54","v":{"$error":"#VALUE!"}},{"$f":"c_compl_B*AE54*AG54","v":{"$error":"#VALUE!"}},{"$f":"c_dead_B*AF54*AG54","v":{"$error":"#VALUE!"}},{"$f":"u_sil*AC54*AG54","v":{"$error":"#VALUE!"}},{"$f":"u_act*AD54*AG54","v":{"$error":"#VALUE!"}},{"$f":"u_compl*AE54*AG54","v":{"$error":"#VALUE!"}},{"$f":"u_dead*AF54*AG54","v":{"$error":"#VALUE!"}},null,null,null,null,null,null,null,null,null,null,null,46,16835.193552459004,0.58556828888986578,20874.822994577946,0.98473491789210399]
[null,null,null,null,null,null,null,"2.09",34,{"$f":"MMULT(J54:M54,J$4:M$7)","v":0.22588906111538717},7.0725764557080323E-2,0.64483043734626688,5.8554736981265822E-2,0.93351070036640305,12.972629586070578,8.0831978795979733,238.97455209374937,0,1.4391867647903265E-2,3.5927656231396652E-3,-6.8723322921918498E-3,0,null,null,null,null,"2.09",34,{"$f":"MMULT(AC54:AF54,AC$4:AF$7)","v":{"$error":"#VALUE!"}},{"$error":"#VALUE!"},{"$error":"#VALUE!"},{"$error":"#VALUE!"},0.93351070036640305,{"$error":"#VALUE!"},{"$error":"#VALUE!"},{"$error":"#VALUE!"},{"$error":"#VALUE!"},{"$error":"#VALUE!"},{"$error":"#VALUE!"},{"$error":"#VALUE!"},{"$error":"#VALUE!"},null,null,null,null,null,null,null,null,null,null,null,47,17508.836825708415,1.2017918173302138,21365.676995055022,1.3731574623091516]
[null,null,null,null,null,null,null,"2.10",35,{"$f":"MMULT(J55:M55,J$4:M$7)","v":0.21919083754731036},6.8628496519284432E-2,0.65128865531238089,6.0892010621024485E-2,0.93351070036640305,12.587955920137892,7.8435025908693738,241.36797159815026,0,1.3965109722610966E-2,3.4862274675482694E-3,-6.9411612700254538E-3,0,null,null,null,null,"2.10",35,{"$f":"MMULT(AC55:AF55,AC$4:AF$7)","v":{"$error":"#VALUE!"}},{"$error":"#VALUE!"},{"$error":"#VALUE!"},{"$error":"#VALUE!"},0.93351070036640305,{"$error":"#VALUE!"},{"$error":"#VALUE!"},{"$error":"#VALUE!"},{"$error":"#VALUE!"},{"$error":"#VALUE!"},{"$error":"#VALUE!"},{"$error":"#VALUE!"},{"$error":"#VALUE!"},null,null,null,null,null,null,null,null,null,null,null,48,13957.355738606204,1.9004213933440859,21282.794006279939,1.4988587392896191]
[null,null,null,null,null,null,null,"2.11",36,{"$f":"MMULT(J56:M56,J$4:M$7)","v":0.21269122235756932},6.6593435947812946E-2,0.65746598877980023,6.3249352914817619E-2,0.93351070036640305,12.214688175820525,7.6109169497075078,243.65729513657615,0,1.355100555523266E-2,3.3828493604612987E-3,-7.0069966987041819E-3,0,null,null,null,null,"2.11",36,{"$f":"MMULT(AC56:AF56,AC$4:AF$7)","v":{"$error":"#VALUE!"}},{"$error":"#VALUE!"},{"$error":"#VALUE!"},{"$error":"#VALUE!"},0.93351070036640305,{"$error":"#VALUE!"},{"$error":"#VALUE!"},{"$error":"#VALUE!"},{"$error":"#VALUE!"},{"$error":"#VALUE!"},{"$error":"#VALUE!"},{"$error":"#VALUE!"},{"$error":"#VALUE!"},null,null,null,null,null,null,null,null,null,null,null,49,15586.260504709309,0.95117715760061627,22381.957799273965,0.8702681357993246]
[null,null,null,null,null,null,null,"3.00",37,{"$f":"MMULT(J57:M57,J$4:M$7)","v":0.20638433120018398},6.4618731631494314E-2,0.66337108067648809,6.5625856491833764E-2,0.90194270566802237,11.451679632653905,7.1354873260771035,237.53210220616864,0,1.2704521972654729E-2,3.1715335874907009E-3,-6.8308509091096845E-3,0,null,null,null,null,"3.00",37,{"$f":"MMULT(AC57:AF57,AC$4:AF$7)","v":{"$error":"#VALUE!"}},{"$error":"#VALUE!"},{"$error":"#VALUE!"},{"$error":"#VALUE!"},0.90194270566802237,{"$error":"#VALUE!"},{"$error":"#VALUE!"},{"$error":"#VALUE!"},{"$error":"#VALUE!"},{"$error":"#VALUE!"},{"$error":"#VALUE!"},{"$error":"#VALUE!"},{"$error":"#VALUE!"},null,null,null,null,null,null,null,null,null,null,null,50,17434.490098699651,4.3327769042668884E-2,21265.038488990547,0.66450031027463519]
[null,null,null,null,null,null,null,"3.01",38,{"$f":"MMULT(J58:M58,J$4:M$7)","v":0.20026445234592583},6.2702589734467629E-2,0.66901231594325827,6.8020641976348356E-2,0.90194270566802237,11.112104958442615,6.9238984279976581,239.55204927800816,0,1.2327796981364119E-2,3.0774879720571664E-3,-6.8889397196909693E-3,0,null,null,null,null,"3.01",38,{"$f":"MMULT(AC58:AF58,AC$4:AF$7)","v":{"$error":"#VALUE!"}},{"$error":"#VALUE!"},{"$error":"#VALUE!"},{"$error":"#VALUE!"},0.90194270566802237,{"$error":"#VALUE!"},{"$error":"#VALUE!"},{"$error":"#VALUE!"},{"$error":"#VALUE!"},{"$error":"#VALUE!"},{"$error":"#VALUE!"},{"$error":"#VALUE!"},{"$error":"#VALUE!"},null,null,null,null,null,null,null,null,null,null,null,51,15203.327011641955,1.1425977026871657,21201.631243844815,1.2136572305185074]
[null,null,null,null,null,null,null,"3.02",39,{"$f":"MMULT(J59:M59,J$4:M$7)","v":0.19432604226921127},6.084327115912809E-2,0.67439782941705562,7.043285715460508E-2,0.90194270566802237,10.782599470645204,6.7185842134579108,241.4804305025653,0,1.1962242770617972E-2,2.9862312859129181E-3,-6.9443953171387752E-3,0,null,null,null,null,"3.02",39,{"$f":"MMULT(AC59:AF59,AC$4:AF$7)","v":{"$error":"#VALUE!"}},{"$error":"#VALUE!"},{"$error":"#VALUE!"},{"$error":"#VALUE!"},0.90194270566802237,{"$error":"#VALUE!"},{"$error":"#VALUE!"},{"$error":"#VALUE!"},{"$error":"#VALUE!"},{"$error":"#VALUE!"},{"$error":"#VALUE!"},{"$error":"#VALUE!"},{"$error":"#VALUE!"},null,null,null,null,null,null,null,null,null,null,null,52,15193.397584219958,1.4194385991442517,21230.425690357777,1.3228171070607007]
[null,null,null,null,null,null,null,"3.03",40,{"$f":"MMULT(J60:M60,J$4:M$7)","v":0.1885637210998489},5.9039089340089598E-2,0.67953551339395901,7.2861676166102493E-2,0.90194270566802237,10.462864655563765,6.5193584444176924,243.32007186025055,0,1.1607528168574615E-2,2.897680751221955E-3,-6.9972989698403069E-3,0,null,null,null,null,"3.03",40,{"$f":"MMULT(AC60:AF60,AC$4:AF$7)","v":{"$error":"#VALUE!"}},{"$error":"#VALUE!"},{"$error":"#VALUE!"},{"$error":"#VALUE!"},0.90194270566802237,{"$error":"#VALUE!"},{"$error":"#VALUE!"},{"$error":"#VALUE!"},{"$error":"#VALUE!"},{"$error":"#VALUE!"},{"$error":"#VALUE!"},{"$error":"#VALUE!"},{"$error":"#VALUE!"},null,null,null,null,null,null,null,null,null,null,null,53,16804.797696039575,1.4707026315095626,21042.166180055021,1.5561074595312598]
[null,null,null,null,null,null,null,"3.04",41,{"$f":"MMULT(J61:M61,J$4:M$7)","v":0.18297226804394906},5.7288408323348458E-2,0.68443302491402236,7.5306298718680026E-2,0.90194270566802237,10.152610826191996,6.3260404715704546,245.0737150937681,0,1.1263331795746078E-2,2.8117560741911427E-3,-7.0477295237093172E-3,0,null,null,null,null,"3.04",41,{"$f":"MMULT(AC61:AF61,AC$4:AF$7)","v":{"$error":"#VALUE!"}},{"$error":"#VALUE!"},{"$error":"#VALUE!"},{"$error":"#VALUE!"},0.90194270566802237,{"$error":"#VALUE!"},{"$error":"#VALUE!"},{"$error":"#VALUE!"},{"$error":"#VALUE!"},{"$error":"#VALUE!"},{"$error":"#VALUE!"},{"$error":"#VALUE!"},{"$error":"#VALUE!"},null,null,null,null,null,null,null,null,null,null,null,54,16277.489931014283,1.3556183597466593,20974.437538869475,1.36263096441094]
[null,null,null,null,null,null,null,"3.05",42,{"$f":"MMULT(J62:M62,J$4:M$7)","v":0.1775466168373919},5.5589641039318419E-2,0.68909779279651862,7.7765949326770945E-2,0.90194270566802237,9.8515568699410796,6.1384550436441208,246.7440202272135,0,1.0929341785124551E-2,2.728379360309533E-3,-7.0957634746292774E-3,0,null,null,null,null,"3.05",42,{"$f":"MMULT(AC62:AF62,AC$4:AF$7)","v":{"$error":"#VALUE!"}},{"$error":"#VALUE!"},{"$error":"#VALUE!"},{"$error":"#VALUE!"},0.90194270566802237,{"$error":"#VALUE!"},{"$error":"#VALUE!"},{"$error":"#VALUE!"},{"$error":"#VALUE!"},{"$error":"#VALUE!"},{"$error":"#VALUE!"},{"$error":"#VALUE!"},{"$error":"#VALUE!"},null,null,null,null,null,null,null,null,null,null,null,55,13232.291339931346,1.5310018629918769,21768.107661395326,0.87407810330454483]
[null,null,null,null,null,null,null,"3.06",43,{"$f":"MMULT(J63:M63,J$4:M$7)","v":0.17228185126981024},5.3941247712363534E-2,0.69353702444564513,8.0239876572180943E-2,0.90194270566802237,9.5594300002782209,5.9564321317746476,248.33356800298006,0,1.0605255506649562E-2,2.6474750362871016E-3,-7.1414750385329394E-3,0,null,null,null,null,"3.06",43,{"$f":"MMULT(AC63:AF63,AC$4:AF$7)","v":{"$error":"#VALUE!"}},{"$error":"#VALUE!"},{"$error":"#VALUE!"},{"$error":"#VALUE!"},0.90194270566802237,{"$error":"#VALUE!"},{"$error":"#VALUE!"},{"$error":"#VALUE!"},{"$error":"#VALUE!"},{"$error":"#VALUE!"},{"$error":"#VALUE!"},{"$error":"#VALUE!"},{"$error":"#VALUE!"},null,null,null,null,null,null,null,null,null,null,null,56,18629.261920732344,0.68506620961016695,21650.124226361138,1.0248335799950894]
[null,null,null,null,null,null,null,"3.07",44,{"$f":"MMULT(J64:M64,J$4:M$7)","v":0.16717320080124265},5.234173437062245E-2,0.69775771244138185,8.2727352386752925E-2,0.90194270566802237,9.2759655135071863,5.7798067649542002,249.84486224173605,0,1.0290779297379699E-2,2.5689697769158562E-3,-7.1849362192695871E-3,0,null,null,null,null,"3.07",44,{"$f":"MMULT(AC64:AF64,AC$4:AF$7)","v":{"$error":"#VALUE!"}},{"$error":"#VALUE!"},{"$error":"#VALUE!"},{"$error":"#VALUE!"},0.90194270566802237,{"$error":"#VALUE!"},{"$error":"#VALUE!"},{"$error":"#VALUE!"},{"$error":"#VALUE!"},{"$error":"#VALUE!"},{"$error":"#VALUE!"},{"$error":"#VALUE!"},{"$error":"#VALUE!"},null,null,null,null,null,null,null,null,null,null,null,57,15250.355756180328,1.201379098026728,19823.530797034593,1.2681658229768584]
[null,null,null,null,null,null,null,"3.08",45,{"$f":"MMULT(J65:M65,J$4:M$7)","v":0.1622160362838124},5.0789651433116964E-2,0.70176664092678398,8.5227671356286519E-2,{"$f":"N54/(1+disc)","v":0.90194270566802237},9.0009065513764401,5.6084188740134069,251.28033212951087,0,9.9856281981294797E-3,2.4927924357241154E-3,-7.2262168743761363E-3,0,null,null,null,null,"3.08",45,{"$f":"MMULT(AC65:AF65,AC$4:AF$7)","v":{"$error":"#VALUE!"}},{"$error":"#VALUE!"},{"$error":"#VALUE!"},{"$error":"#VALUE!"},{"$f":"AG54/(1+disc)","v":0.90194270566802237},{"$error":"#VALUE!"},{"$error":"#VALUE!"},{"$error":"#VALUE!"},{"$error":"#VALUE!"},{"$error":"#VALUE!"},{"$error":"#VALUE!"},{"$error":"#VALUE!"},{"$error":"#VALUE!"},null,null,null,null,null,null,null,null,null,null,null,58,14616.816097315477,0.12797471990828257,21050.895000725613,3.1698027045671928E-2]
[null,null,null,null,null,null,null,"3.09",46,{"$f":"MMULT(J66:M66,J$4:M$7)","v":0.15740586579472693},4.9283592359373962E-2,0.70557039180080572,8.7740150045093279E-2,0.90194270566802237,8.734003869864134,5.4421131425066172,252.64233443514888,0,9.6895256969588527E-3,2.4188739786989849E-3,-7.2653847788457454E-3,0,null,null,null,null,"3.09",46,{"$f":"MMULT(AC66:AF66,AC$4:AF$7)","v":{"$error":"#VALUE!"}},{"$error":"#VALUE!"},{"$error":"#VALUE!"},{"$error":"#VALUE!"},0.90194270566802237,{"$error":"#VALUE!"},{"$error":"#VALUE!"},{"$error":"#VALUE!"},{"$error":"#VALUE!"},{"$error":"#VALUE!"},{"$error":"#VALUE!"},{"$error":"#VALUE!"},{"$error":"#VALUE!"},null,null,null,null,null,null,null,null,null,null,null,59,15543.956381869837,0.34408149495651785,21083.364990710295,0.49427736185164384]
[null,null,null,null,null,null,null,"3.10",47,{"$f":"MMULT(J67:M67,J$4:M$7)","v":0.15273833058315764},4.7822192351933024E-2,0.70917535072432691,9.0264126340582326E-2,0.90194270566802237,8.4750156142819915,5.2807388634370263,253.9331556608762,0,9.4022034796728705E-3,2.347147420604503E-3,-7.3025056869729533E-3,0,null,null,null,null,"3.10",47,{"$f":"MMULT(AC67:AF67,AC$4:AF$7)","v":{"$error":"#VALUE!"}},{"$error":"#VALUE!"},{"$error":"#VALUE!"},{"$error":"#VALUE!"},0.90194270566802237,{"$error":"#VALUE!"},{"$error":"#VALUE!"},{"$error":"#VALUE!"},{"$error":"#VALUE!"},{"$error":"#VALUE!"},{"$error":"#VALUE!"},{"$error":"#VALUE!"},{"$error":"#VALUE!"},null,null,null,null,null,null,null,null,null,null,null,60,15395.717160396876,0.9722034811602609,20938.107178234797,0.98129163659263252]
[null,null,null,null,null,null,null,"3.11",48,{"$f":"MMULT(J68:M68,J$4:M$7)","v":0.14820920113127461},4.6404127105328846E-2,0.71258771294610967,9.2798958817286753E-2,0.90194270566802237,8.2237071007133249,5.1241498011137585,255.15501412839092,0,9.1234011873484889E-3,2.2775477635808045E-3,-7.3376433923445922E-3,0,null,null,null,null,"3.11",48,{"$f":"MMULT(AC68:AF68,AC$4:AF$7)","v":{"$error":"#VALUE!"}},{"$error":"#VALUE!"},{"$error":"#VALUE!"},{"$error":"#VALUE!"},0.90194270566802237,{"$error":"#VALUE!"},{"$error":"#VALUE!"},{"$error":"#VALUE!"},{"$error":"#VALUE!"},{"$error":"#VALUE!"},{"$error":"#VALUE!"},{"$error":"#VALUE!"},{"$error":"#VALUE!"},null,null,null,null,null,null,null,null,null,null,null,61,14560.552935233924,0.50393529741874343,21630.704134800966,0.36357660625246402]
[null,null,null,null,null,null,null,"4.00",49,{"$f":"MMULT(J69:M69,J$4:M$7)","v":0.14381437332832525},4.5028111597153836E-2,0.71581348895476371,9.5344026119757036E-2,0.87144222769857238,7.7100005833077683,4.8040618914547206,247.64257198323889,0,8.5534938945121507E-3,2.135277234597686E-3,-7.1216036580087887E-3,0,null,null,null,null,"4.00",49,{"$f":"MMULT(AC69:AF69,AC$4:AF$7)","v":{"$error":"#VALUE!"}},{"$error":"#VALUE!"},{"$error":"#VALUE!"},{"$error":"#VALUE!"},0.87144222769857238,{"$error":"#VALUE!"},{"$error":"#VALUE!"},{"$error":"#VALUE!"},{"$error":"#VALUE!"},{"$error":"#VALUE!"},{"$error":"#VALUE!"},{"$error":"#VALUE!"},{"$error":"#VALUE!"},null,null,null,null,null,null,null,null,null,null,null,62,15828.532194955331,0.6586805307515099,21443.653138370966,0.95298598444856997]
[null,null,null,null,null,null,null,"4.01",50,{"$f":"MMULT(J70:M70,J$4:M$7)","v":0.13954986475582196},4.369289891807366E-2,0.7188585099623408,9.7898726363763511E-2,0.87144222769857238,7.4813769567495347,4.6616076751654978,248.69602633370172,0,8.2998582724681247E-3,2.0719601392130711E-3,-7.1518984667556023E-3,0,null,null,null,null,"4.01",50,{"$f":"MMULT(AC70:AF70,AC$4:AF$7)","v":{"$error":"#VALUE!"}},{"$error":"#VALUE!"},{"$error":"#VALUE!"},{"$error":"#VALUE!"},0.87144222769857238,{"$error":"#VALUE!"},{"$error":"#VALUE!"},{"$error":"#VALUE!"},{"$error":"#VALUE!"},{"$error":"#VALUE!"},{"$error":"#VALUE!"},{"$error":"#VALUE!"},{"$error":"#VALUE!"},null,null,null,null,null,null,null,null,null,null,null,63,15181.219376849629,0.72549030078215981,20683.625475617373,0.74766654474285554]
[null,null,null,null,null,null,null,"4.02",51,{"$f":"MMULT(J71:M71,J$4:M$7)","v":0.13541181108142628},4.2397279138470245E-2,0.72172843322483748,0.10046247655526595,0.87144222769857238,7.2595326757852643,4.5233776364578313,249.68890393252568,0,8.0537436733501243E-3,2.0105205779711441E-3,-7.1804512340892359E-3,0,null,null,null,null,"4.02",51,{"$f":"MMULT(AC71:AF71,AC$4:AF$7)","v":{"$error":"#VALUE!"}},{"$error":"#VALUE!"},{"$error":"#VALUE!"},{"$error":"#VALUE!"},0.87144222769857238,{"$error":"#VALUE!"},{"$error":"#VALUE!"},{"$error":"#VALUE!"},{"$error":"#VALUE!"},{"$error":"#VALUE!"},{"$error":"#VALUE!"},{"$error":"#VALUE!"},{"$error":"#VALUE!"},null,null,null,null,null,null,null,null,null,null,null,64,16484.015742971234,0.56253198558995521,21715.969407686185,0.35667431956119222]
[null,null,null,null,null,null,null,"4.03",52,{"$f":"MMULT(J72:M72,J$4:M$7)","v":0.13139646255885662},4.1140078209896791E-2,0.72442874720462236,0.1030347120266242,0.87144222769857238,7.044266713595805,4.3892465157727036,250.62310356613793,0,7.8149270775031403E-3,1.9509028763425541E-3,-7.2073165645320705E-3,0,null,null,null,null,"4.03",52,{"$f":"MMULT(AC72:AF72,AC$4:AF$7)","v":{"$error":"#VALUE!"}},{"$error":"#VALUE!"},{"$error":"#VALUE!"},{"$error":"#VALUE!"},0.87144222769857238,{"$error":"#VALUE!"},{"$error":"#VALUE!"},{"$error":"#VALUE!"},{"$error":"#VALUE!"},{"$error":"#VALUE!"},{"$error":"#VALUE!"},{"$error":"#VALUE!"},{"$error":"#VALUE!"},null,null,null,null,null,null,null,null,null,null,null,65,16458.290019877149,0.51304216903155608,21732.752700067525,0.35372517894856825]
[null,null,null,null,null,null,null,"4.04",53,{"$f":"MMULT(J73:M73,J$4:M$7)","v":0.12750018063101784},3.9920156899858242E-2,0.72696477657958514,0.10561488588953873,0.87144222769857238,6.8353840043009066,4.2590927680747841,251.50046735814732,0,7.583192078352655E-3,1.8930530108045433E-3,-7.2325474331203735E-3,0,null,null,null,null,"4.04",53,{"$f":"MMULT(AC73:AF73,AC$4:AF$7)","v":{"$error":"#VALUE!"}},{"$error":"#VALUE!"},{"$error":"#VALUE!"},{"$error":"#VALUE!"},0.87144222769857238,{"$error":"#VALUE!"},{"$error":"#VALUE!"},{"$error":"#VALUE!"},{"$error":"#VALUE!"},{"$error":"#VALUE!"},{"$error":"#VALUE!"},{"$error":"#VALUE!"},{"$error":"#VALUE!"},null,null,null,null,null,null,null,null,null,null,null,66,11589.05498835726,2.3110585970730737,21144.521787253594,1.4911098956227276]
[null,null,null,null,null,null,null,"4.05",54,{"$f":"MMULT(J74:M74,J$4:M$7)","v":0.12371943463350532},3.8736409758646145E-2,0.72934168710362302,0.10820246850422539,0.87144222769857238,6.6326952662315053,4.1327984526237458,252.3227824508767,0,7.358328686342481E-3,1.8369185598472427E-3,-7.2561952337611042E-3,0,null,null,null,null,"4.05",54,{"$f":"MMULT(AC74:AF74,AC$4:AF$7)","v":{"$error":"#VALUE!"}},{"$error":"#VALUE!"},{"$error":"#VALUE!"},{"$error":"#VALUE!"},0.87144222769857238,{"$error":"#VALUE!"},{"$error":"#VALUE!"},{"$error":"#VALUE!"},{"$error":"#VALUE!"},{"$error":"#VALUE!"},{"$error":"#VALUE!"},{"$error":"#VALUE!"},{"$error":"#VALUE!"},null,null,null,null,null,null,null,null,null,null,null,{"$f":"1+BA74","v":67},15715.046315249623,1.8769616149944255,21569.051549313612,1.9070687630401106]
[null,null,null,null,null,null,null,"4.06",55,{"$f":"MMULT(J75:M75,J$4:M$7)","v":0.12005079859564002},3.7587764117100991E-2,0.73156449032291582,0.11079694696434306,0.87144222769857238,6.4360168304307193,4.0102491260452489,253.09178263700349,0,7.1401331386733427E-3,1.7824486564465803E-3,-7.2783098261539692E-3,0,null,null,null,null,"4.06",55,{"$f":"MMULT(AC75:AF75,AC$4:AF$7)","v":{"$error":"#VALUE!"}},{"$error":"#VALUE!"},{"$error":"#VALUE!"},{"$error":"#VALUE!"},0.87144222769857238,{"$error":"#VALUE!"},{"$error":"#VALUE!"},{"$error":"#VALUE!"},{"$error":"#VALUE!"},{"$error":"#VALUE!"},{"$error":"#VALUE!"},{"$error":"#VALUE!"},{"$error":"#VALUE!"},null,null,null,null,null,null,null,null,null,null,null,68,16284.742026270571,1.4706437607916523,22071.151028941371,1.4450224248292169]
[null,null,null,null,null,null,null,"4.07",56,{"$f":"MMULT(J76:M76,J$4:M$7)","v":0.11649094813622522},3.6473179114275216E-2,0.73363804815229239,0.11339782459720704,0.87144222769857238,6.2451704742329497,3.891333738592031,253.80914994279792,0,6.9284077146751031E-3,1.7295939419551046E-3,-7.2989395813215386E-3,0,null,null,null,null,"4.07",56,{"$f":"MMULT(AC76:AF76,AC$4:AF$7)","v":{"$error":"#VALUE!"}},{"$error":"#VALUE!"},{"$error":"#VALUE!"},{"$error":"#VALUE!"},0.87144222769857238,{"$error":"#VALUE!"},{"$error":"#VALUE!"},{"$error":"#VALUE!"},{"$error":"#VALUE!"},{"$error":"#VALUE!"},{"$error":"#VALUE!"},{"$error":"#VALUE!"},{"$error":"#VALUE!"},null,null,null,null,null,null,null,null,null,null,null,69,13712.388465105105,1.0481226812522013,19829.291962725449,0.78644775367780362]
[null,null,null,null,null,null,null,"4.08",57,{"$f":"MMULT(J77:M77,J$4:M$7)","v":0.11303665745126783},3.5391644754041808E-2,0.73556707731585513,0.11600462047883507,0.87144222769857238,6.0599832597732766,3.7759445334932189,254.47651616439973,0,6.7229605566486951E-3,1.67830652136544E-3,-7.3181314257888654E-3,0,null,null,null,null,"4.08",57,{"$f":"MMULT(AC77:AF77,AC$4:AF$7)","v":{"$error":"#VALUE!"}},{"$error":"#VALUE!"},{"$error":"#VALUE!"},{"$error":"#VALUE!"},0.87144222769857238,{"$error":"#VALUE!"},{"$error":"#VALUE!"},{"$error":"#VALUE!"},{"$error":"#VALUE!"},{"$error":"#VALUE!"},{"$error":"#VALUE!"},{"$error":"#VALUE!"},{"$error":"#VALUE!"},null,null,null,null,null,null,null,null,null,null,null,70,17851.94943047193,0.47850383764255094,21138.436922902598,0.83456116070218722]
[null,null,null,null,null,null,null,"4.09",58,{"$f":"MMULT(J78:M78,J$4:M$7)","v":0.10968479639096926},3.4342180989747527E-2,0.73735615365589702,0.11861686896338602,0.87144222769857238,5.8802873772826585,3.6639769492957179,255.0954643585296,0,6.5236054960174216E-3,1.6285399199036455E-3,-7.3359308844527472E-3,0,null,null,null,null,"4.09",58,{"$f":"MMULT(AC78:AF78,AC$4:AF$7)","v":{"$error":"#VALUE!"}},{"$error":"#VALUE!"},{"$error":"#VALUE!"},{"$error":"#VALUE!"},0.87144222769857238,{"$error":"#VALUE!"},{"$error":"#VALUE!"},{"$error":"#VALUE!"},{"$error":"#VALUE!"},{"$error":"#VALUE!"},{"$error":"#VALUE!"},{"$error":"#VALUE!"},{"$error":"#VALUE!"},null,null,null,null,null,null,null,null,null,null,null,71,15580.578031617124,1.4322253792454251,21440.098319165361,1.4877159436289884]
[null,null,null,null,null,null,null,"4.10",59,{"$f":"MMULT(J79:M79,J$4:M$7)","v":0.10643232762335891},3.3323836836052695E-2,0.73900971631402368,0.12123411922656453,0.87144222769857238,5.7059199930281181,3.5553295251061532,255.66753028898847,0,6.3301618846314149E-3,1.5802490409117834E-3,-7.3523821221795696E-3,0,null,null,null,null,"4.10",59,{"$f":"MMULT(AC79:AF79,AC$4:AF$7)","v":{"$error":"#VALUE!"}},{"$error":"#VALUE!"},{"$error":"#VALUE!"},{"$error":"#VALUE!"},0.87144222769857238,{"$error":"#VALUE!"},{"$error":"#VALUE!"},{"$error":"#VALUE!"},{"$error":"#VALUE!"},{"$error":"#VALUE!"},{"$error":"#VALUE!"},{"$error":"#VALUE!"},{"$error":"#VALUE!"},null,null,null,null,null,null,null,null,null,null,null,72,13565.607567014462,1.7023066911644187,21344.922812396813,0.83469063532787646]
[null,null,null,null,null,null,null,"4.11",60,{"$f":"MMULT(J80:M80,J$4:M$7)","v":0.10327630388201334},3.2335689507134766E-2,0.74053207178827429,0.12385593482257738,0.87144222769857238,5.5367231017608178,3.449903808645562,256.19420383025783,0,6.1424544310731697E-3,1.5333901249806889E-3,-7.3675279841694634E-3,0,null,null,null,null,"4.11",60,{"$f":"MMULT(AC80:AF80,AC$4:AF$7)","v":{"$error":"#VALUE!"}},{"$error":"#VALUE!"},{"$error":"#VALUE!"},{"$error":"#VALUE!"},0.87144222769857238,{"$error":"#VALUE!"},{"$error":"#VALUE!"},{"$error":"#VALUE!"},{"$error":"#VALUE!"},{"$error":"#VALUE!"},{"$error":"#VALUE!"},{"$error":"#VALUE!"},{"$error":"#VALUE!"},null,null,null,null,null,null,null,null,null,null,null,73,20077.48239695339,-0.95015465062510662,21716.596319894408,5.0617836056214172E-2]
[null,null,null,null,null,null,null,"5.00",61,{"$f":"MMULT(J81:M81,J$4:M$7)","v":0.10021386529537576},3.1376843580463637E-2,0.74192739786992068,0.12648189325423978,0.84197316685852408,5.1908631725012597,3.2344002580022715,247.99703413475663,0,5.7587565621413823E-3,1.4376045510100242E-3,-7.1317971353849052E-3,0,null,null,null,null,"5.00",61,{"$f":"MMULT(AC81:AF81,AC$4:AF$7)","v":{"$error":"#VALUE!"}},{"$error":"#VALUE!"},{"$error":"#VALUE!"},{"$error":"#VALUE!"},0.84197316685852408,{"$error":"#VALUE!"},{"$error":"#VALUE!"},{"$error":"#VALUE!"},{"$error":"#VALUE!"},{"$error":"#VALUE!"},{"$error":"#VALUE!"},{"$error":"#VALUE!"},{"$error":"#VALUE!"},null,null,null,null,null,null,null,null,null,null,null,74,15696.92230532776,0.75404383701535493,21113.084440237351,0.81518827374673752]
[null,null,null,null,null,null,null,null,null,null,null,null,null,null,null,null,null,null,null,null,null,null,null,null,null,null,null,null,null,null,null,null,null,null,null,null,null,null,null,null,null,null,null,null,null,null,null,null,null,null,null,null,75,14554.980877303575,1.7522050901560777,21872.83448967052,1.4243877140846073]
[null,null,null,null,null,null,null,null,null,null,null,null,null,null,"SILENT","ACTIVE","COMPL","DEAD","SILENT","ACTIVE","COMPL","DEAD",null,null,null,null,null,null,null,null,null,null,null,"SILENT","ACTIVE","COMPL","DEAD","SILENT","ACTIVE","COMPL","DEAD",null,null,null,null,null,null,null,null,null,null,null,76,12289.727690737771,1.2937602645305968,20673.003749123462,0.77304440650820982]
[null,null,null,null,null,"HALF CYCLE CORRECTION",null,"TOTALS",null,{"$f":"0.5*J22+SUM(J23:J81)+0.5*J82","v":15.622839364566818},{"$f":"0.5*K22+SUM(K23:K81)+0.5*K82","v":7.0435805013299744},{"$f":"0.5*L22+SUM(L23:L81)+0.5*L82","v":34.005221175483776},{"$f":"0.5*M22+SUM(M23:M81)+0.5*M82","v":3.3283589586194409},null,{"$f":"0.5*O22+SUM(O23:O81)+0.5*O82","v":914.85079145355678},833.48037519021818,12431.49621365549,0,1.0149377518893032,0.37045977150987441,-0.35749987653852744,0,null,null,null,null,"TOTALS",null,{"$f":"0.5*AC22+SUM(AC23:AC81)+0.5*AC82","v":{"$error":"#VALUE!"}},{"$f":"0.5*AD22+SUM(AD23:AD81)+0.5*AD82","v":{"$error":"#VALUE!"}},{"$f":"0.5*AE22+SUM(AE23:AE81)+0.5*AE82","v":{"$error":"#VALUE!"}},{"$f":"0.5*AF22+SUM(AF23:AF81)+0.5*AF82","v":{"$error":"#VALUE!"}},null,{"$f":"0.5*AH22+SUM(AH23:AH81)+0.5*AH82","v":{"$error":"#VALUE!"}},{"$error":"#VALUE!"},{"$error":"#VALUE!"},{"$error":"#VALUE!"},{"$error":"#VALUE!"},{"$error":"#VALUE!"},{"$error":"#VALUE!"},{"$error":"#VALUE!"},null,null,null,null,null,null,null,null,null,null,null,77,15888.120739876329,1.3561970647391774,20192.973932744353,1.0644337623916733]
[null,null,null,null,null,null,null,null,null,null,null,null,null,null,null,null,null,null,null,null,null,null,null,null,null,null,null,null,null,null,null,null,null,null,null,null,null,null,null,null,null,null,null,null,null,null,null,null,null,null,null,null,78,17290.879992131595,-0.20853610670436207,20827.720718021475,0.45861150803323225]
[null,null,null,null,null,null,null,null,null,null,null,null,null,null,null,null,"TOTAL COST",{"$f":"O85+P85+Q85+R85","v":14179.827380299264},null,null,"TOTAL OUTCOME",{"$f":"S85+T85+U85+V85","v":1.0278976468606502},null,null,null,null,null,null,null,null,null,null,null,null,null,"TOTAL COST",{"$f":"AH85+AI85+AJ85+AK85","v":{"$error":"#VALUE!"}},null,null,"TOTAL OUTCOME",{"$f":"AL85+AM85+AN85+AO85","v":{"$error":"#VALUE!"}},null,null,null,null,null,null,null,null,null,null,null,79,18161.538143764257,5.106665268475552E-2,21416.409616827121,0.3795957802521589]
[null,null,null,null,null,null,null,null,null,null,null,null,null,null,null,null,null,null,null,null,null,null,null,null,null,null,null,null,null,null,null,null,null,null,null,null,null,null,null,null,null,null,null,null,null,null,null,null,null,null,null,null,80,18238.41039696115,1.091819581541899,21318.401823279735,1.4199871860953057]
[null,null,null,null,null,null,null,null,null,null,null,null,null,null,null,null,null,null,null,null,null,null,null,null,null,null,null,null,null,null,null,null,null,null,null,null,null,null,null,null,null,null,null,null,null,null,null,null,null,null,null,null,81,10370.873102693464,2.2467651045571513,21216.387831687196,1.1334979312299065]
[null,null,null,null,null,null,null,null,null,null,null,null,null,null,null,null,null,null,null,null,null,null,null,null,null,null,null,null,null,null,null,null,null,null,null,null,null,null,null,null,null,null,null,null,null,null,null,null,null,null,null,null,82,14503.671210034416,0.97385601761009366,19811.366001451086,0.99779969239344402]
[null,null,null,null,null,null,null,null,null,null,null,null,null,null,null,null,null,null,null,null,null,null,null,null,null,null,null,null,null,null,null,null,null,null,null,null,null,null,null,null,null,null,null,null,null,null,null,null,null,null,null,null,83,15223.18489762442,0.12239090975359823,20482.673738947822,0.32433506946134127]
[null,null,null,null,null,null,null,null,null,null,null,null,null,null,null,null,null,null,null,null,null,null,null,null,null,null,null,null,null,null,null,null,null,null,null,null,null,null,null,null,null,null,null,null,null,null,null,null,null,null,null,null,84,13456.146170160109,1.3661666230282061,21647.727621697806,1.0117357546020502]
[null,null,null,null,null,null,null,null,null,null,null,null,null,null,null,null,null,null,null,null,null,null,null,null,null,null,null,null,null,null,null,null,null,null,null,null,null,null,null,null,null,null,null,null,null,null,null,null,null,null,null,null,85,15162.746898365915,1.2580387795863879,21027.580250247964,1.159010198011712]
[null,null,null,null,null,null,null,null,null,null,null,null,null,null,null,null,null,null,null,null,null,null,null,null,null,null,null,null,null,null,null,null,null,null,null,null,null,null,null,null,null,null,null,null,null,null,null,null,null,null,null,null,86,14237.182997458011,1.5140107422142304,21615.479041002705,0.94342275317793001]
[null,null,null,null,null,null,null,null,null,null,null,null,null,null,null,null,null,null,null,null,null,null,null,null,null,null,null,null,null,null,null,null,null,null,null,null,null,null,null,null,null,null,null,null,null,null,null,null,null,null,null,null,87,14787.323291191717,0.79510756501402302,21318.3114917934,0.49458420019677307]
[null,null,null,null,null,null,null,null,null,null,null,null,null,null,null,null,null,null,null,null,null,null,null,null,null,null,null,null,null,null,null,null,null,null,null,null,null,null,null,null,null,null,null,null,null,null,null,null,null,null,null,null,88,14970.953366884289,-0.65349206305561136,20559.7620843615,-0.58795558517897906]
[null,null,null,null,null,null,null,null,null,null,null,null,null,null,null,null,null,null,null,null,null,null,null,null,null,null,null,null,null,null,null,null,null,null,null,null,null,null,null,null,null,null,null,null,null,null,null,null,null,null,null,null,89,16918.076954545322,-0.26884347906174288,21381.911617811609,0.41730857421291889]
[null,null,null,null,null,null,null,null,null,null,null,null,null,null,null,null,null,null,null,null,null,null,null,null,null,null,null,null,null,null,null,null,null,null,null,null,null,null,null,null,null,null,null,null,null,null,null,null,null,null,null,null,90,17145.958246242808,1.2045300746547201,21173.298463414725,1.2947521541214524]
[null,null,null,null,null,null,null,null,null,null,null,null,null,null,null,null,null,null,null,null,null,null,null,null,null,null,null,null,null,null,null,null,null,null,null,null,null,null,null,null,null,null,null,null,null,null,null,null,null,null,null,null,91,17044.851851368003,1.3763904554884385,21810.544859002275,1.6310071152295758]
[null,null,null,null,null,null,null,null,null,null,null,null,null,null,null,null,null,null,null,null,null,null,null,null,null,null,null,null,null,null,null,null,null,null,null,null,null,null,null,null,null,null,null,null,null,null,null,null,null,null,null,null,92,17783.322972079113,0.562640083562301,20968.719020669021,0.82016287263463405]
[null,null,null,null,null,null,null,null,null,null,null,null,null,null,null,null,null,null,null,null,null,null,null,null,null,null,null,null,null,null,null,null,null,null,null,null,null,null,null,null,null,null,null,null,null,null,null,null,null,null,null,null,93,17298.414473271849,0.68799341636679512,20836.764442918946,1.0573331231911878]
[null,null,null,null,null,null,null,null,null,null,null,null,null,null,null,null,null,null,null,null,null,null,null,null,null,null,null,null,null,null,null,null,null,null,null,null,null,null,null,null,null,null,null,null,null,null,null,null,null,null,null,null,94,13636.656961674738,0.88423859254109338,21345.412167349772,0.63460067151786215]
[null,null,null,null,null,null,null,null,null,null,null,null,null,null,null,null,null,null,null,null,null,null,null,null,null,null,null,null,null,null,null,null,null,null,null,null,null,null,null,null,null,null,null,null,null,null,null,null,null,null,null,null,95,14324.951500659314,0.85199568436961703,20393.993526735903,0.50690008229250161]
[null,null,null,null,null,null,null,null,null,null,null,null,null,null,null,null,null,null,null,null,null,null,null,null,null,null,null,null,null,null,null,null,null,null,null,null,null,null,null,null,null,null,null,null,null,null,null,null,null,null,null,null,96,16500.69001515858,0.39424062463584864,21181.581950767948,0.63555618545483394]
[null,null,null,null,null,null,null,null,null,null,null,null,null,null,null,null,null,null,null,null,null,null,null,null,null,null,null,null,null,null,null,null,null,null,null,null,null,null,null,null,null,null,null,null,null,null,null,null,null,null,null,null,97,17325.044756939817,0.50397655643275663,21303.084891140123,0.66708280977657453]
[null,null,null,null,null,null,null,null,null,null,null,null,null,null,null,null,null,null,null,null,null,null,null,null,null,null,null,null,null,null,null,null,null,null,null,null,null,null,null,null,null,null,null,null,null,null,null,null,null,null,null,null,98,15958.392778239253,1.3065779255802119,20509.093872792575,1.5123684666170769]
[null,null,null,null,null,null,null,null,null,null,null,null,null,null,null,null,null,null,null,null,null,null,null,null,null,null,null,null,null,null,null,null,null,null,null,null,null,null,null,null,null,null,null,null,null,null,null,null,null,null,null,null,99,17565.786872966564,0.31172444689775003,21543.323653206055,0.82306822368307764]
[null,null,null,null,null,null,null,null,null,null,null,null,null,null,null,null,null,null,null,null,null,null,null,null,null,null,null,null,null,null,null,null,null,null,null,null,null,null,null,null,null,null,null,null,null,null,null,null,null,null,null,null,100,18394.177076016877,0.47551974175337858,21347.017776820758,0.78269121854718571]
[null,null,null,null,null,null,null,null,null,null,null,null,null,null,null,null,null,null,null,null,null,null,null,null,null,null,null,null,null,null,null,null,null,null,null,null,null,null,null,null,null,null,null,null,null,null,null,null,null,null,null,null,101,15509.993414476772,0.80383033755587197,21409.459841296983,0.84315476018125612]
[null,null,null,null,null,null,null,null,null,null,null,null,null,null,null,null,null,null,null,null,null,null,null,null,null,null,null,null,null,null,null,null,null,null,null,null,null,null,null,null,null,null,null,null,null,null,null,null,null,null,null,null,102,15105.070021971653,0.62370522852214894,21383.402241266333,0.72822419039844788]
[null,null,null,null,null,null,null,null,null,null,null,null,null,null,null,null,null,null,null,null,null,null,null,null,null,null,null,null,null,null,null,null,null,null,null,null,null,null,null,null,null,null,null,null,null,null,null,null,null,null,null,null,103,18697.147614553083,-0.49850141244305879,21456.805237617547,0.1790848485733626]
[null,null,null,null,null,null,null,null,null,null,null,null,null,null,null,null,null,null,null,null,null,null,null,null,null,null,null,null,null,null,null,null,null,null,null,null,null,null,null,null,null,null,null,null,null,null,null,null,null,null,null,null,104,14780.431319219399,1.0832733528307479,21445.432286207521,0.70321432391650607]
[null,null,null,null,null,null,null,null,null,null,null,null,null,null,null,null,null,null,null,null,null,null,null,null,null,null,null,null,null,null,null,null,null,null,null,null,null,null,null,null,null,null,null,null,null,null,null,null,null,null,null,null,105,15727.610975391071,0.90285425733640889,20073.59273303354,0.73107510406437748]
[null,null,null,null,null,null,null,null,null,null,null,null,null,null,null,null,null,null,null,null,null,null,null,null,null,null,null,null,null,null,null,null,null,null,null,null,null,null,null,null,null,null,null,null,null,null,null,null,null,null,null,null,106,14435.835634328432,-0.53118358335434568,20448.007308068198,-0.35258686209289647]
[null,null,null,null,null,null,null,null,null,null,null,null,null,null,null,null,null,null,null,null,null,null,null,null,null,null,null,null,null,null,null,null,null,null,null,null,null,null,null,null,null,null,null,null,null,null,null,null,null,null,null,null,107,14206.445058181765,1.955601215442079,22209.547026911503,0.97681148995492428]
[null,null,null,null,null,null,null,null,null,null,null,null,null,null,null,null,null,null,null,null,null,null,null,null,null,null,null,null,null,null,null,null,null,null,null,null,null,null,null,null,null,null,null,null,null,null,null,null,null,null,null,null,108,17268.197390465906,1.0754295659659301,20806.330601223919,1.2444485372185194]
[null,null,null,null,null,null,null,null,null,null,null,null,null,null,null,null,null,null,null,null,null,null,null,null,null,null,null,null,null,null,null,null,null,null,null,null,null,null,null,null,null,null,null,null,null,null,null,null,null,null,null,null,109,16439.204737609318,0.63900093185917939,21402.939907093481,0.80477118543364268]
[null,null,null,null,null,null,null,null,null,null,null,null,null,null,null,null,null,null,null,null,null,null,null,null,null,null,null,null,null,null,null,null,null,null,null,null,null,null,null,null,null,null,null,null,null,null,null,null,null,null,null,null,110,16754.034911766292,1.5234450802191546,21669.677367154771,1.6217041977528392]
[null,null,null,null,null,null,null,null,null,null,null,null,null,null,null,null,null,null,null,null,null,null,null,null,null,null,null,null,null,null,null,null,null,null,null,null,null,null,null,null,null,null,null,null,null,null,null,null,null,null,null,null,111,16285.948683898034,7.6728161181423893E-2,20798.965050141567,0.26440185273895378]
[null,null,null,null,null,null,null,null,null,null,null,null,null,null,null,null,null,null,null,null,null,null,null,null,null,null,null,null,null,null,null,null,null,null,null,null,null,null,null,null,null,null,null,null,null,null,null,null,null,null,null,null,112,18232.307772779546,0.34328463151445066,21441.772481376735,1.0044475792491867]
[null,null,null,null,null,null,null,null,null,null,null,null,null,null,null,null,null,null,null,null,null,null,null,null,null,null,null,null,null,null,null,null,null,null,null,null,null,null,null,null,null,null,null,null,null,null,null,null,null,null,null,null,113,16760.040212103973,0.95797959753597461,21062.020630213676,1.1911821818431576]
[null,null,null,null,null,null,null,null,null,null,null,null,null,null,null,null,null,null,null,null,null,null,null,null,null,null,null,null,null,null,null,null,null,null,null,null,null,null,null,null,null,null,null,null,null,null,null,null,null,null,null,null,114,16386.018192728705,0.76911015457687448,20691.039533510975,1.0093058309014775]
[null,null,null,null,null,null,null,null,null,null,null,null,null,null,null,null,null,null,null,null,null,null,null,null,null,null,null,null,null,null,null,null,null,null,null,null,null,null,null,null,null,null,null,null,null,null,null,null,null,null,null,null,115,17879.136276236095,6.6379793515154661E-2,21272.960294860466,0.5515201128343229]
[null,null,null,null,null,null,null,null,null,null,null,null,null,null,null,null,null,null,null,null,null,null,null,null,null,null,null,null,null,null,null,null,null,null,null,null,null,null,null,null,null,null,null,null,null,null,null,null,null,null,null,null,116,13598.60095368441,1.5320972767750345,20679.10157353674,1.2020916711418439]
[null,null,null,null,null,null,null,null,null,null,null,null,null,null,null,null,null,null,null,null,null,null,null,null,null,null,null,null,null,null,null,null,null,null,null,null,null,null,null,null,null,null,null,null,null,null,null,null,null,null,null,null,117,12756.318249418988,1.3124616386691803,20733.449247328906,0.71317798432973145]
[null,null,null,null,null,null,null,null,null,null,null,null,null,null,null,null,null,null,null,null,null,null,null,null,null,null,null,null,null,null,null,null,null,null,null,null,null,null,null,null,null,null,null,null,null,null,null,null,null,null,null,null,118,14614.506345882128,0.57600092980779627,21033.8550114276,0.67785577785231921]
[null,null,null,null,null,null,null,null,null,null,null,null,null,null,null,null,null,null,null,null,null,null,null,null,null,null,null,null,null,null,null,null,null,null,null,null,null,null,null,null,null,null,null,null,null,null,null,null,null,null,null,null,119,13571.614969182057,1.4500682019535853,21146.394945489385,0.92471508920030931]
[null,null,null,null,null,null,null,null,null,null,null,null,null,null,null,null,null,null,null,null,null,null,null,null,null,null,null,null,null,null,null,null,null,null,null,null,null,null,null,null,null,null,null,null,null,null,null,null,null,null,null,null,120,18740.444387434141,1.3778713448378443,21816.528920007884,1.6831940139929973]
[null,null,null,null,null,null,null,null,null,null,null,null,null,null,null,null,null,null,null,null,null,null,null,null,null,null,null,null,null,null,null,null,null,null,null,null,null,null,null,null,null,null,null,null,null,null,null,null,null,null,null,null,121,16069.761529787014,0.77437067234165147,21516.091725971557,0.70168187125872084]
[null,null,null,null,null,null,null,null,null,null,null,null,null,null,null,null,null,null,null,null,null,null,null,null,null,null,null,null,null,null,null,null,null,null,null,null,null,null,null,null,null,null,null,null,null,null,null,null,null,null,null,null,122,16555.25235409398,0.51492616646827649,21017.469284286315,0.83160955975386142]
[null,null,null,null,null,null,null,null,null,null,null,null,null,null,null,null,null,null,null,null,null,null,null,null,null,null,null,null,null,null,null,null,null,null,null,null,null,null,null,null,null,null,null,null,null,null,null,null,null,null,null,null,123,14990.076886168381,0.66296209803463924,21769.744842120454,0.57209529880135013]
[null,null,null,null,null,null,null,null,null,null,null,null,null,null,null,null,null,null,null,null,null,null,null,null,null,null,null,null,null,null,null,null,null,null,null,null,null,null,null,null,null,null,null,null,null,null,null,null,null,null,null,null,124,16593.145056599726,-0.18012092680903147,21258.189005144544,-0.25501861332368536]
[null,null,null,null,null,null,null,null,null,null,null,null,null,null,null,null,null,null,null,null,null,null,null,null,null,null,null,null,null,null,null,null,null,null,null,null,null,null,null,null,null,null,null,null,null,null,null,null,null,null,null,null,125,15808.930753057926,1.2173080195376389,21776.260374382433,1.0274857811583582]
[null,null,null,null,null,null,null,null,null,null,null,null,null,null,null,null,null,null,null,null,null,null,null,null,null,null,null,null,null,null,null,null,null,null,null,null,null,null,null,null,null,null,null,null,null,null,null,null,null,null,null,null,126,16914.582158351444,0.95629985201643097,21147.598226333583,1.2320040812391095]
[null,null,null,null,null,null,null,null,null,null,null,null,null,null,null,null,null,null,null,null,null,null,null,null,null,null,null,null,null,null,null,null,null,null,null,null,null,null,null,null,null,null,null,null,null,null,null,null,null,null,null,null,127,17916.434173054582,0.58095725548544286,20985.700336990434,0.77259922168040007]
[null,null,null,null,null,null,null,null,null,null,null,null,null,null,null,null,null,null,null,null,null,null,null,null,null,null,null,null,null,null,null,null,null,null,null,null,null,null,null,null,null,null,null,null,null,null,null,null,null,null,null,null,128,17952.686923141133,0.47864739574270398,20575.896019885375,0.76820300227371441]
[null,null,null,null,null,null,null,null,null,null,null,null,null,null,null,null,null,null,null,null,null,null,null,null,null,null,null,null,null,null,null,null,null,null,null,null,null,null,null,null,null,null,null,null,null,null,null,null,null,null,null,null,129,13834.031504907512,0.99153907419691945,21488.058812698146,0.47455822767355327]
[null,null,null,null,null,null,null,null,null,null,null,null,null,null,null,null,null,null,null,null,null,null,null,null,null,null,null,null,null,null,null,null,null,null,null,null,null,null,null,null,null,null,null,null,null,null,null,null,null,null,null,null,130,14132.886771334672,1.0897455551037107,20372.34362921206,0.84614071960726855]
[null,null,null,null,null,null,null,null,null,null,null,null,null,null,null,null,null,null,null,null,null,null,null,null,null,null,null,null,null,null,null,null,null,null,null,null,null,null,null,null,null,null,null,null,null,null,null,null,null,null,null,null,{"$f":"1+BA138","v":131},16655.635709183414,0.92122375379032284,21439.63755589848,1.2591553870718462]
[null,null,null,null,null,null,null,null,null,null,null,null,null,null,null,null,null,null,null,null,null,null,null,null,null,null,null,null,null,null,null,null,null,null,null,null,null,null,null,null,null,null,null,null,null,null,null,null,null,null,null,null,132,14573.766513548853,0.92297452280964321,20198.228793078652,0.78011277884659047]
[null,null,null,null,null,null,null,null,null,null,null,null,null,null,null,null,null,null,null,null,null,null,null,null,null,null,null,null,null,null,null,null,null,null,null,null,null,null,null,null,null,null,null,null,null,null,null,null,null,null,null,null,133,14997.759694776507,0.84919898797181803,20189.525587221935,0.91924817234862766]
[null,null,null,null,null,null,null,null,null,null,null,null,null,null,null,null,null,null,null,null,null,null,null,null,null,null,null,null,null,null,null,null,null,null,null,null,null,null,null,null,null,null,null,null,null,null,null,null,null,null,null,null,134,17736.362922788292,-0.184970859077773,21026.464032143482,0.60030449398045638]
[null,null,null,null,null,null,null,null,null,null,null,null,null,null,null,null,null,null,null,null,null,null,null,null,null,null,null,null,null,null,null,null,null,null,null,null,null,null,null,null,null,null,null,null,null,null,null,null,null,null,null,null,135,17099.379004534479,0.51413798566146329,21710.01510985546,0.42109885652089252]
[null,null,null,null,null,null,null,null,null,null,null,null,null,null,null,null,null,null,null,null,null,null,null,null,null,null,null,null,null,null,null,null,null,null,null,null,null,null,null,null,null,null,null,null,null,null,null,null,null,null,null,null,136,14160.218569137287,0.43468111573899271,21116.617267962549,0.27709742757379097]
[null,null,null,null,null,null,null,null,null,null,null,null,null,null,null,null,null,null,null,null,null,null,null,null,null,null,null,null,null,null,null,null,null,null,null,null,null,null,null,null,null,null,null,null,null,null,null,null,null,null,null,null,137,16185.380276993366,0.34044672705055345,21514.356845884031,0.49475100574698883]
[null,null,null,null,null,null,null,null,null,null,null,null,null,null,null,null,null,null,null,null,null,null,null,null,null,null,null,null,null,null,null,null,null,null,null,null,null,null,null,null,null,null,null,null,null,null,null,null,null,null,null,null,138,18314.684515611822,0.44958367071539401,21482.391741128624,0.79618096322159737]
[null,null,null,null,null,null,null,null,null,null,null,null,null,null,null,null,null,null,null,null,null,null,null,null,null,null,null,null,null,null,null,null,null,null,null,null,null,null,null,null,null,null,null,null,null,null,null,null,null,null,null,null,139,15671.173629444567,0.53499530912154003,21002.410185362001,0.7353845912718211]
[null,null,null,null,null,null,null,null,null,null,null,null,null,null,null,null,null,null,null,null,null,null,null,null,null,null,null,null,null,null,null,null,null,null,null,null,null,null,null,null,null,null,null,null,null,null,null,null,null,null,null,null,140,16420.674694848687,0.89853309646730306,21272.650361791675,1.0309936856405966]
[null,null,null,null,null,null,null,null,null,null,null,null,null,null,null,null,null,null,null,null,null,null,null,null,null,null,null,null,null,null,null,null,null,null,null,null,null,null,null,null,null,null,null,null,null,null,null,null,null,null,null,null,141,13386.289629754043,1.1805402967010976,20924.909423841298,0.69170169581603669]
[null,null,null,null,null,null,null,null,null,null,null,null,null,null,null,null,null,null,null,null,null,null,null,null,null,null,null,null,null,null,null,null,null,null,null,null,null,null,null,null,null,null,null,null,null,null,null,null,null,null,null,null,142,16810.231970100715,0.68479315038127442,21283.488071099404,1.0642564223002218]
[null,null,null,null,null,null,null,null,null,null,null,null,null,null,null,null,null,null,null,null,null,null,null,null,null,null,null,null,null,null,null,null,null,null,null,null,null,null,null,null,null,null,null,null,null,null,null,null,null,null,null,null,143,15390.714434960928,1.5559343832554144,21691.451594283313,1.1909606358329543]
[null,null,null,null,null,null,null,null,null,null,null,null,null,null,null,null,null,null,null,null,null,null,null,null,null,null,null,null,null,null,null,null,null,null,null,null,null,null,null,null,null,null,null,null,null,null,null,null,null,null,null,null,144,16867.084075411818,0.86280668529980153,20706.59559053975,1.1555415403348028]
[null,null,null,null,null,null,null,null,null,null,null,null,null,null,null,null,null,null,null,null,null,null,null,null,null,null,null,null,null,null,null,null,null,null,null,null,null,null,null,null,null,null,null,null,null,null,null,null,null,null,null,null,145,18018.856341445036,0.79700908942120818,21279.642149720414,1.0935814110829414]
[null,null,null,null,null,null,null,null,null,null,null,null,null,null,null,null,null,null,null,null,null,null,null,null,null,null,null,null,null,null,null,null,null,null,null,null,null,null,null,null,null,null,null,null,null,null,null,null,null,null,null,null,146,15735.394404752496,0.23103725519598961,20848.320499080441,0.22727908145247133]
[null,null,null,null,null,null,null,null,null,null,null,null,null,null,null,null,null,null,null,null,null,null,null,null,null,null,null,null,null,null,null,null,null,null,null,null,null,null,null,null,null,null,null,null,null,null,null,null,null,null,null,null,147,16575.897818367528,0.82543643370347208,21350.770632400436,1.1146819726847417]
[null,null,null,null,null,null,null,null,null,null,null,null,null,null,null,null,null,null,null,null,null,null,null,null,null,null,null,null,null,null,null,null,null,null,null,null,null,null,null,null,null,null,null,null,null,null,null,null,null,null,null,null,148,16068.558772368095,1.78420732652032,21789.565698873721,1.8395756227293611]
[null,null,null,null,null,null,null,null,null,null,null,null,null,null,null,null,null,null,null,null,null,null,null,null,null,null,null,null,null,null,null,null,null,null,null,null,null,null,null,null,null,null,null,null,null,null,null,null,null,null,null,null,149,15802.819143980076,0.92224242970116532,20692.364399831433,0.88476347117432863]
[null,null,null,null,null,null,null,null,null,null,null,null,null,null,null,null,null,null,null,null,null,null,null,null,null,null,null,null,null,null,null,null,null,null,null,null,null,null,null,null,null,null,null,null,null,null,null,null,null,null,null,null,150,16967.890005890535,6.4766521338657235E-2,20781.876379284204,0.12818059790896008]
[null,null,null,null,null,null,null,null,null,null,null,null,null,null,null,null,null,null,null,null,null,null,null,null,null,null,null,null,null,null,null,null,null,null,null,null,null,null,null,null,null,null,null,null,null,null,null,null,null,null,null,null,151,14083.737142420699,1.5255604209858356,22032.38109938685,0.87140653894056008]
[null,null,null,null,null,null,null,null,null,null,null,null,null,null,null,null,null,null,null,null,null,null,null,null,null,null,null,null,null,null,null,null,null,null,null,null,null,null,null,null,null,null,null,null,null,null,null,null,null,null,null,null,152,16342.707539205574,1.4038267027028435,21011.892556049184,1.7576042315868041]
[null,null,null,null,null,null,null,null,null,null,null,null,null,null,null,null,null,null,null,null,null,null,null,null,null,null,null,null,null,null,null,null,null,null,null,null,null,null,null,null,null,null,null,null,null,null,null,null,null,null,null,null,153,13145.102360710582,1.569799611090205,20095.293072199987,1.2529604601453981]
[null,null,null,null,null,null,null,null,null,null,null,null,null,null,null,null,null,null,null,null,null,null,null,null,null,null,null,null,null,null,null,null,null,null,null,null,null,null,null,null,null,null,null,null,null,null,null,null,null,null,null,null,154,16213.706616538286,0.70818368780208918,21204.376652547977,0.61335679316555591]
[null,null,null,null,null,null,null,null,null,null,null,null,null,null,null,null,null,null,null,null,null,null,null,null,null,null,null,null,null,null,null,null,null,null,null,null,null,null,null,null,null,null,null,null,null,null,null,null,null,null,null,null,155,15735.675652189768,-0.42530892419073063,20744.067716021484,-0.35108482406623653]
[null,null,null,null,null,null,null,null,null,null,null,null,null,null,null,null,null,null,null,null,null,null,null,null,null,null,null,null,null,null,null,null,null,null,null,null,null,null,null,null,null,null,null,null,null,null,null,null,null,null,null,null,156,16657.813820426112,0.80651186672701936,20917.547388113817,0.84429025423319415]
[null,null,null,null,null,null,null,null,null,null,null,null,null,null,null,null,null,null,null,null,null,null,null,null,null,null,null,null,null,null,null,null,null,null,null,null,null,null,null,null,null,null,null,null,null,null,null,null,null,null,null,null,157,10554.906684030046,2.0241012276801937,21063.53032124729,0.80387773458611322]
[null,null,null,null,null,null,null,null,null,null,null,null,null,null,null,null,null,null,null,null,null,null,null,null,null,null,null,null,null,null,null,null,null,null,null,null,null,null,null,null,null,null,null,null,null,null,null,null,null,null,null,null,158,16459.155147259764,0.23076496820986103,21399.92885088233,0.3893834273271598]
[null,null,null,null,null,null,null,null,null,null,null,null,null,null,null,null,null,null,null,null,null,null,null,null,null,null,null,null,null,null,null,null,null,null,null,null,null,null,null,null,null,null,null,null,null,null,null,null,null,null,null,null,159,13438.602030505852,0.93758874901281875,21354.199266972373,0.9809471842458245]
[null,null,null,null,null,null,null,null,null,null,null,null,null,null,null,null,null,null,null,null,null,null,null,null,null,null,null,null,null,null,null,null,null,null,null,null,null,null,null,null,null,null,null,null,null,null,null,null,null,null,null,null,160,17321.687437314169,0.95910429560709221,20949.703023898361,1.2742920304143008]
[null,null,null,null,null,null,null,null,null,null,null,null,null,null,null,null,null,null,null,null,null,null,null,null,null,null,null,null,null,null,null,null,null,null,null,null,null,null,null,null,null,null,null,null,null,null,null,null,null,null,null,null,161,18589.543342707464,0.66976203554917346,20947.262759498855,0.93448249735135591]
[null,null,null,null,null,null,null,null,null,null,null,null,null,null,null,null,null,null,null,null,null,null,null,null,null,null,null,null,null,null,null,null,null,null,null,null,null,null,null,null,null,null,null,null,null,null,null,null,null,null,null,null,162,16999.361606994065,1.3028828282659546,21254.153989953975,1.3038281889878014]
[null,null,null,null,null,null,null,null,null,null,null,null,null,null,null,null,null,null,null,null,null,null,null,null,null,null,null,null,null,null,null,null,null,null,null,null,null,null,null,null,null,null,null,null,null,null,null,null,null,null,null,null,163,17595.383007565364,8.2380438555926805E-3,21247.830637495634,0.45443162776215784]
[null,null,null,null,null,null,null,null,null,null,null,null,null,null,null,null,null,null,null,null,null,null,null,null,null,null,null,null,null,null,null,null,null,null,null,null,null,null,null,null,null,null,null,null,null,null,null,null,null,null,null,null,164,15393.802870798834,0.89309631548731905,21357.595147462085,1.1159148801705576]
[null,null,null,null,null,null,null,null,null,null,null,null,null,null,null,null,null,null,null,null,null,null,null,null,null,null,null,null,null,null,null,null,null,null,null,null,null,null,null,null,null,null,null,null,null,null,null,null,null,null,null,null,165,15705.382086287671,1.7502852213089404,20953.725101951553,1.6358336134482123]
[null,null,null,null,null,null,null,null,null,null,null,null,null,null,null,null,null,null,null,null,null,null,null,null,null,null,null,null,null,null,null,null,null,null,null,null,null,null,null,null,null,null,null,null,null,null,null,null,null,null,null,null,166,11156.982033030077,1.881838336932111,20486.948142849458,0.72871127198977259]
[null,null,null,null,null,null,null,null,null,null,null,null,null,null,null,null,null,null,null,null,null,null,null,null,null,null,null,null,null,null,null,null,null,null,null,null,null,null,null,null,null,null,null,null,null,null,null,null,null,null,null,null,167,15522.139558300658,1.5079422512267358,20836.112495409576,1.4470195597656321]
[null,null,null,null,null,null,null,null,null,null,null,null,null,null,null,null,null,null,null,null,null,null,null,null,null,null,null,null,null,null,null,null,null,null,null,null,null,null,null,null,null,null,null,null,null,null,null,null,null,null,null,null,168,15724.693691021972,0.6615547610535597,21514.610209921579,0.54216498614218545]
[null,null,null,null,null,null,null,null,null,null,null,null,null,null,null,null,null,null,null,null,null,null,null,null,null,null,null,null,null,null,null,null,null,null,null,null,null,null,null,null,null,null,null,null,null,null,null,null,null,null,null,null,169,16607.910400305347,0.70283296987900867,19730.585716001249,0.8106922261651015]
[null,null,null,null,null,null,null,null,null,null,null,null,null,null,null,null,null,null,null,null,null,null,null,null,null,null,null,null,null,null,null,null,null,null,null,null,null,null,null,null,null,null,null,null,null,null,null,null,null,null,null,null,170,17452.295184650859,0.69570919324785252,21852.320983233458,1.3225721602220311]
[null,null,null,null,null,null,null,null,null,null,null,null,null,null,null,null,null,null,null,null,null,null,null,null,null,null,null,null,null,null,null,null,null,null,null,null,null,null,null,null,null,null,null,null,null,null,null,null,null,null,null,null,171,16434.407534300339,1.1259216867713082,20927.570666294978,1.0458442392969003]
[null,null,null,null,null,null,null,null,null,null,null,null,null,null,null,null,null,null,null,null,null,null,null,null,null,null,null,null,null,null,null,null,null,null,null,null,null,null,null,null,null,null,null,null,null,null,null,null,null,null,null,null,172,13739.402644388785,1.5351520664797942,20603.872554745227,1.2191242135771319]
[null,null,null,null,null,null,null,null,null,null,null,null,null,null,null,null,null,null,null,null,null,null,null,null,null,null,null,null,null,null,null,null,null,null,null,null,null,null,null,null,null,null,null,null,null,null,null,null,null,null,null,null,173,17889.184855805972,0.96249126632080473,20550.210270767893,1.1903528037056219]
[null,null,null,null,null,null,null,null,null,null,null,null,null,null,null,null,null,null,null,null,null,null,null,null,null,null,null,null,null,null,null,null,null,null,null,null,null,null,null,null,null,null,null,null,null,null,null,null,null,null,null,null,174,14688.370110121972,1.7055796696718637,20037.856979096614,1.5457334652199557]
[null,null,null,null,null,null,null,null,null,null,null,null,null,null,null,null,null,null,null,null,null,null,null,null,null,null,null,null,null,null,null,null,null,null,null,null,null,null,null,null,null,null,null,null,null,null,null,null,null,null,null,null,175,16283.209616770419,2.0815220949505355,21092.33649347756,1.7843983774761394]
[null,null,null,null,null,null,null,null,null,null,null,null,null,null,null,null,null,null,null,null,null,null,null,null,null,null,null,null,null,null,null,null,null,null,null,null,null,null,null,null,null,null,null,null,null,null,null,null,null,null,null,null,176,15996.514010193978,1.0760413308254704,20443.666056658953,0.89454018690751536]
[null,null,null,null,null,null,null,null,null,null,null,null,null,null,null,null,null,null,null,null,null,null,null,null,null,null,null,null,null,null,null,null,null,null,null,null,null,null,null,null,null,null,null,null,null,null,null,null,null,null,null,null,177,15572.79137890303,0.6467665224294491,20876.730028188831,0.6635636335811147]
[null,null,null,null,null,null,null,null,null,null,null,null,null,null,null,null,null,null,null,null,null,null,null,null,null,null,null,null,null,null,null,null,null,null,null,null,null,null,null,null,null,null,null,null,null,null,null,null,null,null,null,null,178,17027.416495635407,0.73779050352268283,21322.331922401361,1.1834130250682577]
[null,null,null,null,null,null,null,null,null,null,null,null,null,null,null,null,null,null,null,null,null,null,null,null,null,null,null,null,null,null,null,null,null,null,null,null,null,null,null,null,null,null,null,null,null,null,null,null,null,null,null,null,179,14991.802822269898,0.63912294453696095,21177.01321523904,0.29135883255137118]
[null,null,null,null,null,null,null,null,null,null,null,null,null,null,null,null,null,null,null,null,null,null,null,null,null,null,null,null,null,null,null,null,null,null,null,null,null,null,null,null,null,null,null,null,null,null,null,null,null,null,null,null,180,17262.445945874257,1.2366553198154873,20972.876776957703,1.5860180660079599]
[null,null,null,null,null,null,null,null,null,null,null,null,null,null,null,null,null,null,null,null,null,null,null,null,null,null,null,null,null,null,null,null,null,null,null,null,null,null,null,null,null,null,null,null,null,null,null,null,null,null,null,null,181,14536.267266605626,1.1491073678022223,20789.303335073651,0.96781238790748059]
[null,null,null,null,null,null,null,null,null,null,null,null,null,null,null,null,null,null,null,null,null,null,null,null,null,null,null,null,null,null,null,null,null,null,null,null,null,null,null,null,null,null,null,null,null,null,null,null,null,null,null,null,182,18330.509695445926,0.76776356058740081,21925.365030110413,1.1085417783614537]
[null,null,null,null,null,null,null,null,null,null,null,null,null,null,null,null,null,null,null,null,null,null,null,null,null,null,null,null,null,null,null,null,null,null,null,null,null,null,null,null,null,null,null,null,null,null,null,null,null,null,null,null,183,13244.907197356948,2.1073204350880079,19982.341966259286,1.9557757376376701]
[null,null,null,null,null,null,null,null,null,null,null,null,null,null,null,null,null,null,null,null,null,null,null,null,null,null,null,null,null,null,null,null,null,null,null,null,null,null,null,null,null,null,null,null,null,null,null,null,null,null,null,null,184,18420.574335911086,5.7448545960285702E-2,21498.056328800056,0.71201507293190303]
[null,null,null,null,null,null,null,null,null,null,null,null,null,null,null,null,null,null,null,null,null,null,null,null,null,null,null,null,null,null,null,null,null,null,null,null,null,null,null,null,null,null,null,null,null,null,null,null,null,null,null,null,185,14886.64379689562,0.70996260767924724,21979.077724911287,0.39091357263674875]
[null,null,null,null,null,null,null,null,null,null,null,null,null,null,null,null,null,null,null,null,null,null,null,null,null,null,null,null,null,null,null,null,null,null,null,null,null,null,null,null,null,null,null,null,null,null,null,null,null,null,null,null,186,17223.872380818291,0.30223499648502761,21451.545495190097,0.71146011955015953]
[null,null,null,null,null,null,null,null,null,null,null,null,null,null,null,null,null,null,null,null,null,null,null,null,null,null,null,null,null,null,null,null,null,null,null,null,null,null,null,null,null,null,null,null,null,null,null,null,null,null,null,null,187,10976.276508340656,1.4996927206970043,19534.113041688113,0.21079375264535549]
[null,null,null,null,null,null,null,null,null,null,null,null,null,null,null,null,null,null,null,null,null,null,null,null,null,null,null,null,null,null,null,null,null,null,null,null,null,null,null,null,null,null,null,null,null,null,null,null,null,null,null,null,188,14670.675843317205,1.0539046639080647,21418.755875884592,0.89916494333107266]
[null,null,null,null,null,null,null,null,null,null,null,null,null,null,null,null,null,null,null,null,null,null,null,null,null,null,null,null,null,null,null,null,null,null,null,null,null,null,null,null,null,null,null,null,null,null,null,null,null,null,null,null,189,15198.208010061155,0.51783757494209437,21312.472012029779,0.4523492543036135]
[null,null,null,null,null,null,null,null,null,null,null,null,null,null,null,null,null,null,null,null,null,null,null,null,null,null,null,null,null,null,null,null,null,null,null,null,null,null,null,null,null,null,null,null,null,null,null,null,null,null,null,null,190,19982.777493905171,0.48035373110127561,21644.180728820342,1.2756103367920419]
[null,null,null,null,null,null,null,null,null,null,null,null,null,null,null,null,null,null,null,null,null,null,null,null,null,null,null,null,null,null,null,null,null,null,null,null,null,null,null,null,null,null,null,null,null,null,null,null,null,null,null,null,191,15117.981206671588,0.49998102369448139,20252.79413939402,0.63983385308203844]
[null,null,null,null,null,null,null,null,null,null,null,null,null,null,null,null,null,null,null,null,null,null,null,null,null,null,null,null,null,null,null,null,null,null,null,null,null,null,null,null,null,null,null,null,null,null,null,null,null,null,null,null,192,18135.551246816176,0.59815401741707153,21019.679658296805,0.72595226527093426]
[null,null,null,null,null,null,null,null,null,null,null,null,null,null,null,null,null,null,null,null,null,null,null,null,null,null,null,null,null,null,null,null,null,null,null,null,null,null,null,null,null,null,null,null,null,null,null,null,null,null,null,null,193,16958.442528661028,0.54530617075545207,21193.146989886503,0.81469306737385683]
[null,null,null,null,null,null,null,null,null,null,null,null,null,null,null,null,null,null,null,null,null,null,null,null,null,null,null,null,null,null,null,null,null,null,null,null,null,null,null,null,null,null,null,null,null,null,null,null,null,null,null,null,194,13540.679031964644,0.47820795660675786,20211.337187668731,0.20669385525026218]
[null,null,null,null,null,null,null,null,null,null,null,null,null,null,null,null,null,null,null,null,null,null,null,null,null,null,null,null,null,null,null,null,null,null,null,null,null,null,null,null,null,null,null,null,null,null,null,null,null,null,null,null,{"$f":"1+BA202","v":195},11612.331620980114,1.5611414437297766,20936.380570924637,0.71650970516794521]
[null,null,null,null,null,null,null,null,null,null,null,null,null,null,null,null,null,null,null,null,null,null,null,null,null,null,null,null,null,null,null,null,null,null,null,null,null,null,null,null,null,null,null,null,null,null,null,null,null,null,null,null,196,13889.134043379654,1.5056436264930226,21388.348730016296,1.0204437681748431]
[null,null,null,null,null,null,null,null,null,null,null,null,null,null,null,null,null,null,null,null,null,null,null,null,null,null,null,null,null,null,null,null,null,null,null,null,null,null,null,null,null,null,null,null,null,null,null,null,null,null,null,null,197,18058.365269572838,-0.5629435331460706,21738.708624908322,-0.20563930523204266]
[null,null,null,null,null,null,null,null,null,null,null,null,null,null,null,null,null,null,null,null,null,null,null,null,null,null,null,null,null,null,null,null,null,null,null,null,null,null,null,null,null,null,null,null,null,null,null,null,null,null,null,null,198,14040.244344906016,0.89744335193425584,22325.659819121931,0.39226141096992073]
[null,null,null,null,null,null,null,null,null,null,null,null,null,null,null,null,null,null,null,null,null,null,null,null,null,null,null,null,null,null,null,null,null,null,null,null,null,null,null,null,null,null,null,null,null,null,null,null,null,null,null,null,199,12726.923962093148,1.432298360049532,20729.622345306823,0.97866635775871325]
[null,null,null,null,null,null,null,null,null,null,null,null,null,null,null,null,null,null,null,null,null,null,null,null,null,null,null,null,null,null,null,null,null,null,null,null,null,null,null,null,null,null,null,null,null,null,null,null,null,null,null,null,200,16182.61101529569,0.89692579107413384,21003.332703569387,0.97219643353057539]
[null,null,null,null,null,null,null,null,null,null,null,null,null,null,null,null,null,null,null,null,null,null,null,null,null,null,null,null,null,null,null,null,null,null,null,null,null,null,null,null,null,null,null,null,null,null,null,null,null,null,null,null,201,15633.740255625298,0.7740167544296781,21825.620060292422,0.58089282234669526]
[null,null,null,null,null,null,null,null,null,null,null,null,null,null,null,null,null,null,null,null,null,null,null,null,null,null,null,null,null,null,null,null,null,null,null,null,null,null,null,null,null,null,null,null,null,null,null,null,null,null,null,null,202,13388.396355067205,1.5548752768406513,20964.548731599927,1.2844164647026048]
[null,null,null,null,null,null,null,null,null,null,null,null,null,null,null,null,null,null,null,null,null,null,null,null,null,null,null,null,null,null,null,null,null,null,null,null,null,null,null,null,null,null,null,null,null,null,null,null,null,null,null,null,203,15134.773069688013,1.01708403657969,21275.374415076665,0.7552115571863588]
[null,null,null,null,null,null,null,null,null,null,null,null,null,null,null,null,null,null,null,null,null,null,null,null,null,null,null,null,null,null,null,null,null,null,null,null,null,null,null,null,null,null,null,null,null,null,null,null,null,null,null,null,204,15196.94114880258,1.4373038985429201,20664.629775450157,1.3335944525319154]
[null,null,null,null,null,null,null,null,null,null,null,null,null,null,null,null,null,null,null,null,null,null,null,null,null,null,null,null,null,null,null,null,null,null,null,null,null,null,null,null,null,null,null,null,null,null,null,null,null,null,null,null,205,16601.583956087681,-0.53435238508504868,21587.593736737057,-0.14469463516446046]
[null,null,null,null,null,null,null,null,null,null,null,null,null,null,null,null,null,null,null,null,null,null,null,null,null,null,null,null,null,null,null,null,null,null,null,null,null,null,null,null,null,null,null,null,null,null,null,null,null,null,null,null,206,12446.548445414828,0.56107061378828593,19310.756002735565,0.4377515427578248]
[null,null,null,null,null,null,null,null,null,null,null,null,null,null,null,null,null,null,null,null,null,null,null,null,null,null,null,null,null,null,null,null,null,null,null,null,null,null,null,null,null,null,null,null,null,null,null,null,null,null,null,null,207,14305.782848012375,0.86997815265040335,21479.184462496589,0.7321554887500441]
[null,null,null,null,null,null,null,null,null,null,null,null,null,null,null,null,null,null,null,null,null,null,null,null,null,null,null,null,null,null,null,null,null,null,null,null,null,null,null,null,null,null,null,null,null,null,null,null,null,null,null,null,208,18089.560416311731,0.62133904630406556,21213.953166884767,1.3030228730165689]
[null,null,null,null,null,null,null,null,null,null,null,null,null,null,null,null,null,null,null,null,null,null,null,null,null,null,null,null,null,null,null,null,null,null,null,null,null,null,null,null,null,null,null,null,null,null,null,null,null,null,null,null,209,13368.454642206701,1.9513424841414755,20760.13087629131,1.4760237921540327]
[null,null,null,null,null,null,null,null,null,null,null,null,null,null,null,null,null,null,null,null,null,null,null,null,null,null,null,null,null,null,null,null,null,null,null,null,null,null,null,null,null,null,null,null,null,null,null,null,null,null,null,null,210,12064.390872846467,2.2382202213564053,21369.935849858826,1.6151689980936887]
[null,null,null,null,null,null,null,null,null,null,null,null,null,null,null,null,null,null,null,null,null,null,null,null,null,null,null,null,null,null,null,null,null,null,null,null,null,null,null,null,null,null,null,null,null,null,null,null,null,null,null,null,211,17600.938931881883,0.7618695881423132,21165.020368994003,1.0321882917783685]
[null,null,null,null,null,null,null,null,null,null,null,null,null,null,null,null,null,null,null,null,null,null,null,null,null,null,null,null,null,null,null,null,null,null,null,null,null,null,null,null,null,null,null,null,null,null,null,null,null,null,null,null,212,17587.640723580582,0.26845941415501684,20756.711775392323,0.69926478147949289]
[null,null,null,null,null,null,null,null,null,null,null,null,null,null,null,null,null,null,null,null,null,null,null,null,null,null,null,null,null,null,null,null,null,null,null,null,null,null,null,null,null,null,null,null,null,null,null,null,null,null,null,null,213,12871.993770184798,0.94650918887049462,20509.021728389729,0.61600428740933921]
[null,null,null,null,null,null,null,null,null,null,null,null,null,null,null,null,null,null,null,null,null,null,null,null,null,null,null,null,null,null,null,null,null,null,null,null,null,null,null,null,null,null,null,null,null,null,null,null,null,null,null,null,214,13714.692953885691,0.32519626987204231,21464.415405733351,0.55820739884486115]
[null,null,null,null,null,null,null,null,null,null,null,null,null,null,null,null,null,null,null,null,null,null,null,null,null,null,null,null,null,null,null,null,null,null,null,null,null,null,null,null,null,null,null,null,null,null,null,null,null,null,null,null,215,13989.622045861739,1.0248074206210993,21414.852759739559,0.54958425641832398]
[null,null,null,null,null,null,null,null,null,null,null,null,null,null,null,null,null,null,null,null,null,null,null,null,null,null,null,null,null,null,null,null,null,null,null,null,null,null,null,null,null,null,null,null,null,null,null,null,null,null,null,null,216,15617.894288271953,0.53996361044054952,21283.990369682564,0.47037442543223784]
[null,null,null,null,null,null,null,null,null,null,null,null,null,null,null,null,null,null,null,null,null,null,null,null,null,null,null,null,null,null,null,null,null,null,null,null,null,null,null,null,null,null,null,null,null,null,null,null,null,null,null,null,217,18278.131143473627,0.70736482340457663,21967.688581821225,1.1647869013625933]
[null,null,null,null,null,null,null,null,null,null,null,null,null,null,null,null,null,null,null,null,null,null,null,null,null,null,null,null,null,null,null,null,null,null,null,null,null,null,null,null,null,null,null,null,null,null,null,null,null,null,null,null,218,14980.040700517306,0.47878505815322681,20309.688259998387,0.80164109401793315]
[null,null,null,null,null,null,null,null,null,null,null,null,null,null,null,null,null,null,null,null,null,null,null,null,null,null,null,null,null,null,null,null,null,null,null,null,null,null,null,null,null,null,null,null,null,null,null,null,null,null,null,null,219,16381.714514935886,0.56226409357886331,21251.129877276042,0.98425851653951812]
[null,null,null,null,null,null,null,null,null,null,null,null,null,null,null,null,null,null,null,null,null,null,null,null,null,null,null,null,null,null,null,null,null,null,null,null,null,null,null,null,null,null,null,null,null,null,null,null,null,null,null,null,220,17422.487009236436,0.46377548569180022,20316.852244430087,0.78476497373513576]
[null,null,null,null,null,null,null,null,null,null,null,null,null,null,null,null,null,null,null,null,null,null,null,null,null,null,null,null,null,null,null,null,null,null,null,null,null,null,null,null,null,null,null,null,null,null,null,null,null,null,null,null,221,14511.797004103279,0.50904078413494891,21332.426761353861,0.32845499782624987]
[null,null,null,null,null,null,null,null,null,null,null,null,null,null,null,null,null,null,null,null,null,null,null,null,null,null,null,null,null,null,null,null,null,null,null,null,null,null,null,null,null,null,null,null,null,null,null,null,null,null,null,null,222,15499.926069332339,0.73294776797840833,20401.423225428211,1.255946296781407]
[null,null,null,null,null,null,null,null,null,null,null,null,null,null,null,null,null,null,null,null,null,null,null,null,null,null,null,null,null,null,null,null,null,null,null,null,null,null,null,null,null,null,null,null,null,null,null,null,null,null,null,null,223,16423.948490901781,0.42123055522638914,20571.691201247631,0.54059795104091179]
[null,null,null,null,null,null,null,null,null,null,null,null,null,null,null,null,null,null,null,null,null,null,null,null,null,null,null,null,null,null,null,null,null,null,null,null,null,null,null,null,null,null,null,null,null,null,null,null,null,null,null,null,224,16116.360456577597,1.1898958281434673,20994.606540987355,1.2806830785041234]
[null,null,null,null,null,null,null,null,null,null,null,null,null,null,null,null,null,null,null,null,null,null,null,null,null,null,null,null,null,null,null,null,null,null,null,null,null,null,null,null,null,null,null,null,null,null,null,null,null,null,null,null,225,16132.656767848435,1.2074255498747934,21893.214794283856,1.3938343348996167]
[null,null,null,null,null,null,null,null,null,null,null,null,null,null,null,null,null,null,null,null,null,null,null,null,null,null,null,null,null,null,null,null,null,null,null,null,null,null,null,null,null,null,null,null,null,null,null,null,null,null,null,null,226,17323.277201099398,0.28784695965146478,20494.525038965228,0.5983454086756349]
[null,null,null,null,null,null,null,null,null,null,null,null,null,null,null,null,null,null,null,null,null,null,null,null,null,null,null,null,null,null,null,null,null,null,null,null,null,null,null,null,null,null,null,null,null,null,null,null,null,null,null,null,227,14827.651880016716,1.3587267341593185,19826.577656776812,1.1852423255021476]
[null,null,null,null,null,null,null,null,null,null,null,null,null,null,null,null,null,null,null,null,null,null,null,null,null,null,null,null,null,null,null,null,null,null,null,null,null,null,null,null,null,null,null,null,null,null,null,null,null,null,null,null,228,15877.285451918946,0.94726450823778796,21209.035943422201,0.86008938315735162]
[null,null,null,null,null,null,null,null,null,null,null,null,null,null,null,null,null,null,null,null,null,null,null,null,null,null,null,null,null,null,null,null,null,null,null,null,null,null,null,null,null,null,null,null,null,null,null,null,null,null,null,null,229,17206.965130894587,-0.18570599271874111,21757.053752716423,0.31249115441176978]
[null,null,null,null,null,null,null,null,null,null,null,null,null,null,null,null,null,null,null,null,null,null,null,null,null,null,null,null,null,null,null,null,null,null,null,null,null,null,null,null,null,null,null,null,null,null,null,null,null,null,null,null,230,15173.379497266184,1.6822240871178313,21246.897124686569,1.491604076722453]
[null,null,null,null,null,null,null,null,null,null,null,null,null,null,null,null,null,null,null,null,null,null,null,null,null,null,null,null,null,null,null,null,null,null,null,null,null,null,null,null,null,null,null,null,null,null,null,null,null,null,null,null,231,17981.570904609012,0.14918941823756648,21929.357710626366,0.85509687427014236]
[null,null,null,null,null,null,null,null,null,null,null,null,null,null,null,null,null,null,null,null,null,null,null,null,null,null,null,null,null,null,null,null,null,null,null,null,null,null,null,null,null,null,null,null,null,null,null,null,null,null,null,null,232,16135.290515969642,0.56499714430415382,21337.456048080679,0.55642695208136084]
[null,null,null,null,null,null,null,null,null,null,null,null,null,null,null,null,null,null,null,null,null,null,null,null,null,null,null,null,null,null,null,null,null,null,null,null,null,null,null,null,null,null,null,null,null,null,null,null,null,null,null,null,233,15045.807069805824,1.6437077359481487,21053.388178579386,1.1106956360826103]
[null,null,null,null,null,null,null,null,null,null,null,null,null,null,null,null,null,null,null,null,null,null,null,null,null,null,null,null,null,null,null,null,null,null,null,null,null,null,null,null,null,null,null,null,null,null,null,null,null,null,null,null,234,12050.853367672582,1.9895050259491978,19789.963744267188,1.3710996355564538]
[null,null,null,null,null,null,null,null,null,null,null,null,null,null,null,null,null,null,null,null,null,null,null,null,null,null,null,null,null,null,null,null,null,null,null,null,null,null,null,null,null,null,null,null,null,null,null,null,null,null,null,null,235,17592.369637961216,1.9242644798967412,21125.473896990618,2.2773089762649787]
[null,null,null,null,null,null,null,null,null,null,null,null,null,null,null,null,null,null,null,null,null,null,null,null,null,null,null,null,null,null,null,null,null,null,null,null,null,null,null,null,null,null,null,null,null,null,null,null,null,null,null,null,236,13975.496596746098,1.2990602686738204,21636.946479912418,0.55847774324085719]
[null,null,null,null,null,null,null,null,null,null,null,null,null,null,null,null,null,null,null,null,null,null,null,null,null,null,null,null,null,null,null,null,null,null,null,null,null,null,null,null,null,null,null,null,null,null,null,null,null,null,null,null,237,17370.074003668436,0.66241624771867136,21153.878013905065,1.0657943902607057]
[null,null,null,null,null,null,null,null,null,null,null,null,null,null,null,null,null,null,null,null,null,null,null,null,null,null,null,null,null,null,null,null,null,null,null,null,null,null,null,null,null,null,null,null,null,null,null,null,null,null,null,null,238,16823.275064423306,2.0249582833513342,20941.299328144138,2.181205771267718]
[null,null,null,null,null,null,null,null,null,null,null,null,null,null,null,null,null,null,null,null,null,null,null,null,null,null,null,null,null,null,null,null,null,null,null,null,null,null,null,null,null,null,null,null,null,null,null,null,null,null,null,null,239,14782.772887719389,0.55394477790629293,21314.671263107717,0.24772143545530922]
[null,null,null,null,null,null,null,null,null,null,null,null,null,null,null,null,null,null,null,null,null,null,null,null,null,null,null,null,null,null,null,null,null,null,null,null,null,null,null,null,null,null,null,null,null,null,null,null,null,null,null,null,240,15931.986809368675,1.0272558781846273,22017.601980763695,1.231003929610238]
[null,null,null,null,null,null,null,null,null,null,null,null,null,null,null,null,null,null,null,null,null,null,null,null,null,null,null,null,null,null,null,null,null,null,null,null,null,null,null,null,null,null,null,null,null,null,null,null,null,null,null,null,241,15040.223271150042,1.4215124029450374,20694.953913028978,1.2185956262003335]
[null,null,null,null,null,null,null,null,null,null,null,null,null,null,null,null,null,null,null,null,null,null,null,null,null,null,null,null,null,null,null,null,null,null,null,null,null,null,null,null,null,null,null,null,null,null,null,null,null,null,null,null,242,14477.304487544176,0.31485817722921627,20718.464317373884,-0.33922140073113272]
[null,null,null,null,null,null,null,null,null,null,null,null,null,null,null,null,null,null,null,null,null,null,null,null,null,null,null,null,null,null,null,null,null,null,null,null,null,null,null,null,null,null,null,null,null,null,null,null,null,null,null,null,243,16518.58226931834,1.1039330133187517,20998.274765977421,1.2213608691833513]
[null,null,null,null,null,null,null,null,null,null,null,null,null,null,null,null,null,null,null,null,null,null,null,null,null,null,null,null,null,null,null,null,null,null,null,null,null,null,null,null,null,null,null,null,null,null,null,null,null,null,null,null,244,16484.36794946,0.55857805452429177,21611.247708539791,0.74670530185349904]
[null,null,null,null,null,null,null,null,null,null,null,null,null,null,null,null,null,null,null,null,null,null,null,null,null,null,null,null,null,null,null,null,null,null,null,null,null,null,null,null,null,null,null,null,null,null,null,null,null,null,null,null,245,13644.706306190394,2.1320201125861544,21166.358526048953,1.6560301630583001]
[null,null,null,null,null,null,null,null,null,null,null,null,null,null,null,null,null,null,null,null,null,null,null,null,null,null,null,null,null,null,null,null,null,null,null,null,null,null,null,null,null,null,null,null,null,null,null,null,null,null,null,null,246,18999.186033442336,-0.50310480728794915,21652.200887223342,8.502331534301133E-2]
[null,null,null,null,null,null,null,null,null,null,null,null,null,null,null,null,null,null,null,null,null,null,null,null,null,null,null,null,null,null,null,null,null,null,null,null,null,null,null,null,null,null,null,null,null,null,null,null,null,null,null,null,247,15238.080687708683,0.69719852671741878,21119.011475537194,0.53384564059208939]
[null,null,null,null,null,null,null,null,null,null,null,null,null,null,null,null,null,null,null,null,null,null,null,null,null,null,null,null,null,null,null,null,null,null,null,null,null,null,null,null,null,null,null,null,null,null,null,null,null,null,null,null,248,14502.40928815287,1.1442873255316262,21423.864899025582,0.67356314467245892]
[null,null,null,null,null,null,null,null,null,null,null,null,null,null,null,null,null,null,null,null,null,null,null,null,null,null,null,null,null,null,null,null,null,null,null,null,null,null,null,null,null,null,null,null,null,null,null,null,null,null,null,null,249,17084.575457842409,1.5172991671266514,20985.269110384572,1.7309500168669945]
[null,null,null,null,null,null,null,null,null,null,null,null,null,null,null,null,null,null,null,null,null,null,null,null,null,null,null,null,null,null,null,null,null,null,null,null,null,null,null,null,null,null,null,null,null,null,null,null,null,null,null,null,250,15882.565466864891,1.1106058795349718,20611.394869011296,1.179218202614464]
[null,null,null,null,null,null,null,null,null,null,null,null,null,null,null,null,null,null,null,null,null,null,null,null,null,null,null,null,null,null,null,null,null,null,null,null,null,null,null,null,null,null,null,null,null,null,null,null,null,null,null,null,251,17074.676185646025,0.45544716507406224,20395.256819247064,0.84909751578297532]
[null,null,null,null,null,null,null,null,null,null,null,null,null,null,null,null,null,null,null,null,null,null,null,null,null,null,null,null,null,null,null,null,null,null,null,null,null,null,null,null,null,null,null,null,null,null,null,null,null,null,null,null,252,17006.469156560641,0.62609551189346946,21758.899323560661,0.89419208658703897]
[null,null,null,null,null,null,null,null,null,null,null,null,null,null,null,null,null,null,null,null,null,null,null,null,null,null,null,null,null,null,null,null,null,null,null,null,null,null,null,null,null,null,null,null,null,null,null,null,null,null,null,null,253,15422.241027294163,1.28703993868913,21080.090455717444,0.91338952579495303]
[null,null,null,null,null,null,null,null,null,null,null,null,null,null,null,null,null,null,null,null,null,null,null,null,null,null,null,null,null,null,null,null,null,null,null,null,null,null,null,null,null,null,null,null,null,null,null,null,null,null,null,null,254,16189.204176015248,0.90478856837633159,20667.328612288467,1.2656361085888419]
[null,null,null,null,null,null,null,null,null,null,null,null,null,null,null,null,null,null,null,null,null,null,null,null,null,null,null,null,null,null,null,null,null,null,null,null,null,null,null,null,null,null,null,null,null,null,null,null,null,null,null,null,255,16787.882303145449,1.0534902908836752,20776.64431248722,1.1869164366731679]
[null,null,null,null,null,null,null,null,null,null,null,null,null,null,null,null,null,null,null,null,null,null,null,null,null,null,null,null,null,null,null,null,null,null,null,null,null,null,null,null,null,null,null,null,null,null,null,null,null,null,null,null,256,17557.027031686877,9.9568244845144815E-2,22103.944791339651,0.44771134218800823]
[null,null,null,null,null,null,null,null,null,null,null,null,null,null,null,null,null,null,null,null,null,null,null,null,null,null,null,null,null,null,null,null,null,null,null,null,null,null,null,null,null,null,null,null,null,null,null,null,null,null,null,null,257,16377.493709639495,1.8253639249376523,21382.165894137754,1.8999075727971115]
[null,null,null,null,null,null,null,null,null,null,null,null,null,null,null,null,null,null,null,null,null,null,null,null,null,null,null,null,null,null,null,null,null,null,null,null,null,null,null,null,null,null,null,null,null,null,null,null,null,null,null,null,258,17657.441316656641,-0.14005760557932245,20665.430788066878,0.45758150193327796]
[null,null,null,null,null,null,null,null,null,null,null,null,null,null,null,null,null,null,null,null,null,null,null,null,null,null,null,null,null,null,null,null,null,null,null,null,null,null,null,null,null,null,null,null,null,null,null,null,null,null,null,null,{"$f":"1+BA266","v":259},17111.936384247347,3.0338300944340646E-2,21469.209706001042,0.34621447386233939]
[null,null,null,null,null,null,null,null,null,null,null,null,null,null,null,null,null,null,null,null,null,null,null,null,null,null,null,null,null,null,null,null,null,null,null,null,null,null,null,null,null,null,null,null,null,null,null,null,null,null,null,null,260,15722.655439412609,0.66623498411378024,21263.122925128846,0.86052111755689409]
[null,null,null,null,null,null,null,null,null,null,null,null,null,null,null,null,null,null,null,null,null,null,null,null,null,null,null,null,null,null,null,null,null,null,null,null,null,null,null,null,null,null,null,null,null,null,null,null,null,null,null,null,261,14247.227730406197,0.61383850397158102,20890.348090100033,0.58310520958372092]
[null,null,null,null,null,null,null,null,null,null,null,null,null,null,null,null,null,null,null,null,null,null,null,null,null,null,null,null,null,null,null,null,null,null,null,null,null,null,null,null,null,null,null,null,null,null,null,null,null,null,null,null,262,17229.757655321431,1.2548492720484981,20757.258415238881,1.5871399801276671]
[null,null,null,null,null,null,null,null,null,null,null,null,null,null,null,null,null,null,null,null,null,null,null,null,null,null,null,null,null,null,null,null,null,null,null,null,null,null,null,null,null,null,null,null,null,null,null,null,null,null,null,null,263,16855.22618347569,0.5178922333292052,21107.51329195049,1.0215020162130501]
[null,null,null,null,null,null,null,null,null,null,null,null,null,null,null,null,null,null,null,null,null,null,null,null,null,null,null,null,null,null,null,null,null,null,null,null,null,null,null,null,null,null,null,null,null,null,null,null,null,null,null,null,264,16428.102289370167,0.32635377293236872,21540.914050563726,0.91897808113118473]
[null,null,null,null,null,null,null,null,null,null,null,null,null,null,null,null,null,null,null,null,null,null,null,null,null,null,null,null,null,null,null,null,null,null,null,null,null,null,null,null,null,null,null,null,null,null,null,null,null,null,null,null,265,14732.126036852755,0.70387736468355921,21387.736992492675,0.82635873864541065]
[null,null,null,null,null,null,null,null,null,null,null,null,null,null,null,null,null,null,null,null,null,null,null,null,null,null,null,null,null,null,null,null,null,null,null,null,null,null,null,null,null,null,null,null,null,null,null,null,null,null,null,null,266,12529.888168656002,1.8381487020113723,21338.266956428524,1.051877296042204]
[null,null,null,null,null,null,null,null,null,null,null,null,null,null,null,null,null,null,null,null,null,null,null,null,null,null,null,null,null,null,null,null,null,null,null,null,null,null,null,null,null,null,null,null,null,null,null,null,null,null,null,null,267,14096.678834603554,0.43163487231203623,19604.119197580432,1.0238983272477855]
[null,null,null,null,null,null,null,null,null,null,null,null,null,null,null,null,null,null,null,null,null,null,null,null,null,null,null,null,null,null,null,null,null,null,null,null,null,null,null,null,null,null,null,null,null,null,null,null,null,null,null,null,268,16522.447169287687,1.1550845639772662,21185.767674704279,1.4085725352158924]
[null,null,null,null,null,null,null,null,null,null,null,null,null,null,null,null,null,null,null,null,null,null,null,null,null,null,null,null,null,null,null,null,null,null,null,null,null,null,null,null,null,null,null,null,null,null,null,null,null,null,null,null,269,17146.270277738073,0.35733753287369896,21409.088766729736,0.55074107712435727]
[null,null,null,null,null,null,null,null,null,null,null,null,null,null,null,null,null,null,null,null,null,null,null,null,null,null,null,null,null,null,null,null,null,null,null,null,null,null,null,null,null,null,null,null,null,null,null,null,null,null,null,null,270,17472.356646514101,-0.2190812981098389,21414.836300409272,0.11794525026043723]
[null,null,null,null,null,null,null,null,null,null,null,null,null,null,null,null,null,null,null,null,null,null,null,null,null,null,null,null,null,null,null,null,null,null,null,null,null,null,null,null,null,null,null,null,null,null,null,null,null,null,null,null,271,17559.930085179454,0.69189725843472927,21919.80777738992,0.69810056520652219]
[null,null,null,null,null,null,null,null,null,null,null,null,null,null,null,null,null,null,null,null,null,null,null,null,null,null,null,null,null,null,null,null,null,null,null,null,null,null,null,null,null,null,null,null,null,null,null,null,null,null,null,null,272,17445.930014928763,1.3260068809409329,21569.74844034225,1.7667447223586241]
[null,null,null,null,null,null,null,null,null,null,null,null,null,null,null,null,null,null,null,null,null,null,null,null,null,null,null,null,null,null,null,null,null,null,null,null,null,null,null,null,null,null,null,null,null,null,null,null,null,null,null,null,273,16356.069897229292,2.3608795611136379E-2,21570.52317766242,0.52053582890340289]
[null,null,null,null,null,null,null,null,null,null,null,null,null,null,null,null,null,null,null,null,null,null,null,null,null,null,null,null,null,null,null,null,null,null,null,null,null,null,null,null,null,null,null,null,null,null,null,null,null,null,null,null,274,14521.598568535705,1.9505162548986417,21820.854975898241,1.5413193542367229]
[null,null,null,null,null,null,null,null,null,null,null,null,null,null,null,null,null,null,null,null,null,null,null,null,null,null,null,null,null,null,null,null,null,null,null,null,null,null,null,null,null,null,null,null,null,null,null,null,null,null,null,null,275,14015.205389521539,1.4264358252063376,21043.043148500641,1.0386847000242503]
[null,null,null,null,null,null,null,null,null,null,null,null,null,null,null,null,null,null,null,null,null,null,null,null,null,null,null,null,null,null,null,null,null,null,null,null,null,null,null,null,null,null,null,null,null,null,null,null,null,null,null,null,276,18015.940171766848,1.2316444827944377,21438.753495182002,1.5495015890259571]
[null,null,null,null,null,null,null,null,null,null,null,null,null,null,null,null,null,null,null,null,null,null,null,null,null,null,null,null,null,null,null,null,null,null,null,null,null,null,null,null,null,null,null,null,null,null,null,null,null,null,null,null,277,14522.37542035618,0.38808719018170634,20587.850799301021,6.3389221448993949E-2]
[null,null,null,null,null,null,null,null,null,null,null,null,null,null,null,null,null,null,null,null,null,null,null,null,null,null,null,null,null,null,null,null,null,null,null,null,null,null,null,null,null,null,null,null,null,null,null,null,null,null,null,null,278,14131.891247562246,1.0570389598919698,19849.219663097298,1.1832814690028803]
[null,null,null,null,null,null,null,null,null,null,null,null,null,null,null,null,null,null,null,null,null,null,null,null,null,null,null,null,null,null,null,null,null,null,null,null,null,null,null,null,null,null,null,null,null,null,null,null,null,null,null,null,279,13932.07012737872,1.8386893561155007,21550.47207088739,1.652879985019027]
[null,null,null,null,null,null,null,null,null,null,null,null,null,null,null,null,null,null,null,null,null,null,null,null,null,null,null,null,null,null,null,null,null,null,null,null,null,null,null,null,null,null,null,null,null,null,null,null,null,null,null,null,280,14635.47819378756,1.0830503674124519,21216.279242660024,1.0554072409521527]
[null,null,null,null,null,null,null,null,null,null,null,null,null,null,null,null,null,null,null,null,null,null,null,null,null,null,null,null,null,null,null,null,null,null,null,null,null,null,null,null,null,null,null,null,null,null,null,null,null,null,null,null,281,14788.682907296681,0.33673600432403483,20543.58925441988,0.38531367551659734]
[null,null,null,null,null,null,null,null,null,null,null,null,null,null,null,null,null,null,null,null,null,null,null,null,null,null,null,null,null,null,null,null,null,null,null,null,null,null,null,null,null,null,null,null,null,null,null,null,null,null,null,null,282,18395.182575165105,0.3819127300548561,21306.057634460984,1.1105487037680248]
[null,null,null,null,null,null,null,null,null,null,null,null,null,null,null,null,null,null,null,null,null,null,null,null,null,null,null,null,null,null,null,null,null,null,null,null,null,null,null,null,null,null,null,null,null,null,null,null,null,null,null,null,283,17287.95095619779,0.27842512394520452,20997.514211347683,0.97161284951249627]
[null,null,null,null,null,null,null,null,null,null,null,null,null,null,null,null,null,null,null,null,null,null,null,null,null,null,null,null,null,null,null,null,null,null,null,null,null,null,null,null,null,null,null,null,null,null,null,null,null,null,null,null,284,18727.606687519201,-6.8127173176683598E-2,21757.930429301057,0.58396497277631465]
[null,null,null,null,null,null,null,null,null,null,null,null,null,null,null,null,null,null,null,null,null,null,null,null,null,null,null,null,null,null,null,null,null,null,null,null,null,null,null,null,null,null,null,null,null,null,null,null,null,null,null,null,285,17409.921553147411,0.56190700166362451,21531.769967942244,0.83914115952152546]
[null,null,null,null,null,null,null,null,null,null,null,null,null,null,null,null,null,null,null,null,null,null,null,null,null,null,null,null,null,null,null,null,null,null,null,null,null,null,null,null,null,null,null,null,null,null,null,null,null,null,null,null,286,15202.561712974817,0.34671971189272632,20850.484052918306,0.47096415776257394]
[null,null,null,null,null,null,null,null,null,null,null,null,null,null,null,null,null,null,null,null,null,null,null,null,null,null,null,null,null,null,null,null,null,null,null,null,null,null,null,null,null,null,null,null,null,null,null,null,null,null,null,null,287,14451.664678036857,0.52813149999577813,21234.107383396244,0.61379452276509716]
[null,null,null,null,null,null,null,null,null,null,null,null,null,null,null,null,null,null,null,null,null,null,null,null,null,null,null,null,null,null,null,null,null,null,null,null,null,null,null,null,null,null,null,null,null,null,null,null,null,null,null,null,288,12898.798595819135,1.3532026629700169,19252.930408097902,1.0211770819547998]
[null,null,null,null,null,null,null,null,null,null,null,null,null,null,null,null,null,null,null,null,null,null,null,null,null,null,null,null,null,null,null,null,null,null,null,null,null,null,null,null,null,null,null,null,null,null,null,null,null,null,null,null,289,17805.827398634228,-0.13665711797318764,19979.4530105954,0.63015874196059585]
[null,null,null,null,null,null,null,null,null,null,null,null,null,null,null,null,null,null,null,null,null,null,null,null,null,null,null,null,null,null,null,null,null,null,null,null,null,null,null,null,null,null,null,null,null,null,null,null,null,null,null,null,290,16159.941153171685,1.0303910558408274,20920.843048521056,1.2179267181101017]
[null,null,null,null,null,null,null,null,null,null,null,null,null,null,null,null,null,null,null,null,null,null,null,null,null,null,null,null,null,null,null,null,null,null,null,null,null,null,null,null,null,null,null,null,null,null,null,null,null,null,null,null,291,17198.563464703693,-6.1677074623394113E-3,21273.166302805872,0.43317222447690107]
[null,null,null,null,null,null,null,null,null,null,null,null,null,null,null,null,null,null,null,null,null,null,null,null,null,null,null,null,null,null,null,null,null,null,null,null,null,null,null,null,null,null,null,null,null,null,null,null,null,null,null,null,292,15297.475105752121,0.52220521026821487,21194.695126181534,0.55527632463174603]
[null,null,null,null,null,null,null,null,null,null,null,null,null,null,null,null,null,null,null,null,null,null,null,null,null,null,null,null,null,null,null,null,null,null,null,null,null,null,null,null,null,null,null,null,null,null,null,null,null,null,null,null,293,18928.962041880219,0.5342385143583096,21027.478143396664,1.1093072194438567]
[null,null,null,null,null,null,null,null,null,null,null,null,null,null,null,null,null,null,null,null,null,null,null,null,null,null,null,null,null,null,null,null,null,null,null,null,null,null,null,null,null,null,null,null,null,null,null,null,null,null,null,null,294,14086.40661073804,0.71369619281646768,21996.313508364845,0.17603304821371424]
[null,null,null,null,null,null,null,null,null,null,null,null,null,null,null,null,null,null,null,null,null,null,null,null,null,null,null,null,null,null,null,null,null,null,null,null,null,null,null,null,null,null,null,null,null,null,null,null,null,null,null,null,295,18641.239686537006,0.62200278319652402,22080.740856081407,0.97961355943634354]
[null,null,null,null,null,null,null,null,null,null,null,null,null,null,null,null,null,null,null,null,null,null,null,null,null,null,null,null,null,null,null,null,null,null,null,null,null,null,null,null,null,null,null,null,null,null,null,null,null,null,null,null,296,18955.512233885307,0.72049812242920253,21280.151910059431,1.0953372766436478]
[null,null,null,null,null,null,null,null,null,null,null,null,null,null,null,null,null,null,null,null,null,null,null,null,null,null,null,null,null,null,null,null,null,null,null,null,null,null,null,null,null,null,null,null,null,null,null,null,null,null,null,null,297,16113.633443060506,0.29380621850867328,21357.930164151829,0.17164703511831514]
[null,null,null,null,null,null,null,null,null,null,null,null,null,null,null,null,null,null,null,null,null,null,null,null,null,null,null,null,null,null,null,null,null,null,null,null,null,null,null,null,null,null,null,null,null,null,null,null,null,null,null,null,298,15983.945209793786,0.13915057492109484,22005.184771767807,-0.15645988786809251]
[null,null,null,null,null,null,null,null,null,null,null,null,null,null,null,null,null,null,null,null,null,null,null,null,null,null,null,null,null,null,null,null,null,null,null,null,null,null,null,null,null,null,null,null,null,null,null,null,null,null,null,null,299,13855.459587240428,1.1996366468798549,21004.745504158593,0.99237836297921267]
[null,null,null,null,null,null,null,null,null,null,null,null,null,null,null,null,null,null,null,null,null,null,null,null,null,null,null,null,null,null,null,null,null,null,null,null,null,null,null,null,null,null,null,null,null,null,null,null,null,null,null,null,300,13216.467381997176,1.2629285115033917,21856.892794548265,0.20238951125923133]
[null,null,null,null,null,null,null,null,null,null,null,null,null,null,null,null,null,null,null,null,null,null,null,null,null,null,null,null,null,null,null,null,null,null,null,null,null,null,null,null,null,null,null,null,null,null,null,null,null,null,null,null,301,16097.778232310095,-0.53967788437961239,21666.962472167885,-0.83983255090038633]
[null,null,null,null,null,null,null,null,null,null,null,null,null,null,null,null,null,null,null,null,null,null,null,null,null,null,null,null,null,null,null,null,null,null,null,null,null,null,null,null,null,null,null,null,null,null,null,null,null,null,null,null,302,15446.185620252643,0.87626809781748149,20759.465118767548,0.71898816077613414]
[null,null,null,null,null,null,null,null,null,null,null,null,null,null,null,null,null,null,null,null,null,null,null,null,null,null,null,null,null,null,null,null,null,null,null,null,null,null,null,null,null,null,null,null,null,null,null,null,null,null,null,null,303,13075.698605362382,1.8415357387143434,21436.847417871795,1.3942550339713411]
[null,null,null,null,null,null,null,null,null,null,null,null,null,null,null,null,null,null,null,null,null,null,null,null,null,null,null,null,null,null,null,null,null,null,null,null,null,null,null,null,null,null,null,null,null,null,null,null,null,null,null,null,304,16147.102500625992,1.6590762581939131,20688.329784341578,1.5286075744180492]
[null,null,null,null,null,null,null,null,null,null,null,null,null,null,null,null,null,null,null,null,null,null,null,null,null,null,null,null,null,null,null,null,null,null,null,null,null,null,null,null,null,null,null,null,null,null,null,null,null,null,null,null,305,16177.65392388804,1.0157251953234603,22025.848000292455,1.1234789280925916]
[null,null,null,null,null,null,null,null,null,null,null,null,null,null,null,null,null,null,null,null,null,null,null,null,null,null,null,null,null,null,null,null,null,null,null,null,null,null,null,null,null,null,null,null,null,null,null,null,null,null,null,null,306,18304.468875638791,0.8727184886714251,20657.74231758876,1.1904293508823174]
[null,null,null,null,null,null,null,null,null,null,null,null,null,null,null,null,null,null,null,null,null,null,null,null,null,null,null,null,null,null,null,null,null,null,null,null,null,null,null,null,null,null,null,null,null,null,null,null,null,null,null,null,307,17974.09321715029,0.3677567285165998,22118.54411761144,0.62657239194739933]
[null,null,null,null,null,null,null,null,null,null,null,null,null,null,null,null,null,null,null,null,null,null,null,null,null,null,null,null,null,null,null,null,null,null,null,null,null,null,null,null,null,null,null,null,null,null,null,null,null,null,null,null,308,15250.873013967997,1.0449551993098982,20042.535606586414,1.2002620010852632]
[null,null,null,null,null,null,null,null,null,null,null,null,null,null,null,null,null,null,null,null,null,null,null,null,null,null,null,null,null,null,null,null,null,null,null,null,null,null,null,null,null,null,null,null,null,null,null,null,null,null,null,null,309,16341.966278843032,0.36429659212510823,21631.3641438261,0.56911708588007925]
[null,null,null,null,null,null,null,null,null,null,null,null,null,null,null,null,null,null,null,null,null,null,null,null,null,null,null,null,null,null,null,null,null,null,null,null,null,null,null,null,null,null,null,null,null,null,null,null,null,null,null,null,310,12587.489181978704,1.521989820374368,20031.78829331365,1.1587840620265399]
[null,null,null,null,null,null,null,null,null,null,null,null,null,null,null,null,null,null,null,null,null,null,null,null,null,null,null,null,null,null,null,null,null,null,null,null,null,null,null,null,null,null,null,null,null,null,null,null,null,null,null,null,311,13107.72603923739,1.8773110321093971,21804.904995327419,1.5852174021678782]
[null,null,null,null,null,null,null,null,null,null,null,null,null,null,null,null,null,null,null,null,null,null,null,null,null,null,null,null,null,null,null,null,null,null,null,null,null,null,null,null,null,null,null,null,null,null,null,null,null,null,null,null,312,15129.786621007333,1.3077740731958098,20768.479849211159,1.41823366117437]
[null,null,null,null,null,null,null,null,null,null,null,null,null,null,null,null,null,null,null,null,null,null,null,null,null,null,null,null,null,null,null,null,null,null,null,null,null,null,null,null,null,null,null,null,null,null,null,null,null,null,null,null,313,19492.681454024365,1.1479405158579512,21074.180841640165,1.4612101403625988]
[null,null,null,null,null,null,null,null,null,null,null,null,null,null,null,null,null,null,null,null,null,null,null,null,null,null,null,null,null,null,null,null,null,null,null,null,null,null,null,null,null,null,null,null,null,null,null,null,null,null,null,null,314,18802.050564420751,0.27826546481004116,20854.643226335793,0.90650474778225187]
[null,null,null,null,null,null,null,null,null,null,null,null,null,null,null,null,null,null,null,null,null,null,null,null,null,null,null,null,null,null,null,null,null,null,null,null,null,null,null,null,null,null,null,null,null,null,null,null,null,null,null,null,315,18212.952580089761,0.21076775508234646,21526.675026333549,0.83617058490723517]
[null,null,null,null,null,null,null,null,null,null,null,null,null,null,null,null,null,null,null,null,null,null,null,null,null,null,null,null,null,null,null,null,null,null,null,null,null,null,null,null,null,null,null,null,null,null,null,null,null,null,null,null,316,13534.843910368712,1.7587372665741698,21396.823077811641,1.3892965547976643]
[null,null,null,null,null,null,null,null,null,null,null,null,null,null,null,null,null,null,null,null,null,null,null,null,null,null,null,null,null,null,null,null,null,null,null,null,null,null,null,null,null,null,null,null,null,null,null,null,null,null,null,null,317,17982.414712132726,0.22221122880159072,21059.398057060229,1.1857774496998794]
[null,null,null,null,null,null,null,null,null,null,null,null,null,null,null,null,null,null,null,null,null,null,null,null,null,null,null,null,null,null,null,null,null,null,null,null,null,null,null,null,null,null,null,null,null,null,null,null,null,null,null,null,318,16812.031374843667,0.75971985094736005,21147.610250275775,1.1231682607720637]
[null,null,null,null,null,null,null,null,null,null,null,null,null,null,null,null,null,null,null,null,null,null,null,null,null,null,null,null,null,null,null,null,null,null,null,null,null,null,null,null,null,null,null,null,null,null,null,null,null,null,null,null,319,16918.266177309095,0.40837440709454653,20882.598095198089,0.5757505251346644]
[null,null,null,null,null,null,null,null,null,null,null,null,null,null,null,null,null,null,null,null,null,null,null,null,null,null,null,null,null,null,null,null,null,null,null,null,null,null,null,null,null,null,null,null,null,null,null,null,null,null,null,null,320,18417.401374941404,-0.13541048268411737,21213.279332071259,0.16126874622638732]
[null,null,null,null,null,null,null,null,null,null,null,null,null,null,null,null,null,null,null,null,null,null,null,null,null,null,null,null,null,null,null,null,null,null,null,null,null,null,null,null,null,null,null,null,null,null,null,null,null,null,null,null,321,16267.588682905858,1.2579090108066149,20804.183027747458,1.6471622675355619]
[null,null,null,null,null,null,null,null,null,null,null,null,null,null,null,null,null,null,null,null,null,null,null,null,null,null,null,null,null,null,null,null,null,null,null,null,null,null,null,null,null,null,null,null,null,null,null,null,null,null,null,null,322,16875.043026695475,0.51624355511429121,21827.865184584884,0.70379229815147837]
[null,null,null,null,null,null,null,null,null,null,null,null,null,null,null,null,null,null,null,null,null,null,null,null,null,null,null,null,null,null,null,null,null,null,null,null,null,null,null,null,null,null,null,null,null,null,null,null,null,null,null,null,{"$f":"1+BA330","v":323},15045.967962605626,1.4066774849569859,20845.580815862995,1.3422554549269099]
[null,null,null,null,null,null,null,null,null,null,null,null,null,null,null,null,null,null,null,null,null,null,null,null,null,null,null,null,null,null,null,null,null,null,null,null,null,null,null,null,null,null,null,null,null,null,null,null,null,null,null,null,324,17861.698413485399,0.2007922549950637,22349.866129677372,0.73804589214590688]
[null,null,null,null,null,null,null,null,null,null,null,null,null,null,null,null,null,null,null,null,null,null,null,null,null,null,null,null,null,null,null,null,null,null,null,null,null,null,null,null,null,null,null,null,null,null,null,null,null,null,null,null,325,12810.889435034009,1.3978005124037067,21426.466644313252,0.59793487658209576]
[null,null,null,null,null,null,null,null,null,null,null,null,null,null,null,null,null,null,null,null,null,null,null,null,null,null,null,null,null,null,null,null,null,null,null,null,null,null,null,null,null,null,null,null,null,null,null,null,null,null,null,null,326,13763.361821401857,0.5327144389600148,20986.711090358622,0.55076544017624274]
[null,null,null,null,null,null,null,null,null,null,null,null,null,null,null,null,null,null,null,null,null,null,null,null,null,null,null,null,null,null,null,null,null,null,null,null,null,null,null,null,null,null,null,null,null,null,null,null,null,null,null,null,327,13150.951460417815,1.1346487494597379,20858.045698988579,0.66833448135536122]
[null,null,null,null,null,null,null,null,null,null,null,null,null,null,null,null,null,null,null,null,null,null,null,null,null,null,null,null,null,null,null,null,null,null,null,null,null,null,null,null,null,null,null,null,null,null,null,null,null,null,null,null,328,17847.953320092634,-0.89059412168007479,21525.302705798378,-1.9581052628091067E-2]
[null,null,null,null,null,null,null,null,null,null,null,null,null,null,null,null,null,null,null,null,null,null,null,null,null,null,null,null,null,null,null,null,null,null,null,null,null,null,null,null,null,null,null,null,null,null,null,null,null,null,null,null,329,19253.053488338785,9.6709591915777771E-2,21724.61281486908,0.62871697469635179]
[null,null,null,null,null,null,null,null,null,null,null,null,null,null,null,null,null,null,null,null,null,null,null,null,null,null,null,null,null,null,null,null,null,null,null,null,null,null,null,null,null,null,null,null,null,null,null,null,null,null,null,null,330,17245.811212645847,1.3567390790032152,21855.315925736213,1.5726993751245102]
[null,null,null,null,null,null,null,null,null,null,null,null,null,null,null,null,null,null,null,null,null,null,null,null,null,null,null,null,null,null,null,null,null,null,null,null,null,null,null,null,null,null,null,null,null,null,null,null,null,null,null,null,331,15615.530330799353,1.0984577437009408,21656.118859786111,0.86187864582409546]
[null,null,null,null,null,null,null,null,null,null,null,null,null,null,null,null,null,null,null,null,null,null,null,null,null,null,null,null,null,null,null,null,null,null,null,null,null,null,null,null,null,null,null,null,null,null,null,null,null,null,null,null,332,18443.735467288308,0.54790305981172149,20008.782341461159,1.0872219851984299]
[null,null,null,null,null,null,null,null,null,null,null,null,null,null,null,null,null,null,null,null,null,null,null,null,null,null,null,null,null,null,null,null,null,null,null,null,null,null,null,null,null,null,null,null,null,null,null,null,null,null,null,null,333,15576.390648768633,1.3156369220284201,20831.311933535384,1.5032534139239517]
[null,null,null,null,null,null,null,null,null,null,null,null,null,null,null,null,null,null,null,null,null,null,null,null,null,null,null,null,null,null,null,null,null,null,null,null,null,null,null,null,null,null,null,null,null,null,null,null,null,null,null,null,334,15489.387299648988,1.0610335731444405,20898.531358102951,1.2419110955545476]
[null,null,null,null,null,null,null,null,null,null,null,null,null,null,null,null,null,null,null,null,null,null,null,null,null,null,null,null,null,null,null,null,null,null,null,null,null,null,null,null,null,null,null,null,null,null,null,null,null,null,null,null,335,15940.70293877935,0.9754949607081117,20847.005077463073,0.91027734541775152]
[null,null,null,null,null,null,null,null,null,null,null,null,null,null,null,null,null,null,null,null,null,null,null,null,null,null,null,null,null,null,null,null,null,null,null,null,null,null,null,null,null,null,null,null,null,null,null,null,null,null,null,null,336,17423.958736631586,0.82850757393751273,21290.46970844068,0.93091098430408092]
[null,null,null,null,null,null,null,null,null,null,null,null,null,null,null,null,null,null,null,null,null,null,null,null,null,null,null,null,null,null,null,null,null,null,null,null,null,null,null,null,null,null,null,null,null,null,null,null,null,null,null,null,337,17896.014550640164,-0.21270680145822052,19370.906646816955,0.27189660025228146]
[null,null,null,null,null,null,null,null,null,null,null,null,null,null,null,null,null,null,null,null,null,null,null,null,null,null,null,null,null,null,null,null,null,null,null,null,null,null,null,null,null,null,null,null,null,null,null,null,null,null,null,null,338,18469.833077706906,-7.0653658178785328E-2,21200.879089480975,0.55847372727251787]
[null,null,null,null,null,null,null,null,null,null,null,null,null,null,null,null,null,null,null,null,null,null,null,null,null,null,null,null,null,null,null,null,null,null,null,null,null,null,null,null,null,null,null,null,null,null,null,null,null,null,null,null,339,16488.891860914384,1.1368465126097129,21498.778470891855,1.2422959725054077]
[null,null,null,null,null,null,null,null,null,null,null,null,null,null,null,null,null,null,null,null,null,null,null,null,null,null,null,null,null,null,null,null,null,null,null,null,null,null,null,null,null,null,null,null,null,null,null,null,null,null,null,null,340,14753.35943077923,2.4163135640270008,21241.99362219256,2.146799079259381]
[null,null,null,null,null,null,null,null,null,null,null,null,null,null,null,null,null,null,null,null,null,null,null,null,null,null,null,null,null,null,null,null,null,null,null,null,null,null,null,null,null,null,null,null,null,null,null,null,null,null,null,null,341,17594.673477988763,0.34813894984173666,20457.033044213531,0.74434354034126748]
[null,null,null,null,null,null,null,null,null,null,null,null,null,null,null,null,null,null,null,null,null,null,null,null,null,null,null,null,null,null,null,null,null,null,null,null,null,null,null,null,null,null,null,null,null,null,null,null,null,null,null,null,342,17183.010611166832,0.28613192768114237,20962.239773670975,0.81608579324785169]
[null,null,null,null,null,null,null,null,null,null,null,null,null,null,null,null,null,null,null,null,null,null,null,null,null,null,null,null,null,null,null,null,null,null,null,null,null,null,null,null,null,null,null,null,null,null,null,null,null,null,null,null,343,15393.063959679945,-0.25030829989773395,20306.302883415352,9.1056653339074645E-2]
[null,null,null,null,null,null,null,null,null,null,null,null,null,null,null,null,null,null,null,null,null,null,null,null,null,null,null,null,null,null,null,null,null,null,null,null,null,null,null,null,null,null,null,null,null,null,null,null,null,null,null,null,344,17533.083791904195,-0.15729507631878747,21514.776577054916,0.5149504071311729]
[null,null,null,null,null,null,null,null,null,null,null,null,null,null,null,null,null,null,null,null,null,null,null,null,null,null,null,null,null,null,null,null,null,null,null,null,null,null,null,null,null,null,null,null,null,null,null,null,null,null,null,null,345,16599.150101563308,-0.24616708067526805,20813.684692560724,0.1452249788831117]
[null,null,null,null,null,null,null,null,null,null,null,null,null,null,null,null,null,null,null,null,null,null,null,null,null,null,null,null,null,null,null,null,null,null,null,null,null,null,null,null,null,null,null,null,null,null,null,null,null,null,null,null,346,15380.238743144433,0.82179282658902397,20752.74007151313,0.69356731014266326]
[null,null,null,null,null,null,null,null,null,null,null,null,null,null,null,null,null,null,null,null,null,null,null,null,null,null,null,null,null,null,null,null,null,null,null,null,null,null,null,null,null,null,null,null,null,null,null,null,null,null,null,null,347,14854.871808228752,0.45654597694476562,21014.346961334908,6.4798530301802604E-2]
[null,null,null,null,null,null,null,null,null,null,null,null,null,null,null,null,null,null,null,null,null,null,null,null,null,null,null,null,null,null,null,null,null,null,null,null,null,null,null,null,null,null,null,null,null,null,null,null,null,null,null,null,348,16459.271798140609,1.3121039740122258,21301.374303771885,1.6560873575765951]
[null,null,null,null,null,null,null,null,null,null,null,null,null,null,null,null,null,null,null,null,null,null,null,null,null,null,null,null,null,null,null,null,null,null,null,null,null,null,null,null,null,null,null,null,null,null,null,null,null,null,null,null,349,17422.89429900403,0.46602226278625924,21593.03011921898,0.74739877139567901]
[null,null,null,null,null,null,null,null,null,null,null,null,null,null,null,null,null,null,null,null,null,null,null,null,null,null,null,null,null,null,null,null,null,null,null,null,null,null,null,null,null,null,null,null,null,null,null,null,null,null,null,null,350,17145.771103902109,0.36354627037591269,20947.522492480763,0.88523023257170119]
[null,null,null,null,null,null,null,null,null,null,null,null,null,null,null,null,null,null,null,null,null,null,null,null,null,null,null,null,null,null,null,null,null,null,null,null,null,null,null,null,null,null,null,null,null,null,null,null,null,null,null,null,351,16393.118630369841,0.2736224655986097,21309.870911676058,0.24506171931184118]
[null,null,null,null,null,null,null,null,null,null,null,null,null,null,null,null,null,null,null,null,null,null,null,null,null,null,null,null,null,null,null,null,null,null,null,null,null,null,null,null,null,null,null,null,null,null,null,null,null,null,null,null,352,18628.026104579862,1.4190329541734972,20474.122690586351,1.6500558514859751]
[null,null,null,null,null,null,null,null,null,null,null,null,null,null,null,null,null,null,null,null,null,null,null,null,null,null,null,null,null,null,null,null,null,null,null,null,null,null,null,null,null,null,null,null,null,null,null,null,null,null,null,null,353,17886.398175181261,-0.22849589142360571,20953.873203398831,0.17362960453000653]
[null,null,null,null,null,null,null,null,null,null,null,null,null,null,null,null,null,null,null,null,null,null,null,null,null,null,null,null,null,null,null,null,null,null,null,null,null,null,null,null,null,null,null,null,null,null,null,null,null,null,null,null,354,14172.058587759093,0.90468209862205196,22091.014512357615,0.69087488326863178]
[null,null,null,null,null,null,null,null,null,null,null,null,null,null,null,null,null,null,null,null,null,null,null,null,null,null,null,null,null,null,null,null,null,null,null,null,null,null,null,null,null,null,null,null,null,null,null,null,null,null,null,null,355,15434.698213713767,1.2670857401920319,20622.770672599578,1.286534075423478]
[null,null,null,null,null,null,null,null,null,null,null,null,null,null,null,null,null,null,null,null,null,null,null,null,null,null,null,null,null,null,null,null,null,null,null,null,null,null,null,null,null,null,null,null,null,null,null,null,null,null,null,null,356,17927.880879646258,-0.56694351208037497,21003.705141316514,0.1194868295642505]
[null,null,null,null,null,null,null,null,null,null,null,null,null,null,null,null,null,null,null,null,null,null,null,null,null,null,null,null,null,null,null,null,null,null,null,null,null,null,null,null,null,null,null,null,null,null,null,null,null,null,null,null,357,15544.750072547307,1.0129137942350392,21209.78521934247,0.85009261480743403]
[null,null,null,null,null,null,null,null,null,null,null,null,null,null,null,null,null,null,null,null,null,null,null,null,null,null,null,null,null,null,null,null,null,null,null,null,null,null,null,null,null,null,null,null,null,null,null,null,null,null,null,null,358,17652.175451811905,0.46937630725685886,20983.814712564275,1.0490396292875723]
[null,null,null,null,null,null,null,null,null,null,null,null,null,null,null,null,null,null,null,null,null,null,null,null,null,null,null,null,null,null,null,null,null,null,null,null,null,null,null,null,null,null,null,null,null,null,null,null,null,null,null,null,359,15592.226563235365,0.10205017033260011,20817.688911463432,0.29581336199483443]
[null,null,null,null,null,null,null,null,null,null,null,null,null,null,null,null,null,null,null,null,null,null,null,null,null,null,null,null,null,null,null,null,null,null,null,null,null,null,null,null,null,null,null,null,null,null,null,null,null,null,null,null,360,11429.623210433252,1.9558283468281441,21267.357729673786,1.2388740552328028]
[null,null,null,null,null,null,null,null,null,null,null,null,null,null,null,null,null,null,null,null,null,null,null,null,null,null,null,null,null,null,null,null,null,null,null,null,null,null,null,null,null,null,null,null,null,null,null,null,null,null,null,null,361,14556.718169012953,1.4906596774142724,20633.230924818781,1.498113681724546]
[null,null,null,null,null,null,null,null,null,null,null,null,null,null,null,null,null,null,null,null,null,null,null,null,null,null,null,null,null,null,null,null,null,null,null,null,null,null,null,null,null,null,null,null,null,null,null,null,null,null,null,null,362,14483.557765933456,1.047214792188168,21532.201253444171,0.63893298651743735]
[null,null,null,null,null,null,null,null,null,null,null,null,null,null,null,null,null,null,null,null,null,null,null,null,null,null,null,null,null,null,null,null,null,null,null,null,null,null,null,null,null,null,null,null,null,null,null,null,null,null,null,null,363,14396.407844753148,0.8772020029706733,20807.693250784261,1.0072868913991651]
[null,null,null,null,null,null,null,null,null,null,null,null,null,null,null,null,null,null,null,null,null,null,null,null,null,null,null,null,null,null,null,null,null,null,null,null,null,null,null,null,null,null,null,null,null,null,null,null,null,null,null,null,364,14728.340285102971,0.85422918272072978,21695.28727921797,0.54249871200143696]
[null,null,null,null,null,null,null,null,null,null,null,null,null,null,null,null,null,null,null,null,null,null,null,null,null,null,null,null,null,null,null,null,null,null,null,null,null,null,null,null,null,null,null,null,null,null,null,null,null,null,null,null,365,16013.243856724786,-0.11806817647961365,20145.14587065504,0.44102427337898287]
[null,null,null,null,null,null,null,null,null,null,null,null,null,null,null,null,null,null,null,null,null,null,null,null,null,null,null,null,null,null,null,null,null,null,null,null,null,null,null,null,null,null,null,null,null,null,null,null,null,null,null,null,366,16200.029732267467,0.2020759736786556,22183.379006425104,0.25128761288435331]
[null,null,null,null,null,null,null,null,null,null,null,null,null,null,null,null,null,null,null,null,null,null,null,null,null,null,null,null,null,null,null,null,null,null,null,null,null,null,null,null,null,null,null,null,null,null,null,null,null,null,null,null,367,17125.420774888124,0.47083944156615409,21154.477141968066,0.66180632615141866]
[null,null,null,null,null,null,null,null,null,null,null,null,null,null,null,null,null,null,null,null,null,null,null,null,null,null,null,null,null,null,null,null,null,null,null,null,null,null,null,null,null,null,null,null,null,null,null,null,null,null,null,null,368,15055.282827255483,0.3264083035509312,20533.327633362125,0.39423761628345222]
[null,null,null,null,null,null,null,null,null,null,null,null,null,null,null,null,null,null,null,null,null,null,null,null,null,null,null,null,null,null,null,null,null,null,null,null,null,null,null,null,null,null,null,null,null,null,null,null,null,null,null,null,369,16223.488299025257,1.6443080835383344,21288.526554237749,1.7600270204513824]
[null,null,null,null,null,null,null,null,null,null,null,null,null,null,null,null,null,null,null,null,null,null,null,null,null,null,null,null,null,null,null,null,null,null,null,null,null,null,null,null,null,null,null,null,null,null,null,null,null,null,null,null,370,15434.105316048639,1.2124636739844104,21357.041129183519,1.3550796034979951]
[null,null,null,null,null,null,null,null,null,null,null,null,null,null,null,null,null,null,null,null,null,null,null,null,null,null,null,null,null,null,null,null,null,null,null,null,null,null,null,null,null,null,null,null,null,null,null,null,null,null,null,null,371,14209.092374620306,1.6036175157336872,20242.934793995926,1.0725852289257307]
[null,null,null,null,null,null,null,null,null,null,null,null,null,null,null,null,null,null,null,null,null,null,null,null,null,null,null,null,null,null,null,null,null,null,null,null,null,null,null,null,null,null,null,null,null,null,null,null,null,null,null,null,372,17502.041611556622,1.107593232647651,20845.199691440059,1.3490236551233545]
[null,null,null,null,null,null,null,null,null,null,null,null,null,null,null,null,null,null,null,null,null,null,null,null,null,null,null,null,null,null,null,null,null,null,null,null,null,null,null,null,null,null,null,null,null,null,null,null,null,null,null,null,373,17374.671433564701,0.47939157912033753,21704.524923304329,0.75511875202506484]
[null,null,null,null,null,null,null,null,null,null,null,null,null,null,null,null,null,null,null,null,null,null,null,null,null,null,null,null,null,null,null,null,null,null,null,null,null,null,null,null,null,null,null,null,null,null,null,null,null,null,null,null,374,16090.114463009777,0.58448585585319712,20808.369400245003,1.0545641082066737]
[null,null,null,null,null,null,null,null,null,null,null,null,null,null,null,null,null,null,null,null,null,null,null,null,null,null,null,null,null,null,null,null,null,null,null,null,null,null,null,null,null,null,null,null,null,null,null,null,null,null,null,null,375,15470.535725599604,0.28805248651215221,20111.414172635243,0.65978872035662017]
[null,null,null,null,null,null,null,null,null,null,null,null,null,null,null,null,null,null,null,null,null,null,null,null,null,null,null,null,null,null,null,null,null,null,null,null,null,null,null,null,null,null,null,null,null,null,null,null,null,null,null,null,376,15577.035777311492,1.0039370992495109,21300.080452817772,0.87463195894643952]
[null,null,null,null,null,null,null,null,null,null,null,null,null,null,null,null,null,null,null,null,null,null,null,null,null,null,null,null,null,null,null,null,null,null,null,null,null,null,null,null,null,null,null,null,null,null,null,null,null,null,null,null,377,14360.051422424594,1.3663299922978809,21288.121962896315,1.1211070806879331]
[null,null,null,null,null,null,null,null,null,null,null,null,null,null,null,null,null,null,null,null,null,null,null,null,null,null,null,null,null,null,null,null,null,null,null,null,null,null,null,null,null,null,null,null,null,null,null,null,null,null,null,null,378,12177.62618779313,1.8175012258910452,21734.560211037649,0.97766517657653629]
[null,null,null,null,null,null,null,null,null,null,null,null,null,null,null,null,null,null,null,null,null,null,null,null,null,null,null,null,null,null,null,null,null,null,null,null,null,null,null,null,null,null,null,null,null,null,null,null,null,null,null,null,379,18066.508068077208,0.97884323245660354,21422.476818115381,1.36028037620972]
[null,null,null,null,null,null,null,null,null,null,null,null,null,null,null,null,null,null,null,null,null,null,null,null,null,null,null,null,null,null,null,null,null,null,null,null,null,null,null,null,null,null,null,null,null,null,null,null,null,null,null,null,380,18261.522393974061,0.1562531412272371,21694.730042822528,0.94493738348107292]
[null,null,null,null,null,null,null,null,null,null,null,null,null,null,null,null,null,null,null,null,null,null,null,null,null,null,null,null,null,null,null,null,null,null,null,null,null,null,null,null,null,null,null,null,null,null,null,null,null,null,null,null,381,16834.632506290116,0.19616417960758903,22467.912729373984,0.50528076298593916]
[null,null,null,null,null,null,null,null,null,null,null,null,null,null,null,null,null,null,null,null,null,null,null,null,null,null,null,null,null,null,null,null,null,null,null,null,null,null,null,null,null,null,null,null,null,null,null,null,null,null,null,null,382,15444.185136336146,1.1622313100213486,21143.201378825237,1.1101101683766879]
[null,null,null,null,null,null,null,null,null,null,null,null,null,null,null,null,null,null,null,null,null,null,null,null,null,null,null,null,null,null,null,null,null,null,null,null,null,null,null,null,null,null,null,null,null,null,null,null,null,null,null,null,383,18537.432620916396,0.30122367908394898,21039.90815395963,0.9233293607084625]
[null,null,null,null,null,null,null,null,null,null,null,null,null,null,null,null,null,null,null,null,null,null,null,null,null,null,null,null,null,null,null,null,null,null,null,null,null,null,null,null,null,null,null,null,null,null,null,null,null,null,null,null,384,15919.957016432949,1.0104611157129,21434.798885554028,1.0365751818067486]
[null,null,null,null,null,null,null,null,null,null,null,null,null,null,null,null,null,null,null,null,null,null,null,null,null,null,null,null,null,null,null,null,null,null,null,null,null,null,null,null,null,null,null,null,null,null,null,null,null,null,null,null,385,16957.141643471608,-0.59719166425986847,20817.1069982841,-0.16920393538929024]
[null,null,null,null,null,null,null,null,null,null,null,null,null,null,null,null,null,null,null,null,null,null,null,null,null,null,null,null,null,null,null,null,null,null,null,null,null,null,null,null,null,null,null,null,null,null,null,null,null,null,null,null,386,10893.693387013853,1.6036364344451952,19932.102156483805,0.63533469259261721]
[null,null,null,null,null,null,null,null,null,null,null,null,null,null,null,null,null,null,null,null,null,null,null,null,null,null,null,null,null,null,null,null,null,null,null,null,null,null,null,null,null,null,null,null,null,null,null,null,null,null,null,null,{"$f":"1+BA394","v":387},16087.33803277854,-0.15772198674510873,21503.138328453049,0.43899651541739615]
[null,null,null,null,null,null,null,null,null,null,null,null,null,null,null,null,null,null,null,null,null,null,null,null,null,null,null,null,null,null,null,null,null,null,null,null,null,null,null,null,null,null,null,null,null,null,null,null,null,null,null,null,388,17716.765584371125,0.28084687084421306,21186.814367123148,1.0834866274841457]
[null,null,null,null,null,null,null,null,null,null,null,null,null,null,null,null,null,null,null,null,null,null,null,null,null,null,null,null,null,null,null,null,null,null,null,null,null,null,null,null,null,null,null,null,null,null,null,null,null,null,null,null,389,16959.948895716505,4.5570906458587079E-2,21361.916198516272,0.22157130534934733]
[null,null,null,null,null,null,null,null,null,null,null,null,null,null,null,null,null,null,null,null,null,null,null,null,null,null,null,null,null,null,null,null,null,null,null,null,null,null,null,null,null,null,null,null,null,null,null,null,null,null,null,null,390,14054.471450908615,1.1871368220483625,21541.075028677104,0.52479989011262074]
[null,null,null,null,null,null,null,null,null,null,null,null,null,null,null,null,null,null,null,null,null,null,null,null,null,null,null,null,null,null,null,null,null,null,null,null,null,null,null,null,null,null,null,null,null,null,null,null,null,null,null,null,391,15858.031333982395,0.81362044778641518,20912.595249909406,0.99255728711233693]
[null,null,null,null,null,null,null,null,null,null,null,null,null,null,null,null,null,null,null,null,null,null,null,null,null,null,null,null,null,null,null,null,null,null,null,null,null,null,null,null,null,null,null,null,null,null,null,null,null,null,null,null,392,18411.995571033436,-2.9087257506011044E-2,21591.635359980894,0.69228680629840167]
[null,null,null,null,null,null,null,null,null,null,null,null,null,null,null,null,null,null,null,null,null,null,null,null,null,null,null,null,null,null,null,null,null,null,null,null,null,null,null,null,null,null,null,null,null,null,null,null,null,null,null,null,393,15705.235725324219,1.341845487817257,21254.806540533358,1.3291295223714814]
[null,null,null,null,null,null,null,null,null,null,null,null,null,null,null,null,null,null,null,null,null,null,null,null,null,null,null,null,null,null,null,null,null,null,null,null,null,null,null,null,null,null,null,null,null,null,null,null,null,null,null,null,394,15228.169845427914,1.1340803939811348,21021.018660975071,0.89520364493781535]
[null,null,null,null,null,null,null,null,null,null,null,null,null,null,null,null,null,null,null,null,null,null,null,null,null,null,null,null,null,null,null,null,null,null,null,null,null,null,null,null,null,null,null,null,null,null,null,null,null,null,null,null,395,17857.003262168346,1.5409353066393612,21159.525307711257,1.8495890881123933]
[null,null,null,null,null,null,null,null,null,null,null,null,null,null,null,null,null,null,null,null,null,null,null,null,null,null,null,null,null,null,null,null,null,null,null,null,null,null,null,null,null,null,null,null,null,null,null,null,null,null,null,null,396,15820.339454398227,0.63853999931442962,21612.425895434244,0.73079168276222661]
[null,null,null,null,null,null,null,null,null,null,null,null,null,null,null,null,null,null,null,null,null,null,null,null,null,null,null,null,null,null,null,null,null,null,null,null,null,null,null,null,null,null,null,null,null,null,null,null,null,null,null,null,397,15110.481961938138,1.1673917958874056,21557.885996431396,0.81860423362680101]
[null,null,null,null,null,null,null,null,null,null,null,null,null,null,null,null,null,null,null,null,null,null,null,null,null,null,null,null,null,null,null,null,null,null,null,null,null,null,null,null,null,null,null,null,null,null,null,null,null,null,null,null,398,15281.107606945996,1.6267781981180502,20576.10899835869,1.5979753749098702]
[null,null,null,null,null,null,null,null,null,null,null,null,null,null,null,null,null,null,null,null,null,null,null,null,null,null,null,null,null,null,null,null,null,null,null,null,null,null,null,null,null,null,null,null,null,null,null,null,null,null,null,null,399,13800.693859930299,1.66679922176621,20926.346320059922,1.5206509797176402]
[null,null,null,null,null,null,null,null,null,null,null,null,null,null,null,null,null,null,null,null,null,null,null,null,null,null,null,null,null,null,null,null,null,null,null,null,null,null,null,null,null,null,null,null,null,null,null,null,null,null,null,null,400,15570.529129155711,0.43973663988695588,21662.374057010304,0.38371061051942112]
[null,null,null,null,null,null,null,null,null,null,null,null,null,null,null,null,null,null,null,null,null,null,null,null,null,null,null,null,null,null,null,null,null,null,null,null,null,null,null,null,null,null,null,null,null,null,null,null,null,null,null,null,401,16072.156123904846,-0.47549646355103548,21075.889011463063,-7.9238340983069255E-2]
[null,null,null,null,null,null,null,null,null,null,null,null,null,null,null,null,null,null,null,null,null,null,null,null,null,null,null,null,null,null,null,null,null,null,null,null,null,null,null,null,null,null,null,null,null,null,null,null,null,null,null,null,402,15613.604215925039,1.2004824524970177,21867.580364746456,1.1520004909927324]
[null,null,null,null,null,null,null,null,null,null,null,null,null,null,null,null,null,null,null,null,null,null,null,null,null,null,null,null,null,null,null,null,null,null,null,null,null,null,null,null,null,null,null,null,null,null,null,null,null,null,null,null,403,15271.905434507167,0.61076511884850548,21141.300570841584,0.56592092491802948]
[null,null,null,null,null,null,null,null,null,null,null,null,null,null,null,null,null,null,null,null,null,null,null,null,null,null,null,null,null,null,null,null,null,null,null,null,null,null,null,null,null,null,null,null,null,null,null,null,null,null,null,null,404,14204.910966864009,1.7777239601617487,21858.588016021251,1.3506189918107017]
[null,null,null,null,null,null,null,null,null,null,null,null,null,null,null,null,null,null,null,null,null,null,null,null,null,null,null,null,null,null,null,null,null,null,null,null,null,null,null,null,null,null,null,null,null,null,null,null,null,null,null,null,405,15950.453041568022,0.12463565849516434,20896.326861431546,0.3541661253317836]
[null,null,null,null,null,null,null,null,null,null,null,null,null,null,null,null,null,null,null,null,null,null,null,null,null,null,null,null,null,null,null,null,null,null,null,null,null,null,null,null,null,null,null,null,null,null,null,null,null,null,null,null,406,17672.876209878399,-0.18177601619590322,20003.856534613005,0.55176711167508419]
[null,null,null,null,null,null,null,null,null,null,null,null,null,null,null,null,null,null,null,null,null,null,null,null,null,null,null,null,null,null,null,null,null,null,null,null,null,null,null,null,null,null,null,null,null,null,null,null,null,null,null,null,407,15024.768237936112,1.1959573220064728,21735.151407191566,1.0531424868555257]
[null,null,null,null,null,null,null,null,null,null,null,null,null,null,null,null,null,null,null,null,null,null,null,null,null,null,null,null,null,null,null,null,null,null,null,null,null,null,null,null,null,null,null,null,null,null,null,null,null,null,null,null,408,15735.216064876537,0.17388991696134259,21535.921586035234,0.62599110675493397]
[null,null,null,null,null,null,null,null,null,null,null,null,null,null,null,null,null,null,null,null,null,null,null,null,null,null,null,null,null,null,null,null,null,null,null,null,null,null,null,null,null,null,null,null,null,null,null,null,null,null,null,null,409,16547.637726096717,0.37603187818717165,21028.066989869723,0.86555703182527199]
[null,null,null,null,null,null,null,null,null,null,null,null,null,null,null,null,null,null,null,null,null,null,null,null,null,null,null,null,null,null,null,null,null,null,null,null,null,null,null,null,null,null,null,null,null,null,null,null,null,null,null,null,410,13150.082703099568,1.9970635593410528,20177.406504783303,1.529650667224693]
[null,null,null,null,null,null,null,null,null,null,null,null,null,null,null,null,null,null,null,null,null,null,null,null,null,null,null,null,null,null,null,null,null,null,null,null,null,null,null,null,null,null,null,null,null,null,null,null,null,null,null,null,411,13441.118091321008,0.9310167997509855,20318.466239494977,0.40963361384769936]
[null,null,null,null,null,null,null,null,null,null,null,null,null,null,null,null,null,null,null,null,null,null,null,null,null,null,null,null,null,null,null,null,null,null,null,null,null,null,null,null,null,null,null,null,null,null,null,null,null,null,null,null,412,13080.077816261311,1.1211988777134638,20570.842384833399,1.0415452829501364]
[null,null,null,null,null,null,null,null,null,null,null,null,null,null,null,null,null,null,null,null,null,null,null,null,null,null,null,null,null,null,null,null,null,null,null,null,null,null,null,null,null,null,null,null,null,null,null,null,null,null,null,null,413,18346.306596529157,-0.12963385289317486,21926.064714814442,0.43511058364826061]
[null,null,null,null,null,null,null,null,null,null,null,null,null,null,null,null,null,null,null,null,null,null,null,null,null,null,null,null,null,null,null,null,null,null,null,null,null,null,null,null,null,null,null,null,null,null,null,null,null,null,null,null,414,14328.896023419695,1.374828702255545,21152.079666100246,1.0209052127897882]
[null,null,null,null,null,null,null,null,null,null,null,null,null,null,null,null,null,null,null,null,null,null,null,null,null,null,null,null,null,null,null,null,null,null,null,null,null,null,null,null,null,null,null,null,null,null,null,null,null,null,null,null,415,16074.288707440623,0.17379233792845528,20700.047674061447,0.31244765226364035]
[null,null,null,null,null,null,null,null,null,null,null,null,null,null,null,null,null,null,null,null,null,null,null,null,null,null,null,null,null,null,null,null,null,null,null,null,null,null,null,null,null,null,null,null,null,null,null,null,null,null,null,null,416,12066.721322791354,2.1350469962176608,20063.94973414527,1.2995308389891052]
[null,null,null,null,null,null,null,null,null,null,null,null,null,null,null,null,null,null,null,null,null,null,null,null,null,null,null,null,null,null,null,null,null,null,null,null,null,null,null,null,null,null,null,null,null,null,null,null,null,null,null,null,417,13281.869273049939,0.81575141198000067,20271.77324795397,0.77358818665094198]
[null,null,null,null,null,null,null,null,null,null,null,null,null,null,null,null,null,null,null,null,null,null,null,null,null,null,null,null,null,null,null,null,null,null,null,null,null,null,null,null,null,null,null,null,null,null,null,null,null,null,null,null,418,14692.248919862484,0.87166620616595469,20555.379248562909,0.79903799363375416]
[null,null,null,null,null,null,null,null,null,null,null,null,null,null,null,null,null,null,null,null,null,null,null,null,null,null,null,null,null,null,null,null,null,null,null,null,null,null,null,null,null,null,null,null,null,null,null,null,null,null,null,null,419,16187.268352438556,0.87530206511412045,20294.769827783122,1.1032041138099127]
[null,null,null,null,null,null,null,null,null,null,null,null,null,null,null,null,null,null,null,null,null,null,null,null,null,null,null,null,null,null,null,null,null,null,null,null,null,null,null,null,null,null,null,null,null,null,null,null,null,null,null,null,420,17163.307302602167,9.1082940444682237E-2,21475.870458397894,0.74817036267814285]
[null,null,null,null,null,null,null,null,null,null,null,null,null,null,null,null,null,null,null,null,null,null,null,null,null,null,null,null,null,null,null,null,null,null,null,null,null,null,null,null,null,null,null,null,null,null,null,null,null,null,null,null,421,10763.974818413933,1.5804500585443715,20747.275841126924,0.38221638673970471]
[null,null,null,null,null,null,null,null,null,null,null,null,null,null,null,null,null,null,null,null,null,null,null,null,null,null,null,null,null,null,null,null,null,null,null,null,null,null,null,null,null,null,null,null,null,null,null,null,null,null,null,null,422,17645.362123627656,-0.71583106781781281,21815.544341715744,-0.1126188546267457]
[null,null,null,null,null,null,null,null,null,null,null,null,null,null,null,null,null,null,null,null,null,null,null,null,null,null,null,null,null,null,null,null,null,null,null,null,null,null,null,null,null,null,null,null,null,null,null,null,null,null,null,null,423,13124.032388145775,1.1020636932298526,21172.537922836775,0.61977502996943301]
[null,null,null,null,null,null,null,null,null,null,null,null,null,null,null,null,null,null,null,null,null,null,null,null,null,null,null,null,null,null,null,null,null,null,null,null,null,null,null,null,null,null,null,null,null,null,null,null,null,null,null,null,424,15034.97162754714,0.96386144460397283,20390.232362851599,1.0304057472488264]
[null,null,null,null,null,null,null,null,null,null,null,null,null,null,null,null,null,null,null,null,null,null,null,null,null,null,null,null,null,null,null,null,null,null,null,null,null,null,null,null,null,null,null,null,null,null,null,null,null,null,null,null,425,15597.0651729646,0.24616806465557473,20539.258689838647,2.6546918159260358E-3]
[null,null,null,null,null,null,null,null,null,null,null,null,null,null,null,null,null,null,null,null,null,null,null,null,null,null,null,null,null,null,null,null,null,null,null,null,null,null,null,null,null,null,null,null,null,null,null,null,null,null,null,null,426,15675.256009378038,0.64086493188945792,20715.155316403245,0.73432115085970429]
[null,null,null,null,null,null,null,null,null,null,null,null,null,null,null,null,null,null,null,null,null,null,null,null,null,null,null,null,null,null,null,null,null,null,null,null,null,null,null,null,null,null,null,null,null,null,null,null,null,null,null,null,427,17038.802700211596,0.88695876683349595,21767.79642077328,0.89418958916138247]
[null,null,null,null,null,null,null,null,null,null,null,null,null,null,null,null,null,null,null,null,null,null,null,null,null,null,null,null,null,null,null,null,null,null,null,null,null,null,null,null,null,null,null,null,null,null,null,null,null,null,null,null,428,15407.72759462155,1.714258078067008,21894.429563905964,1.7393870621619953]
[null,null,null,null,null,null,null,null,null,null,null,null,null,null,null,null,null,null,null,null,null,null,null,null,null,null,null,null,null,null,null,null,null,null,null,null,null,null,null,null,null,null,null,null,null,null,null,null,null,null,null,null,429,17339.956298035497,0.35467909606297177,22308.137889360572,0.57636188141033773]
[null,null,null,null,null,null,null,null,null,null,null,null,null,null,null,null,null,null,null,null,null,null,null,null,null,null,null,null,null,null,null,null,null,null,null,null,null,null,null,null,null,null,null,null,null,null,null,null,null,null,null,null,430,19377.140259301395,0.84113793950711546,21767.870737783378,1.5342245427168166]
[null,null,null,null,null,null,null,null,null,null,null,null,null,null,null,null,null,null,null,null,null,null,null,null,null,null,null,null,null,null,null,null,null,null,null,null,null,null,null,null,null,null,null,null,null,null,null,null,null,null,null,null,431,14271.236592424082,2.1177373288951831,20787.236557983859,1.8547144832133231]
[null,null,null,null,null,null,null,null,null,null,null,null,null,null,null,null,null,null,null,null,null,null,null,null,null,null,null,null,null,null,null,null,null,null,null,null,null,null,null,null,null,null,null,null,null,null,null,null,null,null,null,null,432,18068.247733688109,0.45771695575133625,20644.549618931451,0.76573516637563799]
[null,null,null,null,null,null,null,null,null,null,null,null,null,null,null,null,null,null,null,null,null,null,null,null,null,null,null,null,null,null,null,null,null,null,null,null,null,null,null,null,null,null,null,null,null,null,null,null,null,null,null,null,433,14890.677612215903,9.6065450108811179E-2,21339.352288916092,-0.31324566318770386]
[null,null,null,null,null,null,null,null,null,null,null,null,null,null,null,null,null,null,null,null,null,null,null,null,null,null,null,null,null,null,null,null,null,null,null,null,null,null,null,null,null,null,null,null,null,null,null,null,null,null,null,null,434,17870.03799994904,0.73781115946832276,21963.956756090549,1.0781278187619099]
[null,null,null,null,null,null,null,null,null,null,null,null,null,null,null,null,null,null,null,null,null,null,null,null,null,null,null,null,null,null,null,null,null,null,null,null,null,null,null,null,null,null,null,null,null,null,null,null,null,null,null,null,435,16807.857600375115,0.86662183149905125,20538.589706559462,1.0986292564046884]
[null,null,null,null,null,null,null,null,null,null,null,null,null,null,null,null,null,null,null,null,null,null,null,null,null,null,null,null,null,null,null,null,null,null,null,null,null,null,null,null,null,null,null,null,null,null,null,null,null,null,null,null,436,17674.475264256384,-0.14040252395009856,20879.497871300817,0.67931909629489262]
[null,null,null,null,null,null,null,null,null,null,null,null,null,null,null,null,null,null,null,null,null,null,null,null,null,null,null,null,null,null,null,null,null,null,null,null,null,null,null,null,null,null,null,null,null,null,null,null,null,null,null,null,437,15482.211631216336,0.50573589511334305,21795.620762281447,0.44373741304775693]
[null,null,null,null,null,null,null,null,null,null,null,null,null,null,null,null,null,null,null,null,null,null,null,null,null,null,null,null,null,null,null,null,null,null,null,null,null,null,null,null,null,null,null,null,null,null,null,null,null,null,null,null,438,18245.583432691234,0.71536043536025173,20354.04022902932,1.2198058149431357]
[null,null,null,null,null,null,null,null,null,null,null,null,null,null,null,null,null,null,null,null,null,null,null,null,null,null,null,null,null,null,null,null,null,null,null,null,null,null,null,null,null,null,null,null,null,null,null,null,null,null,null,null,439,14939.546718780715,1.7148094167623331,20725.632780828939,1.6955582807811032]
[null,null,null,null,null,null,null,null,null,null,null,null,null,null,null,null,null,null,null,null,null,null,null,null,null,null,null,null,null,null,null,null,null,null,null,null,null,null,null,null,null,null,null,null,null,null,null,null,null,null,null,null,440,17306.460437510003,0.11439107887156985,20396.710717335427,0.58042626520618279]
[null,null,null,null,null,null,null,null,null,null,null,null,null,null,null,null,null,null,null,null,null,null,null,null,null,null,null,null,null,null,null,null,null,null,null,null,null,null,null,null,null,null,null,null,null,null,null,null,null,null,null,null,441,16552.399139621601,1.3268720415015749,20706.017013685083,1.5309545851926327]
[null,null,null,null,null,null,null,null,null,null,null,null,null,null,null,null,null,null,null,null,null,null,null,null,null,null,null,null,null,null,null,null,null,null,null,null,null,null,null,null,null,null,null,null,null,null,null,null,null,null,null,null,442,16103.410874310743,0.62456829780629985,21728.985391501148,0.63169052050974139]
[null,null,null,null,null,null,null,null,null,null,null,null,null,null,null,null,null,null,null,null,null,null,null,null,null,null,null,null,null,null,null,null,null,null,null,null,null,null,null,null,null,null,null,null,null,null,null,null,null,null,null,null,443,17657.632016439526,0.46346650757878577,21134.560914045498,0.92953822414311715]
[null,null,null,null,null,null,null,null,null,null,null,null,null,null,null,null,null,null,null,null,null,null,null,null,null,null,null,null,null,null,null,null,null,null,null,null,null,null,null,null,null,null,null,null,null,null,null,null,null,null,null,null,444,15949.884578518901,0.33319140927426472,21365.505268305358,0.16170137454355293]
[null,null,null,null,null,null,null,null,null,null,null,null,null,null,null,null,null,null,null,null,null,null,null,null,null,null,null,null,null,null,null,null,null,null,null,null,null,null,null,null,null,null,null,null,null,null,null,null,null,null,null,null,445,12891.601745215654,1.7072874441336578,20569.506081133339,1.1865453114830791]
[null,null,null,null,null,null,null,null,null,null,null,null,null,null,null,null,null,null,null,null,null,null,null,null,null,null,null,null,null,null,null,null,null,null,null,null,null,null,null,null,null,null,null,null,null,null,null,null,null,null,null,null,446,13776.630996125166,1.9312155918402134,20390.79045650256,1.4819988457400783]
[null,null,null,null,null,null,null,null,null,null,null,null,null,null,null,null,null,null,null,null,null,null,null,null,null,null,null,null,null,null,null,null,null,null,null,null,null,null,null,null,null,null,null,null,null,null,null,null,null,null,null,null,447,19072.389385477178,0.22801939612486966,21113.48511857594,0.68386716729400621]
[null,null,null,null,null,null,null,null,null,null,null,null,null,null,null,null,null,null,null,null,null,null,null,null,null,null,null,null,null,null,null,null,null,null,null,null,null,null,null,null,null,null,null,null,null,null,null,null,null,null,null,null,448,15465.220651530739,-0.49559502466087046,21629.267664371771,-0.39110372676794136]
[null,null,null,null,null,null,null,null,null,null,null,null,null,null,null,null,null,null,null,null,null,null,null,null,null,null,null,null,null,null,null,null,null,null,null,null,null,null,null,null,null,null,null,null,null,null,null,null,null,null,null,null,449,17740.036035244226,-0.61803969540136783,21012.035647263263,3.867077918148154E-2]
[null,null,null,null,null,null,null,null,null,null,null,null,null,null,null,null,null,null,null,null,null,null,null,null,null,null,null,null,null,null,null,null,null,null,null,null,null,null,null,null,null,null,null,null,null,null,null,null,null,null,null,null,450,17553.281975048405,-0.26620629542859986,20817.058131053287,0.74182401155839728]
[null,null,null,null,null,null,null,null,null,null,null,null,null,null,null,null,null,null,null,null,null,null,null,null,null,null,null,null,null,null,null,null,null,null,null,null,null,null,null,null,null,null,null,null,null,null,null,null,null,null,null,null,{"$f":"1+BA458","v":451},16717.625868687403,1.1780529479740134,20839.828868620327,1.261401515769192]
[null,null,null,null,null,null,null,null,null,null,null,null,null,null,null,null,null,null,null,null,null,null,null,null,null,null,null,null,null,null,null,null,null,null,null,null,null,null,null,null,null,null,null,null,null,null,null,null,null,null,null,null,452,14467.565402978411,1.3440380061780519,20747.362643160417,0.99637065120619506]
[null,null,null,null,null,null,null,null,null,null,null,null,null,null,null,null,null,null,null,null,null,null,null,null,null,null,null,null,null,null,null,null,null,null,null,null,null,null,null,null,null,null,null,null,null,null,null,null,null,null,null,null,453,12933.623634135727,1.453977852738159,20686.74997498528,0.63713583301001719]
[null,null,null,null,null,null,null,null,null,null,null,null,null,null,null,null,null,null,null,null,null,null,null,null,null,null,null,null,null,null,null,null,null,null,null,null,null,null,null,null,null,null,null,null,null,null,null,null,null,null,null,null,454,14532.582029519372,1.5968663601427668,21541.567244965307,1.2894212145509507]
[null,null,null,null,null,null,null,null,null,null,null,null,null,null,null,null,null,null,null,null,null,null,null,null,null,null,null,null,null,null,null,null,null,null,null,null,null,null,null,null,null,null,null,null,null,null,null,null,null,null,null,null,455,15610.277117722917,0.40688325953765259,21175.592466954211,0.81116671631789194]
[null,null,null,null,null,null,null,null,null,null,null,null,null,null,null,null,null,null,null,null,null,null,null,null,null,null,null,null,null,null,null,null,null,null,null,null,null,null,null,null,null,null,null,null,null,null,null,null,null,null,null,null,456,15883.869557512695,1.00277330413858,21495.491668144434,1.1300120932578479]
[null,null,null,null,null,null,null,null,null,null,null,null,null,null,null,null,null,null,null,null,null,null,null,null,null,null,null,null,null,null,null,null,null,null,null,null,null,null,null,null,null,null,null,null,null,null,null,null,null,null,null,null,457,13274.151822972724,1.2686411820075727,21123.574281098947,0.81734396859752612]
[null,null,null,null,null,null,null,null,null,null,null,null,null,null,null,null,null,null,null,null,null,null,null,null,null,null,null,null,null,null,null,null,null,null,null,null,null,null,null,null,null,null,null,null,null,null,null,null,null,null,null,null,458,15484.162957031911,1.9563665417355138,20558.779238327374,1.8548897738469265]
[null,null,null,null,null,null,null,null,null,null,null,null,null,null,null,null,null,null,null,null,null,null,null,null,null,null,null,null,null,null,null,null,null,null,null,null,null,null,null,null,null,null,null,null,null,null,null,null,null,null,null,null,459,12677.828367298709,1.9234433283492225,21516.595755403476,1.3485682128025254]
[null,null,null,null,null,null,null,null,null,null,null,null,null,null,null,null,null,null,null,null,null,null,null,null,null,null,null,null,null,null,null,null,null,null,null,null,null,null,null,null,null,null,null,null,null,null,null,null,null,null,null,null,460,17164.119367518004,1.1190430950508794,21233.34148263088,1.4721254042687313]
[null,null,null,null,null,null,null,null,null,null,null,null,null,null,null,null,null,null,null,null,null,null,null,null,null,null,null,null,null,null,null,null,null,null,null,null,null,null,null,null,null,null,null,null,null,null,null,null,null,null,null,null,461,14185.364327147505,1.4778718359790106,21209.808615192913,0.77247830918534266]
[null,null,null,null,null,null,null,null,null,null,null,null,null,null,null,null,null,null,null,null,null,null,null,null,null,null,null,null,null,null,null,null,null,null,null,null,null,null,null,null,null,null,null,null,null,null,null,null,null,null,null,null,462,12701.150915685499,1.7338412632064601,20958.91078616587,1.2772891336898129]
[null,null,null,null,null,null,null,null,null,null,null,null,null,null,null,null,null,null,null,null,null,null,null,null,null,null,null,null,null,null,null,null,null,null,null,null,null,null,null,null,null,null,null,null,null,null,null,null,null,null,null,null,463,17029.623254748098,0.50435720332029232,21618.745322731127,0.9815729036921903]
[null,null,null,null,null,null,null,null,null,null,null,null,null,null,null,null,null,null,null,null,null,null,null,null,null,null,null,null,null,null,null,null,null,null,null,null,null,null,null,null,null,null,null,null,null,null,null,null,null,null,null,null,464,18703.427667675056,-0.100425968754564,21285.108209185659,0.60474677031360258]
[null,null,null,null,null,null,null,null,null,null,null,null,null,null,null,null,null,null,null,null,null,null,null,null,null,null,null,null,null,null,null,null,null,null,null,null,null,null,null,null,null,null,null,null,null,null,null,null,null,null,null,null,465,15347.86553207559,0.8826608859234597,21103.411379112313,1.0303471967749467]
[null,null,null,null,null,null,null,null,null,null,null,null,null,null,null,null,null,null,null,null,null,null,null,null,null,null,null,null,null,null,null,null,null,null,null,null,null,null,null,null,null,null,null,null,null,null,null,null,null,null,null,null,466,15738.447573262361,0.65955215736953654,21075.125977848158,0.97381364158472472]
[null,null,null,null,null,null,null,null,null,null,null,null,null,null,null,null,null,null,null,null,null,null,null,null,null,null,null,null,null,null,null,null,null,null,null,null,null,null,null,null,null,null,null,null,null,null,null,null,null,null,null,null,467,15537.700716145035,0.57277252476156515,20993.719381184579,0.73579530814642546]
[null,null,null,null,null,null,null,null,null,null,null,null,null,null,null,null,null,null,null,null,null,null,null,null,null,null,null,null,null,null,null,null,null,null,null,null,null,null,null,null,null,null,null,null,null,null,null,null,null,null,null,null,468,19126.727876505862,1.0637943792813673,22296.800356376829,1.5809258542228619]
[null,null,null,null,null,null,null,null,null,null,null,null,null,null,null,null,null,null,null,null,null,null,null,null,null,null,null,null,null,null,null,null,null,null,null,null,null,null,null,null,null,null,null,null,null,null,null,null,null,null,null,null,469,13197.662683941548,1.7375597054893861,21746.918691786144,0.97220492188133045]
[null,null,null,null,null,null,null,null,null,null,null,null,null,null,null,null,null,null,null,null,null,null,null,null,null,null,null,null,null,null,null,null,null,null,null,null,null,null,null,null,null,null,null,null,null,null,null,null,null,null,null,null,470,14883.809934435007,1.1544887006872855,19760.463777262506,1.1181732049703303]
[null,null,null,null,null,null,null,null,null,null,null,null,null,null,null,null,null,null,null,null,null,null,null,null,null,null,null,null,null,null,null,null,null,null,null,null,null,null,null,null,null,null,null,null,null,null,null,null,null,null,null,null,471,15581.393909114753,1.51500900036848,21875.75891931745,1.2246007539017856]
[null,null,null,null,null,null,null,null,null,null,null,null,null,null,null,null,null,null,null,null,null,null,null,null,null,null,null,null,null,null,null,null,null,null,null,null,null,null,null,null,null,null,null,null,null,null,null,null,null,null,null,null,472,14836.732602686283,0.36757547702267601,21428.543169532764,1.0179161889734616]
[null,null,null,null,null,null,null,null,null,null,null,null,null,null,null,null,null,null,null,null,null,null,null,null,null,null,null,null,null,null,null,null,null,null,null,null,null,null,null,null,null,null,null,null,null,null,null,null,null,null,null,null,473,14628.27374377603,1.2766410908546948,21317.360707063068,1.2732983329095462]
[null,null,null,null,null,null,null,null,null,null,null,null,null,null,null,null,null,null,null,null,null,null,null,null,null,null,null,null,null,null,null,null,null,null,null,null,null,null,null,null,null,null,null,null,null,null,null,null,null,null,null,null,474,15395.387727355792,1.3254650119197187,21066.964590486386,1.1535357607324284]
[null,null,null,null,null,null,null,null,null,null,null,null,null,null,null,null,null,null,null,null,null,null,null,null,null,null,null,null,null,null,null,null,null,null,null,null,null,null,null,null,null,null,null,null,null,null,null,null,null,null,null,null,475,16667.915239737929,0.47262506463143716,20409.925702889697,0.8894271490370389]
[null,null,null,null,null,null,null,null,null,null,null,null,null,null,null,null,null,null,null,null,null,null,null,null,null,null,null,null,null,null,null,null,null,null,null,null,null,null,null,null,null,null,null,null,null,null,null,null,null,null,null,null,476,16388.423876226039,8.031979345397755E-2,20689.956014974676,0.39542632976309755]
[null,null,null,null,null,null,null,null,null,null,null,null,null,null,null,null,null,null,null,null,null,null,null,null,null,null,null,null,null,null,null,null,null,null,null,null,null,null,null,null,null,null,null,null,null,null,null,null,null,null,null,null,477,19856.863816338035,0.95026902686974368,21167.411867870229,1.4335933994404551]
[null,null,null,null,null,null,null,null,null,null,null,null,null,null,null,null,null,null,null,null,null,null,null,null,null,null,null,null,null,null,null,null,null,null,null,null,null,null,null,null,null,null,null,null,null,null,null,null,null,null,null,null,478,15203.533962808902,1.5143154787969837,20912.803818334778,1.3586213188756202]
[null,null,null,null,null,null,null,null,null,null,null,null,null,null,null,null,null,null,null,null,null,null,null,null,null,null,null,null,null,null,null,null,null,null,null,null,null,null,null,null,null,null,null,null,null,null,null,null,null,null,null,null,479,15428.508928262494,0.59507441641774417,19727.022716545122,0.54690171225628881]
[null,null,null,null,null,null,null,null,null,null,null,null,null,null,null,null,null,null,null,null,null,null,null,null,null,null,null,null,null,null,null,null,null,null,null,null,null,null,null,null,null,null,null,null,null,null,null,null,null,null,null,null,480,16508.481286142884,0.83080203611081249,21262.261836564816,1.2256309188467358]
[null,null,null,null,null,null,null,null,null,null,null,null,null,null,null,null,null,null,null,null,null,null,null,null,null,null,null,null,null,null,null,null,null,null,null,null,null,null,null,null,null,null,null,null,null,null,null,null,null,null,null,null,481,13562.106187061463,1.9021266146737319,21945.38207254832,1.5842420975135312]
[null,null,null,null,null,null,null,null,null,null,null,null,null,null,null,null,null,null,null,null,null,null,null,null,null,null,null,null,null,null,null,null,null,null,null,null,null,null,null,null,null,null,null,null,null,null,null,null,null,null,null,null,482,16955.482753178891,0.25190003812252626,21898.946461625739,0.41346668742158399]
[null,null,null,null,null,null,null,null,null,null,null,null,null,null,null,null,null,null,null,null,null,null,null,null,null,null,null,null,null,null,null,null,null,null,null,null,null,null,null,null,null,null,null,null,null,null,null,null,null,null,null,null,483,15543.509627504207,1.107024119319868,21353.071985572707,1.0559936224932593]
[null,null,null,null,null,null,null,null,null,null,null,null,null,null,null,null,null,null,null,null,null,null,null,null,null,null,null,null,null,null,null,null,null,null,null,null,null,null,null,null,null,null,null,null,null,null,null,null,null,null,null,null,484,15745.267791683989,-1.0393074288321276,20972.633626043542,-0.6305737488376939]
[null,null,null,null,null,null,null,null,null,null,null,null,null,null,null,null,null,null,null,null,null,null,null,null,null,null,null,null,null,null,null,null,null,null,null,null,null,null,null,null,null,null,null,null,null,null,null,null,null,null,null,null,485,16845.843504846172,0.12747325461858827,20940.166253089232,0.78828830617772028]
[null,null,null,null,null,null,null,null,null,null,null,null,null,null,null,null,null,null,null,null,null,null,null,null,null,null,null,null,null,null,null,null,null,null,null,null,null,null,null,null,null,null,null,null,null,null,null,null,null,null,null,null,486,13901.479873397288,0.74194913669346363,20761.879192171968,0.49512198017615427]
[null,null,null,null,null,null,null,null,null,null,null,null,null,null,null,null,null,null,null,null,null,null,null,null,null,null,null,null,null,null,null,null,null,null,null,null,null,null,null,null,null,null,null,null,null,null,null,null,null,null,null,null,487,18010.393681451817,0.69054521198075092,21078.079888868815,1.1779022539850654]
[null,null,null,null,null,null,null,null,null,null,null,null,null,null,null,null,null,null,null,null,null,null,null,null,null,null,null,null,null,null,null,null,null,null,null,null,null,null,null,null,null,null,null,null,null,null,null,null,null,null,null,null,488,17803.391015399913,-0.20711573618935364,21232.217153759462,0.70890803913371547]
[null,null,null,null,null,null,null,null,null,null,null,null,null,null,null,null,null,null,null,null,null,null,null,null,null,null,null,null,null,null,null,null,null,null,null,null,null,null,null,null,null,null,null,null,null,null,null,null,null,null,null,null,489,15146.34772822852,0.74941279280904194,20745.664496007706,0.900009286727386]
[null,null,null,null,null,null,null,null,null,null,null,null,null,null,null,null,null,null,null,null,null,null,null,null,null,null,null,null,null,null,null,null,null,null,null,null,null,null,null,null,null,null,null,null,null,null,null,null,null,null,null,null,490,16661.036278652071,0.14412894977909485,19752.751355053409,0.63503804613472603]
[null,null,null,null,null,null,null,null,null,null,null,null,null,null,null,null,null,null,null,null,null,null,null,null,null,null,null,null,null,null,null,null,null,null,null,null,null,null,null,null,null,null,null,null,null,null,null,null,null,null,null,null,491,12389.557580336252,2.0282601933770024,20600.207551077099,1.3882000435599711]
[null,null,null,null,null,null,null,null,null,null,null,null,null,null,null,null,null,null,null,null,null,null,null,null,null,null,null,null,null,null,null,null,null,null,null,null,null,null,null,null,null,null,null,null,null,null,null,null,null,null,null,null,492,17516.787777531608,0.85821366741785032,21110.895270272864,1.3317777611209856]
[null,null,null,null,null,null,null,null,null,null,null,null,null,null,null,null,null,null,null,null,null,null,null,null,null,null,null,null,null,null,null,null,null,null,null,null,null,null,null,null,null,null,null,null,null,null,null,null,null,null,null,null,508,15928.342558667307,1.2972610141674663,21501.343518838901,1.3183944915225234]
[null,null,null,null,null,null,null,null,null,null,null,null,null,null,null,null,null,null,null,null,null,null,null,null,null,null,null,null,null,null,null,null,null,null,null,null,null,null,null,null,null,null,null,null,null,null,null,null,null,null,null,null,512,18289.761206931238,5.3215035295461788E-2,20410.171422631574,0.61463675143022523]
[null,null,null,null,null,null,null,null,null,null,null,null,null,null,null,null,null,null,null,null,null,null,null,null,null,null,null,null,null,null,null,null,null,null,null,null,null,null,null,null,null,null,null,null,null,null,null,null,null,null,null,null,531,14099.230017070528,1.1467581714586041,21460.308301620706,0.5865778628923225]
[null,null,null,null,null,null,null,null,null,null,null,null,null,null,null,null,null,null,null,null,null,null,null,null,null,null,null,null,null,null,null,null,null,null,null,null,null,null,null,null,null,null,null,null,null,null,null,null,null,null,null,null,556,15133.24438430722,0.924999068482808,21174.351665082337,0.73011569004871757]
[null,null,null,null,null,null,null,null,null,null,null,null,null,null,null,null,null,null,null,null,null,null,null,null,null,null,null,null,null,null,null,null,null,null,null,null,null,null,null,null,null,null,null,null,null,null,null,null,null,null,null,null,585,17570.712703421046,0.39262229273021593,21308.845716219381,1.0190628652200409]
[null,null,null,null,null,null,null,null,null,null,null,null,null,null,null,null,null,null,null,null,null,null,null,null,null,null,null,null,null,null,null,null,null,null,null,null,null,null,null,null,null,null,null,null,null,null,null,null,null,null,null,null,593,19328.956835456876,0.35663680924250685,20888.102857796723,0.94154230364035851]
[null,null,null,null,null,null,null,null,null,null,null,null,null,null,null,null,null,null,null,null,null,null,null,null,null,null,null,null,null,null,null,null,null,null,null,null,null,null,null,null,null,null,null,null,null,null,null,null,null,null,null,null,618,14275.046229671443,1.6012497620225503,20206.26882601971,1.6403888182908015]
[null,null,null,null,null,null,null,null,null,null,null,null,null,null,null,null,null,null,null,null,null,null,null,null,null,null,null,null,null,null,null,null,null,null,null,null,null,null,null,null,null,null,null,null,null,null,null,null,null,null,null,null,637,19795.62025739739,-0.1658783271860641,20282.098114959666,0.30763199524164919]
[null,null,null,null,null,null,null,null,null,null,null,null,null,null,null,null,null,null,null,null,null,null,null,null,null,null,null,null,null,null,null,null,null,null,null,null,null,null,null,null,null,null,null,null,null,null,null,null,null,null,null,null,644,16498.963017282385,0.27723373174088706,21091.77765703787,0.29006218562602193]
[null,null,null,null,null,null,null,null,null,null,null,null,null,null,null,null,null,null,null,null,null,null,null,null,null,null,null,null,null,null,null,null,null,null,null,null,null,null,null,null,null,null,null,null,null,null,null,null,null,null,null,null,661,17075.654596118373,1.3164488075673104,21196.020869451422,1.4594512464652798]
[null,null,null,null,null,null,null,null,null,null,null,null,null,null,null,null,null,null,null,null,null,null,null,null,null,null,null,null,null,null,null,null,null,null,null,null,null,null,null,null,null,null,null,null,null,null,null,null,null,null,null,null,680,14643.303999626132,1.5031909796911933,20770.532714562985,1.3816156476778949]
[null,null,null,null,null,null,null,null,null,null,null,null,null,null,null,null,null,null,null,null,null,null,null,null,null,null,null,null,null,null,null,null,null,null,null,null,null,null,null,null,null,null,null,null,null,null,null,null,null,null,null,null,705,19358.179312448872,-0.55029782138229577,20258.454486196384,0.19461289936857096]
[null,null,null,null,null,null,null,null,null,null,null,null,null,null,null,null,null,null,null,null,null,null,null,null,null,null,null,null,null,null,null,null,null,null,null,null,null,null,null,null,null,null,null,null,null,null,null,null,null,null,null,null,735,15226.413344272516,0.71070554791078733,21062.698244622028,9.8249838185638705E-2]
[null,null,null,null,null,null,null,null,null,null,null,null,null,null,null,null,null,null,null,null,null,null,null,null,null,null,null,null,null,null,null,null,null,null,null,null,null,null,null,null,null,null,null,null,null,null,null,null,null,null,null,null,742,17142.3171172033,0.51801273378934742,21540.867606750424,0.44722893412332143]
[null,null,null,null,null,null,null,null,null,null,null,null,null,null,null,null,null,null,null,null,null,null,null,null,null,null,null,null,null,null,null,null,null,null,null,null,null,null,null,null,null,null,null,null,null,null,null,null,null,null,null,null,767,12563.41640293684,1.3156803925139471,21355.669412187701,0.83205718410320262]
[null,null,null,null,null,null,null,null,null,null,null,null,null,null,null,null,null,null,null,null,null,null,null,null,null,null,null,null,null,null,null,null,null,null,null,null,null,null,null,null,null,null,null,null,null,null,null,null,null,null,null,null,786,15850.662327818443,0.84638073885397058,20904.230915981385,1.4335820451746573]
[null,null,null,null,null,null,null,null,null,null,null,null,null,null,null,null,null,null,null,null,null,null,null,null,null,null,null,null,null,null,null,null,null,null,null,null,null,null,null,null,null,null,null,null,null,null,null,null,null,null,null,null,811,13974.166768732119,0.90751018595515165,21767.54704150102,0.61872413212250144]
[null,null,null,null,null,null,null,null,null,null,null,null,null,null,null,null,null,null,null,null,null,null,null,null,null,null,null,null,null,null,null,null,null,null,null,null,null,null,null,null,null,null,null,null,null,null,null,null,null,null,null,null,816,14381.647362571764,1.8630230925539011,21350.656693471388,1.5439325908466595]
[null,null,null,null,null,null,null,null,null,null,null,null,null,null,null,null,null,null,null,null,null,null,null,null,null,null,null,null,null,null,null,null,null,null,null,null,null,null,null,null,null,null,null,null,null,null,null,null,null,null,null,null,848,17350.893842705176,1.2373847247667487,21073.609626549682,1.6453894793585824]
[null,null,null,null,null,null,null,null,null,null,null,null,null,null,null,null,null,null,null,null,null,null,null,null,null,null,null,null,null,null,null,null,null,null,null,null,null,null,null,null,null,null,null,null,null,null,null,null,null,null,null,null,854,16954.774910832824,1.3735924213331632,21247.716422402103,1.5833432479187057]
[null,null,null,null,null,null,null,null,null,null,null,null,null,null,null,null,null,null,null,null,null,null,null,null,null,null,null,null,null,null,null,null,null,null,null,null,null,null,null,null,null,null,null,null,null,null,null,null,null,null,null,null,873,18889.081712695595,4.4930209203471239E-2,21265.696524748331,0.6974673219802463]
[null,null,null,null,null,null,null,null,null,null,null,null,null,null,null,null,null,null,null,null,null,null,null,null,null,null,null,null,null,null,null,null,null,null,null,null,null,null,null,null,null,null,null,null,null,null,null,null,null,null,null,null,893,16936.997856837806,1.8405061406668199E-2,21389.070930236448,-4.0920001755182511E-2]
[null,null,null,null,null,null,null,null,null,null,null,null,null,null,null,null,null,null,null,null,null,null,null,null,null,null,null,null,null,null,null,null,null,null,null,null,null,null,null,null,null,null,null,null,null,null,null,null,null,null,null,null,916,16803.717882356243,0.64030971305676965,20741.243762966958,0.71452861700762227]
[null,null,null,null,null,null,null,null,null,null,null,null,null,null,null,null,null,null,null,null,null,null,null,null,null,null,null,null,null,null,null,null,null,null,null,null,null,null,null,null,null,null,null,null,null,null,null,null,null,null,null,null,935,16537.885512118217,0.52483923444943958,20866.352757497665,0.6198757935302992]
[null,null,null,null,null,null,null,null,null,null,null,null,null,null,null,null,null,null,null,null,null,null,null,null,null,null,null,null,null,null,null,null,null,null,null,null,null,null,null,null,null,null,null,null,null,null,null,null,null,null,null,null,960,17028.255466715396,0.49792601231204731,20660.415762317934,0.82479610337347686]
[null,null,null,null,null,null,null,null,null,null,null,null,null,null,null,null,null,null,null,null,null,null,null,null,null,null,null,null,null,null,null,null,null,null,null,null,null,null,null,null,null,null,null,null,null,null,null,null,null,null,null,null,966,16635.804255306517,0.95014698949812204,19741.222426722274,1.1365524099901556]
[null,null,null,null,null,null,null,null,null,null,null,null,null,null,null,null,null,null,null,null,null,null,null,null,null,null,null,null,null,null,null,null,null,null,null,null,null,null,null,null,null,null,null,null,null,null,null,null,null,null,null,null,997,18375.112626331549,0.19188577328025236,22381.669294332518,0.42642326959670696]
[null,null,null,null,null,null,null,null,null,null,null,null,null,null,null,null,null,null,null,null,null,null,null,null,null,null,null,null,null,null,null,null,null,null,null,null,null,null,null,null,null,null,null,null,null,null,null,null,null,null,null,null,1003,14030.247043114594,1.1983771920660322,21524.128237529378,0.5908035445811689]
[null,null,null,null,null,null,null,null,null,null,null,null,null,null,null,null,null,null,null,null,null,null,null,null,null,null,null,null,null,null,null,null,null,null,null,null,null,null,null,null,null,null,null,null,null,null,null,null,null,null,null,null,1022,16609.918952628115,0.94852744269618694,21288.37397340218,1.3814980948831967]
[null,null,null,null,null,null,null,null,null,null,null,null,null,null,null,null,null,null,null,null,null,null,null,null,null,null,null,null,null,null,null,null,null,null,null,null,null,null,null,null,null,null,null,null,null,null,null,null,null,null,null,null,1043,15652.981531505648,-0.46405705436027644,21424.86927627062,-0.19088405512198903]
[null,null,null,null,null,null,null,null,null,null,null,null,null,null,null,null,null,null,null,null,null,null,null,null,null,null,null,null,null,null,null,null,null,null,null,null,null,null,null,null,null,null,null,null,null,null,null,null,null,null,null,null,1065,16818.661441827306,-0.45716189918591765,21113.226875055327,6.7719046244367087E-2]
[null,null,null,null,null,null,null,null,null,null,null,null,null,null,null,null,null,null,null,null,null,null,null,null,null,null,null,null,null,null,null,null,null,null,null,null,null,null,null,null,null,null,null,null,null,null,null,null,null,null,null,null,1084,15149.160746150545,0.84452954650040057,20475.873571399632,0.71101342307784865]
[null,null,null,null,null,null,null,null,null,null,null,null,null,null,null,null,null,null,null,null,null,null,null,null,null,null,null,null,null,null,null,null,null,null,null,null,null,null,null,null,null,null,null,null,null,null,null,null,null,null,null,null,1109,13014.211595842642,1.5938105100666848,21651.001542730752,1.1179330014360032]
[null,null,null,null,null,null,null,null,null,null,null,null,null,null,null,null,null,null,null,null,null,null,null,null,null,null,null,null,null,null,null,null,null,null,null,null,null,null,null,null,null,null,null,null,null,null,null,null,null,null,null,null,1128,16096.687997496037,-0.35169186533567509,20912.364494597088,0.22116185403162214]
[null,null,null,null,null,null,null,null,null,null,null,null,null,null,null,null,null,null,null,null,null,null,null,null,null,null,null,null,null,null,null,null,null,null,null,null,null,null,null,null,null,null,null,null,null,null,null,null,null,null,null,null,1138,13663.319580597068,1.3565605874142528,20503.133033766357,0.79024196335936447]
[null,null,null,null,null,null,null,null,null,null,null,null,null,null,null,null,null,null,null,null,null,null,null,null,null,null,null,null,null,null,null,null,null,null,null,null,null,null,null,null,null,null,null,null,null,null,null,null,null,null,null,null,1152,15442.013869196948,0.90781390380287319,21462.801575015455,0.83012072873739984]
[null,null,null,null,null,null,null,null,null,null,null,null,null,null,null,null,null,null,null,null,null,null,null,null,null,null,null,null,null,null,null,null,null,null,null,null,null,null,null,null,null,null,null,null,null,null,null,null,null,null,null,null,1171,16318.339519759977,0.95562993366599736,20278.418971024563,1.1787927664976279]
[null,null,null,null,null,null,null,null,null,null,null,null,null,null,null,null,null,null,null,null,null,null,null,null,null,null,null,null,null,null,null,null,null,null,null,null,null,null,null,null,null,null,null,null,null,null,null,null,null,null,null,null,1196,15479.769370445698,0.16984507593270581,20741.965338993432,0.37424031032668381]
[null,null,null,null,null,null,null,null,null,null,null,null,null,null,null,null,null,null,null,null,null,null,null,null,null,null,null,null,null,null,null,null,null,null,null,null,null,null,null,null,null,null,null,null,null,null,null,null,null,null,null,null,1215,17057.293137296925,0.99925780893687621,21216.135021506696,1.0584271523620705]
[null,null,null,null,null,null,null,null,null,null,null,null,null,null,null,null,null,null,null,null,null,null,null,null,null,null,null,null,null,null,null,null,null,null,null,null,null,null,null,null,null,null,null,null,null,null,null,null,null,null,null,null,1233,18087.045025593856,-1.1154129946376372,20215.67809934328,-0.25829982509114924]
[null,null,null,null,null,null,null,null,null,null,null,null,null,null,null,null,null,null,null,null,null,null,null,null,null,null,null,null,null,null,null,null,null,null,null,null,null,null,null,null,null,null,null,null,null,null,null,null,null,null,null,null,1258,16532.973366659862,0.33185597962685409,21080.093596803687,0.48881888764515602]
[null,null,null,null,null,null,null,null,null,null,null,null,null,null,null,null,null,null,null,null,null,null,null,null,null,null,null,null,null,null,null,null,null,null,null,null,null,null,null,null,null,null,null,null,null,null,null,null,null,null,null,null,1277,17772.162737915496,8.1295358968302311E-2,21015.766098526739,0.48868204757308209]
[null,null,null,null,null,null,null,null,null,null,null,null,null,null,null,null,null,null,null,null,null,null,null,null,null,null,null,null,null,null,null,null,null,null,null,null,null,null,null,null,null,null,null,null,null,null,null,null,null,null,null,null,1292,10215.640205246935,2.2157963802454956,21488.443078726013,1.081363200452822]
[null,null,null,null,null,null,null,null,null,null,null,null,null,null,null,null,null,null,null,null,null,null,null,null,null,null,null,null,null,null,null,null,null,null,null,null,null,null,null,null,null,null,null,null,null,null,null,null,null,null,null,null,1301,15135.850816182807,1.4526361102817478,21116.927923460516,1.1874027404036176]
[null,null,null,null,null,null,null,null,null,null,null,null,null,null,null,null,null,null,null,null,null,null,null,null,null,null,null,null,null,null,null,null,null,null,null,null,null,null,null,null,null,null,null,null,null,null,null,null,null,null,null,null,1320,16954.195648849676,0.70768449982000892,21103.937378467719,0.99384164803631481]
[null,null,null,null,null,null,null,null,null,null,null,null,null,null,null,null,null,null,null,null,null,null,null,null,null,null,null,null,null,null,null,null,null,null,null,null,null,null,null,null,null,null,null,null,null,null,null,null,null,null,null,null,1345,15487.74542831383,1.2011762892303146,21467.337171985666,1.1291468433961858]
[null,null,null,null,null,null,null,null,null,null,null,null,null,null,null,null,null,null,null,null,null,null,null,null,null,null,null,null,null,null,null,null,null,null,null,null,null,null,null,null,null,null,null,null,null,null,null,null,null,null,null,null,1364,18573.160050446837,-0.48354184702204439,21403.309916925973,0.34827677337515961]
[null,null,null,null,null,null,null,null,null,null,null,null,null,null,null,null,null,null,null,null,null,null,null,null,null,null,null,null,null,null,null,null,null,null,null,null,null,null,null,null,null,null,null,null,null,null,null,null,null,null,null,null,1387,14804.90281604486,0.65382531096423757,21631.562598225093,0.24666869287443505]
[null,null,null,null,null,null,null,null,null,null,null,null,null,null,null,null,null,null,null,null,null,null,null,null,null,null,null,null,null,null,null,null,null,null,null,null,null,null,null,null,null,null,null,null,null,null,null,null,null,null,null,null,1407,16008.427035266268,0.34758635981917085,21498.543326496707,0.70463149347151288]
[null,null,null,null,null,null,null,null,null,null,null,null,null,null,null,null,null,null,null,null,null,null,null,null,null,null,null,null,null,null,null,null,null,null,null,null,null,null,null,null,null,null,null,null,null,null,null,null,null,null,null,null,1426,16431.237226169131,0.98966320778487171,21467.940646025127,1.0938943686859246]
[null,null,null,null,null,null,null,null,null,null,null,null,null,null,null,null,null,null,null,null,null,null,null,null,null,null,null,null,null,null,null,null,null,null,null,null,null,null,null,null,null,null,null,null,null,null,null,null,null,null,null,null,1432,12691.123257457064,1.5400571563316137,20840.597572741353,1.0286215189259871]
[null,null,null,null,null,null,null,null,null,null,null,null,null,null,null,null,null,null,null,null,null,null,null,null,null,null,null,null,null,null,null,null,null,null,null,null,null,null,null,null,null,null,null,null,null,null,null,null,null,null,null,null,1464,15756.510863113042,0.96798833583760957,21372.828215695336,0.76320372131527425]
[null,null,null,null,null,null,null,null,null,null,null,null,null,null,null,null,null,null,null,null,null,null,null,null,null,null,null,null,null,null,null,null,null,null,null,null,null,null,null,null,null,null,null,null,null,null,null,null,null,null,null,null,1469,14134.62382775018,0.71932119236747738,21306.69689327577,0.42295950892844092]
[null,null,null,null,null,null,null,null,null,null,null,null,null,null,null,null,null,null,null,null,null,null,null,null,null,null,null,null,null,null,null,null,null,null,null,null,null,null,null,null,null,null,null,null,null,null,null,null,null,null,null,null,1494,18729.921301815539,0.67372090186087175,21695.976366456292,1.1120461658452583]
[null,null,null,null,null,null,null,null,null,null,null,null,null,null,null,null,null,null,null,null,null,null,null,null,null,null,null,null,null,null,null,null,null,null,null,null,null,null,null,null,null,null,null,null,null,null,null,null,null,null,null,null,1513,15055.34834595103,0.73634941660954101,21008.474615326792,0.90185349795310943]
[null,null,null,null,null,null,null,null,null,null,null,null,null,null,null,null,null,null,null,null,null,null,null,null,null,null,null,null,null,null,null,null,null,null,null,null,null,null,null,null,null,null,null,null,null,null,null,null,null,null,null,null,1541,16683.595090326671,0.81589094640364535,21182.447926816516,1.1111352599651036]
[null,null,null,null,null,null,null,null,null,null,null,null,null,null,null,null,null,null,null,null,null,null,null,null,null,null,null,null,null,null,null,null,null,null,null,null,null,null,null,null,null,null,null,null,null,null,null,null,null,null,null,null,1556,14025.788265116764,0.31283870678684234,20811.52173999562,0.22133662516021935]
[null,null,null,null,null,null,null,null,null,null,null,null,null,null,null,null,null,null,null,null,null,null,null,null,null,null,null,null,null,null,null,null,null,null,null,null,null,null,null,null,null,null,null,null,null,null,null,null,null,null,null,null,1575,15521.373940954896,1.194278788398828,20617.94896689009,0.97082592466125184]
[null,null,null,null,null,null,null,null,null,null,null,null,null,null,null,null,null,null,null,null,null,null,null,null,null,null,null,null,null,null,null,null,null,null,null,null,null,null,null,null,null,null,null,null,null,null,null,null,null,null,null,null,1581,18093.24007530474,0.14701063316571983,21025.010912793303,0.27975059303033412]
[null,null,null,null,null,null,null,null,null,null,null,null,null,null,null,null,null,null,null,null,null,null,null,null,null,null,null,null,null,null,null,null,null,null,null,null,null,null,null,null,null,null,null,null,null,null,null,null,null,null,null,null,1614,15661.47785610368,7.9325212806865886E-2,20333.312668133043,0.26222427695319539]
[null,null,null,null,null,null,null,null,null,null,null,null,null,null,null,null,null,null,null,null,null,null,null,null,null,null,null,null,null,null,null,null,null,null,null,null,null,null,null,null,null,null,null,null,null,null,null,null,null,null,null,null,1618,15506.535026127367,0.44730369742466281,21324.284646920329,0.39285485970340128]
[null,null,null,null,null,null,null,null,null,null,null,null,null,null,null,null,null,null,null,null,null,null,null,null,null,null,null,null,null,null,null,null,null,null,null,null,null,null,null,null,null,null,null,null,null,null,null,null,null,null,null,null,1643,17447.41827129939,0.27530645374425866,21422.589592821882,0.66683547273560084]
[null,null,null,null,null,null,null,null,null,null,null,null,null,null,null,null,null,null,null,null,null,null,null,null,null,null,null,null,null,null,null,null,null,null,null,null,null,null,null,null,null,null,null,null,null,null,null,null,null,null,null,null,1662,20726.345745733437,0.2484876860196451,22390.55157083513,0.79789521308018596]
[null,null,null,null,null,null,null,null,null,null,null,null,null,null,null,null,null,null,null,null,null,null,null,null,null,null,null,null,null,null,null,null,null,null,null,null,null,null,null,null,null,null,null,null,null,null,null,null,null,null,null,null,1687,17988.62593851941,-0.55267732943690984,21300.209531101194,0.19234780506809868]
[null,null,null,null,null,null,null,null,null,null,null,null,null,null,null,null,null,null,null,null,null,null,null,null,null,null,null,null,null,null,null,null,null,null,null,null,null,null,null,null,null,null,null,null,null,null,null,null,null,null,null,null,1695,17482.54476023086,1.068110092067087,21283.897816127836,1.4444648817156072]
[null,null,null,null,null,null,null,null,null,null,null,null,null,null,null,null,null,null,null,null,null,null,null,null,null,null,null,null,null,null,null,null,null,null,null,null,null,null,null,null,null,null,null,null,null,null,null,null,null,null,null,null,1724,14416.998718711335,1.3559889739384845,20284.675699779393,1.4438800731840649]
[null,null,null,null,null,null,null,null,null,null,null,null,null,null,null,null,null,null,null,null,null,null,null,null,null,null,null,null,null,null,null,null,null,null,null,null,null,null,null,null,null,null,null,null,null,null,null,null,null,null,null,null,1749,17500.043319569842,0.82464065916024099,21001.980574411889,1.2373099172639603]
[null,null,null,null,null,null,null,null,null,null,null,null,null,null,null,null,null,null,null,null,null,null,null,null,null,null,null,null,null,null,null,null,null,null,null,null,null,null,null,null,null,null,null,null,null,null,null,null,null,null,null,null,1768,17317.179017272072,0.9267093642316504,20867.578306345498,1.0863832184289597]
[null,null,null,null,null,null,null,null,null,null,null,null,null,null,null,null,null,null,null,null,null,null,null,null,null,null,null,null,null,null,null,null,null,null,null,null,null,null,null,null,null,null,null,null,null,null,null,null,null,null,null,null,1786,15205.268282105035,-7.405907211581364E-2,20671.274212466189,-0.14874311357756587]
[null,null,null,null,null,null,null,null,null,null,null,null,null,null,null,null,null,null,null,null,null,null,null,null,null,null,null,null,null,null,null,null,null,null,null,null,null,null,null,null,null,null,null,null,null,null,null,null,null,null,null,null,1792,14519.828757558673,0.6390426737913053,20649.977701682226,0.63172374984281532]
[null,null,null,null,null,null,null,null,null,null,null,null,null,null,null,null,null,null,null,null,null,null,null,null,null,null,null,null,null,null,null,null,null,null,null,null,null,null,null,null,null,null,null,null,null,null,null,null,null,null,null,null,1811,16418.41315200743,0.94302556653568914,20598.370774847677,1.2153946710510948]
[null,null,null,null,null,null,null,null,null,null,null,null,null,null,null,null,null,null,null,null,null,null,null,null,null,null,null,null,null,null,null,null,null,null,null,null,null,null,null,null,null,null,null,null,null,null,null,null,null,null,null,null,1836,16528.067959946195,-0.33819734678857816,21663.616101643602,-0.28920311748816174]
[null,null,null,null,null,null,null,null,null,null,null,null,null,null,null,null,null,null,null,null,null,null,null,null,null,null,null,null,null,null,null,null,null,null,null,null,null,null,null,null,null,null,null,null,null,null,null,null,null,null,null,null,1845,16415.469226786223,0.63824716550401461,21233.472432263225,0.92224597440946843]
[null,null,null,null,null,null,null,null,null,null,null,null,null,null,null,null,null,null,null,null,null,null,null,null,null,null,null,null,null,null,null,null,null,null,null,null,null,null,null,null,null,null,null,null,null,null,null,null,null,null,null,null,1873,15004.421856700868,1.1622411573779066,21565.48340168034,0.93913013622342723]
[null,null,null,null,null,null,null,null,null,null,null,null,null,null,null,null,null,null,null,null,null,null,null,null,null,null,null,null,null,null,null,null,null,null,null,null,null,null,null,null,null,null,null,null,null,null,null,null,null,null,null,null,1898,12743.59511645585,1.9465030394880349,22001.754930016679,1.3313870392559632]
[null,null,null,null,null,null,null,null,null,null,null,null,null,null,null,null,null,null,null,null,null,null,null,null,null,null,null,null,null,null,null,null,null,null,null,null,null,null,null,null,null,null,null,null,null,null,null,null,null,null,null,null,1917,14957.829522155946,0.76457578855829444,20411.26475699231,0.48060210277948434]
[null,null,null,null,null,null,null,null,null,null,null,null,null,null,null,null,null,null,null,null,null,null,null,null,null,null,null,null,null,null,null,null,null,null,null,null,null,null,null,null,null,null,null,null,null,null,null,null,null,null,null,null,1922,17522.249230743746,-0.9661548244879623,21001.353802097787,-0.50233895932708217]
[null,null,null,null,null,null,null,null,null,null,null,null,null,null,null,null,null,null,null,null,null,null,null,null,null,null,null,null,null,null,null,null,null,null,null,null,null,null,null,null,null,null,null,null,null,null,null,null,null,null,null,null,1941,16723.731655881933,0.25026846498687239,20757.112376926227,0.31062329574335301]
[null,null,null,null,null,null,null,null,null,null,null,null,null,null,null,null,null,null,null,null,null,null,null,null,null,null,null,null,null,null,null,null,null,null,null,null,null,null,null,null,null,null,null,null,null,null,null,null,null,null,null,null,1960,19204.044242521184,9.8653110380084841E-2,21327.198545327472,0.72799181260975998]
[null,null,null,null,null,null,null,null,null,null,null,null,null,null,null,null,null,null,null,null,null,null,null,null,null,null,null,null,null,null,null,null,null,null,null,null,null,null,null,null,null,null,null,null,null,null,null,null,null,null,null,null,1985,13048.197632763229,0.84026457055695036,20791.906654310354,0.2683709568931758]
[null,null,null,null,null,null,null,null,null,null,null,null,null,null,null,null,null,null,null,null,null,null,null,null,null,null,null,null,null,null,null,null,null,null,null,null,null,null,null,null,null,null,null,null,null,null,null,null,null,null,null,null,2004,15770.965130981851,0.71669047653318485,18563.83548563777,0.94860456998693876]
[null,null,null,null,null,null,null,null,null,null,null,null,null,null,null,null,null,null,null,null,null,null,null,null,null,null,null,null,null,null,null,null,null,null,null,null,null,null,null,null,null,null,null,null,null,null,null,null,null,null,null,null,2017,16548.965458985025,1.0195299422318786,21112.927820936857,1.322369777193501]
[null,null,null,null,null,null,null,null,null,null,null,null,null,null,null,null,null,null,null,null,null,null,null,null,null,null,null,null,null,null,null,null,null,null,null,null,null,null,null,null,null,null,null,null,null,null,null,null,null,null,null,null,2047,15609.989329443613,1.1083239406991567,21483.184287372605,1.0533195479796154]
[null,null,null,null,null,null,null,null,null,null,null,null,null,null,null,null,null,null,null,null,null,null,null,null,null,null,null,null,null,null,null,null,null,null,null,null,null,null,null,null,null,null,null,null,null,null,null,null,null,null,null,null,2066,14604.314392883814,0.62767799718201789,21376.444743966345,0.31238562622220711]
[null,null,null,null,null,null,null,null,null,null,null,null,null,null,null,null,null,null,null,null,null,null,null,null,null,null,null,null,null,null,null,null,null,null,null,null,null,null,null,null,null,null,null,null,null,null,null,null,null,null,null,null,2072,16665.171581388404,1.6799088809594576,21733.307453317913,1.7759901586708171]
[null,null,null,null,null,null,null,null,null,null,null,null,null,null,null,null,null,null,null,null,null,null,null,null,null,null,null,null,null,null,null,null,null,null,null,null,null,null,null,null,null,null,null,null,null,null,null,null,null,null,null,null,2094,13125.565840648665,1.1890812846684593,21188.193217640241,0.51686771993754654]
[null,null,null,null,null,null,null,null,null,null,null,null,null,null,null,null,null,null,null,null,null,null,null,null,null,null,null,null,null,null,null,null,null,null,null,null,null,null,null,null,null,null,null,null,null,null,null,null,null,null,null,null,2109,16713.781679332344,0.13791584590522787,20675.006820591698,0.48037880824534623]
[null,null,null,null,null,null,null,null,null,null,null,null,null,null,null,null,null,null,null,null,null,null,null,null,null,null,null,null,null,null,null,null,null,null,null,null,null,null,null,null,null,null,null,null,null,null,null,null,null,null,null,null,2134,13630.604658024056,0.69308598883238681,21746.625552060468,0.2166071453598295]
[null,null,null,null,null,null,null,null,null,null,null,null,null,null,null,null,null,null,null,null,null,null,null,null,null,null,null,null,null,null,null,null,null,null,null,null,null,null,null,null,null,null,null,null,null,null,null,null,null,null,null,null,2153,14427.601245782454,1.1627387942952321,21286.517154161469,1.3444560933617005]
[null,null,null,null,null,null,null,null,null,null,null,null,null,null,null,null,null,null,null,null,null,null,null,null,null,null,null,null,null,null,null,null,null,null,null,null,null,null,null,null,null,null,null,null,null,null,null,null,null,null,null,null,2167,18442.005406164524,0.45218293485365374,21645.910329736464,0.82352143711523329]
[null,null,null,null,null,null,null,null,null,null,null,null,null,null,null,null,null,null,null,null,null,null,null,null,null,null,null,null,null,null,null,null,null,null,null,null,null,null,null,null,null,null,null,null,null,null,null,null,null,null,null,null,2196,16583.165061005024,1.1164784099317144,21614.78860419571,1.235922341023336]
[null,null,null,null,null,null,null,null,null,null,null,null,null,null,null,null,null,null,null,null,null,null,null,null,null,null,null,null,null,null,null,null,null,null,null,null,null,null,null,null,null,null,null,null,null,null,null,null,null,null,null,null,2215,15764.634079029156,0.50655142066518133,20938.065961880387,0.90846949944592992]
[null,null,null,null,null,null,null,null,null,null,null,null,null,null,null,null,null,null,null,null,null,null,null,null,null,null,null,null,null,null,null,null,null,null,null,null,null,null,null,null,null,null,null,null,null,null,null,null,null,null,null,null,2221,16532.96733901808,0.85238924004171046,21833.592175507427,1.218398544912507]
[null,null,null,null,null,null,null,null,null,null,null,null,null,null,null,null,null,null,null,null,null,null,null,null,null,null,null,null,null,null,null,null,null,null,null,null,null,null,null,null,null,null,null,null,null,null,null,null,null,null,null,null,2240,17176.252208685441,5.6691548770100075E-2,21206.661465530473,0.43736179473867587]
[null,null,null,null,null,null,null,null,null,null,null,null,null,null,null,null,null,null,null,null,null,null,null,null,null,null,null,null,null,null,null,null,null,null,null,null,null,null,null,null,null,null,null,null,null,null,null,null,null,null,null,null,2266,14313.105368134362,1.6456191775440092,20674.209600539602,1.4362353759910185]
[null,null,null,null,null,null,null,null,null,null,null,null,null,null,null,null,null,null,null,null,null,null,null,null,null,null,null,null,null,null,null,null,null,null,null,null,null,null,null,null,null,null,null,null,null,null,null,null,null,null,null,null,2283,18363.749763528096,0.63620870542726404,21187.509400787421,0.78919333325493246]
[null,null,null,null,null,null,null,null,null,null,null,null,null,null,null,null,null,null,null,null,null,null,null,null,null,null,null,null,null,null,null,null,null,null,null,null,null,null,null,null,null,null,null,null,null,null,null,null,null,null,null,null,2302,14150.959393019346,1.5052977544903607,21719.346220319669,0.98350140910128592]
[null,null,null,null,null,null,null,null,null,null,null,null,null,null,null,null,null,null,null,null,null,null,null,null,null,null,null,null,null,null,null,null,null,null,null,null,null,null,null,null,null,null,null,null,null,null,null,null,null,null,null,null,2327,14393.795092089258,0.9957672487942506,20482.853666040744,0.57378857014819395]
[null,null,null,null,null,null,null,null,null,null,null,null,null,null,null,null,null,null,null,null,null,null,null,null,null,null,null,null,null,null,null,null,null,null,null,null,null,null,null,null,null,null,null,null,null,null,null,null,null,null,null,null,2343,16501.068380571251,0.80069141150825984,21709.972945705471,1.0846964259211984]
[null,null,null,null,null,null,null,null,null,null,null,null,null,null,null,null,null,null,null,null,null,null,null,null,null,null,null,null,null,null,null,null,null,null,null,null,null,null,null,null,null,null,null,null,null,null,null,null,null,null,null,null,2364,16817.110865716433,1.3133553455777094,21278.749070815476,1.4629970295351311]
[null,null,null,null,null,null,null,null,null,null,null,null,null,null,null,null,null,null,null,null,null,null,null,null,null,null,null,null,null,null,null,null,null,null,null,null,null,null,null,null,null,null,null,null,null,null,null,null,null,null,null,null,2370,15732.704403056083,-0.56574154559875556,20723.82834938325,-0.46204831260487333]
[null,null,null,null,null,null,null,null,null,null,null,null,null,null,null,null,null,null,null,null,null,null,null,null,null,null,null,null,null,null,null,null,null,null,null,null,null,null,null,null,null,null,null,null,null,null,null,null,null,null,null,null,2389,15736.351955690197,0.36915326423295147,21413.6794556026,0.3239007342037552]
[null,null,null,null,null,null,null,null,null,null,null,null,null,null,null,null,null,null,null,null,null,null,null,null,null,null,null,null,null,null,null,null,null,null,null,null,null,null,null,null,null,null,null,null,null,null,null,null,null,null,null,null,2416,12379.280532236513,1.3347553406767119,21192.097096645732,0.87738464225407764]
[null,null,null,null,null,null,null,null,null,null,null,null,null,null,null,null,null,null,null,null,null,null,null,null,null,null,null,null,null,null,null,null,null,null,null,null,null,null,null,null,null,null,null,null,null,null,null,null,null,null,null,null,2432,16444.248477550402,0.92200793190395125,21732.609999177945,1.0017837040975557]
[null,null,null,null,null,null,null,null,null,null,null,null,null,null,null,null,null,null,null,null,null,null,null,null,null,null,null,null,null,null,null,null,null,null,null,null,null,null,null,null,null,null,null,null,null,null,null,null,null,null,null,null,2451,13901.91682689013,1.3387637592758173,19835.812902083442,1.1277363198532966]
[null,null,null,null,null,null,null,null,null,null,null,null,null,null,null,null,null,null,null,null,null,null,null,null,null,null,null,null,null,null,null,null,null,null,null,null,null,null,null,null,null,null,null,null,null,null,null,null,null,null,null,null,2476,18792.810194289636,-0.37530925425783623,21582.27760195177,7.3825888392807015E-2]
[null,null,null,null,null,null,null,null,null,null,null,null,null,null,null,null,null,null,null,null,null,null,null,null,null,null,null,null,null,null,null,null,null,null,null,null,null,null,null,null,null,null,null,null,null,null,null,null,null,null,null,null,2493,14765.228101812403,1.5629374913353773,21474.582968547256,1.1550397778181258]
[null,null,null,null,null,null,null,null,null,null,null,null,null,null,null,null,null,null,null,null,null,null,null,null,null,null,null,null,null,null,null,null,null,null,null,null,null,null,null,null,null,null,null,null,null,null,null,null,null,null,null,null,2513,15705.030576404068,0.93528700509053897,21158.617104994322,0.67706769355012586]
[null,null,null,null,null,null,null,null,null,null,null,null,null,null,null,null,null,null,null,null,null,null,null,null,null,null,null,null,null,null,null,null,null,null,null,null,null,null,null,null,null,null,null,null,null,null,null,null,null,null,null,null,2519,16457.365574202158,1.4435636534315264,21071.401206384671,1.4910274423184549]
[null,null,null,null,null,null,null,null,null,null,null,null,null,null,null,null,null,null,null,null,null,null,null,null,null,null,null,null,null,null,null,null,null,null,null,null,null,null,null,null,null,null,null,null,null,null,null,null,null,null,null,null,2538,15453.705435666119,0.74569101596042753,22237.513552697179,0.9265040620818209]
[null,null,null,null,null,null,null,null,null,null,null,null,null,null,null,null,null,null,null,null,null,null,null,null,null,null,null,null,null,null,null,null,null,null,null,null,null,null,null,null,null,null,null,null,null,null,null,null,null,null,null,null,{"$f":"1+BA2570","v":2563},12294.464665113412,1.6201337025726597,20536.703120059072,0.70254881862019869]
[null,null,null,null,null,null,null,null,null,null,null,null,null,null,null,null,null,null,null,null,null,null,null,null,null,null,null,null,null,null,null,null,null,null,null,null,null,null,null,null,null,null,null,null,null,null,null,null,null,null,null,null,2592,16227.403089840387,0.54033268819308133,21842.507267374705,0.93713973410843143]
[null,null,null,null,null,null,null,null,null,null,null,null,null,null,null,null,null,null,null,null,null,null,null,null,null,null,null,null,null,null,null,null,null,null,null,null,null,null,null,null,null,null,null,null,null,null,null,null,null,null,null,null,2600,12648.600941550161,1.8066061920430294,21344.820752471962,1.3684239464182792]
[null,null,null,null,null,null,null,null,null,null,null,null,null,null,null,null,null,null,null,null,null,null,null,null,null,null,null,null,null,null,null,null,null,null,null,null,null,null,null,null,null,null,null,null,null,null,null,null,null,null,null,null,2625,16402.326142092388,-0.21880065162838647,20400.859301014119,0.4302429279318094]
[null,null,null,null,null,null,null,null,null,null,null,null,null,null,null,null,null,null,null,null,null,null,null,null,null,null,null,null,null,null,null,null,null,null,null,null,null,null,null,null,null,null,null,null,null,null,null,null,null,null,null,null,2644,12793.777771347764,1.479266845265224,20280.336719796607,1.0868563682518491]
[null,null,null,null,null,null,null,null,null,null,null,null,null,null,null,null,null,null,null,null,null,null,null,null,null,null,null,null,null,null,null,null,null,null,null,null,null,null,null,null,null,null,null,null,null,null,null,null,null,null,null,null,2665,15464.722954887548,1.6721377995008779,21588.476263761469,1.4776267633184945]
[null,null,null,null,null,null,null,null,null,null,null,null,null,null,null,null,null,null,null,null,null,null,null,null,null,null,null,null,null,null,null,null,null,null,null,null,null,null,null,null,null,null,null,null,null,null,null,null,null,null,null,null,2687,13931.605413152542,0.77209764164366246,21553.539460537442,0.22054991529513002]
[null,null,null,null,null,null,null,null,null,null,null,null,null,null,null,null,null,null,null,null,null,null,null,null,null,null,null,null,null,null,null,null,null,null,null,null,null,null,null,null,null,null,null,null,null,null,null,null,null,null,null,null,2706,16370.94599225172,0.69450462359731879,20622.548654941231,1.0159947187613549]
[null,null,null,null,null,null,null,null,null,null,null,null,null,null,null,null,null,null,null,null,null,null,null,null,null,null,null,null,null,null,null,null,null,null,null,null,null,null,null,null,null,null,null,null,null,null,null,null,null,null,null,null,2712,17973.040473363468,0.48211234452243062,20594.403742392384,0.75896253112013268]
[null,null,null,null,null,null,null,null,null,null,null,null,null,null,null,null,null,null,null,null,null,null,null,null,null,null,null,null,null,null,null,null,null,null,null,null,null,null,null,null,null,null,null,null,null,null,null,null,null,null,null,null,2742,19762.271014671747,0.23873760623839002,21537.798816470444,0.91553052344688801]
[null,null,null,null,null,null,null,null,null,null,null,null,null,null,null,null,null,null,null,null,null,null,null,null,null,null,null,null,null,null,null,null,null,null,null,null,null,null,null,null,null,null,null,null,null,null,null,null,null,null,null,null,2749,16181.835231226916,1.2018349850946608,20512.910346058663,1.1441473669234197]
[null,null,null,null,null,null,null,null,null,null,null,null,null,null,null,null,null,null,null,null,null,null,null,null,null,null,null,null,null,null,null,null,null,null,null,null,null,null,null,null,null,null,null,null,null,null,null,null,null,null,null,null,2774,17678.20015145724,0.85340985909713873,21310.783249608601,1.206651005055964]
[null,null,null,null,null,null,null,null,null,null,null,null,null,null,null,null,null,null,null,null,null,null,null,null,null,null,null,null,null,null,null,null,null,null,null,null,null,null,null,null,null,null,null,null,null,null,null,null,null,null,null,null,2793,14589.955265341581,-0.47356394660362988,21536.004174565791,-1.1702206981661722]
[null,null,null,null,null,null,null,null,null,null,null,null,null,null,null,null,null,null,null,null,null,null,null,null,null,null,null,null,null,null,null,null,null,null,null,null,null,null,null,null,null,null,null,null,null,null,null,null,null,null,null,null,2815,18639.291564536368,0.84135649058152362,21202.982130542867,1.5000635909906685]
[null,null,null,null,null,null,null,null,null,null,null,null,null,null,null,null,null,null,null,null,null,null,null,null,null,null,null,null,null,null,null,null,null,null,null,null,null,null,null,null,null,null,null,null,null,null,null,null,null,null,null,null,2836,16398.747577120663,0.92897881236750046,22192.393619258237,1.085548530935228]
[null,null,null,null,null,null,null,null,null,null,null,null,null,null,null,null,null,null,null,null,null,null,null,null,null,null,null,null,null,null,null,null,null,null,null,null,null,null,null,null,null,null,null,null,null,null,null,null,null,null,null,null,2855,15788.875240011002,0.93958366739329224,21431.974013134648,1.2506710347309327]
[null,null,null,null,null,null,null,null,null,null,null,null,null,null,null,null,null,null,null,null,null,null,null,null,null,null,null,null,null,null,null,null,null,null,null,null,null,null,null,null,null,null,null,null,null,null,null,null,null,null,null,null,2861,17652.139458524929,0.79012235237345052,22053.159462253137,1.2422765643690186]
[null,null,null,null,null,null,null,null,null,null,null,null,null,null,null,null,null,null,null,null,null,null,null,null,null,null,null,null,null,null,null,null,null,null,null,null,null,null,null,null,null,null,null,null,null,null,null,null,null,null,null,null,2880,17681.218116294138,0.24242613981884897,21423.792293879327,0.63886840939232514]
[null,null,null,null,null,null,null,null,null,null,null,null,null,null,null,null,null,null,null,null,null,null,null,null,null,null,null,null,null,null,null,null,null,null,null,null,null,null,null,null,null,null,null,null,null,null,null,null,null,null,null,null,2896,13574.060824409031,1.6774918273584654,20927.204264517386,1.5720676782106109]
[null,null,null,null,null,null,null,null,null,null,null,null,null,null,null,null,null,null,null,null,null,null,null,null,null,null,null,null,null,null,null,null,null,null,null,null,null,null,null,null,null,null,null,null,null,null,null,null,null,null,null,null,2923,12585.685175654431,2.1313937316857636,21005.996720296858,1.7601035638817253]
[null,null,null,null,null,null,null,null,null,null,null,null,null,null,null,null,null,null,null,null,null,null,null,null,null,null,null,null,null,null,null,null,null,null,null,null,null,null,null,null,null,null,null,null,null,null,null,null,null,null,null,null,2942,15736.064153302965,1.1555155063203906,20825.92215785358,0.94384593279976914]
[null,null,null,null,null,null,null,null,null,null,null,null,null,null,null,null,null,null,null,null,null,null,null,null,null,null,null,null,null,null,null,null,null,null,null,null,null,null,null,null,null,null,null,null,null,null,null,null,null,null,null,null,2967,16107.823944445092,1.0616999182326521,20777.071299565305,1.0463928060962677]
[null,null,null,null,null,null,null,null,null,null,null,null,null,null,null,null,null,null,null,null,null,null,null,null,null,null,null,null,null,null,null,null,null,null,null,null,null,null,null,null,null,null,null,null,null,null,null,null,null,null,null,null,2973,13647.348933121164,1.2248944028203053,20651.068892962568,0.78948963152614116]
[null,null,null,null,null,null,null,null,null,null,null,null,null,null,null,null,null,null,null,null,null,null,null,null,null,null,null,null,null,null,null,null,null,null,null,null,null,null,null,null,null,null,null,null,null,null,null,null,null,null,null,null,3004,16644.78892419051,0.6361913067545848,20919.403008017016,0.77853514184664685]
[null,null,null,null,null,null,null,null,null,null,null,null,null,null,null,null,null,null,null,null,null,null,null,null,null,null,null,null,null,null,null,null,null,null,null,null,null,null,null,null,null,null,null,null,null,null,null,null,null,null,null,null,3010,16203.779519468675,0.7779801061550129,21145.85061174661,0.79731574867520583]
[null,null,null,null,null,null,null,null,null,null,null,null,null,null,null,null,null,null,null,null,null,null,null,null,null,null,null,null,null,null,null,null,null,null,null,null,null,null,null,null,null,null,null,null,null,null,null,null,null,null,null,null,3029,16162.962461913881,0.8697576647613019,20802.877362593026,1.1200950984404621]
[null,null,null,null,null,null,null,null,null,null,null,null,null,null,null,null,null,null,null,null,null,null,null,null,null,null,null,null,null,null,null,null,null,null,null,null,null,null,null,null,null,null,null,null,null,null,null,null,null,null,null,null,3046,19173.6928623844,-0.6421647089052458,21589.941532897068,5.6938629772775862E-3]
[null,null,null,null,null,null,null,null,null,null,null,null,null,null,null,null,null,null,null,null,null,null,null,null,null,null,null,null,null,null,null,null,null,null,null,null,null,null,null,null,null,null,null,null,null,null,null,null,null,null,null,null,3072,15874.27725367213,0.61044463074140665,20958.543103599914,0.88606373206916822]
[null,null,null,null,null,null,null,null,null,null,null,null,null,null,null,null,null,null,null,null,null,null,null,null,null,null,null,null,null,null,null,null,null,null,null,null,null,null,null,null,null,null,null,null,null,null,null,null,null,null,null,null,3091,18998.166548278583,-0.85412327024876311,21801.050922840608,0.11637750692518867]
[null,null,null,null,null,null,null,null,null,null,null,null,null,null,null,null,null,null,null,null,null,null,null,null,null,null,null,null,null,null,null,null,null,null,null,null,null,null,null,null,null,null,null,null,null,null,null,null,null,null,null,null,3116,12871.822565955605,1.488177208522204,20942.583839653358,0.70965764813082632]
[null,null,null,null,null,null,null,null,null,null,null,null,null,null,null,null,null,null,null,null,null,null,null,null,null,null,null,null,null,null,null,null,null,null,null,null,null,null,null,null,null,null,null,null,null,null,null,null,null,null,null,null,3135,16498.65327328206,0.28603203758552131,20248.12064346901,0.59465207195187297]
[null,null,null,null,null,null,null,null,null,null,null,null,null,null,null,null,null,null,null,null,null,null,null,null,null,null,null,null,null,null,null,null,null,null,null,null,null,null,null,null,null,null,null,null,null,null,null,null,null,null,null,null,3145,17976.942088346779,0.83616099143509248,20779.317050294587,1.1579297389793044]
[null,null,null,null,null,null,null,null,null,null,null,null,null,null,null,null,null,null,null,null,null,null,null,null,null,null,null,null,null,null,null,null,null,null,null,null,null,null,null,null,null,null,null,null,null,null,null,null,null,null,null,null,3159,16649.673028558253,0.70768047017622782,21210.945998221967,0.79960869110024657]
[null,null,null,null,null,null,null,null,null,null,null,null,null,null,null,null,null,null,null,null,null,null,null,null,null,null,null,null,null,null,null,null,null,null,null,null,null,null,null,null,null,null,null,null,null,null,null,null,null,null,null,null,3178,12723.072914148812,0.96561058621241425,19064.189976800077,0.57030408385477804]
[null,null,null,null,null,null,null,null,null,null,null,null,null,null,null,null,null,null,null,null,null,null,null,null,null,null,null,null,null,null,null,null,null,null,null,null,null,null,null,null,null,null,null,null,null,null,null,null,null,null,null,null,{"$f":"1+BA3210","v":3203},13084.362238100495,1.4929006425801454,21232.44459608342,0.93836803454679252]
[null,null,null,null,null,null,null,null,null,null,null,null,null,null,null,null,null,null,null,null,null,null,null,null,null,null,null,null,null,null,null,null,null,null,null,null,null,null,null,null,null,null,null,null,null,null,null,null,null,null,null,null,3222,15617.359684029134,0.92307480076455062,21865.597167357777,0.99376532820817043]
[null,null,null,null,null,null,null,null,null,null,null,null,null,null,null,null,null,null,null,null,null,null,null,null,null,null,null,null,null,null,null,null,null,null,null,null,null,null,null,null,null,null,null,null,null,null,null,null,null,null,null,null,3240,15899.076314980965,1.3303416549248266,21461.638053905554,1.4542462011517816]
[null,null,null,null,null,null,null,null,null,null,null,null,null,null,null,null,null,null,null,null,null,null,null,null,null,null,null,null,null,null,null,null,null,null,null,null,null,null,null,null,null,null,null,null,null,null,null,null,null,null,null,null,3265,16486.144610089217,0.61146672241829325,20646.081628537722,0.88507096146249453]
[null,null,null,null,null,null,null,null,null,null,null,null,null,null,null,null,null,null,null,null,null,null,null,null,null,null,null,null,null,null,null,null,null,null,null,null,null,null,null,null,null,null,null,null,null,null,null,null,null,null,null,null,3284,15707.4099563325,0.83062040517753966,21112.765503728471,0.93765310135857793]
[null,null,null,null,null,null,null,null,null,null,null,null,null,null,null,null,null,null,null,null,null,null,null,null,null,null,null,null,null,null,null,null,null,null,null,null,null,null,null,null,null,null,null,null,null,null,null,null,null,null,null,null,3295,15460.605080950412,1.4433228350774978,20871.015085043895,1.3083794820993779]
[null,null,null,null,null,null,null,null,null,null,null,null,null,null,null,null,null,null,null,null,null,null,null,null,null,null,null,null,null,null,null,null,null,null,null,null,null,null,null,null,null,null,null,null,null,null,null,null,null,null,null,null,3308,16013.155760250971,0.14343372877376726,20929.337393635898,0.58713490604965424]
[null,null,null,null,null,null,null,null,null,null,null,null,null,null,null,null,null,null,null,null,null,null,null,null,null,null,null,null,null,null,null,null,null,null,null,null,null,null,null,null,null,null,null,null,null,null,null,null,null,null,null,null,3327,18409.934324891074,0.15610324751767501,20870.505334634909,0.6738157218135552]
[null,null,null,null,null,null,null,null,null,null,null,null,null,null,null,null,null,null,null,null,null,null,null,null,null,null,null,null,null,null,null,null,null,null,null,null,null,null,null,null,null,null,null,null,null,null,null,null,null,null,null,null,3352,15640.308401657112,1.0799436656564467,21122.641516197466,0.96163446366658767]
[null,null,null,null,null,null,null,null,null,null,null,null,null,null,null,null,null,null,null,null,null,null,null,null,null,null,null,null,null,null,null,null,null,null,null,null,null,null,null,null,null,null,null,null,null,null,null,null,null,null,null,null,3372,15908.805517170205,0.97584717164801438,21441.849729611058,1.0335656799065795]
[null,null,null,null,null,null,null,null,null,null,null,null,null,null,null,null,null,null,null,null,null,null,null,null,null,null,null,null,null,null,null,null,null,null,null,null,null,null,null,null,null,null,null,null,null,null,null,null,null,null,null,null,3389,20241.160746267215,-0.11436530241814491,21462.532897512283,0.74726876986890622]
[null,null,null,null,null,null,null,null,null,null,null,null,null,null,null,null,null,null,null,null,null,null,null,null,null,null,null,null,null,null,null,null,null,null,null,null,null,null,null,null,null,null,null,null,null,null,null,null,null,null,null,null,3414,15366.408732099306,0.7666654559347621,21131.615786410166,0.49495933523232316]
[null,null,null,null,null,null,null,null,null,null,null,null,null,null,null,null,null,null,null,null,null,null,null,null,null,null,null,null,null,null,null,null,null,null,null,null,null,null,null,null,null,null,null,null,null,null,null,null,null,null,null,null,3433,16564.55495254265,-0.49861514852181227,20104.289382806841,0.17931364535631811]
[null,null,null,null,null,null,null,null,null,null,null,null,null,null,null,null,null,null,null,null,null,null,null,null,null,null,null,null,null,null,null,null,null,null,null,null,null,null,null,null,null,null,null,null,null,null,null,null,null,null,null,null,3452,14286.104562382194,1.0647505492882585,21455.610238178553,0.87125518195473139]
[null,null,null,null,null,null,null,null,null,null,null,null,null,null,null,null,null,null,null,null,null,null,null,null,null,null,null,null,null,null,null,null,null,null,null,null,null,null,null,null,null,null,null,null,null,null,null,null,null,null,null,null,3471,18435.703983275347,1.1066026190845482,21342.418018917058,1.6319646499144915]
[null,null,null,null,null,null,null,null,null,null,null,null,null,null,null,null,null,null,null,null,null,null,null,null,null,null,null,null,null,null,null,null,null,null,null,null,null,null,null,null,null,null,null,null,null,null,null,null,null,null,null,null,3476,16379.08660145168,0.73485439608428216,21094.525568230958,0.9324772132940442]
[null,null,null,null,null,null,null,null,null,null,null,null,null,null,null,null,null,null,null,null,null,null,null,null,null,null,null,null,null,null,null,null,null,null,null,null,null,null,null,null,null,null,null,null,null,null,null,null,null,null,null,null,3501,13692.88321183357,2.0237568586460233,21353.086902400599,1.6986758420302008]
[null,null,null,null,null,null,null,null,null,null,null,null,null,null,null,null,null,null,null,null,null,null,null,null,null,null,null,null,null,null,null,null,null,null,null,null,null,null,null,null,null,null,null,null,null,null,null,null,null,null,null,null,3520,15774.241077331097,0.45557009186761299,20572.950042074182,0.4588536489708801]
[null,null,null,null,null,null,null,null,null,null,null,null,null,null,null,null,null,null,null,null,null,null,null,null,null,null,null,null,null,null,null,null,null,null,null,null,null,null,null,null,null,null,null,null,null,null,null,null,null,null,null,null,3544,15154.671838099286,1.2614913225200757,21258.499099336223,1.091759441896708]
[null,null,null,null,null,null,null,null,null,null,null,null,null,null,null,null,null,null,null,null,null,null,null,null,null,null,null,null,null,null,null,null,null,null,null,null,null,null,null,null,null,null,null,null,null,null,null,null,null,null,null,null,3563,15895.722139176249,1.510936508178264,20876.284610321269,1.5555901255125244]
[null,null,null,null,null,null,null,null,null,null,null,null,null,null,null,null,null,null,null,null,null,null,null,null,null,null,null,null,null,null,null,null,null,null,null,null,null,null,null,null,null,null,null,null,null,null,null,null,null,null,null,null,3582,11521.933321847289,1.691258893119219,20628.124003272442,0.69050327513329968]
[null,null,null,null,null,null,null,null,null,null,null,null,null,null,null,null,null,null,null,null,null,null,null,null,null,null,null,null,null,null,null,null,null,null,null,null,null,null,null,null,null,null,null,null,null,null,null,null,null,null,null,null,3607,16865.250173032495,-0.18722240373385746,21021.273340608765,-2.6118173118903076E-2]
[null,null,null,null,null,null,null,null,null,null,null,null,null,null,null,null,null,null,null,null,null,null,null,null,null,null,null,null,null,null,null,null,null,null,null,null,null,null,null,null,null,null,null,null,null,null,null,null,null,null,null,null,3621,17113.087469941842,0.30011193718195178,20496.997638703437,0.8463592514747118]
[null,null,null,null,null,null,null,null,null,null,null,null,null,null,null,null,null,null,null,null,null,null,null,null,null,null,null,null,null,null,null,null,null,null,null,null,null,null,null,null,null,null,null,null,null,null,null,null,null,null,null,null,3644,15567.644090849841,-0.19233361492608192,20601.583310961949,-0.14647106428623524]
[null,null,null,null,null,null,null,null,null,null,null,null,null,null,null,null,null,null,null,null,null,null,null,null,null,null,null,null,null,null,null,null,null,null,null,null,null,null,null,null,null,null,null,null,null,null,null,null,null,null,null,null,3650,17425.14724621136,5.3548521261180149E-2,20766.379031078839,0.44157544553346695]
[null,null,null,null,null,null,null,null,null,null,null,null,null,null,null,null,null,null,null,null,null,null,null,null,null,null,null,null,null,null,null,null,null,null,null,null,null,null,null,null,null,null,null,null,null,null,null,null,null,null,null,null,3669,15292.821173664703,0.82061183590370979,20781.757395819048,1.0226692297969542]
[null,null,null,null,null,null,null,null,null,null,null,null,null,null,null,null,null,null,null,null,null,null,null,null,null,null,null,null,null,null,null,null,null,null,null,null,null,null,null,null,null,null,null,null,null,null,null,null,null,null,null,null,3694,14976.137652887592,1.0589937966626861,20179.916836611894,0.88366469741378995]
[null,null,null,null,null,null,null,null,null,null,null,null,null,null,null,null,null,null,null,null,null,null,null,null,null,null,null,null,null,null,null,null,null,null,null,null,null,null,null,null,null,null,null,null,null,null,null,null,null,null,null,null,3712,14895.708565013032,0.63197971628879612,21617.093856706182,0.50799303018260211]
[null,null,null,null,null,null,null,null,null,null,null,null,null,null,null,null,null,null,null,null,null,null,null,null,null,null,null,null,null,null,null,null,null,null,null,null,null,null,null,null,null,null,null,null,null,null,null,null,null,null,null,null,3731,15154.231377862472,1.6040400689509093,21158.089594823516,1.7852364468544151]
[null,null,null,null,null,null,null,null,null,null,null,null,null,null,null,null,null,null,null,null,null,null,null,null,null,null,null,null,null,null,null,null,null,null,null,null,null,null,null,null,null,null,null,null,null,null,null,null,null,null,null,null,3756,16144.763500796556,0.31213253636322835,21203.833383716083,0.67106526328268012]
[null,null,null,null,null,null,null,null,null,null,null,null,null,null,null,null,null,null,null,null,null,null,null,null,null,null,null,null,null,null,null,null,null,null,null,null,null,null,null,null,null,null,null,null,null,null,null,null,null,null,null,null,3775,15974.215462184977,0.38448478174921563,20956.816172046951,0.4479281926664026]
[null,null,null,null,null,null,null,null,null,null,null,null,null,null,null,null,null,null,null,null,null,null,null,null,null,null,null,null,null,null,null,null,null,null,null,null,null,null,null,null,null,null,null,null,null,null,null,null,null,null,null,null,3793,16785.129088379825,0.28865398602342307,21983.801290368559,0.7362336939520896]
[null,null,null,null,null,null,null,null,null,null,null,null,null,null,null,null,null,null,null,null,null,null,null,null,null,null,null,null,null,null,null,null,null,null,null,null,null,null,null,null,null,null,null,null,null,null,null,null,null,null,null,null,3799,16558.584495421448,0.42529038491885074,20984.0000078011,0.68700163833604544]
[null,null,null,null,null,null,null,null,null,null,null,null,null,null,null,null,null,null,null,null,null,null,null,null,null,null,null,null,null,null,null,null,null,null,null,null,null,null,null,null,null,null,null,null,null,null,null,null,null,null,null,null,3818,15752.594534247848,0.28579884073811623,20532.865552465486,0.32146957591773195]
[null,null,null,null,null,null,null,null,null,null,null,null,null,null,null,null,null,null,null,null,null,null,null,null,null,null,null,null,null,null,null,null,null,null,null,null,null,null,null,null,null,null,null,null,null,null,null,null,null,null,null,null,3837,18327.877226645389,0.89175480855145728,21339.375886689941,1.2673760699417602]
[null,null,null,null,null,null,null,null,null,null,null,null,null,null,null,null,null,null,null,null,null,null,null,null,null,null,null,null,null,null,null,null,null,null,null,null,null,null,null,null,null,null,null,null,null,null,null,null,null,null,null,null,3852,15134.102460869208,0.67827763743173097,20730.881995020703,0.42870831999321346]
[null,null,null,null,null,null,null,null,null,null,null,null,null,null,null,null,null,null,null,null,null,null,null,null,null,null,null,null,null,null,null,null,null,null,null,null,null,null,null,null,null,null,null,null,null,null,null,null,null,null,null,null,3880,17329.948704726463,0.92532599281012717,21780.547292815208,1.2146946447974243]
[null,null,null,null,null,null,null,null,null,null,null,null,null,null,null,null,null,null,null,null,null,null,null,null,null,null,null,null,null,null,null,null,null,null,null,null,null,null,null,null,null,null,null,null,null,null,null,null,null,null,null,null,3905,13595.503867855958,1.3139931319552165,20648.481221605936,1.2535256711059566]
[null,null,null,null,null,null,null,null,null,null,null,null,null,null,null,null,null,null,null,null,null,null,null,null,null,null,null,null,null,null,null,null,null,null,null,null,null,null,null,null,null,null,null,null,null,null,null,null,null,null,null,null,3924,14389.597823025933,1.777705357658544,19967.095777838826,1.2214883506033296]
[null,null,null,null,null,null,null,null,null,null,null,null,null,null,null,null,null,null,null,null,null,null,null,null,null,null,null,null,null,null,null,null,null,null,null,null,null,null,null,null,null,null,null,null,null,null,null,null,null,null,null,null,3943,16236.382910731963,0.35832438030709635,20629.244432252912,0.34890201585554925]
[null,null,null,null,null,null,null,null,null,null,null,null,null,null,null,null,null,null,null,null,null,null,null,null,null,null,null,null,null,null,null,null,null,null,null,null,null,null,null,null,null,null,null,null,null,null,null,null,null,null,null,null,3948,12122.14268127952,1.0679889977318244,21689.534930056252,0.20384264900572235]
[null,null,null,null,null,null,null,null,null,null,null,null,null,null,null,null,null,null,null,null,null,null,null,null,null,null,null,null,null,null,null,null,null,null,null,null,null,null,null,null,null,null,null,null,null,null,null,null,null,null,null,null,3967,15341.930664323545,0.55489175724186834,20842.820325845838,0.32068640943125215]
[null,null,null,null,null,null,null,null,null,null,null,null,null,null,null,null,null,null,null,null,null,null,null,null,null,null,null,null,null,null,null,null,null,null,null,null,null,null,null,null,null,null,null,null,null,null,null,null,null,null,null,null,3992,14649.737926936317,0.94782206374299482,20992.198052339016,0.81166422480196443]
[null,null,null,null,null,null,null,null,null,null,null,null,null,null,null,null,null,null,null,null,null,null,null,null,null,null,null,null,null,null,null,null,null,null,null,null,null,null,null,null,null,null,null,null,null,null,null,null,null,null,null,null,4011,16967.476415328238,-0.39205320186719272,20841.509497318279,-8.4826315789420237E-2]
[null,null,null,null,null,null,null,null,null,null,null,null,null,null,null,null,null,null,null,null,null,null,null,null,null,null,null,null,null,null,null,null,null,null,null,null,null,null,null,null,null,null,null,null,null,null,null,null,null,null,null,null,4024,18637.467295272036,0.48422433017238697,20850.9957950756,1.0831796775278013]
[null,null,null,null,null,null,null,null,null,null,null,null,null,null,null,null,null,null,null,null,null,null,null,null,null,null,null,null,null,null,null,null,null,null,null,null,null,null,null,null,null,null,null,null,null,null,null,null,null,null,null,null,4054,13468.341305867587,-0.13839097783972387,20312.497996294485,-0.18336998746554523]
[null,null,null,null,null,null,null,null,null,null,null,null,null,null,null,null,null,null,null,null,null,null,null,null,null,null,null,null,null,null,null,null,null,null,null,null,null,null,null,null,null,null,null,null,null,null,null,null,null,null,null,null,4073,14652.429054556065,1.3860123587450879,20422.457388551549,1.0666114830137714]
[null,null,null,null,null,null,null,null,null,null,null,null,null,null,null,null,null,null,null,null,null,null,null,null,null,null,null,null,null,null,null,null,null,null,null,null,null,null,null,null,null,null,null,null,null,null,null,null,null,null,null,null,4092,14651.231825619365,1.204790128713805,22557.277123713073,0.95660979259816104]
[null,null,null,null,null,null,null,null,null,null,null,null,null,null,null,null,null,null,null,null,null,null,null,null,null,null,null,null,null,null,null,null,null,null,null,null,null,null,null,null,null,null,null,null,null,null,null,null,null,null,null,null,4101,15962.667975338451,0.41201851341252971,21470.74480008793,0.695204041848833]
[null,null,null,null,null,null,null,null,null,null,null,null,null,null,null,null,null,null,null,null,null,null,null,null,null,null,null,null,null,null,null,null,null,null,null,null,null,null,null,null,null,null,null,null,null,null,null,null,null,null,null,null,4116,18522.279761450467,0.95775740705975732,21188.850850653344,1.3938778266994902]
[null,null,null,null,null,null,null,null,null,null,null,null,null,null,null,null,null,null,null,null,null,null,null,null,null,null,null,null,null,null,null,null,null,null,null,null,null,null,null,null,null,null,null,null,null,null,null,null,null,null,null,null,4141,14841.423940137203,1.3491253489777757,20447.923762475628,1.2858713437777616]
[null,null,null,null,null,null,null,null,null,null,null,null,null,null,null,null,null,null,null,null,null,null,null,null,null,null,null,null,null,null,null,null,null,null,null,null,null,null,null,null,null,null,null,null,null,null,null,null,null,null,null,null,4160,13859.194889878674,1.377001693233598,21405.96815193737,1.0660729485756444]
[null,null,null,null,null,null,null,null,null,null,null,null,null,null,null,null,null,null,null,null,null,null,null,null,null,null,null,null,null,null,null,null,null,null,null,null,null,null,null,null,null,null,null,null,null,null,null,null,null,null,null,null,4174,14163.047039730487,0.99092731835515013,21568.892765507218,0.59688825372513765]
[null,null,null,null,null,null,null,null,null,null,null,null,null,null,null,null,null,null,null,null,null,null,null,null,null,null,null,null,null,null,null,null,null,null,null,null,null,null,null,null,null,null,null,null,null,null,null,null,null,null,null,null,4203,17382.153420988263,-0.3473874952263849,21804.331181492569,0.1349567951570052]
[null,null,null,null,null,null,null,null,null,null,null,null,null,null,null,null,null,null,null,null,null,null,null,null,null,null,null,null,null,null,null,null,null,null,null,null,null,null,null,null,null,null,null,null,null,null,null,null,null,null,null,null,4222,16872.909799620691,1.2053357026185938,21638.137491981448,1.3440201128491815]
[null,null,null,null,null,null,null,null,null,null,null,null,null,null,null,null,null,null,null,null,null,null,null,null,null,null,null,null,null,null,null,null,null,null,null,null,null,null,null,null,null,null,null,null,null,null,null,null,null,null,null,null,4228,13595.392908216107,1.3985418110085952,21480.389703640823,5.3442398886536457E-2]
[null,null,null,null,null,null,null,null,null,null,null,null,null,null,null,null,null,null,null,null,null,null,null,null,null,null,null,null,null,null,null,null,null,null,null,null,null,null,null,null,null,null,null,null,null,null,null,null,null,null,null,null,4251,13785.039583256908,1.3692252519101193,20364.757251938765,0.65022079356890816]
[null,null,null,null,null,null,null,null,null,null,null,null,null,null,null,null,null,null,null,null,null,null,null,null,null,null,null,null,null,null,null,null,null,null,null,null,null,null,null,null,null,null,null,null,null,null,null,null,null,null,null,null,4265,19363.467926724985,1.1625299641559803,21769.830261805215,1.5333644680206593]
[null,null,null,null,null,null,null,null,null,null,null,null,null,null,null,null,null,null,null,null,null,null,null,null,null,null,null,null,null,null,null,null,null,null,null,null,null,null,null,null,null,null,null,null,null,null,null,null,null,null,null,null,4290,15129.499374480762,0.51302187547279099,20678.592179843879,0.63112456175151599]
[null,null,null,null,null,null,null,null,null,null,null,null,null,null,null,null,null,null,null,null,null,null,null,null,null,null,null,null,null,null,null,null,null,null,null,null,null,null,null,null,null,null,null,null,null,null,null,null,null,null,null,null,4309,14443.952250002712,1.2348269376234828,21766.093796251167,0.68296113124080993]
[null,null,null,null,null,null,null,null,null,null,null,null,null,null,null,null,null,null,null,null,null,null,null,null,null,null,null,null,null,null,null,null,null,null,null,null,null,null,null,null,null,null,null,null,null,null,null,null,null,null,null,null,4328,17949.770869207325,-0.1416762435454838,21431.917872238311,0.52870378067457513]
[null,null,null,null,null,null,null,null,null,null,null,null,null,null,null,null,null,null,null,null,null,null,null,null,null,null,null,null,null,null,null,null,null,null,null,null,null,null,null,null,null,null,null,null,null,null,null,null,null,null,null,null,4350,15493.434962398713,0.98168003400740256,20962.360346560072,0.72279535480856683]
[null,null,null,null,null,null,null,null,null,null,null,null,null,null,null,null,null,null,null,null,null,null,null,null,null,null,null,null,null,null,null,null,null,null,null,null,null,null,null,null,null,null,null,null,null,null,null,null,null,null,null,null,4371,15326.815462995426,1.6565314019890285,21025.636171420527,1.6996417718640386]
[null,null,null,null,null,null,null,null,null,null,null,null,null,null,null,null,null,null,null,null,null,null,null,null,null,null,null,null,null,null,null,null,null,null,null,null,null,null,null,null,null,null,null,null,null,null,null,null,null,null,null,null,4377,12575.738844158686,1.6198542840610555,20174.689981045682,1.1115801775235061]
[null,null,null,null,null,null,null,null,null,null,null,null,null,null,null,null,null,null,null,null,null,null,null,null,null,null,null,null,null,null,null,null,null,null,null,null,null,null,null,null,null,null,null,null,null,null,null,null,null,null,null,null,4396,17396.37531746061,-9.1687747506172146E-2,21246.302300159092,9.2508316030753379E-2]
[null,null,null,null,null,null,null,null,null,null,null,null,null,null,null,null,null,null,null,null,null,null,null,null,null,null,null,null,null,null,null,null,null,null,null,null,null,null,null,null,null,null,null,null,null,null,null,null,null,null,null,null,4423,16430.622562754779,0.48203740305208675,21663.434872035861,0.85046915717533711]
[null,null,null,null,null,null,null,null,null,null,null,null,null,null,null,null,null,null,null,null,null,null,null,null,null,null,null,null,null,null,null,null,null,null,null,null,null,null,null,null,null,null,null,null,null,null,null,null,null,null,null,null,4439,16057.191025975138,1.2208294680741856,20530.705976318524,1.4463880348274385]
[null,null,null,null,null,null,null,null,null,null,null,null,null,null,null,null,null,null,null,null,null,null,null,null,null,null,null,null,null,null,null,null,null,null,null,null,null,null,null,null,null,null,null,null,null,null,null,null,null,null,null,null,4458,15789.578720146923,1.3600874566766707,21271.917514825513,1.1986765593932158]
[null,null,null,null,null,null,null,null,null,null,null,null,null,null,null,null,null,null,null,null,null,null,null,null,null,null,null,null,null,null,null,null,null,null,null,null,null,null,null,null,null,null,null,null,null,null,null,null,null,null,null,null,4477,14068.087888385471,1.9162728980719888,21784.291051209089,1.2758933418219165]
[null,null,null,null,null,null,null,null,null,null,null,null,null,null,null,null,null,null,null,null,null,null,null,null,null,null,null,null,null,null,null,null,null,null,null,null,null,null,null,null,null,null,null,null,null,null,null,null,null,null,null,null,4500,13007.173326591808,1.5017503552987659,20550.844758057865,0.89708332409899094]
[null,null,null,null,null,null,null,null,null,null,null,null,null,null,null,null,null,null,null,null,null,null,null,null,null,null,null,null,null,null,null,null,null,null,null,null,null,null,null,null,null,null,null,null,null,null,null,null,null,null,null,null,4520,14715.412177562208,0.59749605491507973,20304.825336326248,0.30241362610186706]
[null,null,null,null,null,null,null,null,null,null,null,null,null,null,null,null,null,null,null,null,null,null,null,null,null,null,null,null,null,null,null,null,null,null,null,null,null,null,null,null,null,null,null,null,null,null,null,null,null,null,null,null,4545,14122.346825655843,1.5367552505970004,21187.011566168359,0.95848055004091615]
[null,null,null,null,null,null,null,null,null,null,null,null,null,null,null,null,null,null,null,null,null,null,null,null,null,null,null,null,null,null,null,null,null,null,null,null,null,null,null,null,null,null,null,null,null,null,null,null,null,null,null,null,4564,18435.73314605212,0.40927304274149451,21224.317759008496,0.71521869652483838]
[null,null,null,null,null,null,null,null,null,null,null,null,null,null,null,null,null,null,null,null,null,null,null,null,null,null,null,null,null,null,null,null,null,null,null,null,null,null,null,null,null,null,null,null,null,null,null,null,null,null,null,null,4573,16974.922087012354,-0.22434157064908744,20819.217999321951,0.7153352034175704]
[null,null,null,null,null,null,null,null,null,null,null,null,null,null,null,null,null,null,null,null,null,null,null,null,null,null,null,null,null,null,null,null,null,null,null,null,null,null,null,null,null,null,null,null,null,null,null,null,null,null,null,null,4588,15108.709363550312,1.8118696643009202,20005.968742599314,1.672043483778344]
[null,null,null,null,null,null,null,null,null,null,null,null,null,null,null,null,null,null,null,null,null,null,null,null,null,null,null,null,null,null,null,null,null,null,null,null,null,null,null,null,null,null,null,null,null,null,null,null,null,null,null,null,4607,18457.626107620872,0.92800447155642718,21450.108706018531,1.3271139914011878]
[null,null,null,null,null,null,null,null,null,null,null,null,null,null,null,null,null,null,null,null,null,null,null,null,null,null,null,null,null,null,null,null,null,null,null,null,null,null,null,null,null,null,null,null,null,null,null,null,null,null,null,null,4632,18533.961118490352,0.80395528428413521,20590.266013868313,1.0359962644547587]
[null,null,null,null,null,null,null,null,null,null,null,null,null,null,null,null,null,null,null,null,null,null,null,null,null,null,null,null,null,null,null,null,null,null,null,null,null,null,null,null,null,null,null,null,null,null,null,null,null,null,null,null,4651,12581.210785966332,1.6981150105833682,20530.066988882783,0.90225913006745961]
[null,null,null,null,null,null,null,null,null,null,null,null,null,null,null,null,null,null,null,null,null,null,null,null,null,null,null,null,null,null,null,null,null,null,null,null,null,null,null,null,null,null,null,null,null,null,null,null,null,null,null,null,4672,13802.599587221252,1.1594500811232975,20442.24599763412,1.2347438805843356]
[null,null,null,null,null,null,null,null,null,null,null,null,null,null,null,null,null,null,null,null,null,null,null,null,null,null,null,null,null,null,null,null,null,null,null,null,null,null,null,null,null,null,null,null,null,null,null,null,null,null,null,null,4694,11638.620925898445,1.3929125887628682,20292.602547601044,5.8373022788052564E-2]
[null,null,null,null,null,null,null,null,null,null,null,null,null,null,null,null,null,null,null,null,null,null,null,null,null,null,null,null,null,null,null,null,null,null,null,null,null,null,null,null,null,null,null,null,null,null,null,null,null,null,null,null,4713,15747.887461395858,-8.9035297192869622E-2,20638.32110922522,0.72517856608725439]
[null,null,null,null,null,null,null,null,null,null,null,null,null,null,null,null,null,null,null,null,null,null,null,null,null,null,null,null,null,null,null,null,null,null,null,null,null,null,null,null,null,null,null,null,null,null,null,null,null,null,null,null,4732,14155.684806614114,1.7593527363808878,20648.386841188534,1.6777396222860892]
[null,null,null,null,null,null,null,null,null,null,null,null,null,null,null,null,null,null,null,null,null,null,null,null,null,null,null,null,null,null,null,null,null,null,null,null,null,null,null,null,null,null,null,null,null,null,null,null,null,null,null,null,4749,17366.130851041587,0.56877044958629452,21716.109694108087,0.8885439087521072]
[null,null,null,null,null,null,null,null,null,null,null,null,null,null,null,null,null,null,null,null,null,null,null,null,null,null,null,null,null,null,null,null,null,null,null,null,null,null,null,null,null,null,null,null,null,null,null,null,null,null,null,null,4756,16641.254613511694,0.64551213582411782,21084.232049035232,0.98800161254910801]
[null,null,null,null,null,null,null,null,null,null,null,null,null,null,null,null,null,null,null,null,null,null,null,null,null,null,null,null,null,null,null,null,null,null,null,null,null,null,null,null,null,null,null,null,null,null,null,null,null,null,null,null,4781,15955.13816392431,0.59403878206561811,21263.559217590915,0.66497613824080626]
[null,null,null,null,null,null,null,null,null,null,null,null,null,null,null,null,null,null,null,null,null,null,null,null,null,null,null,null,null,null,null,null,null,null,null,null,null,null,null,null,null,null,null,null,null,null,null,null,null,null,null,null,4800,16743.43264876636,0.36132602247189716,21064.733168466351,0.41967936062215572]
[null,null,null,null,null,null,null,null,null,null,null,null,null,null,null,null,null,null,null,null,null,null,null,null,null,null,null,null,null,null,null,null,null,null,null,null,null,null,null,null,null,null,null,null,null,null,null,null,null,null,null,null,4822,13768.569398404752,1.5672184390037527,20724.893100064277,1.1496894930026866]
[null,null,null,null,null,null,null,null,null,null,null,null,null,null,null,null,null,null,null,null,null,null,null,null,null,null,null,null,null,null,null,null,null,null,null,null,null,null,null,null,null,null,null,null,null,null,null,null,null,null,null,null,4843,17100.59916244019,0.87624038266525528,20254.353155456425,1.1748532634269369]
[null,null,null,null,null,null,null,null,null,null,null,null,null,null,null,null,null,null,null,null,null,null,null,null,null,null,null,null,null,null,null,null,null,null,null,null,null,null,null,null,null,null,null,null,null,null,null,null,null,null,null,null,4862,15310.576079059068,0.16310270251477021,21008.264416903723,0.58392094103370062]
[null,null,null,null,null,null,null,null,null,null,null,null,null,null,null,null,null,null,null,null,null,null,null,null,null,null,null,null,null,null,null,null,null,null,null,null,null,null,null,null,null,null,null,null,null,null,null,null,null,null,null,null,4881,13528.69143264517,1.1550552207119376,20525.44313423436,0.64133250580488632]
[null,null,null,null,null,null,null,null,null,null,null,null,null,null,null,null,null,null,null,null,null,null,null,null,null,null,null,null,null,null,null,null,null,null,null,null,null,null,null,null,null,null,null,null,null,null,null,null,null,null,null,null,4887,19169.452413354051,1.5659002263396795,22171.854740233153,1.7859859655707524]
[null,null,null,null,null,null,null,null,null,null,null,null,null,null,null,null,null,null,null,null,null,null,null,null,null,null,null,null,null,null,null,null,null,null,null,null,null,null,null,null,null,null,null,null,null,null,null,null,null,null,null,null,4903,15868.604238296355,0.8974611805811894,21404.023102233419,0.87275935885115463]
[null,null,null,null,null,null,null,null,null,null,null,null,null,null,null,null,null,null,null,null,null,null,null,null,null,null,null,null,null,null,null,null,null,null,null,null,null,null,null,null,null,null,null,null,null,null,null,null,null,null,null,null,4930,16647.479491480502,-5.0065236419575831E-2,21254.007067033999,0.59833064687241067]
[null,null,null,null,null,null,null,null,null,null,null,null,null,null,null,null,null,null,null,null,null,null,null,null,null,null,null,null,null,null,null,null,null,null,null,null,null,null,null,null,null,null,null,null,null,null,null,null,null,null,null,null,4949,17025.709560107465,0.50765753607066655,21264.461268601393,0.75868687281016001]
[null,null,null,null,null,null,null,null,null,null,null,null,null,null,null,null,null,null,null,null,null,null,null,null,null,null,null,null,null,null,null,null,null,null,null,null,null,null,null,null,null,null,null,null,null,null,null,null,null,null,null,null,4968,17215.617572214265,1.3288997144001398,20756.583280952837,1.4031773106463037]
[null,null,null,null,null,null,null,null,null,null,null,null,null,null,null,null,null,null,null,null,null,null,null,null,null,null,null,null,null,null,null,null,null,null,null,null,null,null,null,null,null,null,null,null,null,null,null,null,null,null,null,null,4980,19879.845276488151,5.5849170787033664E-2,21515.722710991373,0.89816897551312924]
[null,null,null,null,null,null,null,null,null,null,null,null,null,null,null,null,null,null,null,null,null,null,null,null,null,null,null,null,null,null,null,null,null,null,null,null,null,null,null,null,null,null,null,null,null,null,null,null,null,null,null,null,5011,15829.668814232733,1.2334960158157038,21509.7357315236,1.1311354952980393]
[null,null,null,null,null,null,null,null,null,null,null,null,null,null,null,null,null,null,null,null,null,null,null,null,null,null,null,null,null,null,null,null,null,null,null,null,null,null,null,null,null,null,null,null,null,null,null,null,null,null,null,null,5017,16920.768095015897,0.18085928159220599,21275.945572404533,0.97164899077181333]
[null,null,null,null,null,null,null,null,null,null,null,null,null,null,null,null,null,null,null,null,null,null,null,null,null,null,null,null,null,null,null,null,null,null,null,null,null,null,null,null,null,null,null,null,null,null,null,null,null,null,null,null,5036,16158.679941667335,1.2092980021230042,20756.773017998072,1.1559314185443883]
[null,null,null,null,null,null,null,null,null,null,null,null,null,null,null,null,null,null,null,null,null,null,null,null,null,null,null,null,null,null,null,null,null,null,null,null,null,null,null,null,null,null,null,null,null,null,null,null,null,null,null,null,5053,16296.761171831426,-2.5432099041154954E-3,20812.40191100978,-0.16823489915453893]
[null,null,null,null,null,null,null,null,null,null,null,null,null,null,null,null,null,null,null,null,null,null,null,null,null,null,null,null,null,null,null,null,null,null,null,null,null,null,null,null,null,null,null,null,null,null,null,null,null,null,null,null,5079,17892.47120599771,0.89348037201343766,20339.269771374493,1.3707105212585899]
[null,null,null,null,null,null,null,null,null,null,null,null,null,null,null,null,null,null,null,null,null,null,null,null,null,null,null,null,null,null,null,null,null,null,null,null,null,null,null,null,null,null,null,null,null,null,null,null,null,null,null,null,5098,14704.050905784967,1.4756895816572864,20882.299886308116,1.1658673761269795]
[null,null,null,null,null,null,null,null,null,null,null,null,null,null,null,null,null,null,null,null,null,null,null,null,null,null,null,null,null,null,null,null,null,null,null,null,null,null,null,null,null,null,null,null,null,null,null,null,null,null,null,null,5117,16341.941152860669,1.0283326052467388,21085.755050858417,1.363757680992842]
[null,null,null,null,null,null,null,null,null,null,null,null,null,null,null,null,null,null,null,null,null,null,null,null,null,null,null,null,null,null,null,null,null,null,null,null,null,null,null,null,null,null,null,null,null,null,null,null,null,null,null,null,5130,16328.982968039578,0.36407220850998756,21372.844755240269,0.52998403505079439]
[null,null,null,null,null,null,null,null,null,null,null,null,null,null,null,null,null,null,null,null,null,null,null,null,null,null,null,null,null,null,null,null,null,null,null,null,null,null,null,null,null,null,null,null,null,null,null,null,null,null,null,null,5160,15917.08915421458,0.88470776385321215,21222.823465553556,0.88993418031131999]
[null,null,null,null,null,null,null,null,null,null,null,null,null,null,null,null,null,null,null,null,null,null,null,null,null,null,null,null,null,null,null,null,null,null,null,null,null,null,null,null,null,null,null,null,null,null,null,null,null,null,null,null,5166,17669.825658350604,0.14242562996671304,20592.930051940835,0.3421116705466124]
[null,null,null,null,null,null,null,null,null,null,null,null,null,null,null,null,null,null,null,null,null,null,null,null,null,null,null,null,null,null,null,null,null,null,null,null,null,null,null,null,null,null,null,null,null,null,null,null,null,null,null,null,5185,17248.705168167842,-0.71464124504999726,21410.81972545835,-0.39066919617594231]
[null,null,null,null,null,null,null,null,null,null,null,null,null,null,null,null,null,null,null,null,null,null,null,null,null,null,null,null,null,null,null,null,null,null,null,null,null,null,null,null,null,null,null,null,null,null,null,null,null,null,null,null,5204,13953.493714094437,0.42362782860574777,20852.440207776577,6.5178657917442262E-2]
[null,null,null,null,null,null,null,null,null,null,null,null,null,null,null,null,null,null,null,null,null,null,null,null,null,null,null,null,null,null,null,null,null,null,null,null,null,null,null,null,null,null,null,null,null,null,null,null,null,null,null,null,5229,19274.208933589591,0.68147108821893387,21822.719542775754,1.001053389695935]
[null,null,null,null,null,null,null,null,null,null,null,null,null,null,null,null,null,null,null,null,null,null,null,null,null,null,null,null,null,null,null,null,null,null,null,null,null,null,null,null,null,null,null,null,null,null,null,null,null,null,null,null,5247,14729.782138087805,0.63911859997928178,20540.215269774271,0.40278937979013085]
[null,null,null,null,null,null,null,null,null,null,null,null,null,null,null,null,null,null,null,null,null,null,null,null,null,null,null,null,null,null,null,null,null,null,null,null,null,null,null,null,null,null,null,null,null,null,null,null,null,null,null,null,5272,13475.763776038077,1.2342382633494258,20276.679068900514,0.87757943158004381]
[null,null,null,null,null,null,null,null,null,null,null,null,null,null,null,null,null,null,null,null,null,null,null,null,null,null,null,null,null,null,null,null,null,null,null,null,null,null,null,null,null,null,null,null,null,null,null,null,null,null,null,null,5291,14543.252178681949,1.5213259866943269,21557.793218079787,1.2199270401651723]
[null,null,null,null,null,null,null,null,null,null,null,null,null,null,null,null,null,null,null,null,null,null,null,null,null,null,null,null,null,null,null,null,null,null,null,null,null,null,null,null,null,null,null,null,null,null,null,null,null,null,null,null,5302,18231.52266463756,0.89568997832284181,20607.978067303753,1.336760208386522]
[null,null,null,null,null,null,null,null,null,null,null,null,null,null,null,null,null,null,null,null,null,null,null,null,null,null,null,null,null,null,null,null,null,null,null,null,null,null,null,null,null,null,null,null,null,null,null,null,null,null,null,null,{"$f":"1+BA5322","v":5315},18857.607333565295,0.61013300537804804,21215.520532733462,1.2229578145191016]
[null,null,null,null,null,null,null,null,null,null,null,null,null,null,null,null,null,null,null,null,null,null,null,null,null,null,null,null,null,null,null,null,null,null,null,null,null,null,null,null,null,null,null,null,null,null,null,null,null,null,null,null,5334,14286.926716650289,0.85878610890800955,20589.7761210235,0.81191787011206318]
[null,null,null,null,null,null,null,null,null,null,null,null,null,null,null,null,null,null,null,null,null,null,null,null,null,null,null,null,null,null,null,null,null,null,null,null,null,null,null,null,null,null,null,null,null,null,null,null,null,null,null,null,5353,15812.673756443426,-0.41221130169392639,21023.749565911115,0.24721853204128585]
[null,null,null,null,null,null,null,null,null,null,null,null,null,null,null,null,null,null,null,null,null,null,null,null,null,null,null,null,null,null,null,null,null,null,null,null,null,null,null,null,null,null,null,null,null,null,null,null,null,null,null,null,{"$f":"1+BA5386","v":5379},13547.040856122007,1.5447331489302611,21212.969565039872,1.028268161608491]
[null,null,null,null,null,null,null,null,null,null,null,null,null,null,null,null,null,null,null,null,null,null,null,null,null,null,null,null,null,null,null,null,null,null,null,null,null,null,null,null,null,null,null,null,null,null,null,null,null,null,null,null,5396,15078.608727703291,0.94446237606816041,20820.748776294349,1.4875159420389474]
[null,null,null,null,null,null,null,null,null,null,null,null,null,null,null,null,null,null,null,null,null,null,null,null,null,null,null,null,null,null,null,null,null,null,null,null,null,null,null,null,null,null,null,null,null,null,null,null,null,null,null,null,5421,13576.664409662224,1.6033577080718833,20900.290944024411,1.3219480578893257]
[null,null,null,null,null,null,null,null,null,null,null,null,null,null,null,null,null,null,null,null,null,null,null,null,null,null,null,null,null,null,null,null,null,null,null,null,null,null,null,null,null,null,null,null,null,null,null,null,null,null,null,null,5440,16356.000449772613,-0.48360919604313479,19716.7975540275,0.39345555583852343]
[null,null,null,null,null,null,null,null,null,null,null,null,null,null,null,null,null,null,null,null,null,null,null,null,null,null,null,null,null,null,null,null,null,null,null,null,null,null,null,null,null,null,null,null,null,null,null,null,null,null,null,null,5452,14023.173966528753,1.9186619391246846,22098.334144688964,1.3245889026177848]
[null,null,null,null,null,null,null,null,null,null,null,null,null,null,null,null,null,null,null,null,null,null,null,null,null,null,null,null,null,null,null,null,null,null,null,null,null,null,null,null,null,null,null,null,null,null,null,null,null,null,null,null,5483,17095.153768120821,0.36433017063890882,21338.786782967931,0.70383495229063731]
[null,null,null,null,null,null,null,null,null,null,null,null,null,null,null,null,null,null,null,null,null,null,null,null,null,null,null,null,null,null,null,null,null,null,null,null,null,null,null,null,null,null,null,null,null,null,null,null,null,null,null,null,5502,15519.137973026043,0.62614838154748675,21173.060977111509,0.73206597603811496]
[null,null,null,null,null,null,null,null,null,null,null,null,null,null,null,null,null,null,null,null,null,null,null,null,null,null,null,null,null,null,null,null,null,null,null,null,null,null,null,null,null,null,null,null,null,null,null,null,null,null,null,null,5521,11296.25411420401,2.2096934021466867,21541.585714098259,1.5358362590790999]
[null,null,null,null,null,null,null,null,null,null,null,null,null,null,null,null,null,null,null,null,null,null,null,null,null,null,null,null,null,null,null,null,null,null,null,null,null,null,null,null,null,null,null,null,null,null,null,null,null,null,null,null,5527,11914.294603869228,1.2537441947616184,20665.569100604713,0.13210177069135609]
[null,null,null,null,null,null,null,null,null,null,null,null,null,null,null,null,null,null,null,null,null,null,null,null,null,null,null,null,null,null,null,null,null,null,null,null,null,null,null,null,null,null,null,null,null,null,null,null,null,null,null,null,5551,12883.520888233605,1.3585363755236912,21697.712021561452,0.72653579219085107]
[null,null,null,null,null,null,null,null,null,null,null,null,null,null,null,null,null,null,null,null,null,null,null,null,null,null,null,null,null,null,null,null,null,null,null,null,null,null,null,null,null,null,null,null,null,null,null,null,null,null,null,null,5570,10734.066309913509,1.9391485942673872,21389.845147416407,0.2661162807939409]
[null,null,null,null,null,null,null,null,null,null,null,null,null,null,null,null,null,null,null,null,null,null,null,null,null,null,null,null,null,null,null,null,null,null,null,null,null,null,null,null,null,null,null,null,null,null,null,null,null,null,null,null,5589,13230.754815538894,0.56224564415011347,20843.199213242056,0.31352561540651203]
[null,null,null,null,null,null,null,null,null,null,null,null,null,null,null,null,null,null,null,null,null,null,null,null,null,null,null,null,null,null,null,null,null,null,null,null,null,null,null,null,null,null,null,null,null,null,null,null,null,null,null,null,5608,17620.941850019106,1.300924391304727,20988.161731357177,1.485395339654914]
[null,null,null,null,null,null,null,null,null,null,null,null,null,null,null,null,null,null,null,null,null,null,null,null,null,null,null,null,null,null,null,null,null,null,null,null,null,null,null,null,null,null,null,null,null,null,null,null,null,null,null,null,5628,20161.719028802698,0.33868466982439893,21621.385096890681,0.84219447876725284]
[null,null,null,null,null,null,null,null,null,null,null,null,null,null,null,null,null,null,null,null,null,null,null,null,null,null,null,null,null,null,null,null,null,null,null,null,null,null,null,null,null,null,null,null,null,null,null,null,null,null,null,null,5651,15108.814885995744,1.9056421447872443,20940.464362897048,1.6825100492453309]
[null,null,null,null,null,null,null,null,null,null,null,null,null,null,null,null,null,null,null,null,null,null,null,null,null,null,null,null,null,null,null,null,null,null,null,null,null,null,null,null,null,null,null,null,null,null,null,null,null,null,null,null,5657,14309.043668258171,2.0331554362180961,20408.12962456821,1.7239388489142704]
[null,null,null,null,null,null,null,null,null,null,null,null,null,null,null,null,null,null,null,null,null,null,null,null,null,null,null,null,null,null,null,null,null,null,null,null,null,null,null,null,null,null,null,null,null,null,null,null,null,null,null,null,5676,16702.595213584897,0.84320768937509882,20855.451143098449,1.0949680494994156]
[null,null,null,null,null,null,null,null,null,null,null,null,null,null,null,null,null,null,null,null,null,null,null,null,null,null,null,null,null,null,null,null,null,null,null,null,null,null,null,null,null,null,null,null,null,null,null,null,null,null,null,null,5701,16375.42129312424,0.84237318587901622,21172.219303803759,1.1867696304633959]
[null,null,null,null,null,null,null,null,null,null,null,null,null,null,null,null,null,null,null,null,null,null,null,null,null,null,null,null,null,null,null,null,null,null,null,null,null,null,null,null,null,null,null,null,null,null,null,null,null,null,null,null,5719,18107.397032967619,0.47264379342421908,21224.201605906019,1.0348901137620365]
[null,null,null,null,null,null,null,null,null,null,null,null,null,null,null,null,null,null,null,null,null,null,null,null,null,null,null,null,null,null,null,null,null,null,null,null,null,null,null,null,null,null,null,null,null,null,null,null,null,null,null,null,5738,14132.265719636096,1.2186713455999727,20796.665588315307,1.0744837990325715]
[null,null,null,null,null,null,null,null,null,null,null,null,null,null,null,null,null,null,null,null,null,null,null,null,null,null,null,null,null,null,null,null,null,null,null,null,null,null,null,null,null,null,null,null,null,null,null,null,null,null,null,null,5757,13707.962689174457,1.0005956711575483,20527.10675217746,0.58186464900130896]
[null,null,null,null,null,null,null,null,null,null,null,null,null,null,null,null,null,null,null,null,null,null,null,null,null,null,null,null,null,null,null,null,null,null,null,null,null,null,null,null,null,null,null,null,null,null,null,null,null,null,null,null,5782,16598.764759672551,1.3317955029286299,20705.409129428779,1.4194996881107034]
[null,null,null,null,null,null,null,null,null,null,null,null,null,null,null,null,null,null,null,null,null,null,null,null,null,null,null,null,null,null,null,null,null,null,null,null,null,null,null,null,null,null,null,null,null,null,null,null,null,null,null,null,5800,14176.844918101795,1.1248164373756964,20985.012607945158,1.3899553681632213]
[null,null,null,null,null,null,null,null,null,null,null,null,null,null,null,null,null,null,null,null,null,null,null,null,null,null,null,null,null,null,null,null,null,null,null,null,null,null,null,null,null,null,null,null,null,null,null,null,null,null,null,null,5806,14871.197689988185,1.3342135305670677,21364.593572969978,1.0319913081581957]
[null,null,null,null,null,null,null,null,null,null,null,null,null,null,null,null,null,null,null,null,null,null,null,null,null,null,null,null,null,null,null,null,null,null,null,null,null,null,null,null,null,null,null,null,null,null,null,null,null,null,null,null,5825,14323.235367345187,1.2847985388374856,20942.519983784623,1.0469488302537262]
[null,null,null,null,null,null,null,null,null,null,null,null,null,null,null,null,null,null,null,null,null,null,null,null,null,null,null,null,null,null,null,null,null,null,null,null,null,null,null,null,null,null,null,null,null,null,null,null,null,null,null,null,5844,15400.372293812185,1.0967559422404407,21102.039868383486,1.2595626859959212]
[null,null,null,null,null,null,null,null,null,null,null,null,null,null,null,null,null,null,null,null,null,null,null,null,null,null,null,null,null,null,null,null,null,null,null,null,null,null,null,null,null,null,null,null,null,null,null,null,null,null,null,null,5877,11203.673268014867,1.6332428960579182,20499.99686768774,0.48964683719844859]
[null,null,null,null,null,null,null,null,null,null,null,null,null,null,null,null,null,null,null,null,null,null,null,null,null,null,null,null,null,null,null,null,null,null,null,null,null,null,null,null,null,null,null,null,null,null,null,null,null,null,null,null,5887,13888.002890491422,1.5634252117411098,20858.256953054217,1.1777150612711409]
[null,null,null,null,null,null,null,null,null,null,null,null,null,null,null,null,null,null,null,null,null,null,null,null,null,null,null,null,null,null,null,null,null,null,null,null,null,null,null,null,null,null,null,null,null,null,null,null,null,null,null,null,5912,17122.791090147373,0.79553794524169053,21660.21580050551,1.0159225070704654]
[null,null,null,null,null,null,null,null,null,null,null,null,null,null,null,null,null,null,null,null,null,null,null,null,null,null,null,null,null,null,null,null,null,null,null,null,null,null,null,null,null,null,null,null,null,null,null,null,null,null,null,null,5931,17769.059882279922,0.28358892181219253,21574.068414348803,0.78249247910923514]
[null,null,null,null,null,null,null,null,null,null,null,null,null,null,null,null,null,null,null,null,null,null,null,null,null,null,null,null,null,null,null,null,null,null,null,null,null,null,null,null,null,null,null,null,null,null,null,null,null,null,null,null,5950,15622.558499453404,1.448502632192699,21475.21367614219,1.375690773701765]
[null,null,null,null,null,null,null,null,null,null,null,null,null,null,null,null,null,null,null,null,null,null,null,null,null,null,null,null,null,null,null,null,null,null,null,null,null,null,null,null,null,null,null,null,null,null,null,null,null,null,null,null,{"$f":"1+BA5962","v":5955},18031.523056801936,0.82117802244811799,21266.395970024114,1.0901385893104556]
[null,null,null,null,null,null,null,null,null,null,null,null,null,null,null,null,null,null,null,null,null,null,null,null,null,null,null,null,null,null,null,null,null,null,null,null,null,null,null,null,null,null,null,null,null,null,null,null,null,null,null,null,5974,16048.685499716488,0.67779059675911191,20387.007653611436,1.0754578011434588]
[null,null,null,null,null,null,null,null,null,null,null,null,null,null,null,null,null,null,null,null,null,null,null,null,null,null,null,null,null,null,null,null,null,null,null,null,null,null,null,null,null,null,null,null,null,null,null,null,null,null,null,null,5993,17478.587917327277,0.68923116036035137,21608.103542304794,0.83958558345715528]
[null,null,null,null,null,null,null,null,null,null,null,null,null,null,null,null,null,null,null,null,null,null,null,null,null,null,null,null,null,null,null,null,null,null,null,null,null,null,null,null,null,null,null,null,null,null,null,null,null,null,null,null,6027,15522.120912202703,1.0228545165010194,21243.548082380585,1.1059158320075295]
[null,null,null,null,null,null,null,null,null,null,null,null,null,null,null,null,null,null,null,null,null,null,null,null,null,null,null,null,null,null,null,null,null,null,null,null,null,null,null,null,null,null,null,null,null,null,null,null,null,null,null,null,6036,16197.155986332204,0.60454262938809022,21334.12953033311,0.69592311052577316]
[null,null,null,null,null,null,null,null,null,null,null,null,null,null,null,null,null,null,null,null,null,null,null,null,null,null,null,null,null,null,null,null,null,null,null,null,null,null,null,null,null,null,null,null,null,null,null,null,null,null,null,null,6061,18243.721899116212,0.59509371853298088,21600.921551986372,1.154611234717162]
[null,null,null,null,null,null,null,null,null,null,null,null,null,null,null,null,null,null,null,null,null,null,null,null,null,null,null,null,null,null,null,null,null,null,null,null,null,null,null,null,null,null,null,null,null,null,null,null,null,null,null,null,6080,14386.738493749155,0.59340078475356628,21484.851253237168,0.30926248688354674]
[null,null,null,null,null,null,null,null,null,null,null,null,null,null,null,null,null,null,null,null,null,null,null,null,null,null,null,null,null,null,null,null,null,null,null,null,null,null,null,null,null,null,null,null,null,null,null,null,null,null,null,null,6099,14750.638641725895,1.0813206031987899,20639.930080381757,0.8052390934107283]
[null,null,null,null,null,null,null,null,null,null,null,null,null,null,null,null,null,null,null,null,null,null,null,null,null,null,null,null,null,null,null,null,null,null,null,null,null,null,null,null,null,null,null,null,null,null,null,null,null,null,null,null,6108,16913.538011475466,0.4084605109571619,20865.688669934028,0.83679659474990908]
[null,null,null,null,null,null,null,null,null,null,null,null,null,null,null,null,null,null,null,null,null,null,null,null,null,null,null,null,null,null,null,null,null,null,null,null,null,null,null,null,null,null,null,null,null,null,null,null,null,null,null,null,6123,13898.941091641105,0.26314549770836826,19643.718387998415,0.65984452299776608]
[null,null,null,null,null,null,null,null,null,null,null,null,null,null,null,null,null,null,null,null,null,null,null,null,null,null,null,null,null,null,null,null,null,null,null,null,null,null,null,null,null,null,null,null,null,null,null,null,null,null,null,null,6142,14147.564407673142,1.1276809531433483,20975.7649729695,1.1074915840303801]
[null,null,null,null,null,null,null,null,null,null,null,null,null,null,null,null,null,null,null,null,null,null,null,null,null,null,null,null,null,null,null,null,null,null,null,null,null,null,null,null,null,null,null,null,null,null,null,null,null,null,null,null,6167,15480.71676783293,0.57832106512285952,20954.884667933904,0.83442390711488734]
[null,null,null,null,null,null,null,null,null,null,null,null,null,null,null,null,null,null,null,null,null,null,null,null,null,null,null,null,null,null,null,null,null,null,null,null,null,null,null,null,null,null,null,null,null,null,null,null,null,null,null,null,6181,16472.659371199126,1.4277292374847317,21299.615750976438,1.641560702684953]
[null,null,null,null,null,null,null,null,null,null,null,null,null,null,null,null,null,null,null,null,null,null,null,null,null,null,null,null,null,null,null,null,null,null,null,null,null,null,null,null,null,null,null,null,null,null,null,null,null,null,null,null,6210,15356.958538696426,0.68833262802135431,20743.642432373999,0.79620948285579785]
[null,null,null,null,null,null,null,null,null,null,null,null,null,null,null,null,null,null,null,null,null,null,null,null,null,null,null,null,null,null,null,null,null,null,null,null,null,null,null,null,null,null,null,null,null,null,null,null,null,null,null,null,6229,10780.415600378295,1.9223368880257472,21951.286138915391,1.1246014975820662]
[null,null,null,null,null,null,null,null,null,null,null,null,null,null,null,null,null,null,null,null,null,null,null,null,null,null,null,null,null,null,null,null,null,null,null,null,null,null,null,null,null,null,null,null,null,null,null,null,null,null,null,null,6248,15651.61596490064,0.6141236067308381,21280.047954212889,0.81411792896561974]
[null,null,null,null,null,null,null,null,null,null,null,null,null,null,null,null,null,null,null,null,null,null,null,null,null,null,null,null,null,null,null,null,null,null,null,null,null,null,null,null,null,null,null,null,null,null,null,null,null,null,null,null,6258,15656.332756269858,1.0713245654765686,21226.279809632208,1.0034495279164699]
[null,null,null,null,null,null,null,null,null,null,null,null,null,null,null,null,null,null,null,null,null,null,null,null,null,null,null,null,null,null,null,null,null,null,null,null,null,null,null,null,null,null,null,null,null,null,null,null,null,null,null,null,6272,16079.431938542351,1.0003323059253468,21840.127491503663,1.1012138988887534]
[null,null,null,null,null,null,null,null,null,null,null,null,null,null,null,null,null,null,null,null,null,null,null,null,null,null,null,null,null,null,null,null,null,null,null,null,null,null,null,null,null,null,null,null,null,null,null,null,null,null,null,null,6297,18259.936054579473,-1.4295628412044217,19534.99150749547,-0.57585512655307114]
[null,null,null,null,null,null,null,null,null,null,null,null,null,null,null,null,null,null,null,null,null,null,null,null,null,null,null,null,null,null,null,null,null,null,null,null,null,null,null,null,null,null,null,null,null,null,null,null,null,null,null,null,6316,14804.6121269219,1.4625115689635177,21515.836013811189,1.3141604158396478]
[null,null,null,null,null,null,null,null,null,null,null,null,null,null,null,null,null,null,null,null,null,null,null,null,null,null,null,null,null,null,null,null,null,null,null,null,null,null,null,null,null,null,null,null,null,null,null,null,null,null,null,null,6331,14115.462572620287,0.37690511724530307,20682.974883258168,0.27893761743939349]
[null,null,null,null,null,null,null,null,null,null,null,null,null,null,null,null,null,null,null,null,null,null,null,null,null,null,null,null,null,null,null,null,null,null,null,null,null,null,null,null,null,null,null,null,null,null,null,null,null,null,null,null,6359,16098.969095696018,-0.19175972964082044,19882.814336448817,-1.8556749896793345E-2]
[null,null,null,null,null,null,null,null,null,null,null,null,null,null,null,null,null,null,null,null,null,null,null,null,null,null,null,null,null,null,null,null,null,null,null,null,null,null,null,null,null,null,null,null,null,null,null,null,null,null,null,null,6378,15739.883056888295,1.2719415810780137,21262.725278136735,1.2087735017828956]
[null,null,null,null,null,null,null,null,null,null,null,null,null,null,null,null,null,null,null,null,null,null,null,null,null,null,null,null,null,null,null,null,null,null,null,null,null,null,null,null,null,null,null,null,null,null,null,null,null,null,null,null,6397,14759.637257390594,1.0340621593931629,21691.699399293211,0.75671272876141948]
[null,null,null,null,null,null,null,null,null,null,null,null,null,null,null,null,null,null,null,null,null,null,null,null,null,null,null,null,null,null,null,null,null,null,null,null,null,null,null,null,null,null,null,null,null,null,null,null,null,null,null,null,6422,13894.628606675549,0.56757487488881408,20985.11415673366,0.11179211659989519]
[null,null,null,null,null,null,null,null,null,null,null,null,null,null,null,null,null,null,null,null,null,null,null,null,null,null,null,null,null,null,null,null,null,null,null,null,null,null,null,null,null,null,null,null,null,null,null,null,null,null,null,null,6430,19933.53242594656,0.58227777576817996,21299.47976613195,1.1729888769772303]
[null,null,null,null,null,null,null,null,null,null,null,null,null,null,null,null,null,null,null,null,null,null,null,null,null,null,null,null,null,null,null,null,null,null,null,null,null,null,null,null,null,null,null,null,null,null,null,null,null,null,null,null,6446,17504.127456669172,0.74635126266912799,21811.018373849158,1.3057092904979524]
[null,null,null,null,null,null,null,null,null,null,null,null,null,null,null,null,null,null,null,null,null,null,null,null,null,null,null,null,null,null,null,null,null,null,null,null,null,null,null,null,null,null,null,null,null,null,null,null,null,null,null,null,6465,14609.489349146806,0.96863569722645659,20859.281222413043,0.39691419085120383]
[null,null,null,null,null,null,null,null,null,null,null,null,null,null,null,null,null,null,null,null,null,null,null,null,null,null,null,null,null,null,null,null,null,null,null,null,null,null,null,null,null,null,null,null,null,null,null,null,null,null,null,null,6484,13004.43740932216,1.646154536402137,21077.952604999013,1.1305122175437481]
[null,null,null,null,null,null,null,null,null,null,null,null,null,null,null,null,null,null,null,null,null,null,null,null,null,null,null,null,null,null,null,null,null,null,null,null,null,null,null,null,null,null,null,null,null,null,null,null,null,null,null,null,6507,14572.610791078199,0.88209053989987096,20890.94279189931,0.61199824390262636]
[null,null,null,null,null,null,null,null,null,null,null,null,null,null,null,null,null,null,null,null,null,null,null,null,null,null,null,null,null,null,null,null,null,null,null,null,null,null,null,null,null,null,null,null,null,null,null,null,null,null,null,null,6527,16144.966075347278,1.1504192787746212,21301.272525655426,1.109748534678703]
[null,null,null,null,null,null,null,null,null,null,null,null,null,null,null,null,null,null,null,null,null,null,null,null,null,null,null,null,null,null,null,null,null,null,null,null,null,null,null,null,null,null,null,null,null,null,null,null,null,null,null,null,6546,13656.369606189392,1.9345991845014243,21079.950452021876,1.757590210576875]
[null,null,null,null,null,null,null,null,null,null,null,null,null,null,null,null,null,null,null,null,null,null,null,null,null,null,null,null,null,null,null,null,null,null,null,null,null,null,null,null,null,null,null,null,null,null,null,null,null,null,null,null,6571,16290.382471120225,0.46974917188036835,20353.087733684421,0.97759398390590435]
[null,null,null,null,null,null,null,null,null,null,null,null,null,null,null,null,null,null,null,null,null,null,null,null,null,null,null,null,null,null,null,null,null,null,null,null,null,null,null,null,null,null,null,null,null,null,null,null,null,null,null,null,6580,15176.990079300145,-0.72894323638752057,21079.194779110949,-0.35174766646940903]
[null,null,null,null,null,null,null,null,null,null,null,null,null,null,null,null,null,null,null,null,null,null,null,null,null,null,null,null,null,null,null,null,null,null,null,null,null,null,null,null,null,null,null,null,null,null,null,null,null,null,null,null,{"$f":"1+BA6602","v":6595},18953.086902499948,-0.23108593074000994,20369.32878506311,0.56853785110816057]
[null,null,null,null,null,null,null,null,null,null,null,null,null,null,null,null,null,null,null,null,null,null,null,null,null,null,null,null,null,null,null,null,null,null,null,null,null,null,null,null,null,null,null,null,null,null,null,null,null,null,null,null,6614,15596.627418489034,0.3721735465571685,20917.630853892319,0.62047210136331465]
[null,null,null,null,null,null,null,null,null,null,null,null,null,null,null,null,null,null,null,null,null,null,null,null,null,null,null,null,null,null,null,null,null,null,null,null,null,null,null,null,null,null,null,null,null,null,null,null,null,null,null,null,6633,16132.880023807109,0.9965871384315107,21097.130908082898,1.3408688739553094]
[null,null,null,null,null,null,null,null,null,null,null,null,null,null,null,null,null,null,null,null,null,null,null,null,null,null,null,null,null,null,null,null,null,null,null,null,null,null,null,null,null,null,null,null,null,null,null,null,null,null,null,null,6658,15610.809535041644,0.68614983131947827,19653.001176151378,0.99996227258930059]
[null,null,null,null,null,null,null,null,null,null,null,null,null,null,null,null,null,null,null,null,null,null,null,null,null,null,null,null,null,null,null,null,null,null,null,null,null,null,null,null,null,null,null,null,null,null,null,null,null,null,null,null,6679,14893.140527064039,0.76655355697457384,21098.907040291218,0.68636574296424513]
[null,null,null,null,null,null,null,null,null,null,null,null,null,null,null,null,null,null,null,null,null,null,null,null,null,null,null,null,null,null,null,null,null,null,null,null,null,null,null,null,null,null,null,null,null,null,null,null,null,null,null,null,6701,16282.520582543882,1.1041922190002267,21686.402478887238,1.1666242106239395]
[null,null,null,null,null,null,null,null,null,null,null,null,null,null,null,null,null,null,null,null,null,null,null,null,null,null,null,null,null,null,null,null,null,null,null,null,null,null,null,null,null,null,null,null,null,null,null,null,null,null,null,null,6720,16306.974233660036,0.9988835420062272,20957.256481417877,1.6351093691806393]
[null,null,null,null,null,null,null,null,null,null,null,null,null,null,null,null,null,null,null,null,null,null,null,null,null,null,null,null,null,null,null,null,null,null,null,null,null,null,null,null,null,null,null,null,null,null,null,null,null,null,null,null,6739,16560.349012811093,0.22550708642747819,21327.820228590856,0.35401570251397241]
[null,null,null,null,null,null,null,null,null,null,null,null,null,null,null,null,null,null,null,null,null,null,null,null,null,null,null,null,null,null,null,null,null,null,null,null,null,null,null,null,null,null,null,null,null,null,null,null,null,null,null,null,6756,13208.249310044672,0.32231345975968129,20028.8743714827,-0.38704624240994057]
[null,null,null,null,null,null,null,null,null,null,null,null,null,null,null,null,null,null,null,null,null,null,null,null,null,null,null,null,null,null,null,null,null,null,null,null,null,null,null,null,null,null,null,null,null,null,null,null,null,null,null,null,6763,15382.347527724443,1.3244070765847251,21213.386054358503,1.200963021243983]
[null,null,null,null,null,null,null,null,null,null,null,null,null,null,null,null,null,null,null,null,null,null,null,null,null,null,null,null,null,null,null,null,null,null,null,null,null,null,null,null,null,null,null,null,null,null,null,null,null,null,null,null,6782,15520.489355157162,0.11950754656713247,21966.192387033989,-8.5846193093790601E-2]
[null,null,null,null,null,null,null,null,null,null,null,null,null,null,null,null,null,null,null,null,null,null,null,null,null,null,null,null,null,null,null,null,null,null,null,null,null,null,null,null,null,null,null,null,null,null,null,null,null,null,null,null,6807,15906.974716779907,1.4266262425410927,20952.036041524858,1.4876029721164716]
[null,null,null,null,null,null,null,null,null,null,null,null,null,null,null,null,null,null,null,null,null,null,null,null,null,null,null,null,null,null,null,null,null,null,null,null,null,null,null,null,null,null,null,null,null,null,null,null,null,null,null,null,6829,19521.934267072826,0.4976345724684928,21552.896518929811,1.2715927513458714]
[null,null,null,null,null,null,null,null,null,null,null,null,null,null,null,null,null,null,null,null,null,null,null,null,null,null,null,null,null,null,null,null,null,null,null,null,null,null,null,null,null,null,null,null,null,null,null,null,null,null,null,null,6850,15492.584704226703,1.3117430516452855,20651.831186714939,1.2578081908016425]
[null,null,null,null,null,null,null,null,null,null,null,null,null,null,null,null,null,null,null,null,null,null,null,null,null,null,null,null,null,null,null,null,null,null,null,null,null,null,null,null,null,null,null,null,null,null,null,null,null,null,null,null,6869,17783.535319563758,0.96669721022915744,21389.957680323627,1.1785170462692391]
[null,null,null,null,null,null,null,null,null,null,null,null,null,null,null,null,null,null,null,null,null,null,null,null,null,null,null,null,null,null,null,null,null,null,null,null,null,null,null,null,null,null,null,null,null,null,null,null,null,null,null,null,6888,15628.754985399963,1.5617460771088703,21624.322244560368,1.4896486476636606]
[null,null,null,null,null,null,null,null,null,null,null,null,null,null,null,null,null,null,null,null,null,null,null,null,null,null,null,null,null,null,null,null,null,null,null,null,null,null,null,null,null,null,null,null,null,null,null,null,null,null,null,null,6906,11250.974802636032,2.2774002194502114,21299.232997254618,1.7285445757890712]
[null,null,null,null,null,null,null,null,null,null,null,null,null,null,null,null,null,null,null,null,null,null,null,null,null,null,null,null,null,null,null,null,null,null,null,null,null,null,null,null,null,null,null,null,null,null,null,null,null,null,null,null,6912,13761.524792096248,1.0738466580600288,21631.965528036442,0.65045281594129933]
[null,null,null,null,null,null,null,null,null,null,null,null,null,null,null,null,null,null,null,null,null,null,null,null,null,null,null,null,null,null,null,null,null,null,null,null,null,null,null,null,null,null,null,null,null,null,null,null,null,null,null,null,6937,16295.159063868956,0.16481337578834199,20161.245198936806,0.43255870661458784]
[null,null,null,null,null,null,null,null,null,null,null,null,null,null,null,null,null,null,null,null,null,null,null,null,null,null,null,null,null,null,null,null,null,null,null,null,null,null,null,null,null,null,null,null,null,null,null,null,null,null,null,null,6956,17215.223210463897,7.3072424917831502E-2,20862.10599390011,0.47563044916930119]
[null,null,null,null,null,null,null,null,null,null,null,null,null,null,null,null,null,null,null,null,null,null,null,null,null,null,null,null,null,null,null,null,null,null,null,null,null,null,null,null,null,null,null,null,null,null,null,null,null,null,null,null,6975,14929.816416377689,0.73127310567723725,20747.829045149549,0.57094808300483801]
[null,null,null,null,null,null,null,null,null,null,null,null,null,null,null,null,null,null,null,null,null,null,null,null,null,null,null,null,null,null,null,null,null,null,null,null,null,null,null,null,null,null,null,null,null,null,null,null,null,null,null,null,6987,15128.710328224319,0.703318575588469,20896.266728594714,0.504948731975432]
[null,null,null,null,null,null,null,null,null,null,null,null,null,null,null,null,null,null,null,null,null,null,null,null,null,null,null,null,null,null,null,null,null,null,null,null,null,null,null,null,null,null,null,null,null,null,null,null,null,null,null,null,7018,13177.113515174311,0.85822962857943585,21388.890377666346,-9.7052820067452528E-2]
[null,null,null,null,null,null,null,null,null,null,null,null,null,null,null,null,null,null,null,null,null,null,null,null,null,null,null,null,null,null,null,null,null,null,null,null,null,null,null,null,null,null,null,null,null,null,null,null,null,null,null,null,7037,14952.97604217592,0.8142695064656047,20910.024590887595,0.99154935235286645]
[null,null,null,null,null,null,null,null,null,null,null,null,null,null,null,null,null,null,null,null,null,null,null,null,null,null,null,null,null,null,null,null,null,null,null,null,null,null,null,null,null,null,null,null,null,null,null,null,null,null,null,null,{"$f":"1+BA7050","v":7043},17319.540026053633,1.0794587690072266,22581.988678353206,1.1384152989054162]
[null,null,null,null,null,null,null,null,null,null,null,null,null,null,null,null,null,null,null,null,null,null,null,null,null,null,null,null,null,null,null,null,null,null,null,null,null,null,null,null,null,null,null,null,null,null,null,null,null,null,null,null,7078,15225.372570060312,1.0266521311978316,21016.096830354203,0.87392868041160354]
[null,null,null,null,null,null,null,null,null,null,null,null,null,null,null,null,null,null,null,null,null,null,null,null,null,null,null,null,null,null,null,null,null,null,null,null,null,null,null,null,null,null,null,null,null,null,null,null,null,null,null,null,7086,17005.427621043844,1.3939092717126038,21093.303905385037,1.5725888301667483]
[null,null,null,null,null,null,null,null,null,null,null,null,null,null,null,null,null,null,null,null,null,null,null,null,null,null,null,null,null,null,null,null,null,null,null,null,null,null,null,null,null,null,null,null,null,null,null,null,null,null,null,null,7105,18294.886877605928,-0.14076044023039591,20659.768095957341,0.37278539733048377]
[null,null,null,null,null,null,null,null,null,null,null,null,null,null,null,null,null,null,null,null,null,null,null,null,null,null,null,null,null,null,null,null,null,null,null,null,null,null,null,null,null,null,null,null,null,null,null,null,null,null,null,null,7124,17772.633422282343,0.40015709695152851,20593.917316998901,0.83245058801067318]
[null,null,null,null,null,null,null,null,null,null,null,null,null,null,null,null,null,null,null,null,null,null,null,null,null,null,null,null,null,null,null,null,null,null,null,null,null,null,null,null,null,null,null,null,null,null,null,null,null,null,null,null,7137,15401.432144222264,0.8642133770540249,21008.362379267095,0.79519803670929501]
[null,null,null,null,null,null,null,null,null,null,null,null,null,null,null,null,null,null,null,null,null,null,null,null,null,null,null,null,null,null,null,null,null,null,null,null,null,null,null,null,null,null,null,null,null,null,null,null,null,null,null,null,7167,19370.855634775362,0.12752180934808333,21781.288533487335,0.6664325549522726]
[null,null,null,null,null,null,null,null,null,null,null,null,null,null,null,null,null,null,null,null,null,null,null,null,null,null,null,null,null,null,null,null,null,null,null,null,null,null,null,null,null,null,null,null,null,null,null,null,null,null,null,null,7186,16083.451886993364,1.7055539912751434,21401.965465113717,1.6022165390700365]
[null,null,null,null,null,null,null,null,null,null,null,null,null,null,null,null,null,null,null,null,null,null,null,null,null,null,null,null,null,null,null,null,null,null,null,null,null,null,null,null,null,null,null,null,null,null,null,null,null,null,null,null,7192,16453.580721666287,0.25262473612993697,20478.119158297792,0.96013173264908325]
[null,null,null,null,null,null,null,null,null,null,null,null,null,null,null,null,null,null,null,null,null,null,null,null,null,null,null,null,null,null,null,null,null,null,null,null,null,null,null,null,null,null,null,null,null,null,null,null,null,null,null,null,7228,15735.96327680504,0.82932825159333357,20940.713853820271,0.8152045270932452]
[null,null,null,null,null,null,null,null,null,null,null,null,null,null,null,null,null,null,null,null,null,null,null,null,null,null,null,null,null,null,null,null,null,null,null,null,null,null,null,null,null,null,null,null,null,null,null,null,null,null,null,null,{"$f":"1+BA7242","v":7235},14207.010973000348,1.0600498849685835,20210.52573913681,1.0591189874743456]
[null,null,null,null,null,null,null,null,null,null,null,null,null,null,null,null,null,null,null,null,null,null,null,null,null,null,null,null,null,null,null,null,null,null,null,null,null,null,null,null,null,null,null,null,null,null,null,null,null,null,null,null,7254,17152.070458735849,1.2671715841492333,21040.144584046669,1.4682535088188318]
[null,null,null,null,null,null,null,null,null,null,null,null,null,null,null,null,null,null,null,null,null,null,null,null,null,null,null,null,null,null,null,null,null,null,null,null,null,null,null,null,null,null,null,null,null,null,null,null,null,null,null,null,7273,17406.997220629328,-0.16549241025794126,20134.956996984562,0.34662330427205568]
[null,null,null,null,null,null,null,null,null,null,null,null,null,null,null,null,null,null,null,null,null,null,null,null,null,null,null,null,null,null,null,null,null,null,null,null,null,null,null,null,null,null,null,null,null,null,null,null,null,null,null,null,7298,15035.509321639616,1.1657356419561595,21353.375150600797,0.59088468733875243]
[null,null,null,null,null,null,null,null,null,null,null,null,null,null,null,null,null,null,null,null,null,null,null,null,null,null,null,null,null,null,null,null,null,null,null,null,null,null,null,null,null,null,null,null,null,null,null,null,null,null,null,null,7309,13374.417341980003,1.8259762501670449,21580.290891935736,1.2175784028778898]
[null,null,null,null,null,null,null,null,null,null,null,null,null,null,null,null,null,null,null,null,null,null,null,null,null,null,null,null,null,null,null,null,null,null,null,null,null,null,null,null,null,null,null,null,null,null,null,null,null,null,null,null,7341,13070.538627818589,1.2714384190980201,21329.917383052598,0.52700033269791391]
[null,null,null,null,null,null,null,null,null,null,null,null,null,null,null,null,null,null,null,null,null,null,null,null,null,null,null,null,null,null,null,null,null,null,null,null,null,null,null,null,null,null,null,null,null,null,null,null,null,null,null,null,7360,15655.827851624941,0.97716373519586952,20977.095129099678,0.82690825290533665]
[null,null,null,null,null,null,null,null,null,null,null,null,null,null,null,null,null,null,null,null,null,null,null,null,null,null,null,null,null,null,null,null,null,null,null,null,null,null,null,null,null,null,null,null,null,null,null,null,null,null,null,null,7379,14788.010724110874,1.3314854448362421,21174.569898757632,1.0223597179431509]
[null,null,null,null,null,null,null,null,null,null,null,null,null,null,null,null,null,null,null,null,null,null,null,null,null,null,null,null,null,null,null,null,null,null,null,null,null,null,null,null,null,null,null,null,null,null,null,null,null,null,null,null,7386,10357.867270713592,2.2329629134639797,21366.050374814247,1.2041664239205048]
[null,null,null,null,null,null,null,null,null,null,null,null,null,null,null,null,null,null,null,null,null,null,null,null,null,null,null,null,null,null,null,null,null,null,null,null,null,null,null,null,null,null,null,null,null,null,null,null,null,null,null,null,7403,12100.28423020526,2.342226046124555,21677.070142572113,1.9914622612456283]
[null,null,null,null,null,null,null,null,null,null,null,null,null,null,null,null,null,null,null,null,null,null,null,null,null,null,null,null,null,null,null,null,null,null,null,null,null,null,null,null,null,null,null,null,null,null,null,null,null,null,null,null,7422,14948.024638960926,0.83625289547469439,21225.183617951596,0.47794687986916107]
[null,null,null,null,null,null,null,null,null,null,null,null,null,null,null,null,null,null,null,null,null,null,null,null,null,null,null,null,null,null,null,null,null,null,null,null,null,null,null,null,null,null,null,null,null,null,null,null,null,null,null,null,7447,18787.687821161995,-0.1920332149347912,21528.45688250129,0.36537300776537496]
[null,null,null,null,null,null,null,null,null,null,null,null,null,null,null,null,null,null,null,null,null,null,null,null,null,null,null,null,null,null,null,null,null,null,null,null,null,null,null,null,null,null,null,null,null,null,null,null,null,null,null,null,7459,14809.065746605726,1.0940031359141433,20676.125048884642,0.8952690370521077]
[null,null,null,null,null,null,null,null,null,null,null,null,null,null,null,null,null,null,null,null,null,null,null,null,null,null,null,null,null,null,null,null,null,null,null,null,null,null,null,null,null,null,null,null,null,null,null,null,null,null,null,null,7490,13478.11559558939,1.7189782026701756,21066.537438094721,1.6125545640499253]
[null,null,null,null,null,null,null,null,null,null,null,null,null,null,null,null,null,null,null,null,null,null,null,null,null,null,null,null,null,null,null,null,null,null,null,null,null,null,null,null,null,null,null,null,null,null,null,null,null,null,null,null,7509,14221.554927674024,1.7183944238359987,21818.818443610849,1.4607502391188263]
[null,null,null,null,null,null,null,null,null,null,null,null,null,null,null,null,null,null,null,null,null,null,null,null,null,null,null,null,null,null,null,null,null,null,null,null,null,null,null,null,null,null,null,null,null,null,null,null,null,null,null,null,7528,16678.552557071856,1.7808944221508365,20912.94619363629,1.861594064407164]
[null,null,null,null,null,null,null,null,null,null,null,null,null,null,null,null,null,null,null,null,null,null,null,null,null,null,null,null,null,null,null,null,null,null,null,null,null,null,null,null,null,null,null,null,null,null,null,null,null,null,null,null,7534,15320.636903055545,1.7987588474276992,21945.074777432874,1.5694873838145527]
[null,null,null,null,null,null,null,null,null,null,null,null,null,null,null,null,null,null,null,null,null,null,null,null,null,null,null,null,null,null,null,null,null,null,null,null,null,null,null,null,null,null,null,null,null,null,null,null,null,null,null,null,7558,16711.303591984855,0.2818343190119007,21407.24582258481,0.75228881707514295]
[null,null,null,null,null,null,null,null,null,null,null,null,null,null,null,null,null,null,null,null,null,null,null,null,null,null,null,null,null,null,null,null,null,null,null,null,null,null,null,null,null,null,null,null,null,null,null,null,null,null,null,null,7577,12976.01333432377,1.3015200346787206,20089.138004539731,0.8733274289482067]
[null,null,null,null,null,null,null,null,null,null,null,null,null,null,null,null,null,null,null,null,null,null,null,null,null,null,null,null,null,null,null,null,null,null,null,null,null,null,null,null,null,null,null,null,null,null,null,null,null,null,null,null,7596,14697.57002619165,-0.62611060837098265,21029.690192737005,-1.3983282531680898]
[null,null,null,null,null,null,null,null,null,null,null,null,null,null,null,null,null,null,null,null,null,null,null,null,null,null,null,null,null,null,null,null,null,null,null,null,null,null,null,null,null,null,null,null,null,null,null,null,null,null,null,null,7615,14201.587796149382,0.46927155628205408,21007.706521537784,0.17144289199230345]
[null,null,null,null,null,null,null,null,null,null,null,null,null,null,null,null,null,null,null,null,null,null,null,null,null,null,null,null,null,null,null,null,null,null,null,null,null,null,null,null,null,null,null,null,null,null,null,null,null,null,null,null,7635,16804.223955328362,1.0387127001018157,20603.968328699135,1.1755978880708224]
[null,null,null,null,null,null,null,null,null,null,null,null,null,null,null,null,null,null,null,null,null,null,null,null,null,null,null,null,null,null,null,null,null,null,null,null,null,null,null,null,null,null,null,null,null,null,null,null,null,null,null,null,7658,14634.161616666875,0.92903942969189424,20859.149262809624,0.88023560455642302]
[null,null,null,null,null,null,null,null,null,null,null,null,null,null,null,null,null,null,null,null,null,null,null,null,null,null,null,null,null,null,null,null,null,null,null,null,null,null,null,null,null,null,null,null,null,null,null,null,null,null,null,null,7677,14990.109901507125,1.1331744441023708,21672.940839529201,1.2320475548382057]
[null,null,null,null,null,null,null,null,null,null,null,null,null,null,null,null,null,null,null,null,null,null,null,null,null,null,null,null,null,null,null,null,null,null,null,null,null,null,null,null,null,null,null,null,null,null,null,null,null,null,null,null,{"$f":"1+BA7690","v":7683},14362.795039570368,1.8482045089468389,20827.1580241632,1.6804005910155198]
[null,null,null,null,null,null,null,null,null,null,null,null,null,null,null,null,null,null,null,null,null,null,null,null,null,null,null,null,null,null,null,null,null,null,null,null,null,null,null,null,null,null,null,null,null,null,null,null,null,null,null,null,7708,17638.388230875978,-0.1100670680854996,21307.336447249287,0.46603747189101652]
[null,null,null,null,null,null,null,null,null,null,null,null,null,null,null,null,null,null,null,null,null,null,null,null,null,null,null,null,null,null,null,null,null,null,null,null,null,null,null,null,null,null,null,null,null,null,null,null,null,null,null,null,7726,17243.468558476274,1.2227467946203008,20779.822072516625,1.1762448447810101]
[null,null,null,null,null,null,null,null,null,null,null,null,null,null,null,null,null,null,null,null,null,null,null,null,null,null,null,null,null,null,null,null,null,null,null,null,null,null,null,null,null,null,null,null,null,null,null,null,null,null,null,null,7745,13324.138024373526,1.1139341659186548,21295.730121615881,0.88744791045450699]
[null,null,null,null,null,null,null,null,null,null,null,null,null,null,null,null,null,null,null,null,null,null,null,null,null,null,null,null,null,null,null,null,null,null,null,null,null,null,null,null,null,null,null,null,null,null,null,null,null,null,null,null,7764,16291.932439674976,1.3919581026686592,21383.33926152849,1.6886233486196049]
[null,null,null,null,null,null,null,null,null,null,null,null,null,null,null,null,null,null,null,null,null,null,null,null,null,null,null,null,null,null,null,null,null,null,null,null,null,null,null,null,null,null,null,null,null,null,null,null,null,null,null,null,7785,14968.907773153434,1.0147817167479687,20946.60193420028,0.8426725385908056]
[null,null,null,null,null,null,null,null,null,null,null,null,null,null,null,null,null,null,null,null,null,null,null,null,null,null,null,null,null,null,null,null,null,null,null,null,null,null,null,null,null,null,null,null,null,null,null,null,null,null,null,null,7807,17177.673362897331,0.91492832585730566,21661.208230599666,1.1310086853704224]
[null,null,null,null,null,null,null,null,null,null,null,null,null,null,null,null,null,null,null,null,null,null,null,null,null,null,null,null,null,null,null,null,null,null,null,null,null,null,null,null,null,null,null,null,null,null,null,null,null,null,null,null,7826,13264.014129869101,0.74159695765910416,20884.642169329309,-7.6463870971708037E-2]
[null,null,null,null,null,null,null,null,null,null,null,null,null,null,null,null,null,null,null,null,null,null,null,null,null,null,null,null,null,null,null,null,null,null,null,null,null,null,null,null,null,null,null,null,null,null,null,null,null,null,null,null,7832,15513.548229940809,1.553876586965296,21916.054448237162,1.4391007501809432]
[null,null,null,null,null,null,null,null,null,null,null,null,null,null,null,null,null,null,null,null,null,null,null,null,null,null,null,null,null,null,null,null,null,null,null,null,null,null,null,null,null,null,null,null,null,null,null,null,null,null,null,null,7851,14970.321581656204,0.77434328216788928,21001.612575396892,0.60742556792367952]
[null,null,null,null,null,null,null,null,null,null,null,null,null,null,null,null,null,null,null,null,null,null,null,null,null,null,null,null,null,null,null,null,null,null,null,null,null,null,null,null,null,null,null,null,null,null,null,null,null,null,null,null,7884,15522.470801434476,0.69804182457844155,21262.27415621336,0.37121830196344041]
[null,null,null,null,null,null,null,null,null,null,null,null,null,null,null,null,null,null,null,null,null,null,null,null,null,null,null,null,null,null,null,null,null,null,null,null,null,null,null,null,null,null,null,null,null,null,null,null,null,null,null,null,7894,16821.851275704343,0.85145923174576899,21386.743993201497,1.0336936485733708]
[null,null,null,null,null,null,null,null,null,null,null,null,null,null,null,null,null,null,null,null,null,null,null,null,null,null,null,null,null,null,null,null,null,null,null,null,null,null,null,null,null,null,null,null,null,null,null,null,null,null,null,null,7913,15125.727051975988,1.0388590705118248,20541.124491077644,1.0578449299997912]
[null,null,null,null,null,null,null,null,null,null,null,null,null,null,null,null,null,null,null,null,null,null,null,null,null,null,null,null,null,null,null,null,null,null,null,null,null,null,null,null,null,null,null,null,null,null,null,null,null,null,null,null,7938,13413.134779788725,0.7623270948734604,20068.273116389566,0.71770430574061017]
[null,null,null,null,null,null,null,null,null,null,null,null,null,null,null,null,null,null,null,null,null,null,null,null,null,null,null,null,null,null,null,null,null,null,null,null,null,null,null,null,null,null,null,null,null,null,null,null,null,null,null,null,7957,15884.588174937424,1.5283908897780687,21448.23320908421,1.5580052539131175]
[null,null,null,null,null,null,null,null,null,null,null,null,null,null,null,null,null,null,null,null,null,null,null,null,null,null,null,null,null,null,null,null,null,null,null,null,null,null,null,null,null,null,null,null,null,null,null,null,null,null,null,null,7962,18236.652867535424,1.4482649218893555,21502.56805563029,1.6468549732584739]
[null,null,null,null,null,null,null,null,null,null,null,null,null,null,null,null,null,null,null,null,null,null,null,null,null,null,null,null,null,null,null,null,null,null,null,null,null,null,null,null,null,null,null,null,null,null,null,null,null,null,null,null,7981,16642.467110055029,-1.0045245086241801,19946.884477446314,-0.28746895657595561]
[null,null,null,null,null,null,null,null,null,null,null,null,null,null,null,null,null,null,null,null,null,null,null,null,null,null,null,null,null,null,null,null,null,null,null,null,null,null,null,null,null,null,null,null,null,null,null,null,null,null,null,null,8000,17585.141557633284,1.280229333170646,21457.742013519186,1.6208621114994073]
[null,null,null,null,null,null,null,null,null,null,null,null,null,null,null,null,null,null,null,null,null,null,null,null,null,null,null,null,null,null,null,null,null,null,null,null,null,null,null,null,null,null,null,null,null,null,null,null,null,null,null,null,8034,12503.706617494921,1.9406873052408136,20997.731130125107,1.2685139925668312]
[null,null,null,null,null,null,null,null,null,null,null,null,null,null,null,null,null,null,null,null,null,null,null,null,null,null,null,null,null,null,null,null,null,null,null,null,null,null,null,null,null,null,null,null,null,null,null,null,null,null,null,null,8043,17245.266137973795,0.24835429878621107,20530.503828237503,8.3772647078335094E-3]
[null,null,null,null,null,null,null,null,null,null,null,null,null,null,null,null,null,null,null,null,null,null,null,null,null,null,null,null,null,null,null,null,null,null,null,null,null,null,null,null,null,null,null,null,null,null,null,null,null,null,null,null,8062,16953.87301419858,1.1951025781917488,21182.93520998388,1.4521801536070797]
[null,null,null,null,null,null,null,null,null,null,null,null,null,null,null,null,null,null,null,null,null,null,null,null,null,null,null,null,null,null,null,null,null,null,null,null,null,null,null,null,null,null,null,null,null,null,null,null,null,null,null,null,8087,16916.453885517934,0.6659686452354463,21091.648076898935,0.86171252463252346]
[null,null,null,null,null,null,null,null,null,null,null,null,null,null,null,null,null,null,null,null,null,null,null,null,null,null,null,null,null,null,null,null,null,null,null,null,null,null,null,null,null,null,null,null,null,null,null,null,null,null,null,null,8107,14256.859799864687,1.0696887651120499,20583.916647581464,0.59804148597780726]
[null,null,null,null,null,null,null,null,null,null,null,null,null,null,null,null,null,null,null,null,null,null,null,null,null,null,null,null,null,null,null,null,null,null,null,null,null,null,null,null,null,null,null,null,null,null,null,null,null,null,null,null,8111,14985.805615978428,1.2828189250985347,20923.801794237614,0.99899308088158112]
[null,null,null,null,null,null,null,null,null,null,null,null,null,null,null,null,null,null,null,null,null,null,null,null,null,null,null,null,null,null,null,null,null,null,null,null,null,null,null,null,null,null,null,null,null,null,null,null,null,null,null,null,8130,18373.233185627254,1.200616091104354,21205.392789973019,1.6834293933535738]
[null,null,null,null,null,null,null,null,null,null,null,null,null,null,null,null,null,null,null,null,null,null,null,null,null,null,null,null,null,null,null,null,null,null,null,null,null,null,null,null,null,null,null,null,null,null,null,null,null,null,null,null,8149,15214.382081773618,0.55945581719065629,21513.060016571522,0.63835375356750024]
[null,null,null,null,null,null,null,null,null,null,null,null,null,null,null,null,null,null,null,null,null,null,null,null,null,null,null,null,null,null,null,null,null,null,null,null,null,null,null,null,null,null,null,null,null,null,null,null,null,null,null,null,8174,13590.764928199103,0.86667523591821538,20565.835631490696,0.53037361058672083]
[null,null,null,null,null,null,null,null,null,null,null,null,null,null,null,null,null,null,null,null,null,null,null,null,null,null,null,null,null,null,null,null,null,null,null,null,null,null,null,null,null,null,null,null,null,null,null,null,null,null,null,null,8188,16025.071218419338,0.36889036670098418,21635.376211663606,0.54784051432767322]
[null,null,null,null,null,null,null,null,null,null,null,null,null,null,null,null,null,null,null,null,null,null,null,null,null,null,null,null,null,null,null,null,null,null,null,null,null,null,null,null,null,null,null,null,null,null,null,null,null,null,null,null,8211,15911.343826381744,0.524109827323338,20184.627272313934,0.9828826378616804]
[null,null,null,null,null,null,null,null,null,null,null,null,null,null,null,null,null,null,null,null,null,null,null,null,null,null,null,null,null,null,null,null,null,null,null,null,null,null,null,null,null,null,null,null,null,null,null,null,null,null,null,null,8236,14802.423559475475,1.5124267114590029,21109.77235400417,1.3270427557843631]
[null,null,null,null,null,null,null,null,null,null,null,null,null,null,null,null,null,null,null,null,null,null,null,null,null,null,null,null,null,null,null,null,null,null,null,null,null,null,null,null,null,null,null,null,null,null,null,null,null,null,null,null,8255,14069.028916738707,1.2716522503781791,20392.83880408288,1.1612726319190512]
[null,null,null,null,null,null,null,null,null,null,null,null,null,null,null,null,null,null,null,null,null,null,null,null,null,null,null,null,null,null,null,null,null,null,null,null,null,null,null,null,null,null,null,null,null,null,null,null,null,null,null,null,8265,16476.785445215617,0.7587425772724562,21492.207672043965,0.77599624339176909]
[null,null,null,null,null,null,null,null,null,null,null,null,null,null,null,null,null,null,null,null,null,null,null,null,null,null,null,null,null,null,null,null,null,null,null,null,null,null,null,null,null,null,null,null,null,null,null,null,null,null,null,null,8298,15924.024216277983,0.6089439879089793,20801.070972728419,0.7220098497080838]
[null,null,null,null,null,null,null,null,null,null,null,null,null,null,null,null,null,null,null,null,null,null,null,null,null,null,null,null,null,null,null,null,null,null,null,null,null,null,null,null,null,null,null,null,null,null,null,null,null,null,null,null,8317,12854.241174806823,1.5298843353016824,20596.901552592764,0.63411874699178328]
[null,null,null,null,null,null,null,null,null,null,null,null,null,null,null,null,null,null,null,null,null,null,null,null,null,null,null,null,null,null,null,null,null,null,null,null,null,null,null,null,null,null,null,null,null,null,null,null,null,null,null,null,{"$f":"1+BA8330","v":8323},13760.384790650613,1.0116426110560048,21108.52654466495,0.58064391482125954]
[null,null,null,null,null,null,null,null,null,null,null,null,null,null,null,null,null,null,null,null,null,null,null,null,null,null,null,null,null,null,null,null,null,null,null,null,null,null,null,null,null,null,null,null,null,null,null,null,null,null,null,null,8338,15365.327769959127,1.070486031863122,20305.663708713833,1.2224289954996186]
[null,null,null,null,null,null,null,null,null,null,null,null,null,null,null,null,null,null,null,null,null,null,null,null,null,null,null,null,null,null,null,null,null,null,null,null,null,null,null,null,null,null,null,null,null,null,null,null,null,null,null,null,8366,17165.997826872193,1.0308123342036875,20714.669748442153,1.3109283829473297]
[null,null,null,null,null,null,null,null,null,null,null,null,null,null,null,null,null,null,null,null,null,null,null,null,null,null,null,null,null,null,null,null,null,null,null,null,null,null,null,null,null,null,null,null,null,null,null,null,null,null,null,null,8385,15050.636916895466,-4.1744646526027385E-3,20613.687142808012,-0.86896720117546855]
[null,null,null,null,null,null,null,null,null,null,null,null,null,null,null,null,null,null,null,null,null,null,null,null,null,null,null,null,null,null,null,null,null,null,null,null,null,null,null,null,null,null,null,null,null,null,null,null,null,null,null,null,8404,16111.142242485581,0.44742000506937785,21276.194450812851,0.78114527895987007]
[null,null,null,null,null,null,null,null,null,null,null,null,null,null,null,null,null,null,null,null,null,null,null,null,null,null,null,null,null,null,null,null,null,null,null,null,null,null,null,null,null,null,null,null,null,null,null,null,null,null,null,null,8429,17987.200589993648,1.0351029289247258,20388.350906322921,1.6784235201334399]
[null,null,null,null,null,null,null,null,null,null,null,null,null,null,null,null,null,null,null,null,null,null,null,null,null,null,null,null,null,null,null,null,null,null,null,null,null,null,null,null,null,null,null,null,null,null,null,null,null,null,null,null,8437,17976.758283163839,0.66163110037967954,21597.448973234932,0.88546001990646928]
[null,null,null,null,null,null,null,null,null,null,null,null,null,null,null,null,null,null,null,null,null,null,null,null,null,null,null,null,null,null,null,null,null,null,null,null,null,null,null,null,null,null,null,null,null,null,null,null,null,null,null,null,8466,14504.389587069905,0.32811598091534266,21030.311735107804,0.18155542343605546]
[null,null,null,null,null,null,null,null,null,null,null,null,null,null,null,null,null,null,null,null,null,null,null,null,null,null,null,null,null,null,null,null,null,null,null,null,null,null,null,null,null,null,null,null,null,null,null,null,null,null,null,null,8472,17026.11981384665,-0.36185650037669648,21318.503451033044,-3.5006831191861876E-2]
[null,null,null,null,null,null,null,null,null,null,null,null,null,null,null,null,null,null,null,null,null,null,null,null,null,null,null,null,null,null,null,null,null,null,null,null,null,null,null,null,null,null,null,null,null,null,null,null,null,null,null,null,8491,13465.418899429587,1.9330709629632479,20911.175565308233,1.6802638185837449]
[null,null,null,null,null,null,null,null,null,null,null,null,null,null,null,null,null,null,null,null,null,null,null,null,null,null,null,null,null,null,null,null,null,null,null,null,null,null,null,null,null,null,null,null,null,null,null,null,null,null,null,null,8514,10074.617854421198,1.4686159929400575,21148.155553400939,0.13239731601308691]
[null,null,null,null,null,null,null,null,null,null,null,null,null,null,null,null,null,null,null,null,null,null,null,null,null,null,null,null,null,null,null,null,null,null,null,null,null,null,null,null,null,null,null,null,null,null,null,null,null,null,null,null,8534,12861.421526099306,1.3364091111614655,19989.518388228149,0.91595358561146345]
[null,null,null,null,null,null,null,null,null,null,null,null,null,null,null,null,null,null,null,null,null,null,null,null,null,null,null,null,null,null,null,null,null,null,null,null,null,null,null,null,null,null,null,null,null,null,null,null,null,null,null,null,8553,16439.533240507393,0.6165380342754736,20138.032156646157,1.026573507905892]
[null,null,null,null,null,null,null,null,null,null,null,null,null,null,null,null,null,null,null,null,null,null,null,null,null,null,null,null,null,null,null,null,null,null,null,null,null,null,null,null,null,null,null,null,null,null,null,null,null,null,null,null,8578,18194.126974637387,0.56839655260350574,21694.247622585826,1.1455986464178269]
[null,null,null,null,null,null,null,null,null,null,null,null,null,null,null,null,null,null,null,null,null,null,null,null,null,null,null,null,null,null,null,null,null,null,null,null,null,null,null,null,null,null,null,null,null,null,null,null,null,null,null,null,8587,16002.967047040764,1.1138616260780234,21591.962512689875,1.1345321662499463]
[null,null,null,null,null,null,null,null,null,null,null,null,null,null,null,null,null,null,null,null,null,null,null,null,null,null,null,null,null,null,null,null,null,null,null,null,null,null,null,null,null,null,null,null,null,null,null,null,null,null,null,null,8602,15841.206722905496,0.5824301585081495,21551.593456106741,0.59391083997727168]
[null,null,null,null,null,null,null,null,null,null,null,null,null,null,null,null,null,null,null,null,null,null,null,null,null,null,null,null,null,null,null,null,null,null,null,null,null,null,null,null,null,null,null,null,null,null,null,null,null,null,null,null,8621,16591.782202483002,0.82695692128105791,21531.592948492886,1.0774394813774912]
[null,null,null,null,null,null,null,null,null,null,null,null,null,null,null,null,null,null,null,null,null,null,null,null,null,null,null,null,null,null,null,null,null,null,null,null,null,null,null,null,null,null,null,null,null,null,null,null,null,null,null,null,8640,15810.559275990501,1.2388080196719966,21034.918746814466,1.2755043797551857]
[null,null,null,null,null,null,null,null,null,null,null,null,null,null,null,null,null,null,null,null,null,null,null,null,null,null,null,null,null,null,null,null,null,null,null,null,null,null,null,null,null,null,null,null,null,null,null,null,null,null,null,null,8664,15689.018876449631,0.97171393259167049,20209.699783890439,0.89767615064032791]
[null,null,null,null,null,null,null,null,null,null,null,null,null,null,null,null,null,null,null,null,null,null,null,null,null,null,null,null,null,null,null,null,null,null,null,null,null,null,null,null,null,null,null,null,null,null,null,null,null,null,null,null,8683,15349.241241038073,9.9352738584525424E-2,20934.84721267199,0.18515044129699043]
[null,null,null,null,null,null,null,null,null,null,null,null,null,null,null,null,null,null,null,null,null,null,null,null,null,null,null,null,null,null,null,null,null,null,null,null,null,null,null,null,null,null,null,null,null,null,null,null,null,null,null,null,8702,15006.917648129333,0.99420439307920971,21480.817919238652,0.79553651236212031]
[null,null,null,null,null,null,null,null,null,null,null,null,null,null,null,null,null,null,null,null,null,null,null,null,null,null,null,null,null,null,null,null,null,null,null,null,null,null,null,null,null,null,null,null,null,null,null,null,null,null,null,null,8727,14699.522626695811,1.6527326236067976,20743.511197758831,1.5489116357691795]
[null,null,null,null,null,null,null,null,null,null,null,null,null,null,null,null,null,null,null,null,null,null,null,null,null,null,null,null,null,null,null,null,null,null,null,null,null,null,null,null,null,null,null,null,null,null,null,null,null,null,null,null,8746,18514.689916245065,0.81488707516799941,21165.309164285074,1.2102725968875936]
[null,null,null,null,null,null,null,null,null,null,null,null,null,null,null,null,null,null,null,null,null,null,null,null,null,null,null,null,null,null,null,null,null,null,null,null,null,null,null,null,null,null,null,null,null,null,null,null,null,null,null,null,8763,18500.908455054316,0.9358592267254805,21601.222629822965,1.3295397542995475]
[null,null,null,null,null,null,null,null,null,null,null,null,null,null,null,null,null,null,null,null,null,null,null,null,null,null,null,null,null,null,null,null,null,null,null,null,null,null,null,null,null,null,null,null,null,null,null,null,null,null,null,null,8770,12986.041718757073,1.8147667984158131,20195.110103378331,1.3723017600291221]
[null,null,null,null,null,null,null,null,null,null,null,null,null,null,null,null,null,null,null,null,null,null,null,null,null,null,null,null,null,null,null,null,null,null,null,null,null,null,null,null,null,null,null,null,null,null,null,null,null,null,null,null,8789,15231.451985199332,1.0958198214410086,20553.833141327548,0.94339064757075664]
[null,null,null,null,null,null,null,null,null,null,null,null,null,null,null,null,null,null,null,null,null,null,null,null,null,null,null,null,null,null,null,null,null,null,null,null,null,null,null,null,null,null,null,null,null,null,null,null,null,null,null,null,8814,15401.850712061459,1.6020977103738814,21117.614283986361,1.688898101927407]
[null,null,null,null,null,null,null,null,null,null,null,null,null,null,null,null,null,null,null,null,null,null,null,null,null,null,null,null,null,null,null,null,null,null,null,null,null,null,null,null,null,null,null,null,null,null,null,null,null,null,null,null,8836,16702.006377799938,1.092408400732511,20874.31860802681,1.2441397859019945]
[null,null,null,null,null,null,null,null,null,null,null,null,null,null,null,null,null,null,null,null,null,null,null,null,null,null,null,null,null,null,null,null,null,null,null,null,null,null,null,null,null,null,null,null,null,null,null,null,null,null,null,null,8851,19067.696461678304,-0.14642915747657981,21749.607060344599,0.54969721495235135]
[null,null,null,null,null,null,null,null,null,null,null,null,null,null,null,null,null,null,null,null,null,null,null,null,null,null,null,null,null,null,null,null,null,null,null,null,null,null,null,null,null,null,null,null,null,null,null,null,null,null,null,null,8876,14792.229894640845,1.1937978576622368,21494.894566753548,0.91531253516131628]
[null,null,null,null,null,null,null,null,null,null,null,null,null,null,null,null,null,null,null,null,null,null,null,null,null,null,null,null,null,null,null,null,null,null,null,null,null,null,null,null,null,null,null,null,null,null,null,null,null,null,null,null,8895,16050.502515310551,0.91491828308716039,21414.660325053097,0.7695286910360819]
[null,null,null,null,null,null,null,null,null,null,null,null,null,null,null,null,null,null,null,null,null,null,null,null,null,null,null,null,null,null,null,null,null,null,null,null,null,null,null,null,null,null,null,null,null,null,null,null,null,null,null,null,8913,17250.831641826797,0.53630941254426046,21071.399609263732,0.90146783927086593]
[null,null,null,null,null,null,null,null,null,null,null,null,null,null,null,null,null,null,null,null,null,null,null,null,null,null,null,null,null,null,null,null,null,null,null,null,null,null,null,null,null,null,null,null,null,null,null,null,null,null,null,null,8919,14929.982318380356,1.5612987745744891,21237.851893715721,1.1521206531665997]
[null,null,null,null,null,null,null,null,null,null,null,null,null,null,null,null,null,null,null,null,null,null,null,null,null,null,null,null,null,null,null,null,null,null,null,null,null,null,null,null,null,null,null,null,null,null,null,null,null,null,null,null,8938,17040.755013577636,1.0123699581547463E-2,21292.566023275707,0.76234898317451771]
[null,null,null,null,null,null,null,null,null,null,null,null,null,null,null,null,null,null,null,null,null,null,null,null,null,null,null,null,null,null,null,null,null,null,null,null,null,null,null,null,null,null,null,null,null,null,null,null,null,null,null,null,{"$f":"1+BA8970","v":8963},18385.212789264984,1.064332449269962,20945.751358965819,1.6092958332077589]
[null,null,null,null,null,null,null,null,null,null,null,null,null,null,null,null,null,null,null,null,null,null,null,null,null,null,null,null,null,null,null,null,null,null,null,null,null,null,null,null,null,null,null,null,null,null,null,null,null,null,null,null,8986,16316.797415148903,1.4962018929478882,20132.374401334964,1.7278638942936597]
[null,null,null,null,null,null,null,null,null,null,null,null,null,null,null,null,null,null,null,null,null,null,null,null,null,null,null,null,null,null,null,null,null,null,null,null,null,null,null,null,null,null,null,null,null,null,null,null,null,null,null,null,9006,14851.136550698826,1.4631645685559671,19602.804109435783,1.2913972151651738]
[null,null,null,null,null,null,null,null,null,null,null,null,null,null,null,null,null,null,null,null,null,null,null,null,null,null,null,null,null,null,null,null,null,null,null,null,null,null,null,null,null,null,null,null,null,null,null,null,null,null,null,null,9025,12371.519681522597,2.0498323000295393,20675.227744883741,1.7568146827521214]
[null,null,null,null,null,null,null,null,null,null,null,null,null,null,null,null,null,null,null,null,null,null,null,null,null,null,null,null,null,null,null,null,null,null,null,null,null,null,null,null,null,null,null,null,null,null,null,null,null,null,null,null,9044,14029.905296015711,1.1521565987329714,20378.192238711075,0.41263577871203472]
[null,null,null,null,null,null,null,null,null,null,null,null,null,null,null,null,null,null,null,null,null,null,null,null,null,null,null,null,null,null,null,null,null,null,null,null,null,null,null,null,null,null,null,null,null,null,null,null,null,null,null,null,9050,16033.007044761429,1.1533850142802771,20901.05143427927,1.2654276607090995]
[null,null,null,null,null,null,null,null,null,null,null,null,null,null,null,null,null,null,null,null,null,null,null,null,null,null,null,null,null,null,null,null,null,null,null,null,null,null,null,null,null,null,null,null,null,null,null,null,null,null,null,null,9085,13426.422866754809,1.4498165916782704,21133.589057846904,1.0152461308285541]
[null,null,null,null,null,null,null,null,null,null,null,null,null,null,null,null,null,null,null,null,null,null,null,null,null,null,null,null,null,null,null,null,null,null,null,null,null,null,null,null,null,null,null,null,null,null,null,null,null,null,null,null,9087,14906.267160793795,0.81500513927035934,21550.672000073137,0.69585096134967284]
[null,null,null,null,null,null,null,null,null,null,null,null,null,null,null,null,null,null,null,null,null,null,null,null,null,null,null,null,null,null,null,null,null,null,null,null,null,null,null,null,null,null,null,null,null,null,null,null,null,null,null,null,9112,11673.537248394387,1.8930544393633637,21042.901264127951,0.77492481388646506]
[null,null,null,null,null,null,null,null,null,null,null,null,null,null,null,null,null,null,null,null,null,null,null,null,null,null,null,null,null,null,null,null,null,null,null,null,null,null,null,null,null,null,null,null,null,null,null,null,null,null,null,null,9131,14480.358260680725,1.1658653167594593,20859.512300924034,1.027765762220425]
[null,null,null,null,null,null,null,null,null,null,null,null,null,null,null,null,null,null,null,null,null,null,null,null,null,null,null,null,null,null,null,null,null,null,null,null,null,null,null,null,null,null,null,null,null,null,null,null,null,null,null,null,9144,14817.37020789115,0.75845361157403024,21309.318723495206,0.60122253528999403]
[null,null,null,null,null,null,null,null,null,null,null,null,null,null,null,null,null,null,null,null,null,null,null,null,null,null,null,null,null,null,null,null,null,null,null,null,null,null,null,null,null,null,null,null,null,null,null,null,null,null,null,null,9174,14127.799084848955,1.4624324699898741,20906.591041781514,1.1422473417388526]
[null,null,null,null,null,null,null,null,null,null,null,null,null,null,null,null,null,null,null,null,null,null,null,null,null,null,null,null,null,null,null,null,null,null,null,null,null,null,null,null,null,null,null,null,null,null,null,null,null,null,null,null,9193,15892.910779091639,1.4042348779946976,20156.339633018353,1.6854283799823073]
[null,null,null,null,null,null,null,null,null,null,null,null,null,null,null,null,null,null,null,null,null,null,null,null,null,null,null,null,null,null,null,null,null,null,null,null,null,null,null,null,null,null,null,null,null,null,null,null,null,null,null,null,9218,14902.712888125345,1.5342285611245983,20894.947998042036,1.4019038191689135]
[null,null,null,null,null,null,null,null,null,null,null,null,null,null,null,null,null,null,null,null,null,null,null,null,null,null,null,null,null,null,null,null,null,null,null,null,null,null,null,null,null,null,null,null,null,null,null,null,null,null,null,null,9235,16876.977048600915,0.28432311996075699,21497.463641890023,0.82155548033895165]
[null,null,null,null,null,null,null,null,null,null,null,null,null,null,null,null,null,null,null,null,null,null,null,null,null,null,null,null,null,null,null,null,null,null,null,null,null,null,null,null,null,null,null,null,null,null,null,null,null,null,null,null,9255,14564.961767781024,0.86840629756019827,20224.341746406972,0.60481060224330141]
[null,null,null,null,null,null,null,null,null,null,null,null,null,null,null,null,null,null,null,null,null,null,null,null,null,null,null,null,null,null,null,null,null,null,null,null,null,null,null,null,null,null,null,null,null,null,null,null,null,null,null,null,9261,13132.236448598402,1.4919282543901482,21727.785356859888,0.55239493335782885]
[null,null,null,null,null,null,null,null,null,null,null,null,null,null,null,null,null,null,null,null,null,null,null,null,null,null,null,null,null,null,null,null,null,null,null,null,null,null,null,null,null,null,null,null,null,null,null,null,null,null,null,null,9280,15027.988132921264,0.95714236388341645,21224.849818414677,0.82948930255374975]
[null,null,null,null,null,null,null,null,null,null,null,null,null,null,null,null,null,null,null,null,null,null,null,null,null,null,null,null,null,null,null,null,null,null,null,null,null,null,null,null,null,null,null,null,null,null,null,null,null,null,null,null,9305,14086.841394602214,0.73469999211563652,21155.153263775283,0.50541553255404748]
[null,null,null,null,null,null,null,null,null,null,null,null,null,null,null,null,null,null,null,null,null,null,null,null,null,null,null,null,null,null,null,null,null,null,null,null,null,null,null,null,null,null,null,null,null,null,null,null,null,null,null,null,9316,16456.454935440335,-0.82323703085658551,20708.139432393367,-0.10111133664071881]
[null,null,null,null,null,null,null,null,null,null,null,null,null,null,null,null,null,null,null,null,null,null,null,null,null,null,null,null,null,null,null,null,null,null,null,null,null,null,null,null,null,null,null,null,null,null,null,null,null,null,null,null,9342,13815.381964209075,1.0816388378060553,21610.171401202198,0.73436954924546827]
[null,null,null,null,null,null,null,null,null,null,null,null,null,null,null,null,null,null,null,null,null,null,null,null,null,null,null,null,null,null,null,null,null,null,null,null,null,null,null,null,null,null,null,null,null,null,null,null,null,null,null,null,9367,16618.235567349679,0.99840394209671113,21466.871570351024,1.1529466562121498]
[null,null,null,null,null,null,null,null,null,null,null,null,null,null,null,null,null,null,null,null,null,null,null,null,null,null,null,null,null,null,null,null,null,null,null,null,null,null,null,null,null,null,null,null,null,null,null,null,null,null,null,null,9386,16979.986584635801,0.98814727742876862,21137.355296396214,1.0956743400091298]
[null,null,null,null,null,null,null,null,null,null,null,null,null,null,null,null,null,null,null,null,null,null,null,null,null,null,null,null,null,null,null,null,null,null,null,null,null,null,null,null,null,null,null,null,null,null,null,null,null,null,null,null,9393,11831.209164823664,1.7311642867184278,21216.168863429371,0.90488133757547262]
[null,null,null,null,null,null,null,null,null,null,null,null,null,null,null,null,null,null,null,null,null,null,null,null,null,null,null,null,null,null,null,null,null,null,null,null,null,null,null,null,null,null,null,null,null,null,null,null,null,null,null,null,9410,14348.812946596956,-0.3001463852754831,20867.316358768898,-0.23087500727460664]
[null,null,null,null,null,null,null,null,null,null,null,null,null,null,null,null,null,null,null,null,null,null,null,null,null,null,null,null,null,null,null,null,null,null,null,null,null,null,null,null,null,null,null,null,null,null,null,null,null,null,null,null,9429,14542.604640409145,0.99155998077753327,21640.348453057013,0.53041630989706345]
[null,null,null,null,null,null,null,null,null,null,null,null,null,null,null,null,null,null,null,null,null,null,null,null,null,null,null,null,null,null,null,null,null,null,null,null,null,null,null,null,null,null,null,null,null,null,null,null,null,null,null,null,9454,15237.716986188978,1.3070979564201695,20597.986119570473,1.3209102592781958]
[null,null,null,null,null,null,null,null,null,null,null,null,null,null,null,null,null,null,null,null,null,null,null,null,null,null,null,null,null,null,null,null,null,null,null,null,null,null,null,null,null,null,null,null,null,null,null,null,null,null,null,null,9466,17919.644922896921,0.36576814155567727,20815.894399419689,1.0059909589095564]
[null,null,null,null,null,null,null,null,null,null,null,null,null,null,null,null,null,null,null,null,null,null,null,null,null,null,null,null,null,null,null,null,null,null,null,null,null,null,null,null,null,null,null,null,null,null,null,null,null,null,null,null,9491,14428.953911500963,0.72340723297509013,20497.266112678961,0.62345438932767461]
[null,null,null,null,null,null,null,null,null,null,null,null,null,null,null,null,null,null,null,null,null,null,null,null,null,null,null,null,null,null,null,null,null,null,null,null,null,null,null,null,null,null,null,null,null,null,null,null,null,null,null,null,9516,15827.528646985169,0.12205092235945103,20737.127736514536,0.40087651147130721]
[null,null,null,null,null,null,null,null,null,null,null,null,null,null,null,null,null,null,null,null,null,null,null,null,null,null,null,null,null,null,null,null,null,null,null,null,null,null,null,null,null,null,null,null,null,null,null,null,null,null,null,null,9535,17267.044095075347,1.9949923368780542E-3,21265.044681955653,0.61517306202483346]
[null,null,null,null,null,null,null,null,null,null,null,null,null,null,null,null,null,null,null,null,null,null,null,null,null,null,null,null,null,null,null,null,null,null,null,null,null,null,null,null,null,null,null,null,null,null,null,null,null,null,null,null,9543,18116.469066095975,0.78918902635627441,20982.214870762295,1.2040474614421033]
[null,null,null,null,null,null,null,null,null,null,null,null,null,null,null,null,null,null,null,null,null,null,null,null,null,null,null,null,null,null,null,null,null,null,null,null,null,null,null,null,null,null,null,null,null,null,null,null,null,null,null,null,9559,15393.432222929339,0.7680205875372641,21072.294311002195,0.72579785753755732]
[null,null,null,null,null,null,null,null,null,null,null,null,null,null,null,null,null,null,null,null,null,null,null,null,null,null,null,null,null,null,null,null,null,null,null,null,null,null,null,null,null,null,null,null,null,null,null,null,null,null,null,null,9578,18370.991439385365,0.87090548362418019,22053.355624160133,1.2379126462967918]
[null,null,null,null,null,null,null,null,null,null,null,null,null,null,null,null,null,null,null,null,null,null,null,null,null,null,null,null,null,null,null,null,null,null,null,null,null,null,null,null,null,null,null,null,null,null,null,null,null,null,null,null,{"$f":"1+BA9610","v":9603},17433.712943041348,0.51026087151073507,21289.861320389118,1.2128190466606792]
[null,null,null,null,null,null,null,null,null,null,null,null,null,null,null,null,null,null,null,null,null,null,null,null,null,null,null,null,null,null,null,null,null,null,null,null,null,null,null,null,null,null,null,null,null,null,null,null,null,null,null,null,9622,16812.25719977789,0.42356035617634136,20894.122182885516,0.79090427171554167]
[null,null,null,null,null,null,null,null,null,null,null,null,null,null,null,null,null,null,null,null,null,null,null,null,null,null,null,null,null,null,null,null,null,null,null,null,null,null,null,null,null,null,null,null,null,null,null,null,null,null,null,null,9642,15839.870294790762,0.95764170925008929,21603.866512500223,0.77802792815889288]
[null,null,null,null,null,null,null,null,null,null,null,null,null,null,null,null,null,null,null,null,null,null,null,null,null,null,null,null,null,null,null,null,null,null,null,null,null,null,null,null,null,null,null,null,null,null,null,null,null,null,null,null,9665,18610.35173197418,0.61668316798128364,21164.154561172003,0.94092111017352176]
[null,null,null,null,null,null,null,null,null,null,null,null,null,null,null,null,null,null,null,null,null,null,null,null,null,null,null,null,null,null,null,null,null,null,null,null,null,null,null,null,null,null,null,null,null,null,null,null,null,null,null,null,9684,19913.296284140477,0.57487326598904731,21616.063137373378,1.2038494125504697]
[null,null,null,null,null,null,null,null,null,null,null,null,null,null,null,null,null,null,null,null,null,null,null,null,null,null,null,null,null,null,null,null,null,null,null,null,null,null,null,null,null,null,null,null,null,null,null,null,null,null,null,null,9690,17978.669706362081,-2.2758462588765793E-2,20667.999395577983,0.59375323144155834]
[null,null,null,null,null,null,null,null,null,null,null,null,null,null,null,null,null,null,null,null,null,null,null,null,null,null,null,null,null,null,null,null,null,null,null,null,null,null,null,null,null,null,null,null,null,null,null,null,null,null,null,null,9715,15480.588235857855,1.4742516666087562,20676.499586140053,1.3720859224317621]
[null,null,null,null,null,null,null,null,null,null,null,null,null,null,null,null,null,null,null,null,null,null,null,null,null,null,null,null,null,null,null,null,null,null,null,null,null,null,null,null,null,null,null,null,null,null,null,null,null,null,null,null,9727,16853.18990526563,1.1589485488434799,20609.921431070255,1.4615973276615886]
[null,null,null,null,null,null,null,null,null,null,null,null,null,null,null,null,null,null,null,null,null,null,null,null,null,null,null,null,null,null,null,null,null,null,null,null,null,null,null,null,null,null,null,null,null,null,null,null,null,null,null,null,9752,16796.582959234664,1.5360129845704624,20627.536536501306,1.529682781474635]
[null,null,null,null,null,null,null,null,null,null,null,null,null,null,null,null,null,null,null,null,null,null,null,null,null,null,null,null,null,null,null,null,null,null,null,null,null,null,null,null,null,null,null,null,null,null,null,null,null,null,null,null,9771,15919.25694101039,1.2307530330802134,20154.414577922318,1.4025127119750813]
[null,null,null,null,null,null,null,null,null,null,null,null,null,null,null,null,null,null,null,null,null,null,null,null,null,null,null,null,null,null,null,null,null,null,null,null,null,null,null,null,null,null,null,null,null,null,null,null,null,null,null,null,9792,13884.64717440365,1.695998099596205,20482.909257904608,1.264050915792535]
[null,null,null,null,null,null,null,null,null,null,null,null,null,null,null,null,null,null,null,null,null,null,null,null,null,null,null,null,null,null,null,null,null,null,null,null,null,null,null,null,null,null,null,null,null,null,null,null,null,null,null,null,9814,15737.370501754924,0.71530151858833879,21216.563708295071,0.67137554364350471]
[null,null,null,null,null,null,null,null,null,null,null,null,null,null,null,null,null,null,null,null,null,null,null,null,null,null,null,null,null,null,null,null,null,null,null,null,null,null,null,null,null,null,null,null,null,null,null,null,null,null,null,null,9833,17532.039607376293,0.66059645018016,21646.736804783312,0.99749785036044214]
[null,null,null,null,null,null,null,null,null,null,null,null,null,null,null,null,null,null,null,null,null,null,null,null,null,null,null,null,null,null,null,null,null,null,null,null,null,null,null,null,null,null,null,null,null,null,null,null,null,null,null,null,9839,14600.433682168657,1.0612541018810575,20148.813950080748,1.2663480704194534]
[null,null,null,null,null,null,null,null,null,null,null,null,null,null,null,null,null,null,null,null,null,null,null,null,null,null,null,null,null,null,null,null,null,null,null,null,null,null,null,null,null,null,null,null,null,null,null,null,null,null,null,null,9858,16569.699736232262,0.96926210297724702,21817.276923859496,0.97013117427128714]
[null,null,null,null,null,null,null,null,null,null,null,null,null,null,null,null,null,null,null,null,null,null,null,null,null,null,null,null,null,null,null,null,null,null,null,null,null,null,null,null,null,null,null,null,null,null,null,null,null,null,null,null,9876,14029.771631510925,1.1736410962339825,20223.25806915123,1.2852787257142793]
[null,null,null,null,null,null,null,null,null,null,null,null,null,null,null,null,null,null,null,null,null,null,null,null,null,null,null,null,null,null,null,null,null,null,null,null,null,null,null,null,null,null,null,null,null,null,null,null,null,null,null,null,9877,13905.651798418665,1.8216924352218882,21012.459538202776,1.4546573834466066]
[null,null,null,null,null,null,null,null,null,null,null,null,null,null,null,null,null,null,null,null,null,null,null,null,null,null,null,null,null,null,null,null,null,null,null,null,null,null,null,null,null,null,null,null,null,null,null,null,null,null,null,null,9878,15683.240850253289,0.75950451498503346,20079.492714345521,1.1141539194401808]
[null,null,null,null,null,null,null,null,null,null,null,null,null,null,null,null,null,null,null,null,null,null,null,null,null,null,null,null,null,null,null,null,null,null,null,null,null,null,null,null,null,null,null,null,null,null,null,null,null,null,null,null,9879,12882.481215214862,1.1910396854312322,20940.465859688135,0.57380559931262931]
[null,null,null,null,null,null,null,null,null,null,null,null,null,null,null,null,null,null,null,null,null,null,null,null,null,null,null,null,null,null,null,null,null,null,null,null,null,null,null,null,null,null,null,null,null,null,null,null,null,null,null,null,9880,15459.692327294364,1.3178897876325559,20643.16075623221,1.3501283842309251]
[null,null,null,null,null,null,null,null,null,null,null,null,null,null,null,null,null,null,null,null,null,null,null,null,null,null,null,null,null,null,null,null,null,null,null,null,null,null,null,null,null,null,null,null,null,null,null,null,null,null,null,null,9881,15733.817261807897,0.64501207016300677,20985.691346677086,0.59312122425732827]
[null,null,null,null,null,null,null,null,null,null,null,null,null,null,null,null,null,null,null,null,null,null,null,null,null,null,null,null,null,null,null,null,null,null,null,null,null,null,null,null,null,null,null,null,null,null,null,null,null,null,null,null,9882,16615.758190760138,0.52217337681694487,20268.197900036819,0.98290380868202953]
[null,null,null,null,null,null,null,null,null,null,null,null,null,null,null,null,null,null,null,null,null,null,null,null,null,null,null,null,null,null,null,null,null,null,null,null,null,null,null,null,null,null,null,null,null,null,null,null,null,null,null,null,9883,16282.123727238133,0.52344014072528033,20346.346803894725,0.7195018973485614]
[null,null,null,null,null,null,null,null,null,null,null,null,null,null,null,null,null,null,null,null,null,null,null,null,null,null,null,null,null,null,null,null,null,null,null,null,null,null,null,null,null,null,null,null,null,null,null,null,null,null,null,null,9884,16237.403129732724,1.4965772940462208,21814.293192219564,1.3066973146372989]
[null,null,null,null,null,null,null,null,null,null,null,null,null,null,null,null,null,null,null,null,null,null,null,null,null,null,null,null,null,null,null,null,null,null,null,null,null,null,null,null,null,null,null,null,null,null,null,null,null,null,null,null,9885,15182.88196562825,1.8785463758211316,21738.192916492662,1.6992798013365298]
[null,null,null,null,null,null,null,null,null,null,null,null,null,null,null,null,null,null,null,null,null,null,null,null,null,null,null,null,null,null,null,null,null,null,null,null,null,null,null,null,null,null,null,null,null,null,null,null,null,null,null,null,9886,15544.625992956599,0.43055149645886903,21548.463938568028,0.46724370217940892]
[null,null,null,null,null,null,null,null,null,null,null,null,null,null,null,null,null,null,null,null,null,null,null,null,null,null,null,null,null,null,null,null,null,null,null,null,null,null,null,null,null,null,null,null,null,null,null,null,null,null,null,null,9887,16271.603708622084,1.0921997664219696,21299.002785697441,1.2134315040933672]
[null,null,null,null,null,null,null,null,null,null,null,null,null,null,null,null,null,null,null,null,null,null,null,null,null,null,null,null,null,null,null,null,null,null,null,null,null,null,null,null,null,null,null,null,null,null,null,null,null,null,null,null,9888,17177.635906535208,0.22295875035661217,20342.674311568771,0.66757562968376194]
[null,null,null,null,null,null,null,null,null,null,null,null,null,null,null,null,null,null,null,null,null,null,null,null,null,null,null,null,null,null,null,null,null,null,null,null,null,null,null,null,null,null,null,null,null,null,null,null,null,null,null,null,9889,14986.175914235266,1.4693289241005045,21111.663826950764,1.4739754152020004]
[null,null,null,null,null,null,null,null,null,null,null,null,null,null,null,null,null,null,null,null,null,null,null,null,null,null,null,null,null,null,null,null,null,null,null,null,null,null,null,null,null,null,null,null,null,null,null,null,null,null,null,null,9890,16231.02761137091,0.45249902929213504,21419.659620679999,0.50813273510682733]
[null,null,null,null,null,null,null,null,null,null,null,null,null,null,null,null,null,null,null,null,null,null,null,null,null,null,null,null,null,null,null,null,null,null,null,null,null,null,null,null,null,null,null,null,null,null,null,null,null,null,null,null,9891,14689.453135769096,1.6588741534817506,21292.815360099201,1.1542778063640933]
[null,null,null,null,null,null,null,null,null,null,null,null,null,null,null,null,null,null,null,null,null,null,null,null,null,null,null,null,null,null,null,null,null,null,null,null,null,null,null,null,null,null,null,null,null,null,null,null,null,null,null,null,9892,14472.057518038833,0.38862804779122362,21364.785614736826,0.1881395105844178]
[null,null,null,null,null,null,null,null,null,null,null,null,null,null,null,null,null,null,null,null,null,null,null,null,null,null,null,null,null,null,null,null,null,null,null,null,null,null,null,null,null,null,null,null,null,null,null,null,null,null,null,null,9893,15817.604625391044,0.75894098332948057,21190.645803042928,1.0750737404319664]
[null,null,null,null,null,null,null,null,null,null,null,null,null,null,null,null,null,null,null,null,null,null,null,null,null,null,null,null,null,null,null,null,null,null,null,null,null,null,null,null,null,null,null,null,null,null,null,null,null,null,null,null,9894,14691.470459017208,0.686390938516803,20466.384300214035,0.69312643345551317]
[null,null,null,null,null,null,null,null,null,null,null,null,null,null,null,null,null,null,null,null,null,null,null,null,null,null,null,null,null,null,null,null,null,null,null,null,null,null,null,null,null,null,null,null,null,null,null,null,null,null,null,null,9895,11550.846028358035,2.0145273729077591,19960.971772149744,1.3050950572344753]
[null,null,null,null,null,null,null,null,null,null,null,null,null,null,null,null,null,null,null,null,null,null,null,null,null,null,null,null,null,null,null,null,null,null,null,null,null,null,null,null,null,null,null,null,null,null,null,null,null,null,null,null,9896,17772.368730631923,-0.36457731639766722,21265.259158838642,0.43931972222558979]
[null,null,null,null,null,null,null,null,null,null,null,null,null,null,null,null,null,null,null,null,null,null,null,null,null,null,null,null,null,null,null,null,null,null,null,null,null,null,null,null,null,null,null,null,null,null,null,null,null,null,null,null,9897,16146.578508098775,0.98446885970677078,20886.850012540894,1.0179474058396194]
[null,null,null,null,null,null,null,null,null,null,null,null,null,null,null,null,null,null,null,null,null,null,null,null,null,null,null,null,null,null,null,null,null,null,null,null,null,null,null,null,null,null,null,null,null,null,null,null,null,null,null,null,9898,17485.200827067496,0.47037574113499098,20556.378222453495,0.88861931739145894]
[null,null,null,null,null,null,null,null,null,null,null,null,null,null,null,null,null,null,null,null,null,null,null,null,null,null,null,null,null,null,null,null,null,null,null,null,null,null,null,null,null,null,null,null,null,null,null,null,null,null,null,null,9899,14833.331305417132,1.2487997012438756,21317.299653405749,1.0977650104768562]
[null,null,null,null,null,null,null,null,null,null,null,null,null,null,null,null,null,null,null,null,null,null,null,null,null,null,null,null,null,null,null,null,null,null,null,null,null,null,null,null,null,null,null,null,null,null,null,null,null,null,null,null,9900,15608.665728914737,1.4299890787945286,20962.124794293082,1.2555023505938763]
[null,null,null,null,null,null,null,null,null,null,null,null,null,null,null,null,null,null,null,null,null,null,null,null,null,null,null,null,null,null,null,null,null,null,null,null,null,null,null,null,null,null,null,null,null,null,null,null,null,null,null,null,9901,14651.536742618364,0.67282012788687229,21429.984129063436,0.60181000574877075]
[null,null,null,null,null,null,null,null,null,null,null,null,null,null,null,null,null,null,null,null,null,null,null,null,null,null,null,null,null,null,null,null,null,null,null,null,null,null,null,null,null,null,null,null,null,null,null,null,null,null,null,null,9902,15746.731857691246,0.29151543141143377,20266.485646143163,0.61845759092768371]
[null,null,null,null,null,null,null,null,null,null,null,null,null,null,null,null,null,null,null,null,null,null,null,null,null,null,null,null,null,null,null,null,null,null,null,null,null,null,null,null,null,null,null,null,null,null,null,null,null,null,null,null,9903,15650.871590559878,0.64859494451485888,20691.361352808497,0.65429831020263429]
[null,null,null,null,null,null,null,null,null,null,null,null,null,null,null,null,null,null,null,null,null,null,null,null,null,null,null,null,null,null,null,null,null,null,null,null,null,null,null,null,null,null,null,null,null,null,null,null,null,null,null,null,9904,17914.809754500075,-0.12404964691309017,21483.450019254251,0.77159567705248566]
[null,null,null,null,null,null,null,null,null,null,null,null,null,null,null,null,null,null,null,null,null,null,null,null,null,null,null,null,null,null,null,null,null,null,null,null,null,null,null,null,null,null,null,null,null,null,null,null,null,null,null,null,9905,18017.837175983648,0.37108672169111745,21076.530083976348,0.87305860803329671]
[null,null,null,null,null,null,null,null,null,null,null,null,null,null,null,null,null,null,null,null,null,null,null,null,null,null,null,null,null,null,null,null,null,null,null,null,null,null,null,null,null,null,null,null,null,null,null,null,null,null,null,null,9906,17442.507487662191,0.87781202518636048,21380.655758901259,1.1637543404853083]
[null,null,null,null,null,null,null,null,null,null,null,null,null,null,null,null,null,null,null,null,null,null,null,null,null,null,null,null,null,null,null,null,null,null,null,null,null,null,null,null,null,null,null,null,null,null,null,null,null,null,null,null,9907,17578.976622618913,0.70648902411234693,20807.45692533116,1.0052025902714432]
[null,null,null,null,null,null,null,null,null,null,null,null,null,null,null,null,null,null,null,null,null,null,null,null,null,null,null,null,null,null,null,null,null,null,null,null,null,null,null,null,null,null,null,null,null,null,null,null,null,null,null,null,9908,18249.761429234335,-6.3751765271859884E-2,20712.502822943876,0.73878181414372956]
[null,null,null,null,null,null,null,null,null,null,null,null,null,null,null,null,null,null,null,null,null,null,null,null,null,null,null,null,null,null,null,null,null,null,null,null,null,null,null,null,null,null,null,null,null,null,null,null,null,null,null,null,9909,17376.357032980406,0.38019153732835975,20870.08780537486,0.82614321721490125]
[null,null,null,null,null,null,null,null,null,null,null,null,null,null,null,null,null,null,null,null,null,null,null,null,null,null,null,null,null,null,null,null,null,null,null,null,null,null,null,null,null,null,null,null,null,null,null,null,null,null,null,null,9910,16547.750931604802,1.2783169910417862,21249.289915091285,1.2570925320664115]
[null,null,null,null,null,null,null,null,null,null,null,null,null,null,null,null,null,null,null,null,null,null,null,null,null,null,null,null,null,null,null,null,null,null,null,null,null,null,null,null,null,null,null,null,null,null,null,null,null,null,null,null,9911,15123.216640621555,1.5353577329882615,21007.999681362086,1.209308225625179]
[null,null,null,null,null,null,null,null,null,null,null,null,null,null,null,null,null,null,null,null,null,null,null,null,null,null,null,null,null,null,null,null,null,null,null,null,null,null,null,null,null,null,null,null,null,null,null,null,null,null,null,null,9912,10633.31862965861,1.9567608594908483,20799.127970449503,1.2340227071105447]
[null,null,null,null,null,null,null,null,null,null,null,null,null,null,null,null,null,null,null,null,null,null,null,null,null,null,null,null,null,null,null,null,null,null,null,null,null,null,null,null,null,null,null,null,null,null,null,null,null,null,null,null,9913,11998.137720321007,1.4421848930990697,20440.482036314854,0.70956151073698726]
[null,null,null,null,null,null,null,null,null,null,null,null,null,null,null,null,null,null,null,null,null,null,null,null,null,null,null,null,null,null,null,null,null,null,null,null,null,null,null,null,null,null,null,null,null,null,null,null,null,null,null,null,9914,17724.876124198192,0.8630279873513792,21252.892628307316,1.369019349852143]
[null,null,null,null,null,null,null,null,null,null,null,null,null,null,null,null,null,null,null,null,null,null,null,null,null,null,null,null,null,null,null,null,null,null,null,null,null,null,null,null,null,null,null,null,null,null,null,null,null,null,null,null,9915,16241.711386448926,0.95807628157993308,20908.321538778571,1.1055705892026761]
[null,null,null,null,null,null,null,null,null,null,null,null,null,null,null,null,null,null,null,null,null,null,null,null,null,null,null,null,null,null,null,null,null,null,null,null,null,null,null,null,null,null,null,null,null,null,null,null,null,null,null,null,9916,16817.993114064266,1.2333438759892299,20944.893487349131,1.3188488813441861]
[null,null,null,null,null,null,null,null,null,null,null,null,null,null,null,null,null,null,null,null,null,null,null,null,null,null,null,null,null,null,null,null,null,null,null,null,null,null,null,null,null,null,null,null,null,null,null,null,null,null,null,null,9917,10856.766101466988,1.7100027131819124,21378.224500716718,0.3315770848938443]
[null,null,null,null,null,null,null,null,null,null,null,null,null,null,null,null,null,null,null,null,null,null,null,null,null,null,null,null,null,null,null,null,null,null,null,null,null,null,null,null,null,null,null,null,null,null,null,null,null,null,null,null,9918,14691.708672133762,0.87401604427506252,20321.880654144887,0.44470912497553244]
[null,null,null,null,null,null,null,null,null,null,null,null,null,null,null,null,null,null,null,null,null,null,null,null,null,null,null,null,null,null,null,null,null,null,null,null,null,null,null,null,null,null,null,null,null,null,null,null,null,null,null,null,9919,17227.088043775344,0.66937575077241729,21817.448143231952,0.71558711239176576]
[null,null,null,null,null,null,null,null,null,null,null,null,null,null,null,null,null,null,null,null,null,null,null,null,null,null,null,null,null,null,null,null,null,null,null,null,null,null,null,null,null,null,null,null,null,null,null,null,null,null,null,null,9920,15687.526427515382,0.99856609643679217,21119.192307070211,1.0769293031250533]
[null,null,null,null,null,null,null,null,null,null,null,null,null,null,null,null,null,null,null,null,null,null,null,null,null,null,null,null,null,null,null,null,null,null,null,null,null,null,null,null,null,null,null,null,null,null,null,null,null,null,null,null,9921,17611.251553417645,1.3156367906863806,21164.575226163266,1.3550831316515239]
[null,null,null,null,null,null,null,null,null,null,null,null,null,null,null,null,null,null,null,null,null,null,null,null,null,null,null,null,null,null,null,null,null,null,null,null,null,null,null,null,null,null,null,null,null,null,null,null,null,null,null,null,9922,17597.337860218478,0.25711720246178538,22280.260023477189,0.93513645859844341]
[null,null,null,null,null,null,null,null,null,null,null,null,null,null,null,null,null,null,null,null,null,null,null,null,null,null,null,null,null,null,null,null,null,null,null,null,null,null,null,null,null,null,null,null,null,null,null,null,null,null,null,null,{"$f":"1+BA9930","v":9923},16591.101264256409,0.59378833663943031,20798.658131142591,0.71928746410429101]
[null,null,null,null,null,null,null,null,null,null,null,null,null,null,null,null,null,null,null,null,null,null,null,null,null,null,null,null,null,null,null,null,null,null,null,null,null,null,null,null,null,null,null,null,null,null,null,null,null,null,null,null,9924,14066.125617086042,1.0538648679597813,20282.793535740213,1.2793989587373278]
[null,null,null,null,null,null,null,null,null,null,null,null,null,null,null,null,null,null,null,null,null,null,null,null,null,null,null,null,null,null,null,null,null,null,null,null,null,null,null,null,null,null,null,null,null,null,null,null,null,null,null,null,9925,11727.715339449443,1.9253933406573063,21089.858190363298,1.0981101401506617]
[null,null,null,null,null,null,null,null,null,null,null,null,null,null,null,null,null,null,null,null,null,null,null,null,null,null,null,null,null,null,null,null,null,null,null,null,null,null,null,null,null,null,null,null,null,null,null,null,null,null,null,null,9926,16624.595852824357,-0.23228784624641663,20873.047871927025,0.32916527144894048]
[null,null,null,null,null,null,null,null,null,null,null,null,null,null,null,null,null,null,null,null,null,null,null,null,null,null,null,null,null,null,null,null,null,null,null,null,null,null,null,null,null,null,null,null,null,null,null,null,null,null,null,null,9927,14329.892135223899,2.0752296824144354,20743.02606312322,1.7442663031209003]
[null,null,null,null,null,null,null,null,null,null,null,null,null,null,null,null,null,null,null,null,null,null,null,null,null,null,null,null,null,null,null,null,null,null,null,null,null,null,null,null,null,null,null,null,null,null,null,null,null,null,null,null,9928,14323.190173724648,0.34115087127677202,21500.446997831619,0.20229778041765756]
[null,null,null,null,null,null,null,null,null,null,null,null,null,null,null,null,null,null,null,null,null,null,null,null,null,null,null,null,null,null,null,null,null,null,null,null,null,null,null,null,null,null,null,null,null,null,null,null,null,null,null,null,9929,16458.865041736251,-5.6618739904564341E-2,21812.181250481917,-0.38023914549084092]
[null,null,null,null,null,null,null,null,null,null,null,null,null,null,null,null,null,null,null,null,null,null,null,null,null,null,null,null,null,null,null,null,null,null,null,null,null,null,null,null,null,null,null,null,null,null,null,null,null,null,null,null,9930,18963.58806539726,-1.1678943609210615,21308.084285057681,-0.34425421170807757]
[null,null,null,null,null,null,null,null,null,null,null,null,null,null,null,null,null,null,null,null,null,null,null,null,null,null,null,null,null,null,null,null,null,null,null,null,null,null,null,null,null,null,null,null,null,null,null,null,null,null,null,null,9931,15021.821329945436,1.1409794051339046,21506.564701698422,1.2793079366265885]
[null,null,null,null,null,null,null,null,null,null,null,null,null,null,null,null,null,null,null,null,null,null,null,null,null,null,null,null,null,null,null,null,null,null,null,null,null,null,null,null,null,null,null,null,null,null,null,null,null,null,null,null,9932,18129.345902224868,0.4862035011947432,20139.011998228518,1.0564519289706811]
[null,null,null,null,null,null,null,null,null,null,null,null,null,null,null,null,null,null,null,null,null,null,null,null,null,null,null,null,null,null,null,null,null,null,null,null,null,null,null,null,null,null,null,null,null,null,null,null,null,null,null,null,9933,17824.991913403843,3.0919463897629562E-3,21165.46749708979,0.43536816739022577]
[null,null,null,null,null,null,null,null,null,null,null,null,null,null,null,null,null,null,null,null,null,null,null,null,null,null,null,null,null,null,null,null,null,null,null,null,null,null,null,null,null,null,null,null,null,null,null,null,null,null,null,null,9934,14108.266581842287,1.0554874007157105,20987.621917936223,0.95608106098218748]
[null,null,null,null,null,null,null,null,null,null,null,null,null,null,null,null,null,null,null,null,null,null,null,null,null,null,null,null,null,null,null,null,null,null,null,null,null,null,null,null,null,null,null,null,null,null,null,null,null,null,null,null,9935,19530.081007963181,0.32279735548465366,21626.600492502257,0.98816087530672481]
[null,null,null,null,null,null,null,null,null,null,null,null,null,null,null,null,null,null,null,null,null,null,null,null,null,null,null,null,null,null,null,null,null,null,null,null,null,null,null,null,null,null,null,null,null,null,null,null,null,null,null,null,9936,17225.176056948221,-3.2225542136006258E-3,21131.612709665613,0.48904934505972353]
[null,null,null,null,null,null,null,null,null,null,null,null,null,null,null,null,null,null,null,null,null,null,null,null,null,null,null,null,null,null,null,null,null,null,null,null,null,null,null,null,null,null,null,null,null,null,null,null,null,null,null,null,9937,16789.27195707307,7.3634583345181803E-2,20269.193501745172,0.2500738587495156]
[null,null,null,null,null,null,null,null,null,null,null,null,null,null,null,null,null,null,null,null,null,null,null,null,null,null,null,null,null,null,null,null,null,null,null,null,null,null,null,null,null,null,null,null,null,null,null,null,null,null,null,null,9938,17865.961108805597,-7.2547668029836587E-2,21075.844812990061,0.48889502537506857]
[null,null,null,null,null,null,null,null,null,null,null,null,null,null,null,null,null,null,null,null,null,null,null,null,null,null,null,null,null,null,null,null,null,null,null,null,null,null,null,null,null,null,null,null,null,null,null,null,null,null,null,null,9939,15360.859203679163,1.1482744449673044,21432.389050744518,1.0247105252518951]
[null,null,null,null,null,null,null,null,null,null,null,null,null,null,null,null,null,null,null,null,null,null,null,null,null,null,null,null,null,null,null,null,null,null,null,null,null,null,null,null,null,null,null,null,null,null,null,null,null,null,null,null,9940,17535.617927175907,0.55253930561555464,21377.209287698577,0.94650870063354764]
[null,null,null,null,null,null,null,null,null,null,null,null,null,null,null,null,null,null,null,null,null,null,null,null,null,null,null,null,null,null,null,null,null,null,null,null,null,null,null,null,null,null,null,null,null,null,null,null,null,null,null,null,9941,15409.993412710406,1.4488461104021273,21183.336223870159,1.50051095880617]
[null,null,null,null,null,null,null,null,null,null,null,null,null,null,null,null,null,null,null,null,null,null,null,null,null,null,null,null,null,null,null,null,null,null,null,null,null,null,null,null,null,null,null,null,null,null,null,null,null,null,null,null,9942,14945.433770759601,0.48300471598410677,20975.728864718698,0.33580901037645516]
[null,null,null,null,null,null,null,null,null,null,null,null,null,null,null,null,null,null,null,null,null,null,null,null,null,null,null,null,null,null,null,null,null,null,null,null,null,null,null,null,null,null,null,null,null,null,null,null,null,null,null,null,9943,13672.911790498303,1.4907429066902027,20348.480466975223,1.3020380282550288]
[null,null,null,null,null,null,null,null,null,null,null,null,null,null,null,null,null,null,null,null,null,null,null,null,null,null,null,null,null,null,null,null,null,null,null,null,null,null,null,null,null,null,null,null,null,null,null,null,null,null,null,null,9944,14927.346185090613,1.2754090965498395,20756.365514183697,0.95159981620403478]
[null,null,null,null,null,null,null,null,null,null,null,null,null,null,null,null,null,null,null,null,null,null,null,null,null,null,null,null,null,null,null,null,null,null,null,null,null,null,null,null,null,null,null,null,null,null,null,null,null,null,null,null,9945,17204.667351026761,1.3399802374189602,20678.24155752307,1.2563298462773067]
[null,null,null,null,null,null,null,null,null,null,null,null,null,null,null,null,null,null,null,null,null,null,null,null,null,null,null,null,null,null,null,null,null,null,null,null,null,null,null,null,null,null,null,null,null,null,null,null,null,null,null,null,9946,15899.839394103928,1.1796681461035134,21337.808483315061,1.1768403949923316]
[null,null,null,null,null,null,null,null,null,null,null,null,null,null,null,null,null,null,null,null,null,null,null,null,null,null,null,null,null,null,null,null,null,null,null,null,null,null,null,null,null,null,null,null,null,null,null,null,null,null,null,null,9947,16757.112988099703,0.64953047855108825,21480.328866466429,1.0930310171361672]
[null,null,null,null,null,null,null,null,null,null,null,null,null,null,null,null,null,null,null,null,null,null,null,null,null,null,null,null,null,null,null,null,null,null,null,null,null,null,null,null,null,null,null,null,null,null,null,null,null,null,null,null,9948,14423.868659415162,1.5221186543731937,20778.204558603808,0.92328861626659764]
[null,null,null,null,null,null,null,null,null,null,null,null,null,null,null,null,null,null,null,null,null,null,null,null,null,null,null,null,null,null,null,null,null,null,null,null,null,null,null,null,null,null,null,null,null,null,null,null,null,null,null,null,9949,14260.359068828537,0.5915588487203326,21126.60340675091,0.51730628615465613]
[null,null,null,null,null,null,null,null,null,null,null,null,null,null,null,null,null,null,null,null,null,null,null,null,null,null,null,null,null,null,null,null,null,null,null,null,null,null,null,null,null,null,null,null,null,null,null,null,null,null,null,null,9950,15869.573520187148,1.5057156194450836,22072.326595195889,1.4577639255546428]
[null,null,null,null,null,null,null,null,null,null,null,null,null,null,null,null,null,null,null,null,null,null,null,null,null,null,null,null,null,null,null,null,null,null,null,null,null,null,null,null,null,null,null,null,null,null,null,null,null,null,null,null,9951,16369.346921442979,0.70613347621822808,20595.425733971886,0.70833726239647088]
[null,null,null,null,null,null,null,null,null,null,null,null,null,null,null,null,null,null,null,null,null,null,null,null,null,null,null,null,null,null,null,null,null,null,null,null,null,null,null,null,null,null,null,null,null,null,null,null,null,null,null,null,9952,15463.089216888329,0.93009784141552843,21637.117359183467,1.0395259335278111]
[null,null,null,null,null,null,null,null,null,null,null,null,null,null,null,null,null,null,null,null,null,null,null,null,null,null,null,null,null,null,null,null,null,null,null,null,null,null,null,null,null,null,null,null,null,null,null,null,null,null,null,null,9953,15367.593489145309,0.35076951368095766,21260.543677692611,0.43852809724398045]
[null,null,null,null,null,null,null,null,null,null,null,null,null,null,null,null,null,null,null,null,null,null,null,null,null,null,null,null,null,null,null,null,null,null,null,null,null,null,null,null,null,null,null,null,null,null,null,null,null,null,null,null,9954,18031.131625607119,0.59866540303503568,21853.603062025395,0.88296391180232869]
[null,null,null,null,null,null,null,null,null,null,null,null,null,null,null,null,null,null,null,null,null,null,null,null,null,null,null,null,null,null,null,null,null,null,null,null,null,null,null,null,null,null,null,null,null,null,null,null,null,null,null,null,9955,17450.192938648292,0.50227731753712845,21895.285689840333,0.85960277601208723]
[null,null,null,null,null,null,null,null,null,null,null,null,null,null,null,null,null,null,null,null,null,null,null,null,null,null,null,null,null,null,null,null,null,null,null,null,null,null,null,null,null,null,null,null,null,null,null,null,null,null,null,null,9956,14293.140720140087,1.4445287374745073,21076.010269408187,1.4260065137457554]
[null,null,null,null,null,null,null,null,null,null,null,null,null,null,null,null,null,null,null,null,null,null,null,null,null,null,null,null,null,null,null,null,null,null,null,null,null,null,null,null,null,null,null,null,null,null,null,null,null,null,null,null,9957,13717.606966163477,1.661127749140741,20932.801972388574,1.0993095869760687]
[null,null,null,null,null,null,null,null,null,null,null,null,null,null,null,null,null,null,null,null,null,null,null,null,null,null,null,null,null,null,null,null,null,null,null,null,null,null,null,null,null,null,null,null,null,null,null,null,null,null,null,null,9958,18084.512789743432,0.70393684588050109,21808.718046373499,0.86175629271257193]
[null,null,null,null,null,null,null,null,null,null,null,null,null,null,null,null,null,null,null,null,null,null,null,null,null,null,null,null,null,null,null,null,null,null,null,null,null,null,null,null,null,null,null,null,null,null,null,null,null,null,null,null,9959,13409.790183326255,1.3373586948737199,22063.027732872521,0.51813504038046321]
[null,null,null,null,null,null,null,null,null,null,null,null,null,null,null,null,null,null,null,null,null,null,null,null,null,null,null,null,null,null,null,null,null,null,null,null,null,null,null,null,null,null,null,null,null,null,null,null,null,null,null,null,9960,16863.835710891199,-5.6794185040680345E-2,21660.343616651542,0.23633772288229826]
[null,null,null,null,null,null,null,null,null,null,null,null,null,null,null,null,null,null,null,null,null,null,null,null,null,null,null,null,null,null,null,null,null,null,null,null,null,null,null,null,null,null,null,null,null,null,null,null,null,null,null,null,9961,13595.737791333562,1.9973176026811241,21712.795816169637,1.5282452463048513]
[null,null,null,null,null,null,null,null,null,null,null,null,null,null,null,null,null,null,null,null,null,null,null,null,null,null,null,null,null,null,null,null,null,null,null,null,null,null,null,null,null,null,null,null,null,null,null,null,null,null,null,null,9962,19026.879446221828,-0.8593759618164496,21597.47774892945,0.1465158319349964]
[null,null,null,null,null,null,null,null,null,null,null,null,null,null,null,null,null,null,null,null,null,null,null,null,null,null,null,null,null,null,null,null,null,null,null,null,null,null,null,null,null,null,null,null,null,null,null,null,null,null,null,null,9963,17861.70115107279,1.4613092242165864,21849.485696598829,1.45583810763164]
[null,null,null,null,null,null,null,null,null,null,null,null,null,null,null,null,null,null,null,null,null,null,null,null,null,null,null,null,null,null,null,null,null,null,null,null,null,null,null,null,null,null,null,null,null,null,null,null,null,null,null,null,9964,17472.852331662703,-0.20780688835295558,20808.634051555215,0.35891216027272355]
[null,null,null,null,null,null,null,null,null,null,null,null,null,null,null,null,null,null,null,null,null,null,null,null,null,null,null,null,null,null,null,null,null,null,null,null,null,null,null,null,null,null,null,null,null,null,null,null,null,null,null,null,9965,18410.749617889869,-0.21447419566180426,21465.964470142855,0.45961158113943368]
[null,null,null,null,null,null,null,null,null,null,null,null,null,null,null,null,null,null,null,null,null,null,null,null,null,null,null,null,null,null,null,null,null,null,null,null,null,null,null,null,null,null,null,null,null,null,null,null,null,null,null,null,9966,14984.415361095442,7.5156722070227833E-2,21733.041744055197,0.26390582806016449]
[null,null,null,null,null,null,null,null,null,null,null,null,null,null,null,null,null,null,null,null,null,null,null,null,null,null,null,null,null,null,null,null,null,null,null,null,null,null,null,null,null,null,null,null,null,null,null,null,null,null,null,null,9967,19295.125599369101,0.10833351522549373,21848.088749390827,0.3124828300589626]
[null,null,null,null,null,null,null,null,null,null,null,null,null,null,null,null,null,null,null,null,null,null,null,null,null,null,null,null,null,null,null,null,null,null,null,null,null,null,null,null,null,null,null,null,null,null,null,null,null,null,null,null,9968,18323.819925908683,1.1259812597530023,20937.552354756775,1.6296152819041447]
[null,null,null,null,null,null,null,null,null,null,null,null,null,null,null,null,null,null,null,null,null,null,null,null,null,null,null,null,null,null,null,null,null,null,null,null,null,null,null,null,null,null,null,null,null,null,null,null,null,null,null,null,9969,18873.768145798262,7.7384940494836463E-2,20769.880367241076,0.86521625835337446]
[null,null,null,null,null,null,null,null,null,null,null,null,null,null,null,null,null,null,null,null,null,null,null,null,null,null,null,null,null,null,null,null,null,null,null,null,null,null,null,null,null,null,null,null,null,null,null,null,null,null,null,null,9970,13690.973224852627,1.3324943231476514,21238.085078734046,0.87394531564044597]
[null,null,null,null,null,null,null,null,null,null,null,null,null,null,null,null,null,null,null,null,null,null,null,null,null,null,null,null,null,null,null,null,null,null,null,null,null,null,null,null,null,null,null,null,null,null,null,null,null,null,null,null,9971,16590.01443911258,0.96633539067404617,21369.008289408757,0.89118060190497883]
[null,null,null,null,null,null,null,null,null,null,null,null,null,null,null,null,null,null,null,null,null,null,null,null,null,null,null,null,null,null,null,null,null,null,null,null,null,null,null,null,null,null,null,null,null,null,null,null,null,null,null,null,9972,17083.580324545837,0.1105004416391282,21527.850270970586,0.24539361671966764]
[null,null,null,null,null,null,null,null,null,null,null,null,null,null,null,null,null,null,null,null,null,null,null,null,null,null,null,null,null,null,null,null,null,null,null,null,null,null,null,null,null,null,null,null,null,null,null,null,null,null,null,null,9973,15406.239185858321,0.51232148377225051,21195.419239163308,-9.2533609322357879E-2]
[null,null,null,null,null,null,null,null,null,null,null,null,null,null,null,null,null,null,null,null,null,null,null,null,null,null,null,null,null,null,null,null,null,null,null,null,null,null,null,null,null,null,null,null,null,null,null,null,null,null,null,null,9974,12549.497039946396,1.881469645549702,20005.299566570386,1.2210374360240128]
[null,null,null,null,null,null,null,null,null,null,null,null,null,null,null,null,null,null,null,null,null,null,null,null,null,null,null,null,null,null,null,null,null,null,null,null,null,null,null,null,null,null,null,null,null,null,null,null,null,null,null,null,9975,14439.743947967834,1.5097083950533496,21174.45784064434,0.77175628321094791]
[null,null,null,null,null,null,null,null,null,null,null,null,null,null,null,null,null,null,null,null,null,null,null,null,null,null,null,null,null,null,null,null,null,null,null,null,null,null,null,null,null,null,null,null,null,null,null,null,null,null,null,null,9976,16081.222590148047,1.0755468565210999,21771.81097118539,1.0472064171538595]
[null,null,null,null,null,null,null,null,null,null,null,null,null,null,null,null,null,null,null,null,null,null,null,null,null,null,null,null,null,null,null,null,null,null,null,null,null,null,null,null,null,null,null,null,null,null,null,null,null,null,null,null,9977,15001.031149108636,0.67672979913460729,21610.53993058993,0.62788840373811572]
[null,null,null,null,null,null,null,null,null,null,null,null,null,null,null,null,null,null,null,null,null,null,null,null,null,null,null,null,null,null,null,null,null,null,null,null,null,null,null,null,null,null,null,null,null,null,null,null,null,null,null,null,9978,16862.932381581901,1.3798110144610378,21191.354330850685,1.2801110791577877]
[null,null,null,null,null,null,null,null,null,null,null,null,null,null,null,null,null,null,null,null,null,null,null,null,null,null,null,null,null,null,null,null,null,null,null,null,null,null,null,null,null,null,null,null,null,null,null,null,null,null,null,null,9979,12788.144482335661,1.9725701027901341,21004.86605437172,1.3838492627975603]
[null,null,null,null,null,null,null,null,null,null,null,null,null,null,null,null,null,null,null,null,null,null,null,null,null,null,null,null,null,null,null,null,null,null,null,null,null,null,null,null,null,null,null,null,null,null,null,null,null,null,null,null,9980,15129.631669799724,1.1440023724139345,21285.941918725981,1.0937009337496499]
[null,null,null,null,null,null,null,null,null,null,null,null,null,null,null,null,null,null,null,null,null,null,null,null,null,null,null,null,null,null,null,null,null,null,null,null,null,null,null,null,null,null,null,null,null,null,null,null,null,null,null,null,9981,15961.800939719342,0.53470430363625265,21393.126210800998,0.59127473060179203]
[null,null,null,null,null,null,null,null,null,null,null,null,null,null,null,null,null,null,null,null,null,null,null,null,null,null,null,null,null,null,null,null,null,null,null,null,null,null,null,null,null,null,null,null,null,null,null,null,null,null,null,null,9982,14894.811407757321,1.7603438658852646,20615.220008921329,1.6017771685972799]
[null,null,null,null,null,null,null,null,null,null,null,null,null,null,null,null,null,null,null,null,null,null,null,null,null,null,null,null,null,null,null,null,null,null,null,null,null,null,null,null,null,null,null,null,null,null,null,null,null,null,null,null,9983,15138.510189678538,0.3761333197310277,21246.597414731063,0.4485667815134059]
[null,null,null,null,null,null,null,null,null,null,null,null,null,null,null,null,null,null,null,null,null,null,null,null,null,null,null,null,null,null,null,null,null,null,null,null,null,null,null,null,null,null,null,null,null,null,null,null,null,null,null,null,9984,17053.003316661823,0.6781858691518694,22095.350341190293,0.71199359644368831]
[null,null,null,null,null,null,null,null,null,null,null,null,null,null,null,null,null,null,null,null,null,null,null,null,null,null,null,null,null,null,null,null,null,null,null,null,null,null,null,null,null,null,null,null,null,null,null,null,null,null,null,null,9985,15331.665636325399,0.66444977283373929,20143.551311224532,0.97833352654441519]
[null,null,null,null,null,null,null,null,null,null,null,null,null,null,null,null,null,null,null,null,null,null,null,null,null,null,null,null,null,null,null,null,null,null,null,null,null,null,null,null,null,null,null,null,null,null,null,null,null,null,null,null,9986,15089.681393643132,0.50652341787917399,20545.206803549241,0.53093848442086355]
[null,null,null,null,null,null,null,null,null,null,null,null,null,null,null,null,null,null,null,null,null,null,null,null,null,null,null,null,null,null,null,null,null,null,null,null,null,null,null,null,null,null,null,null,null,null,null,null,null,null,null,null,{"$f":"1+BA9994","v":9987},17741.656362055342,0.76366255287236595,21746.189810520249,1.3866733439107866]
[null,null,null,null,null,null,null,null,null,null,null,null,null,null,null,null,null,null,null,null,null,null,null,null,null,null,null,null,null,null,null,null,null,null,null,null,null,null,null,null,null,null,null,null,null,null,null,null,null,null,null,null,9988,15336.689328463242,1.3242402853276551,21250.772394593128,1.1558818952651444]
[null,null,null,null,null,null,null,null,null,null,null,null,null,null,null,null,null,null,null,null,null,null,null,null,null,null,null,null,null,null,null,null,null,null,null,null,null,null,null,null,null,null,null,null,null,null,null,null,null,null,null,null,9989,16704.325851550951,1.1885864400978192,21350.187615568073,1.2696663880555636]
[null,null,null,null,null,null,null,null,null,null,null,null,null,null,null,null,null,null,null,null,null,null,null,null,null,null,null,null,null,null,null,null,null,null,null,null,null,null,null,null,null,null,null,null,null,null,null,null,null,null,null,null,9990,14136.329127615198,-6.0915545343774635E-2,21855.554587182502,-0.74516717285882139]
[null,null,null,null,null,null,null,null,null,null,null,null,null,null,null,null,null,null,null,null,null,null,null,null,null,null,null,null,null,null,null,null,null,null,null,null,null,null,null,null,null,null,null,null,null,null,null,null,null,null,null,null,9991,13114.144641074201,1.473718386378295,20695.235295654726,1.065814447261406]
[null,null,null,null,null,null,null,null,null,null,null,null,null,null,null,null,null,null,null,null,null,null,null,null,null,null,null,null,null,null,null,null,null,null,null,null,null,null,null,null,null,null,null,null,null,null,null,null,null,null,null,null,9992,17033.585105655067,0.23579604616603966,20755.350920515622,0.79407229167899041]
[null,null,null,null,null,null,null,null,null,null,null,null,null,null,null,null,null,null,null,null,null,null,null,null,null,null,null,null,null,null,null,null,null,null,null,null,null,null,null,null,null,null,null,null,null,null,null,null,null,null,null,null,9993,14960.238647544482,0.44245531294433582,20050.127397967379,0.18537206771951853]
[null,null,null,null,null,null,null,null,null,null,null,null,null,null,null,null,null,null,null,null,null,null,null,null,null,null,null,null,null,null,null,null,null,null,null,null,null,null,null,null,null,null,null,null,null,null,null,null,null,null,null,null,9994,19652.833392370365,0.56924591317139028,22057.212898331265,1.1793716269528414]
[null,null,null,null,null,null,null,null,null,null,null,null,null,null,null,null,null,null,null,null,null,null,null,null,null,null,null,null,null,null,null,null,null,null,null,null,null,null,null,null,null,null,null,null,null,null,null,null,null,null,null,null,9995,13893.569223237804,1.2394938467545118,20417.890972751233,0.71137411532603811]
[null,null,null,null,null,null,null,null,null,null,null,null,null,null,null,null,null,null,null,null,null,null,null,null,null,null,null,null,null,null,null,null,null,null,null,null,null,null,null,null,null,null,null,null,null,null,null,null,null,null,null,null,9996,16251.651974834769,0.52054512711155165,21032.364076907776,0.81053246367560661]
[null,null,null,null,null,null,null,null,null,null,null,null,null,null,null,null,null,null,null,null,null,null,null,null,null,null,null,null,null,null,null,null,null,null,null,null,null,null,null,null,null,null,null,null,null,null,null,null,null,null,null,null,9997,15340.671067288289,0.75941716519663949,20514.993859941325,1.0537247789887625]
[null,null,null,null,null,null,null,null,null,null,null,null,null,null,null,null,null,null,null,null,null,null,null,null,null,null,null,null,null,null,null,null,null,null,null,null,null,null,null,null,null,null,null,null,null,null,null,null,null,null,null,null,9998,13756.660328451704,1.0688242537998045,20449.582559773982,0.86848044867302221]
[null,null,null,null,null,null,null,null,null,null,null,null,null,null,null,null,null,null,null,null,null,null,null,null,null,null,null,null,null,null,null,null,null,null,null,null,null,null,null,null,null,null,null,null,null,null,null,null,null,null,null,null,9999,13284.53720425826,1.738637864068588,20545.69295178874,1.4861735601535688]
[null,null,null,null,null,null,null,null,null,null,null,null,null,null,null,null,null,null,null,null,null,null,null,null,null,null,null,null,null,null,null,null,null,null,null,null,null,null,null,null,null,null,null,null,null,null,null,null,null,null,null,null,10000,17275.072062725783,0.83392768136958506,21775.237185630431,0.74697315186686264]

{"sheet":"Parameters","index":1,"n_rows":42,"n_cols":17,"rows_kept":42,"cut":false,"hidden":false,"merged":[]}
["Model Control",null,null,null,"opt_modeltype"]
["opt_modeltype","Model Type","Deterministic",null,"Deterministic"]
[null,null,null,null,"Stochastic"]
[]
["Cost Parameters",null,null,null,null,null,null,null,null,null,null,null,null,"Moments",null,"Implies"]
["Parameter","Description","Refers to","Value Used","Deterministic","Stochastic","Random","Dist","Param1",null,"Param2",null,null,"Mean","SD","Mean","SD"]
["Chronic, silent disease","Health state specific costs","Common",{"$f":"IF(opt_modeltype=$E$2,E7,F7)","v":23.51960196620535},23.51960196620535,{"$f":"_xlfn.LOGNORM.INV(G7,J7,L7)","v":25.374237096501034},{"$f":"RAND()","v":0.24685127941774732},"lognormal","μ",{"$f":"LN(N7)-0.5*L7^2","v":3.3298218318207837},"σ",{"$f":"SQRT(LN(1+O7^2/N7^2))","v":0.14039012211064736},null,28.21,3.98,{"$f":"EXP(J7+0.5*L7^2)","v":28.210000000000004},{"$f":"SQRT(EXP(L7^2)-1)*P7","v":3.9800000000000013}]
["Chronic, active disease","Health state specific costs","Common",{"$f":"IF(opt_modeltype=$E$2,E8,F8)","v":84.429551702958548},84.429551702958548,{"$f":"_xlfn.LOGNORM.INV(G8,J8,L8)","v":87.795185175889372},{"$f":"RAND()","v":0.61449223536353847},"lognormal","μ",{"$f":"LN(N8)-0.5*L8^2","v":4.3998842476946836},"σ",{"$f":"SQRT(LN(1+O8^2/N8^2))","v":0.25811111387771574},null,84.2,22.1,{"$f":"EXP(J8+0.5*L8^2)","v":84.200000000000045},{"$f":"SQRT(EXP(L8^2)-1)*P8","v":22.100000000000019}]
["Complications","Health state specific costs","Common",{"$f":"IF(opt_modeltype=$E$2,E9,F9)","v":396.99663623223148},396.99663623223148,{"$f":"_xlfn.GAMMA.INV(G9,J9,L9)","v":430.6949749589117},0.46133797059557324,"gamma","α",{"$f":"N9/L9","v":577.19995800963181},"b",{"$f":"O9^2/N9","v":0.74963622917100015},null,432.69,18.010000000000002,{"$f":"J9*L9","v":432.69},{"$f":"SQRT(J9*L9^2)","v":18.010000000000002}]
["c_TxA","Cost of Treament A","Treatment A",{"$f":"IF(opt_modeltype=$E$2,E10,F10)","v":38},38,null,null,"fixed"]
["c_TxB","Cost of Treament B","Treatment B",{"$f":"IF(opt_modeltype=$E$2,E11,F11)","v":400},400,null,null,"fixed"]
[]
["Utility Parameters"]
["Parameter","Description","Refers to","Value Used","Deterministic","Stochastic","Random","Dist","Param1",null,"Param2",null,"a + b","Mean","SD","Mean","SD"]
["Chronic, silent disease","Health state specific Utility","Common",{"$f":"IF(opt_modeltype=$E$2,E15,F15)","v":0.81899999999999995},0.81899999999999995,{"$f":"_xlfn.BETA.INV(G15,J15,L15)","v":0.82552211111283524},{"$f":"RAND()","v":0.61125533873204752},"beta","α",{"$f":"N15*M15","v":274.48200000000003},"b",{"$f":"M15-J15","v":60.660857142857196},{"$f":"N15*(1-N15)/O15^2-1","v":335.14285714285722},0.81899999999999995,2.1000000000000001E-2,{"$f":"J15/(J15+L15)","v":0.81899999999999984},{"$f":"(J15*L15/((J15+L15)^2*(J15+L15+1)))^0.5","v":2.1000000000000001E-2}]
["Chronic, active disease","Health state specific Utility","Common",{"$f":"IF(opt_modeltype=$E$2,E16,F16)","v":0.65300000000000002},0.65300000000000002,{"$f":"_xlfn.BETA.INV(G16,J16,L16)","v":0.48961993695510353},{"$f":"RAND()","v":7.641561585666079E-2},"beta","α",{"$f":"N16*M16","v":11.800827371433382},"b",{"$f":"M16-J16","v":6.2708837639929307},{"$f":"N16*(1-N16)/O16^2-1","v":18.071711135426312},0.65300000000000002,0.109,{"$f":"J16/(J16+L16)","v":0.65300000000000002},{"$f":"(J16*L16/((J16+L16)^2*(J16+L16+1)))^0.5","v":0.109}]
["Complications","Health state specific Utility","Common",{"$f":"IF(opt_modeltype=$E$2,E17,F17)","v":-0.13700000000000001},-0.13700000000000001,{"$f":"1-F18","v":-0.26083472669568142},null,null,null,null,null,null,null,{"$f":"1-N18","v":-0.13700000000000001},0.18]
[null,"DISUTILITY FOR COMPLICATIONS STATE",null,null,null,{"$f":"_xlfn.GAMMA.INV(G18,J18,L18)","v":1.2608347266956814},0.76325424692846511,"gamma","α",{"$f":"(N18/O18)^2","v":39.900277777777788},"b",{"$f":"O18^2/N18","v":2.8496042216358836E-2},null,1.137,0.18]
[]
["Dirichlet distributions for effectiveness",null,null,null,null,null,"Random","Dist","Param1",null,"Param2",null,"Draw","Mean","SD","Mean","SD"]
[null,"Probability of silent disease from silent disease","Treatment A","NA",{"$f":"J21/SUM(J21:J24)","v":0.90400000000000003},{"$f":"M21/SUM(M$21:M$23)","v":0.87996378289720578},{"$f":"RAND()","v":0.14705070335573789},"gamma","α",113,"b",1,{"$f":"_xlfn.GAMMA.INV(G21,J21,L21)","v":101.89701611809633}]
["p_active","Probability of active disease from silent disease","Treatment A",{"$f":"IF(opt_modeltype=$E$2,E22,F22)","v":8.7999999999999995E-2},{"$f":"J22/SUM(J21:J24)","v":8.7999999999999995E-2},{"$f":"M22/SUM(M$21:M$23)","v":0.11092559656704699},{"$f":"RAND()","v":0.73475554532134535},"gamma","α",11,"b",1,{"$f":"_xlfn.GAMMA.INV(G22,J22,L22)","v":12.844832390814672}]
["p_compl_sil","Probability of complications from silent disease","Treatment A",8.0000000000000002E-3,{"$f":"J23/SUM(J21:J24)","v":8.0000000000000002E-3},{"$f":"M23/SUM(M$21:M$23)","v":9.1106205357472294E-3},0.65180094745128481,"gamma","α",1,"b",1,1.0549809726491219]
["p_dead_sil","Probability of death from chronic, silent disease","Treatment A",0,{"$f":"J24/SUM(J21:J24)","v":0},0]
[]
[null,"Probability of silent disease from silent disease","Treatment B","NA",{"$f":"J26/SUM(J26:J29)","v":0.89143865842894965},{"$f":"M26/SUM(M$26:M$29)","v":0.91014951568344604},{"$f":"RAND()","v":0.61996853390439732},"gamma","α",1010,"b",1,{"$f":"_xlfn.GAMMA.INV(G26,J26,L26)","v":1019.4016359794447}]
["p_active","Probability of active disease from silent disease","Treatment B",{"$f":"IF(opt_modeltype=$E$2,E27,F27)","v":9.2674315975286845E-2},{"$f":"J27/SUM(J26:J29)","v":9.2674315975286845E-2},{"$f":"M27/SUM(M$26:M$29)","v":8.027278973418113E-2},{"$f":"RAND()","v":6.4637086377520525E-2},"gamma","α",105,"b",1,{"$f":"_xlfn.GAMMA.INV(G27,J27,L27)","v":89.908538948362335}]
["p_compl_sil","Probability of complications from silent disease","Treatment B",1.412180052956752E-2,{"$f":"J28/SUM(J26:J29)","v":1.412180052956752E-2},8.214848446871854E-3,2.6208309444447742E-2,"gamma","α",16,"b",1,9.2009387488120815]
["p_dead_sil","Probability of death from chronic, silent disease","Treatment B",1.76522506619594E-3,{"$f":"J29/SUM(J26:J29)","v":1.76522506619594E-3},1.3628461355009271E-3,0.45098422731111854,"gamma","α",2,"b",1,{"$f":"_xlfn.GAMMA.INV(G29,J29,L29)","v":1.5264388500769244}]
[]
["p_success","Probability of silent disease from active disease","Treatment A",{"$f":"IF(opt_modeltype=$E$2,E31,F31)","v":0.18461538461538463},{"$f":"J31/SUM(J31:J34)","v":0.18461538461538463},{"$f":"M31/SUM(M$31:M$34)","v":0.13119762650649799},{"$f":"RAND()","v":4.7923092810763568E-2},"gamma","α",12,"b",1,{"$f":"_xlfn.GAMMA.INV(G31,J31,L31)","v":6.8754708504577069}]
[null,"Probability of active disease from active disease","Treatment A","NA",{"$f":"J32/SUM(J31:J34)","v":0.67692307692307696},{"$f":"M32/SUM(M$31:M$34)","v":0.73771850897140556},{"$f":"RAND()","v":0.21498617196607195},"gamma","α",44,"b",1,{"$f":"_xlfn.GAMMA.INV(G32,J32,L32)","v":38.660471529374853}]
["p_compl_act","Probability of complications from active disease","Treatment A",{"$f":"IF(opt_modeltype=$E$2,E33,F33)","v":0.12307692307692308},{"$f":"J33/SUM(J31:J34)","v":0.12307692307692308},0.10430893384343677,0.186380660723376,"gamma","α",8,"b",1,5.4663567716855805]
["p_dead_act","Probability of death from chronic, active disease","Treatment A",1.5384615384615385E-2,{"$f":"J34/SUM(J31:J34)","v":1.5384615384615385E-2},2.6774930678659572E-2,0.75417916726435041,"gamma","α",1,"b",1,1.4031523306180542]
[]
["p_success","Probability of silent disease from active disease","Treatment B",{"$f":"IF(opt_modeltype=$E$2,E36,F36)","v":0.2119047619047619},{"$f":"J36/SUM(J36:J39)","v":0.2119047619047619},{"$f":"M36/SUM(M$36:M$39)","v":0.21702128797113668},{"$f":"RAND()","v":0.65839076925268247},"gamma","α",178,"b",1,{"$f":"_xlfn.GAMMA.INV(G36,J36,L36)","v":183.16087234462344}]
[null,"Probability of active disease from active disease","Treatment B","NA",{"$f":"J37/SUM(J36:J39)","v":0.68928571428571428},{"$f":"M37/SUM(M$36:M$39)","v":0.69621558931089766},{"$f":"RAND()","v":0.6439579027986001},"gamma","α",579,"b",1,{"$f":"_xlfn.GAMMA.INV(G37,J37,L37)","v":587.58961330590705}]
["p_compl_act","Probability of complications from active disease","Treatment B",{"$f":"IF(opt_modeltype=$E$2,E38,F38)","v":9.7619047619047619E-2},{"$f":"J38/SUM(J36:J39)","v":9.7619047619047619E-2},8.5682200798099017E-2,0.14057252680671339,"gamma","α",82,"b",1,72.313766033285276]
["p_dead_act","Probability of death from chronic, active disease","Treatment B",1.1904761904761906E-3,{"$f":"J39/SUM(J36:J39)","v":1.1904761904761906E-3},1.0809219198669019E-3,0.59838956408039978,"gamma","α",1,"b",1,0.9122727250866659]
[]
["Parameter","Description","Refers to","Value Used","Deterministic","Stochastic","Random","Dist","Param1",null,"Param2",null,null,"Mean","SD","Mean","SD"]
["p_dead_cmp","Probability of death from complications state","Common",{"$f":"IF(opt_modeltype=$E$2,E42,F42)","v":3.4940600978336828E-3},3.4940600978336828E-3,{"$f":"_xlfn.BETA.INV(G42,J42,L42)","v":3.3613857787497814E-3},{"$f":"RAND()","v":0.52522198884336913},"beta","α",5,"b",1426,null,null,null,{"$f":"J42/(J42+L42)","v":3.4940600978336828E-3},{"$f":"(J42*L42/((J42+L42)^2*(J42+L42+1)))^0.5","v":1.5593141581353833E-3}]

{"sheet":"Sheet3","index":2,"n_rows":0,"n_cols":0,"rows_kept":0,"cut":false,"hidden":false,"merged":[]}

{"sheet":"Sheet1","index":3,"n_rows":0,"n_cols":0,"rows_kept":0,"cut":false,"hidden":false,"merged":[]}

{"sheet":"Sheet2","index":4,"n_rows":0,"n_cols":0,"rows_kept":0,"cut":false,"hidden":false,"merged":[]}